Workbook

Sheet がんの予防
E2: 番号 | H2: 個別施策 | Q2: 番号 | T2: 中間アウトカム | AC2: 番号 | AF2: 分野アウトカム
E4: ①生活習慣（喫煙）
E5: 予D-0101 | I5: =VLOOKUP(E5,INDEXTBL!$A$1:$N$1344,2,FALSE) -> 喫煙者の行動に影響する人達から、喫煙者に対して、タバコと禁煙に関する正しい知識を伝える | K5: 沖縄県 | L5: 全国 | M5: 最良値 （都道府県） | Q5: 予B-0101 | U5: =VLOOKUP(Q5,INDEXTBL!$A$1:$N$1344,2,FALSE) -> 喫煙率と受動喫煙が減少できている | W5: 沖縄県 | X5: 全国 | Y5: 最良値 （都道府県） | AC5: 予A-0101 | AG5: =VLOOKUP(AC5,INDEXTBL!$A$1:$N$1344,2,FALSE) -> がん種別年齢調整死亡率（75歳未満、全年齢）が減少できている | AI5: 沖縄県 | AJ5: 全国 | AK5: 最良値 （都道府県）
H6: 予D-010101 | I6: =VLOOKUP(H6,INDEXTBL!$C$1:$N$1344,3,FALSE) -> 禁煙希望割合（男）（％） | J6: =VLOOKUP($H6,INDEXTBL!$C$1:$O$1344,5,FALSE) -> EX023 | K6: =IFERROR(HLOOKUP(J6,DATA!$C$2:$CCV$14,8,FALSE),"NA") -> 0.314 | L6: =IFERROR(HLOOKUP(J6,DATA!$C$2:$CCV$14,7,FALSE),"NA") -> 0.197 | M6: =IFERROR(TEXT(_xlfn.AGGREGATE(4,7,OFFSET(DATA!$A$1,14,MATCH(J6,DATA!$A$2:$CCV$2,0)-1,47,1))*100,"0.0")&"%" &" （"& $N6 & "）","NA") -> NA | N6: =INDEX(DATA!$C$15:$C$61,MATCH(_xlfn.AGGREGATE(4,7,OFFSET(DATA!$A$1,14,MATCH(J6,DATA!$A$2:$CCV$2,0)-1,47,1)),OFFSET(DATA!$A$1,14,MATCH(J6,DATA!$A$2:$CCV$2,0)-1,47,1),0)) ->  | R6: グラフ | T6: 予B-010101 | U6: =IF($C$2="乳","-",VLOOKUP(T6,INDEXTBL!$C$1:$N$1344,3,FALSE)) -> 20歳以上の者の喫煙率（男）（％） | V6: =VLOOKUP(T6,INDEXTBL!$C$1:$N$1344,5,FALSE) -> 全44 | W6: =IFERROR(TEXT(HLOOKUP("全44",DATA!$C$2:$CCV$14,8,FALSE),"0.0")&"%","NA") -> 26.0% | X6: =IFERROR(TEXT(HLOOKUP("全44",DATA!$C$2:$CCV$14,7,FALSE),"0.0")&"%","NA") -> 25.4% | Y6: =IFERROR(TEXT(_xlfn.AGGREGATE(5,7,OFFSET(DATA!$A$1,14,MATCH("全44",DATA!$A$2:$CCV$2,0)-1,47,1)),"0.0")&"%" &" （"& $Z6 & "）","NA") -> 20.3% （東京都） | Z6: =INDEX(DATA!$C$15:$C$61,MATCH(_xlfn.AGGREGATE(5,7,OFFSET(DATA!$A$1,14,MATCH("全44",DATA!$A$2:$CCV$2,0)-1,47,1)),OFFSET(DATA!$A$1,14,MATCH("全44",DATA!$A$2:$CCV$2,0)-1,47,1),0)) -> 東京都 | AD6: グラフ | AF6: 予A-010101 | AG6: =VLOOKUP(AF6,INDEXTBL!$C$1:$N$1344,3,FALSE) -> 全がん死亡率（男）（75歳未満、年齢調整、人口10万対） | AH6: =VLOOKUP(AF6,INDEXTBL!$C$1:$N$1344,5,FALSE) -> EX140 | AI6: =IFERROR(HLOOKUP(AH6,DATA!$C$2:$CCV$14,8,FALSE),"NA") -> 86.54162567 | AJ6: =IFERROR(HLOOKUP(AH6,DATA!$C$2:$CCV$14,7,FALSE),"NA") -> 79.13017766 | AK6: =IFERROR(TEXT(_xlfn.AGGREGATE(5,7,OFFSET(DATA!$A$1,14,MATCH(AH6,DATA!$A$2:$CCV$2,0)-1,47,1)),"0.0") &" （"& AL6 & "）","NA") -> 60.5 （長野県） | AL6: =INDEX(DATA!$C$15:$C$61,MATCH(_xlfn.AGGREGATE(5,7,OFFSET(DATA!$A$1,14,MATCH(AH6,DATA!$A$2:$CCV$2,0)-1,47,1)),OFFSET(DATA!$A$1,14,MATCH(AH6,DATA!$A$2:$CCV$2,0)-1,47,1),0)) -> 長野県
H7: 予D-010102 | I7: =VLOOKUP(H7,INDEXTBL!$C$1:$N$1344,3,FALSE) -> 禁煙希望割合（女）（％） | J7: =VLOOKUP($H7,INDEXTBL!$C$1:$O$1344,5,FALSE) -> EX024 | K7: =IFERROR(HLOOKUP(J7,DATA!$C$2:$CCV$14,8,FALSE),"NA") -> 0.571 | L7: =IFERROR(HLOOKUP(J7,DATA!$C$2:$CCV$14,7,FALSE),"NA") -> 0.239 | M7: =IFERROR(TEXT(_xlfn.AGGREGATE(4,7,OFFSET(DATA!$A$1,14,MATCH(J7,DATA!$A$2:$CCV$2,0)-1,47,1))*100,"0.0")&"%" &" （"& $N7 & "）","NA") -> NA | N7: =INDEX(DATA!$C$15:$C$61,MATCH(_xlfn.AGGREGATE(4,7,OFFSET(DATA!$A$1,14,MATCH(J7,DATA!$A$2:$CCV$2,0)-1,47,1)),OFFSET(DATA!$A$1,14,MATCH(J7,DATA!$A$2:$CCV$2,0)-1,47,1),0)) ->  | R7: グラフ | T7: 予B-010102 | U7: =VLOOKUP(T7,INDEXTBL!$C$1:$N$1344,3,FALSE) -> 20歳以上の者の喫煙率（女）（％） | V7: =VLOOKUP(T7,INDEXTBL!$C$1:$N$1344,5,FALSE) -> 全45 | W7: =IFERROR(TEXT(HLOOKUP("全45",DATA!$C$2:$CCV$14,8,FALSE),"0.0")&"%","NA") -> 8.8% | X7: =IFERROR(TEXT(HLOOKUP("全45",DATA!$C$2:$CCV$14,7,FALSE),"0.0")&"%","NA") -> 7.7% | Y7: =IFERROR(TEXT(_xlfn.AGGREGATE(5,7,OFFSET(DATA!$A$1,14,MATCH("全45",DATA!$A$2:$CCV$2,0)-1,47,1)),"0.0")&"%" &" （"& $Z7 & "）","NA") -> 5.3% （島根県） | Z7: =INDEX(DATA!$C$15:$C$61,MATCH(_xlfn.AGGREGATE(5,7,OFFSET(DATA!$A$1,14,MATCH("全45",DATA!$A$2:$CCV$2,0)-1,47,1)),OFFSET(DATA!$A$1,14,MATCH("全45",DATA!$A$2:$CCV$2,0)-1,47,1),0)) -> 島根県 | AD7: グラフ | AF7: 予A-010102 | AG7: =VLOOKUP(AF7,INDEXTBL!$C$1:$N$1344,3,FALSE) -> 全がん死亡率（女）（75歳未満、年齢調整、人口10万対） | AH7: =VLOOKUP(AF7,INDEXTBL!$C$1:$N$1344,5,FALSE) -> EX141 | AI7: =IFERROR(HLOOKUP(AH7,DATA!$C$2:$CCV$14,8,FALSE),"NA") -> 57.15601029 | AJ7: =IFERROR(HLOOKUP(AH7,DATA!$C$2:$CCV$14,7,FALSE),"NA") -> 53.34550393 | AK7: =IFERROR(TEXT(_xlfn.AGGREGATE(5,7,OFFSET(DATA!$A$1,14,MATCH(AH7,DATA!$A$2:$CCV$2,0)-1,47,1)),"0.0") &" （"& AL7 & "）","NA") -> 42.2 （滋賀県） | AL7: =INDEX(DATA!$C$15:$C$61,MATCH(_xlfn.AGGREGATE(5,7,OFFSET(DATA!$A$1,14,MATCH(AH7,DATA!$A$2:$CCV$2,0)-1,47,1)),OFFSET(DATA!$A$1,14,MATCH(AH7,DATA!$A$2:$CCV$2,0)-1,47,1),0)) -> 滋賀県
H8: 予D-010103 | I8: =VLOOKUP(H8,INDEXTBL!$C$1:$N$1344,3,FALSE) -> 喫煙の健康影響について正しい知識を持つ人の割合（％） | J8: =VLOOKUP($H8,INDEXTBL!$C$1:$O$1344,5,FALSE) -> EX203 | K8: =IFERROR(HLOOKUP(J8,DATA!$C$2:$CCV$14,8,FALSE),"NA") -> 0.929 | L8: =IFERROR(HLOOKUP(J8,DATA!$C$2:$CCV$14,7,FALSE),"NA") -> 0.845 | M8: =IFERROR(TEXT(_xlfn.AGGREGATE(4,7,OFFSET(DATA!$A$1,14,MATCH(J8,DATA!$A$2:$CCV$2,0)-1,47,1))*100,"0.0")&"%" &" （"& $N8 & "）","NA") -> NA | N8: =INDEX(DATA!$C$15:$C$61,MATCH(_xlfn.AGGREGATE(4,7,OFFSET(DATA!$A$1,14,MATCH(J8,DATA!$A$2:$CCV$2,0)-1,47,1)),OFFSET(DATA!$A$1,14,MATCH(J8,DATA!$A$2:$CCV$2,0)-1,47,1),0)) ->  | T8: 予B-010103 | U8: =VLOOKUP(T8,INDEXTBL!$C$1:$N$1344,3,FALSE) -> 中学生・高校生の喫煙者の割合 中学生（計）（％） | V8: =VLOOKUP(T8,INDEXTBL!$C$1:$N$1344,5,FALSE) -> EX008 | W8: =IFERROR(HLOOKUP("EX008",DATA!$C$2:$CCV$14,8,FALSE),"NA") -> NA | X8: =IFERROR(HLOOKUP("EX008",DATA!$C$2:$CCV$14,7,FALSE),"NA") -> 0.002 | Y8: =IFERROR(TEXT(_xlfn.AGGREGATE(5,7,OFFSET(DATA!$A$1,14,MATCH("EX008",DATA!$A$2:$BAT$2,0)-1,47,1))*100,"0.0")&"%" &" （"& $Z8 & "）","NA") -> NA | Z8: =INDEX(DATA!$C$15:$C$61,MATCH(_xlfn.AGGREGATE(5,7,OFFSET(DATA!$A$1,14,MATCH("EX008",DATA!$A$2:$BAT$2,0)-1,47,1)),OFFSET(DATA!$A$1,14,MATCH("EX008",DATA!$A$2:$CCV$2,0)-1,47,1),0)) ->  | AD8: グラフ | AF8: 予A-010103 | AG8: =VLOOKUP(AF8,INDEXTBL!$C$1:$N$1344,3,FALSE) -> 胃がん死亡率（男）（75歳未満、年齢調整、人口10万対） | AH8: =VLOOKUP(AF8,INDEXTBL!$C$1:$N$1344,8,FALSE) -> 胃13 | AI8: =IFERROR(HLOOKUP(AH8,DATA!$C$2:$CCV$14,8,FALSE),"NA") -> 4.893068612 | AJ8: =IFERROR(HLOOKUP(AH8,DATA!$C$2:$CCV$14,7,FALSE),"NA") -> 8.403428045 | AK8: =IFERROR(TEXT(_xlfn.AGGREGATE(5,7,OFFSET(DATA!$A$1,14,MATCH(AH8,DATA!$A$2:$CCV$2,0)-1,47,1)),"0.0") &" （"& AL8 & "）","NA") -> 4.9 （沖縄県） | AL8: =INDEX(DATA!$C$15:$C$61,MATCH(_xlfn.AGGREGATE(5,7,OFFSET(DATA!$A$1,14,MATCH(AH8,DATA!$A$2:$CCV$2,0)-1,47,1)),OFFSET(DATA!$A$1,14,MATCH(AH8,DATA!$A$2:$CCV$2,0)-1,47,1),0)) -> 沖縄県
H9: 予D-010104 | I9: =VLOOKUP(H9,INDEXTBL!$C$1:$N$1344,3,FALSE) -> 地域を対象として普及啓発に努めている拠点病院等の割合（％） | J9: =VLOOKUP($H9,INDEXTBL!$C$1:$O$1344,5,FALSE) -> EX204 | K9: =IFERROR(HLOOKUP(J9,DATA!$C$2:$CCV$14,8,FALSE),"NA") -> 0.333 | L9: =IFERROR(HLOOKUP(J9,DATA!$C$2:$CCV$14,7,FALSE),"NA") -> NA | M9: =IFERROR(TEXT(_xlfn.AGGREGATE(4,7,OFFSET(DATA!$A$1,14,MATCH(J9,DATA!$A$2:$CCV$2,0)-1,47,1))*100,"0.0")&"%" &" （"& $N9 & "）","NA") -> NA | N9: =INDEX(DATA!$C$15:$C$61,MATCH(_xlfn.AGGREGATE(4,7,OFFSET(DATA!$A$1,14,MATCH(J9,DATA!$A$2:$CCV$2,0)-1,47,1)),OFFSET(DATA!$A$1,14,MATCH(J9,DATA!$A$2:$CCV$2,0)-1,47,1),0)) ->  | T9: 予B-010104 | U9: =VLOOKUP(T9,INDEXTBL!$C$1:$N$1344,3,FALSE) -> 中学生・高校生の喫煙者の割合 高校生（男）（％） | V9: =VLOOKUP(T9,INDEXTBL!$C$1:$N$1344,5,FALSE) -> EX009 | W9: =IFERROR(HLOOKUP("EX009",DATA!$C$2:$CCV$14,8,FALSE),"NA") -> 0.025 | X9: =IFERROR(HLOOKUP("EX009",DATA!$C$2:$CCV$14,7,FALSE),"NA") -> NA | Y9: =IFERROR(TEXT(_xlfn.AGGREGATE(5,7,OFFSET(DATA!$A$1,14,MATCH("EX009",DATA!$A$2:$CCV$2,0)-1,47,1))*100,"0.0")&"%" &" （"& $Z9 & "）","NA") -> NA | Z9: =INDEX(DATA!$C$15:$C$61,MATCH(_xlfn.AGGREGATE(5,7,OFFSET(DATA!$A$1,14,MATCH("EX009",DATA!$A$2:$CCV$2,0)-1,47,1)),OFFSET(DATA!$A$1,14,MATCH("EX009",DATA!$A$2:$CCV$2,0)-1,47,1),0)) ->  | AD9: グラフ | AF9: 予A-010104 | AG9: =VLOOKUP(AF9,INDEXTBL!$C$1:$N$1344,3,FALSE) -> 胃がん死亡率（女）（75歳未満、年齢調整、人口10万対） | AH9: =VLOOKUP(AF9,INDEXTBL!$C$1:$N$1344,8,FALSE) -> 胃14 | AI9: =IFERROR(HLOOKUP(AH9,DATA!$C$2:$CCV$14,8,FALSE),"NA") -> 2.749524811 | AJ9: =IFERROR(HLOOKUP(AH9,DATA!$C$2:$CCV$14,7,FALSE),"NA") -> 3.32992163 | AK9: =IFERROR(TEXT(_xlfn.AGGREGATE(5,7,OFFSET(DATA!$A$1,14,MATCH(AH9,DATA!$A$2:$CCV$2,0)-1,47,1)),"0.0") &" （"& AL9 & "）","NA") -> 1.9 （佐賀県） | AL9: =INDEX(DATA!$C$15:$C$61,MATCH(_xlfn.AGGREGATE(5,7,OFFSET(DATA!$A$1,14,MATCH(AH9,DATA!$A$2:$CCV$2,0)-1,47,1)),OFFSET(DATA!$A$1,14,MATCH(AH9,DATA!$A$2:$CCV$2,0)-1,47,1),0)) -> 佐賀県
E10: 予D-0102 | I10: =VLOOKUP(E10,INDEXTBL!$A$1:$N$1344,2,FALSE) -> 禁煙希望者に禁煙してもらう | K10: 沖縄県 | L10: 全国 | M10: 最良値 （都道府県） | T10: 予B-010105 | U10: =VLOOKUP(T10,INDEXTBL!$C$1:$N$1344,3,FALSE) -> 中学生・高校生の喫煙者の割合 高校生（女）（％） | V10: =VLOOKUP(T10,INDEXTBL!$C$1:$N$1344,5,FALSE) -> EX010 | W10: =IFERROR(HLOOKUP("EX010",DATA!$C$2:$CCV$14,8,FALSE),"NA") -> 0.008 | X10: =IFERROR(HLOOKUP("EX010",DATA!$C$2:$CCV$14,7,FALSE),"NA") -> NA | Y10: =IFERROR(TEXT(_xlfn.AGGREGATE(5,7,OFFSET(DATA!$A$1,14,MATCH("EX010",DATA!$A$2:$BAT$2,0)-1,47,1))*100,"0.0")&"%" &" （"& $Z10 & "）","NA") -> NA | Z10: =INDEX(DATA!$C$15:$C$61,MATCH(_xlfn.AGGREGATE(5,7,OFFSET(DATA!$A$1,14,MATCH("EX010",DATA!$A$2:$BAT$2,0)-1,47,1)),OFFSET(DATA!$A$1,14,MATCH("EX010",DATA!$A$2:$CCV$2,0)-1,47,1),0)) ->  | AD10: グラフ | AF10: 予A-010105 | AG10: =VLOOKUP(AF10,INDEXTBL!$C$1:$N$1344,3,FALSE) -> 大腸がん死亡率（男）（75歳未満、年齢調整、人口10万対） | AH10: =VLOOKUP(AF10,INDEXTBL!$C$1:$N$1344,6,FALSE) -> 大腸13 | AI10: =IFERROR(HLOOKUP(AH10,DATA!$C$2:$CCV$14,8,FALSE),"NA") -> 17.78004042 | AJ10: =IFERROR(HLOOKUP(AH10,DATA!$C$2:$CCV$14,7,FALSE),"NA") -> 12.27324864 | AK10: =IFERROR(TEXT(_xlfn.AGGREGATE(5,7,OFFSET(DATA!$A$1,14,MATCH(AH10,DATA!$A$2:$CCV$2,0)-1,47,1)),"0.0") &" （"& AL10 & "）","NA") -> 7.2 （香川県） | AL10: =INDEX(DATA!$C$15:$C$61,MATCH(_xlfn.AGGREGATE(5,7,OFFSET(DATA!$A$1,14,MATCH(AH10,DATA!$A$2:$CCV$2,0)-1,47,1)),OFFSET(DATA!$A$1,14,MATCH(AH10,DATA!$A$2:$CCV$2,0)-1,47,1),0)) -> 香川県
F11: グラフ | H11: 予D-010201 | I11: =VLOOKUP(H11,INDEXTBL!$C$1:$N$1344,3,FALSE) -> （NDB-SCR）ニコチン依存症管理料１（初回） 外来【再掲】 | J11: =VLOOKUP($H11,INDEXTBL!$C$1:$O$1344,10,FALSE) -> N7 | K11: =IFERROR(HLOOKUP(J11,DATA!$C$2:$CCV$14,8,FALSE),"NA") -> 181.7 | L11: =IFERROR(HLOOKUP(J11,DATA!$C$2:$CCV$14,7,FALSE),"NA") -> 100 | M11: =IFERROR(TEXT(_xlfn.AGGREGATE(4,7,OFFSET(DATA!$A$1,14,MATCH(J11,DATA!$A$2:$CCV$2,0)-1,47,1)),"0.0") &" （"& N11 & "）","NA") -> 231.5 （鳥取県） | N11: =INDEX(DATA!$C$15:$C$61,MATCH(_xlfn.AGGREGATE(4,7,OFFSET(DATA!$A$1,14,MATCH(J11,DATA!$A$2:$CCV$2,0)-1,47,1)),OFFSET(DATA!$A$1,14,MATCH(J11,DATA!$A$2:$CCV$2,0)-1,47,1),0)) -> 鳥取県 | T11: 予B-010106 | U11: =VLOOKUP(T11,INDEXTBL!$C$1:$N$1344,3,FALSE) -> 妊婦の喫煙率（％） | V11: =VLOOKUP(T11,INDEXTBL!$C$1:$N$1344,5,FALSE) -> EX011 | W11: =IFERROR(TEXT(HLOOKUP("EX011",DATA!$C$2:$CCV$14,8,FALSE),"0.0")&"%","NA") -> 2.1% | X11: =IFERROR(TEXT(HLOOKUP("EX011",DATA!$C$2:$CCV$14,7,FALSE),"0.0")&"%","NA") -> 1.6% | Y11: =IFERROR(TEXT(_xlfn.AGGREGATE(5,7,OFFSET(DATA!$A$1,14,MATCH("EX011",DATA!$A$2:$BAT$2,0)-1,47,1))*1,"0.0")&"%" &" （"& $Z11 & "）","NA") -> 0.8% （富山県） | Z11: =INDEX(DATA!$C$15:$C$61,MATCH(_xlfn.AGGREGATE(5,7,OFFSET(DATA!$A$1,14,MATCH("EX011",DATA!$A$2:$BAT$2,0)-1,47,1)),OFFSET(DATA!$A$1,14,MATCH("EX011",DATA!$A$2:$CCV$2,0)-1,47,1),0)) -> 富山県 | AD11: グラフ | AF11: 予A-010106 | AG11: =VLOOKUP(AF11,INDEXTBL!$C$1:$N$1344,3,FALSE) -> 大腸がん死亡率（女）（75歳未満、年齢調整、人口10万対） | AH11: =VLOOKUP(AF11,INDEXTBL!$C$1:$N$1344,6,FALSE) -> 大腸14 | AI11: =IFERROR(HLOOKUP(AH11,DATA!$C$2:$CCV$14,8,FALSE),"NA") -> 8.393144652 | AJ11: =IFERROR(HLOOKUP(AH11,DATA!$C$2:$CCV$14,7,FALSE),"NA") -> 7.238360329 | AK11: =IFERROR(TEXT(_xlfn.AGGREGATE(5,7,OFFSET(DATA!$A$1,14,MATCH(AH11,DATA!$A$2:$CCV$2,0)-1,47,1)),"0.0") &" （"& AL11 & "）","NA") -> 4.3 （山形県） | AL11: =INDEX(DATA!$C$15:$C$61,MATCH(_xlfn.AGGREGATE(5,7,OFFSET(DATA!$A$1,14,MATCH(AH11,DATA!$A$2:$CCV$2,0)-1,47,1)),OFFSET(DATA!$A$1,14,MATCH(AH11,DATA!$A$2:$CCV$2,0)-1,47,1),0)) -> 山形県
F12: グラフ | H12: 予D-010202 | I12: =VLOOKUP(H12,INDEXTBL!$C$1:$N$1344,3,FALSE) -> （NDB-SCR）ニコチン依存症管理料１（２回目から４回目まで） 外来【再掲】 | J12: =VLOOKUP($H12,INDEXTBL!$C$1:$O$1344,10,FALSE) -> N8 | K12: =IFERROR(HLOOKUP(J12,DATA!$C$2:$CCV$14,8,FALSE),"NA") -> 169.8 | L12: =IFERROR(HLOOKUP(J12,DATA!$C$2:$CCV$14,7,FALSE),"NA") -> 100 | M12: =IFERROR(TEXT(_xlfn.AGGREGATE(4,7,OFFSET(DATA!$A$1,14,MATCH(J12,DATA!$A$2:$CCV$2,0)-1,47,1)),"0.0") &" （"& N12 & "）","NA") -> 234.2 （鳥取県） | N12: =INDEX(DATA!$C$15:$C$61,MATCH(_xlfn.AGGREGATE(4,7,OFFSET(DATA!$A$1,14,MATCH(J12,DATA!$A$2:$CCV$2,0)-1,47,1)),OFFSET(DATA!$A$1,14,MATCH(J12,DATA!$A$2:$CCV$2,0)-1,47,1),0)) -> 鳥取県 | T12: 予B-010107 | U12: =VLOOKUP(T12,INDEXTBL!$C$1:$N$1344,3,FALSE) -> 望まない受動喫煙の機会を有する者の割合 家庭（％） | V12: =VLOOKUP(T12,INDEXTBL!$C$1:$N$1344,5,FALSE) -> EX012 | W12: =IFERROR(TEXT(HLOOKUP("EX012",DATA!$C$2:$CCV$14,8,FALSE),"0.0")&"%","NA") -> 5.2% | X12: =IFERROR(TEXT(HLOOKUP("EX012",DATA!$C$2:$CCV$14,7,FALSE),"0.0")&"%","NA") -> 5.0% | Y12: =IFERROR(TEXT(_xlfn.AGGREGATE(5,7,OFFSET(DATA!$A$1,14,MATCH("EX012",DATA!$A$2:$BAT$2,0)-1,47,1))*1,"0.0")&"%" &" （"& $Z12 & "）","NA") -> NA | Z12: =INDEX(DATA!$C$15:$C$61,MATCH(_xlfn.AGGREGATE(5,7,OFFSET(DATA!$A$1,14,MATCH("EX012",DATA!$A$2:$BAT$2,0)-1,47,1)),OFFSET(DATA!$A$1,14,MATCH("EX012",DATA!$A$2:$CCV$2,0)-1,47,1),0)) ->  | AD12: グラフ | AF12: 予A-010107 | AG12: =VLOOKUP(AF12,INDEXTBL!$C$1:$N$1344,3,FALSE) -> 肝（肝細胞・肝内胆管）がん死亡率（男）（75歳未満、年齢調整、人口10万対） | AH12: =VLOOKUP(AF12,INDEXTBL!$C$1:$N$1344,5,FALSE) -> EX142 | AI12: =IFERROR(HLOOKUP(AH12,DATA!$C$2:$CCV$14,8,FALSE),"NA") -> 5.684492741 | AJ12: =IFERROR(HLOOKUP(AH12,DATA!$C$2:$CCV$14,7,FALSE),"NA") -> 5.375242228 | AK12: =IFERROR(TEXT(_xlfn.AGGREGATE(5,7,OFFSET(DATA!$A$1,14,MATCH(AH12,DATA!$A$2:$CCV$2,0)-1,47,1)),"0.0") &" （"& AL12 & "）","NA") -> 3.1 （滋賀県） | AL12: =INDEX(DATA!$C$15:$C$61,MATCH(_xlfn.AGGREGATE(5,7,OFFSET(DATA!$A$1,14,MATCH(AH12,DATA!$A$2:$CCV$2,0)-1,47,1)),OFFSET(DATA!$A$1,14,MATCH(AH12,DATA!$A$2:$CCV$2,0)-1,47,1),0)) -> 滋賀県
F13: グラフ | H13: 予D-010203 | I13: =VLOOKUP(H13,INDEXTBL!$C$1:$N$1344,3,FALSE) -> （NDB-SCR）ニコチン依存症管理料１（５回目） 外来【再掲】 | J13: =VLOOKUP($H13,INDEXTBL!$C$1:$O$1344,10,FALSE) -> N9 | K13: =IFERROR(HLOOKUP(J13,DATA!$C$2:$CCV$14,8,FALSE),"NA") -> 148.9 | L13: =IFERROR(HLOOKUP(J13,DATA!$C$2:$CCV$14,7,FALSE),"NA") -> 100 | M13: =IFERROR(TEXT(_xlfn.AGGREGATE(4,7,OFFSET(DATA!$A$1,14,MATCH(J13,DATA!$A$2:$CCV$2,0)-1,47,1)),"0.0") &" （"& N13 & "）","NA") -> 238.0 （島根県） | N13: =INDEX(DATA!$C$15:$C$61,MATCH(_xlfn.AGGREGATE(4,7,OFFSET(DATA!$A$1,14,MATCH(J13,DATA!$A$2:$CCV$2,0)-1,47,1)),OFFSET(DATA!$A$1,14,MATCH(J13,DATA!$A$2:$CCV$2,0)-1,47,1),0)) -> 島根県 | T13: 予B-010108 | U13: =VLOOKUP(T13,INDEXTBL!$C$1:$N$1344,3,FALSE) -> 望まない受動喫煙の機会を有する者の割合 職場（％） | V13: =VLOOKUP(T13,INDEXTBL!$C$1:$N$1344,5,FALSE) -> EX014 | W13: =IFERROR(TEXT(HLOOKUP("EX014",DATA!$C$2:$CCV$14,8,FALSE),"0.0")&"%","NA") -> 20.6% | X13: =IFERROR(TEXT(HLOOKUP("EX014",DATA!$C$2:$CCV$14,7,FALSE),"0.0")&"%","NA") -> 17.0% | Y13: =IFERROR(TEXT(_xlfn.AGGREGATE(5,7,OFFSET(DATA!$A$1,14,MATCH("EX014",DATA!$A$2:$BAT$2,0)-1,47,1))*1,"0.0")&"%" &" （"& $Z13 & "）","NA") -> NA | Z13: =INDEX(DATA!$C$15:$C$61,MATCH(_xlfn.AGGREGATE(5,7,OFFSET(DATA!$A$1,14,MATCH("EX014",DATA!$A$2:$BAT$2,0)-1,47,1)),OFFSET(DATA!$A$1,14,MATCH("EX014",DATA!$A$2:$CCV$2,0)-1,47,1),0)) ->  | AD13: グラフ | AF13: 予A-010108 | AG13: =VLOOKUP(AF13,INDEXTBL!$C$1:$N$1344,3,FALSE) -> 肝（肝細胞・肝内胆管）がん死亡率（女）（75歳未満、年齢調整、人口10万対） | AH13: =VLOOKUP(AF13,INDEXTBL!$C$1:$N$1344,5,FALSE) -> EX143 | AI13: =IFERROR(HLOOKUP(AH13,DATA!$C$2:$CCV$14,8,FALSE),"NA") -> 1.614671135 | AJ13: =IFERROR(HLOOKUP(AH13,DATA!$C$2:$CCV$14,7,FALSE),"NA") -> 1.409179144 | AK13: =IFERROR(TEXT(_xlfn.AGGREGATE(5,7,OFFSET(DATA!$A$1,14,MATCH(AH13,DATA!$A$2:$CCV$2,0)-1,47,1)),"0.0") &" （"& AL13 & "）","NA") -> 0.7 （秋田県） | AL13: =INDEX(DATA!$C$15:$C$61,MATCH(_xlfn.AGGREGATE(5,7,OFFSET(DATA!$A$1,14,MATCH(AH13,DATA!$A$2:$CCV$2,0)-1,47,1)),OFFSET(DATA!$A$1,14,MATCH(AH13,DATA!$A$2:$CCV$2,0)-1,47,1),0)) -> 秋田県
E14: 予D-0103 | I14: =VLOOKUP(E14,INDEXTBL!$A$1:$N$1344,2,FALSE) -> 公共施設等の受動喫煙防止対策を推進する | K14: 沖縄県 | L14: 全国 | M14: 最良値 （都道府県） | T14: 予B-010109 | U14: =VLOOKUP(T14,INDEXTBL!$C$1:$N$1344,3,FALSE) -> 望まない受動喫煙の機会を有する者の割合 飲食店（％） | V14: =VLOOKUP(T14,INDEXTBL!$C$1:$N$1344,5,FALSE) -> EX015 | W14: =IFERROR(TEXT(HLOOKUP("EX015",DATA!$C$2:$CCV$14,8,FALSE),"0.0")&"%","NA") -> 23.2% | X14: =IFERROR(TEXT(HLOOKUP("EX015",DATA!$C$2:$CCV$14,7,FALSE),"0.0")&"%","NA") -> 16.0% | Y14: =IFERROR(TEXT(_xlfn.AGGREGATE(5,7,OFFSET(DATA!$A$1,14,MATCH("EX015",DATA!$A$2:$BAT$2,0)-1,47,1))*1,"0.0")&"%" &" （"& $Z14 & "）","NA") -> NA | Z14: =INDEX(DATA!$C$15:$C$61,MATCH(_xlfn.AGGREGATE(5,7,OFFSET(DATA!$A$1,14,MATCH("EX015",DATA!$A$2:$BAT$2,0)-1,47,1)),OFFSET(DATA!$A$1,14,MATCH("EX015",DATA!$A$2:$CCV$2,0)-1,47,1),0)) ->  | AD14: グラフ | AF14: 予A-010109 | AG14: =VLOOKUP(AF14,INDEXTBL!$C$1:$N$1344,3,FALSE) -> 肺がん死亡率（男）（75歳未満、年齢調整、人口10万対） | AH14: =VLOOKUP(AF14,INDEXTBL!$C$1:$N$1344,7,FALSE) -> 肺13 | AI14: =IFERROR(HLOOKUP(AH14,DATA!$C$2:$CCV$14,8,FALSE),"NA") -> 18.38500027 | AJ14: =IFERROR(HLOOKUP(AH14,DATA!$C$2:$CCV$14,7,FALSE),"NA") -> 17.83068898 | AK14: =IFERROR(TEXT(_xlfn.AGGREGATE(5,7,OFFSET(DATA!$A$1,14,MATCH(AH14,DATA!$A$2:$CCV$2,0)-1,47,1)),"0.0") &" （"& AL14 & "）","NA") -> 11.7 （長野県） | AL14: =INDEX(DATA!$C$15:$C$61,MATCH(_xlfn.AGGREGATE(5,7,OFFSET(DATA!$A$1,14,MATCH(AH14,DATA!$A$2:$CCV$2,0)-1,47,1)),OFFSET(DATA!$A$1,14,MATCH(AH14,DATA!$A$2:$CCV$2,0)-1,47,1),0)) -> 長野県
H15: 予D-010301 | I15: =VLOOKUP(H15,INDEXTBL!$C$1:$N$1344,3,FALSE) -> 望まない受動喫煙の機会を有する者の割合 家庭（％）【再掲】 | J15: =VLOOKUP($H15,INDEXTBL!$C$1:$O$1344,5,FALSE) -> EX012 | K15: =IFERROR(TEXT(HLOOKUP("EX012",DATA!$C$2:$CCV$14,8,FALSE),"0.0")&"%","NA") -> 5.2% | L15: =IFERROR(TEXT(HLOOKUP("EX012",DATA!$C$2:$CCV$14,7,FALSE),"0.0")&"%","NA") -> 5.0% | M15: =IFERROR(TEXT(_xlfn.AGGREGATE(5,7,OFFSET(DATA!$A$1,14,MATCH("EX012",DATA!$A$2:$BAT$2,0)-1,47,1))*1,"0.0")&"%" &" （"& $N15 & "）","NA") -> NA | N15: =INDEX(DATA!$C$15:$C$61,MATCH(_xlfn.AGGREGATE(5,7,OFFSET(DATA!$A$1,14,MATCH("EX012",DATA!$A$2:$BAT$2,0)-1,47,1)),OFFSET(DATA!$A$1,14,MATCH("EX012",DATA!$A$2:$CCV$2,0)-1,47,1),0)) ->  | R15: グラフ | T15: 予B-010110 | U15: =VLOOKUP(T15,INDEXTBL!$C$1:$N$1344,3,FALSE) -> （NDB-SCR）ニコチン依存症管理料１（初回） 外来 | V15: =VLOOKUP(T15,INDEXTBL!$C$1:$N$1344,10,FALSE) -> N7 | W15: =IFERROR(HLOOKUP(VLOOKUP($T15,INDEXTBL!$C$1:$O$1344,10,FALSE),DATA!$C$2:$CCV$14,8,FALSE),"NA") -> 181.7 | X15: =IFERROR(HLOOKUP(VLOOKUP($T15,INDEXTBL!$C$1:$O$1344,10,FALSE),DATA!$C$2:$CCV$14,7,FALSE),"NA") -> 100 | Y15: =IFERROR(TEXT(_xlfn.AGGREGATE(4,7,OFFSET(DATA!$A$1,14,MATCH(VLOOKUP($T15,INDEXTBL!$C$1:$N$1344,10,FALSE),DATA!$A$2:$CCV$2,0)-1,47,1)),"#.#") &" （"& Z15 & "）","NA") -> 231.5 （鳥取県） | Z15: =INDEX(DATA!$C$15:$C$61,MATCH(_xlfn.AGGREGATE(4,7,OFFSET(DATA!$A$1,14,MATCH(VLOOKUP($T15,INDEXTBL!$C$1:$N$1344,10,FALSE),DATA!$A$2:$CCV$2,0)-1,47,1)),OFFSET(DATA!$A$1,14,MATCH(VLOOKUP($T15,INDEXTBL!$C$1:$N$1344,10,FALSE),DATA!$A$2:$CCV$2,0)-1,47,1),0)) -> 鳥取県 | AD15: グラフ | AF15: 予A-010110 | AG15: =VLOOKUP(AF15,INDEXTBL!$C$1:$N$1344,3,FALSE) -> 肺がん死亡率（女）（75歳未満、年齢調整、人口10万対） | AH15: =VLOOKUP(AF15,INDEXTBL!$C$1:$N$1344,7,FALSE) -> 肺14 | AI15: =IFERROR(HLOOKUP(AH15,DATA!$C$2:$CCV$14,8,FALSE),"NA") -> 5.317474098 | AJ15: =IFERROR(HLOOKUP(AH15,DATA!$C$2:$CCV$14,7,FALSE),"NA") -> 5.592240931 | AK15: =IFERROR(TEXT(_xlfn.AGGREGATE(5,7,OFFSET(DATA!$A$1,14,MATCH(AH15,DATA!$A$2:$CCV$2,0)-1,47,1)),"0.0") &" （"& AL15 & "）","NA") -> 3.4 （福井県） | AL15: =INDEX(DATA!$C$15:$C$61,MATCH(_xlfn.AGGREGATE(5,7,OFFSET(DATA!$A$1,14,MATCH(AH15,DATA!$A$2:$CCV$2,0)-1,47,1)),OFFSET(DATA!$A$1,14,MATCH(AH15,DATA!$A$2:$CCV$2,0)-1,47,1),0)) -> 福井県
H16: 予D-010302 | I16: =VLOOKUP(H16,INDEXTBL!$C$1:$N$1344,3,FALSE) -> 望まない受動喫煙の機会を有する者の割合 職場（％）【再掲】 | J16: =VLOOKUP($H16,INDEXTBL!$C$1:$O$1344,5,FALSE) -> EX014 | K16: =IFERROR(TEXT(HLOOKUP("EX014",DATA!$C$2:$CCV$14,8,FALSE),"0.0")&"%","NA") -> 20.6% | L16: =IFERROR(TEXT(HLOOKUP("EX014",DATA!$C$2:$CCV$14,7,FALSE),"0.0")&"%","NA") -> 17.0% | M16: =IFERROR(TEXT(_xlfn.AGGREGATE(5,7,OFFSET(DATA!$A$1,14,MATCH("EX014",DATA!$A$2:$BAT$2,0)-1,47,1))*1,"0.0")&"%" &" （"& $N16 & "）","NA") -> NA | N16: =INDEX(DATA!$C$15:$C$61,MATCH(_xlfn.AGGREGATE(5,7,OFFSET(DATA!$A$1,14,MATCH("EX014",DATA!$A$2:$BAT$2,0)-1,47,1)),OFFSET(DATA!$A$1,14,MATCH("EX014",DATA!$A$2:$CCV$2,0)-1,47,1),0)) ->  | R16: グラフ | T16: 予B-010111 | U16: =VLOOKUP(T16,INDEXTBL!$C$1:$N$1344,3,FALSE) -> （NDB-SCR）ニコチン依存症管理料１（２回目から４回目まで） 外来 | V16: =VLOOKUP(T16,INDEXTBL!$C$1:$N$1344,10,FALSE) -> N8 | W16: =IFERROR(HLOOKUP(VLOOKUP($T16,INDEXTBL!$C$1:$O$1344,10,FALSE),DATA!$C$2:$CCV$14,8,FALSE),"NA") -> 169.8 | X16: =IFERROR(HLOOKUP(VLOOKUP($T16,INDEXTBL!$C$1:$O$1344,10,FALSE),DATA!$C$2:$CCV$14,7,FALSE),"NA") -> 100 | Y16: =IFERROR(TEXT(_xlfn.AGGREGATE(4,7,OFFSET(DATA!$A$1,14,MATCH(VLOOKUP($T16,INDEXTBL!$C$1:$N$1344,10,FALSE),DATA!$A$2:$CCV$2,0)-1,47,1)),"#.#") &" （"& Z16 & "）","NA") -> 234.2 （鳥取県） | Z16: =INDEX(DATA!$C$15:$C$61,MATCH(_xlfn.AGGREGATE(4,7,OFFSET(DATA!$A$1,14,MATCH(VLOOKUP($T16,INDEXTBL!$C$1:$N$1344,10,FALSE),DATA!$A$2:$CCV$2,0)-1,47,1)),OFFSET(DATA!$A$1,14,MATCH(VLOOKUP($T16,INDEXTBL!$C$1:$N$1344,10,FALSE),DATA!$A$2:$CCV$2,0)-1,47,1),0)) -> 鳥取県 | AD16: グラフ | AF16: 予A-010111 | AG16: =VLOOKUP(AF16,INDEXTBL!$C$1:$N$1344,3,FALSE) -> 女性乳房がん死亡率（女）（75歳未満、年齢調整、人口10万対） | AH16: =VLOOKUP(AF16,INDEXTBL!$C$1:$N$1344,9,FALSE) -> 乳13 | AI16: =IFERROR(HLOOKUP(AH16,DATA!$C$2:$CCV$14,8,FALSE),"NA") -> 11.46113209 | AJ16: =IFERROR(HLOOKUP(AH16,DATA!$C$2:$CCV$14,7,FALSE),"NA") -> 10.03669293 | AK16: =IFERROR(TEXT(_xlfn.AGGREGATE(5,7,OFFSET(DATA!$A$1,14,MATCH(AH16,DATA!$A$2:$CCV$2,0)-1,47,1)),"0.0") &" （"& AL16 & "）","NA") -> 6.1 （滋賀県） | AL16: =INDEX(DATA!$C$15:$C$61,MATCH(_xlfn.AGGREGATE(5,7,OFFSET(DATA!$A$1,14,MATCH(AH16,DATA!$A$2:$CCV$2,0)-1,47,1)),OFFSET(DATA!$A$1,14,MATCH(AH16,DATA!$A$2:$CCV$2,0)-1,47,1),0)) -> 滋賀県
H17: 予D-010303 | I17: =VLOOKUP(H17,INDEXTBL!$C$1:$N$1344,3,FALSE) -> 望まない受動喫煙の機会を有する者の割合 飲食店（％）【再掲】 | J17: =VLOOKUP($H17,INDEXTBL!$C$1:$O$1344,5,FALSE) -> EX015 | K17: =IFERROR(TEXT(HLOOKUP("EX015",DATA!$C$2:$CCV$14,8,FALSE),"0.0")&"%","NA") -> 23.2% | L17: =IFERROR(TEXT(HLOOKUP("EX015",DATA!$C$2:$CCV$14,7,FALSE),"0.0")&"%","NA") -> 16.0% | M17: =IFERROR(TEXT(_xlfn.AGGREGATE(5,7,OFFSET(DATA!$A$1,14,MATCH("EX015",DATA!$A$2:$BAT$2,0)-1,47,1))*1,"0.0")&"%" &" （"& $N17 & "）","NA") -> NA | N17: =INDEX(DATA!$C$15:$C$61,MATCH(_xlfn.AGGREGATE(5,7,OFFSET(DATA!$A$1,14,MATCH("EX015",DATA!$A$2:$BAT$2,0)-1,47,1)),OFFSET(DATA!$A$1,14,MATCH("EX015",DATA!$A$2:$CCV$2,0)-1,47,1),0)) ->  | R17: グラフ | T17: 予B-010112 | U17: =VLOOKUP(T17,INDEXTBL!$C$1:$N$1344,3,FALSE) -> （NDB-SCR）ニコチン依存症管理料１（５回目） 外来 | V17: =VLOOKUP(T17,INDEXTBL!$C$1:$N$1344,10,FALSE) -> N9 | W17: =IFERROR(HLOOKUP(VLOOKUP($T17,INDEXTBL!$C$1:$O$1344,10,FALSE),DATA!$C$2:$CCV$14,8,FALSE),"NA") -> 148.9 | X17: =IFERROR(HLOOKUP(VLOOKUP($T17,INDEXTBL!$C$1:$O$1344,10,FALSE),DATA!$C$2:$CCV$14,7,FALSE),"NA") -> 100 | Y17: =IFERROR(TEXT(_xlfn.AGGREGATE(4,7,OFFSET(DATA!$A$1,14,MATCH(VLOOKUP($T17,INDEXTBL!$C$1:$N$1344,10,FALSE),DATA!$A$2:$CCV$2,0)-1,47,1)),"0.0") &" （"& Z17 & "）","NA") -> 238.0 （島根県） | Z17: =INDEX(DATA!$C$15:$C$61,MATCH(_xlfn.AGGREGATE(4,7,OFFSET(DATA!$A$1,14,MATCH(VLOOKUP($T17,INDEXTBL!$C$1:$N$1344,10,FALSE),DATA!$A$2:$CCV$2,0)-1,47,1)),OFFSET(DATA!$A$1,14,MATCH(VLOOKUP($T17,INDEXTBL!$C$1:$N$1344,10,FALSE),DATA!$A$2:$CCV$2,0)-1,47,1),0)) -> 島根県 | AD17: グラフ | AF17: 予A-010112 | AG17: =VLOOKUP(AF17,INDEXTBL!$C$1:$N$1344,3,FALSE) -> 子宮頸部がん死亡率（女）（75歳未満、年齢調整、人口10万対） | AH17: =VLOOKUP(AF17,INDEXTBL!$C$1:$N$1344,5,FALSE) -> EX001 | AI17: =IFERROR(HLOOKUP(AH17,DATA!$C$2:$CCV$14,8,FALSE),"NA") -> 5.854330491 | AJ17: =IFERROR(HLOOKUP(AH17,DATA!$C$2:$CCV$14,7,FALSE),"NA") -> 5.075874642 | AK17: =IFERROR(TEXT(_xlfn.AGGREGATE(5,7,OFFSET(DATA!$A$1,14,MATCH(AH17,DATA!$A$2:$CCV$2,0)-1,47,1)),"0.0") &" （"& AL17 & "）","NA") -> 2.9 （石川県） | AL17: =INDEX(DATA!$C$15:$C$61,MATCH(_xlfn.AGGREGATE(5,7,OFFSET(DATA!$A$1,14,MATCH(AH17,DATA!$A$2:$CCV$2,0)-1,47,1)),OFFSET(DATA!$A$1,14,MATCH(AH17,DATA!$A$2:$CCV$2,0)-1,47,1),0)) -> 石川県
AD18: グラフ | AF18: 予A-010113 | AG18: =VLOOKUP(AF18,INDEXTBL!$C$1:$N$1344,3,FALSE) -> 成人Ｔ細胞白血病リンパ腫死亡率（男）（75歳未満、年齢調整、人口10万対） | AH18: =VLOOKUP(AF18,INDEXTBL!$C$1:$N$1344,5,FALSE) -> EX144 | AI18: =IFERROR(HLOOKUP(AH18,DATA!$C$2:$CCV$14,8,FALSE),"NA") -> 3.090909583 | AJ18: =IFERROR(HLOOKUP(AH18,DATA!$C$2:$CCV$14,7,FALSE),"NA") -> 2.672735666 | AK18: =IFERROR(TEXT(_xlfn.AGGREGATE(5,7,OFFSET(DATA!$A$1,14,MATCH(AH18,DATA!$A$2:$CCV$2,0)-1,47,1)),"0.0") &" （"& AL18 & "）","NA") -> 1.1 （山形県） | AL18: =INDEX(DATA!$C$15:$C$61,MATCH(_xlfn.AGGREGATE(5,7,OFFSET(DATA!$A$1,14,MATCH(AH18,DATA!$A$2:$CCV$2,0)-1,47,1)),OFFSET(DATA!$A$1,14,MATCH(AH18,DATA!$A$2:$CCV$2,0)-1,47,1),0)) -> 山形県
E19: ②生活習慣（飲酒） | AD19: グラフ | AF19: 予A-010114 | AG19: =VLOOKUP(AF19,INDEXTBL!$C$1:$N$1344,3,FALSE) -> 成人Ｔ細胞白血病リンパ腫死亡率（女）（75歳未満、年齢調整、人口10万対） | AH19: =VLOOKUP(AF19,INDEXTBL!$C$1:$N$1344,5,FALSE) -> EX145 | AI19: =IFERROR(HLOOKUP(AH19,DATA!$C$2:$CCV$14,8,FALSE),"NA") -> 1.75735411 | AJ19: =IFERROR(HLOOKUP(AH19,DATA!$C$2:$CCV$14,7,FALSE),"NA") -> 1.400278686 | AK19: =IFERROR(TEXT(_xlfn.AGGREGATE(5,7,OFFSET(DATA!$A$1,14,MATCH(AH19,DATA!$A$2:$CCV$2,0)-1,47,1)),"0.0") &" （"& AL19 & "）","NA") -> 0.3 （香川県） | AL19: =INDEX(DATA!$C$15:$C$61,MATCH(_xlfn.AGGREGATE(5,7,OFFSET(DATA!$A$1,14,MATCH(AH19,DATA!$A$2:$CCV$2,0)-1,47,1)),OFFSET(DATA!$A$1,14,MATCH(AH19,DATA!$A$2:$CCV$2,0)-1,47,1),0)) -> 香川県
E20: 予D-0201 | I20: =VLOOKUP(E20,INDEXTBL!$A$1:$N$1344,2,FALSE) -> ハイリスク飲酒者に対する簡易介入を行う | K20: 沖縄県 | L20: 全国 | M20: 最良値 （都道府県） | Q20: 予B-0201 | U20: =VLOOKUP(Q20,INDEXTBL!$A$1:$N$1344,2,FALSE) -> 生活習慣病のリスクを高める量を飲酒している者が減少できている | W20: 沖縄県 | X20: 全国 | Y20: 最良値 （都道府県） | AC20: 予A-0102 | AG20: =VLOOKUP(AC20,INDEXTBL!$A$1:$N$1344,2,FALSE) -> がん種別罹患率が減少できている | AI20: 沖縄県 | AJ20: 全国 | AK20: 最良値 （都道府県）
F21: グラフ | H21: 予D-020101 | I21: =VLOOKUP(H21,INDEXTBL!$C$1:$N$1344,3,FALSE) -> ハイリスク量の飲酒（男）（％）【再掲】 | J21: =VLOOKUP(H21,INDEXTBL!$C$1:$N$1344,5,FALSE) -> 全48 | K21: =IFERROR(TEXT(HLOOKUP("全48",DATA!$C$2:$CCV$14,8,FALSE),"0.0")&"%","NA") -> 17.2% | L21: =IFERROR(TEXT(HLOOKUP("全48",DATA!$C$2:$CCV$14,7,FALSE),"0.0")&"%","NA") -> 14.1% | M21: =IFERROR(TEXT(_xlfn.AGGREGATE(5,7,OFFSET(DATA!$A$1,14,MATCH("全48",DATA!$A$2:$CCV$2,0)-1,47,1)),"0.0")&"%" &" （"& $Z21 & "）","NA") -> NA | N21: =INDEX(DATA!$C$15:$C$61,MATCH(_xlfn.AGGREGATE(5,7,OFFSET(DATA!$A$1,14,MATCH("全48",DATA!$A$2:$CCV$2,0)-1,47,1)),OFFSET(DATA!$A$1,14,MATCH("全48",DATA!$A$2:$CCV$2,0)-1,47,1),0)) ->  | R21: グラフ | T21: 予B-020101 | U21: =IF($C$2="乳","-",VLOOKUP(T21,INDEXTBL!$C$1:$N$1344,3,FALSE)) -> ハイリスク量の飲酒（男）（％） | V21: =VLOOKUP(T21,INDEXTBL!$C$1:$N$1344,5,FALSE) -> 全48 | W21: =IFERROR(TEXT(HLOOKUP("全48",DATA!$C$2:$CCV$14,8,FALSE),"0.0")&"%","NA") -> 17.2% | X21: =IFERROR(TEXT(HLOOKUP("全48",DATA!$C$2:$CCV$14,7,FALSE),"0.0")&"%","NA") -> 14.1% | Y21: =IFERROR(TEXT(_xlfn.AGGREGATE(5,7,OFFSET(DATA!$A$1,14,MATCH("全48",DATA!$A$2:$CCV$2,0)-1,47,1)),"0.0")&"%" &" （"& $Z21 & "）","NA") -> NA | Z21: =INDEX(DATA!$C$15:$C$61,MATCH(_xlfn.AGGREGATE(5,7,OFFSET(DATA!$A$1,14,MATCH("全48",DATA!$A$2:$CCV$2,0)-1,47,1)),OFFSET(DATA!$A$1,14,MATCH("全48",DATA!$A$2:$CCV$2,0)-1,47,1),0)) ->  | AD21: グラフ | AF21: 予A-020101 | AG21: =VLOOKUP(AF21,INDEXTBL!$C$1:$N$1344,3,FALSE) -> 全がん罹患率（男）（年齢調整、人口10万人対） | AH21: =VLOOKUP(AF21,INDEXTBL!$C$1:$N$1344,5,FALSE) -> EX146 | AI21: =IFERROR(HLOOKUP(AH21,DATA!$C$2:$CCV$14,8,FALSE),"NA") -> 387.5977379 | AJ21: =IFERROR(HLOOKUP(AH21,DATA!$C$2:$CCV$14,7,FALSE),"NA") -> 429.9402415 | AK21: =IFERROR(TEXT(_xlfn.AGGREGATE(5,7,OFFSET(DATA!$A$1,14,MATCH(AH21,DATA!$A$2:$CCV$2,0)-1,47,1)),"0.0") &" （"& AL21 & "）","NA") -> 383.1 （宮崎県） | AL21: =INDEX(DATA!$C$15:$C$61,MATCH(_xlfn.AGGREGATE(5,7,OFFSET(DATA!$A$1,14,MATCH(AH21,DATA!$A$2:$CCV$2,0)-1,47,1)),OFFSET(DATA!$A$1,14,MATCH(AH21,DATA!$A$2:$CCV$2,0)-1,47,1),0)) -> 宮崎県
F22: グラフ | H22: 予D-020102 | I22: =VLOOKUP(H22,INDEXTBL!$C$1:$N$1344,3,FALSE) -> ハイリスク量の飲酒（女）（％）【再掲】 | J22: =VLOOKUP(H22,INDEXTBL!$C$1:$N$1344,5,FALSE) -> 全49 | K22: =IFERROR(TEXT(HLOOKUP("全49",DATA!$C$2:$CCV$14,8,FALSE),"0.0")&"%","NA") -> 13.1% | L22: =IFERROR(TEXT(HLOOKUP("全49",DATA!$C$2:$CCV$14,7,FALSE),"0.0")&"%","NA") -> 9.5% | M22: =IFERROR(TEXT(_xlfn.AGGREGATE(5,7,OFFSET(DATA!$A$1,14,MATCH("全49",DATA!$A$2:$CCV$2,0)-1,47,1)),"0.0")&"%" &" （"& $Z22 & "）","NA") -> NA | N22: =INDEX(DATA!$C$15:$C$61,MATCH(_xlfn.AGGREGATE(5,7,OFFSET(DATA!$A$1,14,MATCH("全49",DATA!$A$2:$CCV$2,0)-1,47,1)),OFFSET(DATA!$A$1,14,MATCH("全49",DATA!$A$2:$CCV$2,0)-1,47,1),0)) ->  | R22: グラフ | T22: 予B-020102 | U22: =VLOOKUP(T22,INDEXTBL!$C$1:$N$1344,3,FALSE) -> ハイリスク量の飲酒（女）（％） | V22: =VLOOKUP(T22,INDEXTBL!$C$1:$N$1344,5,FALSE) -> 全49 | W22: =IFERROR(TEXT(HLOOKUP("全49",DATA!$C$2:$CCV$14,8,FALSE),"0.0")&"%","NA") -> 13.1% | X22: =IFERROR(TEXT(HLOOKUP("全49",DATA!$C$2:$CCV$14,7,FALSE),"0.0")&"%","NA") -> 9.5% | Y22: =IFERROR(TEXT(_xlfn.AGGREGATE(5,7,OFFSET(DATA!$A$1,14,MATCH("全49",DATA!$A$2:$CCV$2,0)-1,47,1)),"0.0")&"%" &" （"& $Z22 & "）","NA") -> NA | Z22: =INDEX(DATA!$C$15:$C$61,MATCH(_xlfn.AGGREGATE(5,7,OFFSET(DATA!$A$1,14,MATCH("全49",DATA!$A$2:$CCV$2,0)-1,47,1)),OFFSET(DATA!$A$1,14,MATCH("全49",DATA!$A$2:$CCV$2,0)-1,47,1),0)) ->  | AD22: グラフ | AF22: 予A-020102 | AG22: =VLOOKUP(AF22,INDEXTBL!$C$1:$N$1344,3,FALSE) -> 全がん罹患率（女）（年齢調整、人口10万人対） | AH22: =VLOOKUP(AF22,INDEXTBL!$C$1:$N$1344,5,FALSE) -> EX147 | AI22: =IFERROR(HLOOKUP(AH22,DATA!$C$2:$CCV$14,8,FALSE),"NA") -> 338.0726948 | AJ22: =IFERROR(HLOOKUP(AH22,DATA!$C$2:$CCV$14,7,FALSE),"NA") -> 344.6903998 | AK22: =IFERROR(TEXT(_xlfn.AGGREGATE(5,7,OFFSET(DATA!$A$1,14,MATCH(AH22,DATA!$A$2:$CCV$2,0)-1,47,1)),"0.0") &" （"& AL22 & "）","NA") -> 314.2 （長野県） | AL22: =INDEX(DATA!$C$15:$C$61,MATCH(_xlfn.AGGREGATE(5,7,OFFSET(DATA!$A$1,14,MATCH(AH22,DATA!$A$2:$CCV$2,0)-1,47,1)),OFFSET(DATA!$A$1,14,MATCH(AH22,DATA!$A$2:$CCV$2,0)-1,47,1),0)) -> 長野県
E23: 予D-0202 | I23: =VLOOKUP(E23,INDEXTBL!$A$1:$N$1344,2,FALSE) -> ハイリスク飲酒に関する正しい知識を伝える | K23: 沖縄県 | L23: 全国 | M23: 最良値 （都道府県） | AD23: グラフ | AF23: 予A-020103 | AG23: =VLOOKUP(AF23,INDEXTBL!$C$1:$N$1344,3,FALSE) -> 胃がん罹患率（男）（年齢調整、人口10万人対） | AH23: =VLOOKUP(AF23,INDEXTBL!$C$1:$N$1344,8,FALSE) -> 胃21 | AI23: =IFERROR(HLOOKUP(AH23,DATA!$C$2:$CCV$14,8,FALSE),"NA") -> 28.92930236 | AJ23: =IFERROR(HLOOKUP(AH23,DATA!$C$2:$CCV$14,7,FALSE),"NA") -> 55.51372401 | AK23: =IFERROR(TEXT(_xlfn.AGGREGATE(5,7,OFFSET(DATA!$A$1,14,MATCH(AH23,DATA!$A$2:$CCV$2,0)-1,47,1)),"0.0") &" （"& AL23 & "）","NA") -> 28.9 （沖縄県） | AL23: =INDEX(DATA!$C$15:$C$61,MATCH(_xlfn.AGGREGATE(5,7,OFFSET(DATA!$A$1,14,MATCH(AH23,DATA!$A$2:$CCV$2,0)-1,47,1)),OFFSET(DATA!$A$1,14,MATCH(AH23,DATA!$A$2:$CCV$2,0)-1,47,1),0)) -> 沖縄県
H24: 予D-020201 | I24: =VLOOKUP(H24,INDEXTBL!$C$1:$N$1344,3,FALSE) -> 「節度ある適度な飲酒」の認知度 | J24: =VLOOKUP(H24,INDEXTBL!$C$1:$N$1344,5,FALSE) -> EX025 | K24: =IFERROR(HLOOKUP("EX025",DATA!$C$2:$CCV$14,8,FALSE),"NA") -> 男45.7% 女37.0% | L24: =IFERROR(HLOOKUP("EX025",DATA!$C$2:$CCV$14,7,FALSE),"NA") -> NA | M24: =IFERROR(TEXT(_xlfn.AGGREGATE(5,7,OFFSET(DATA!$A$1,14,MATCH("EX025",DATA!$A$2:$BAT$2,0)-1,47,1))*100,"0.0")&"%" &" （"& $N24 & "）","NA") -> NA | N24: =INDEX(DATA!$C$15:$C$61,MATCH(_xlfn.AGGREGATE(5,7,OFFSET(DATA!$A$1,14,MATCH("EX025",DATA!$A$2:$BAT$2,0)-1,47,1)),OFFSET(DATA!$A$1,14,MATCH("EX025",DATA!$A$2:$CCV$2,0)-1,47,1),0)) ->  | AD24: グラフ | AF24: 予A-020104 | AG24: =VLOOKUP(AF24,INDEXTBL!$C$1:$N$1344,3,FALSE) -> 胃がん罹患率（女）（年齢調整、人口10万人対） | AH24: =VLOOKUP(AF24,INDEXTBL!$C$1:$N$1344,8,FALSE) -> 胃22 | AI24: =IFERROR(HLOOKUP(AH24,DATA!$C$2:$CCV$14,8,FALSE),"NA") -> 13.32405512 | AJ24: =IFERROR(HLOOKUP(AH24,DATA!$C$2:$CCV$14,7,FALSE),"NA") -> 20.73325356 | AK24: =IFERROR(TEXT(_xlfn.AGGREGATE(5,7,OFFSET(DATA!$A$1,14,MATCH(AH24,DATA!$A$2:$CCV$2,0)-1,47,1)),"0.0") &" （"& AL24 & "）","NA") -> 13.3 （沖縄県） | AL24: =INDEX(DATA!$C$15:$C$61,MATCH(_xlfn.AGGREGATE(5,7,OFFSET(DATA!$A$1,14,MATCH(AH24,DATA!$A$2:$CCV$2,0)-1,47,1)),OFFSET(DATA!$A$1,14,MATCH(AH24,DATA!$A$2:$CCV$2,0)-1,47,1),0)) -> 沖縄県
AD25: グラフ | AF25: 予A-020105 | AG25: =VLOOKUP(AF25,INDEXTBL!$C$1:$N$1344,3,FALSE) -> 大腸がん罹患率（男）（年齢調整、人口10万人対） | AH25: =VLOOKUP(AF25,INDEXTBL!$C$1:$N$1344,6,FALSE) -> 大腸21 | AI25: =IFERROR(HLOOKUP(AH25,DATA!$C$2:$CCV$14,8,FALSE),"NA") -> 89.5 | AJ25: =IFERROR(HLOOKUP(AH25,DATA!$C$2:$CCV$14,7,FALSE),"NA") -> 68.8 | AK25: =IFERROR(TEXT(_xlfn.AGGREGATE(5,7,OFFSET(DATA!$A$1,14,MATCH(AH25,DATA!$A$2:$CCV$2,0)-1,47,1)),"0.0") &" （"& AL25 & "）","NA") -> 48.9 （大分県） | AL25: =INDEX(DATA!$C$15:$C$61,MATCH(_xlfn.AGGREGATE(5,7,OFFSET(DATA!$A$1,14,MATCH(AH25,DATA!$A$2:$CCV$2,0)-1,47,1)),OFFSET(DATA!$A$1,14,MATCH(AH25,DATA!$A$2:$CCV$2,0)-1,47,1),0)) -> 大分県
E26: ③感染症対策（HPV） | AD26: グラフ | AF26: 予A-020106 | AG26: =VLOOKUP(AF26,INDEXTBL!$C$1:$N$1344,3,FALSE) -> 大腸がん罹患率（女）（年齢調整、人口10万人対） | AH26: =VLOOKUP(AF26,INDEXTBL!$C$1:$N$1344,6,FALSE) -> 大腸22 | AI26: =IFERROR(HLOOKUP(AH26,DATA!$C$2:$CCV$14,8,FALSE),"NA") -> 41.4 | AJ26: =IFERROR(HLOOKUP(AH26,DATA!$C$2:$CCV$14,7,FALSE),"NA") -> 41.5 | AK26: =IFERROR(TEXT(_xlfn.AGGREGATE(5,7,OFFSET(DATA!$A$1,14,MATCH(AH26,DATA!$A$2:$CCV$2,0)-1,47,1)),"0.0") &" （"& AL26 & "）","NA") -> 30.4 （大分県） | AL26: =INDEX(DATA!$C$15:$C$61,MATCH(_xlfn.AGGREGATE(5,7,OFFSET(DATA!$A$1,14,MATCH(AH26,DATA!$A$2:$CCV$2,0)-1,47,1)),OFFSET(DATA!$A$1,14,MATCH(AH26,DATA!$A$2:$CCV$2,0)-1,47,1),0)) -> 大分県
E27: 予D-0301 | I27: =VLOOKUP(E27,INDEXTBL!$A$1:$N$1344,2,FALSE) -> ９価HPVワクチンの定期接種を推進する | K27: 沖縄県 | L27: 全国 | M27: 最良値 （都道府県） | Q27: 予B-0301 | U27: =VLOOKUP(Q27,INDEXTBL!$A$1:$N$1344,2,FALSE) -> HPV感染率の低下ができている | W27: 沖縄県 | X27: 全国 | Y27: 最良値 （都道府県） | AD27: グラフ | AF27: 予A-020107 | AG27: =VLOOKUP(AF27,INDEXTBL!$C$1:$N$1344,3,FALSE) -> 肝（肝細胞・肝内胆管）がん罹患率（男）（年齢調整、人口10万人対） | AH27: =VLOOKUP(AF27,INDEXTBL!$C$1:$N$1344,5,FALSE) -> EX004 | AI27: =IFERROR(HLOOKUP(AH27,DATA!$C$2:$CCV$14,8,FALSE),"NA") -> 15.30147508 | AJ27: =IFERROR(HLOOKUP(AH27,DATA!$C$2:$CCV$14,7,FALSE),"NA") -> 17.24539876 | AK27: =IFERROR(TEXT(_xlfn.AGGREGATE(5,7,OFFSET(DATA!$A$1,14,MATCH(AH27,DATA!$A$2:$CCV$2,0)-1,47,1)),"0.0") &" （"& AL27 & "）","NA") -> 11.9 （新潟県） | AL27: =INDEX(DATA!$C$15:$C$61,MATCH(_xlfn.AGGREGATE(5,7,OFFSET(DATA!$A$1,14,MATCH(AH27,DATA!$A$2:$CCV$2,0)-1,47,1)),OFFSET(DATA!$A$1,14,MATCH(AH27,DATA!$A$2:$CCV$2,0)-1,47,1),0)) -> 新潟県
H28: 予D-030101 | I28: =VLOOKUP(H28,INDEXTBL!$C$1:$N$1344,3,FALSE) -> HPVワクチンの実施率 １回目（％）【再掲】 | J28: =VLOOKUP(H28,INDEXTBL!$C$1:$N$1344,5,FALSE) -> EX016 | K28: =IFERROR(HLOOKUP("EX016",DATA!$C$2:$CCV$14,8,FALSE),"NA") -> 0.253 | L28: =IFERROR(HLOOKUP("EX016",DATA!$C$2:$CCV$14,7,FALSE),"NA") -> 0.621 | M28: =IFERROR(TEXT(_xlfn.AGGREGATE(5,7,OFFSET(DATA!$A$1,14,MATCH("EX016",DATA!$A$2:$BAT$2,0)-1,47,1))*100,"0.0")&"%" &" （"& $N28 & "）","NA") -> NA | N28: =INDEX(DATA!$C$15:$C$61,MATCH(_xlfn.AGGREGATE(5,7,OFFSET(DATA!$A$1,14,MATCH("EX016",DATA!$A$2:$BAT$2,0)-1,47,1)),OFFSET(DATA!$A$1,14,MATCH("EX026",DATA!$A$2:$CCV$2,0)-1,47,1),0)) ->  | T28: 予B-030101 | U28: =VLOOKUP(T28,INDEXTBL!$C$1:$N$1344,3,FALSE) -> HPVワクチンの接種率 １回目（％） | V28: =VLOOKUP(T28,INDEXTBL!$C$1:$N$1344,5,FALSE) -> EX016 | W28: =IFERROR(HLOOKUP("EX016",DATA!$C$2:$CCV$14,8,FALSE),"NA") -> 0.253 | X28: =IFERROR(HLOOKUP("EX016",DATA!$C$2:$CCV$14,7,FALSE),"NA") -> 0.621 | Y28: =IFERROR(TEXT(_xlfn.AGGREGATE(5,7,OFFSET(DATA!$A$1,14,MATCH("EX016",DATA!$A$2:$BAT$2,0)-1,47,1))*100,"0.0")&"%" &" （"& $Z28 & "）","NA") -> NA | Z28: =INDEX(DATA!$C$15:$C$61,MATCH(_xlfn.AGGREGATE(5,7,OFFSET(DATA!$A$1,14,MATCH("EX016",DATA!$A$2:$BAT$2,0)-1,47,1)),OFFSET(DATA!$A$1,14,MATCH("EX016",DATA!$A$2:$CCV$2,0)-1,47,1),0)) ->  | AD28: グラフ | AF28: 予A-020108 | AG28: =VLOOKUP(AF28,INDEXTBL!$C$1:$N$1344,3,FALSE) -> 肝（肝細胞・肝内胆管）がん罹患率（女）（年齢調整、人口10万人対） | AH28: =VLOOKUP(AF28,INDEXTBL!$C$1:$N$1344,5,FALSE) -> EX005 | AI28: =IFERROR(HLOOKUP(AH28,DATA!$C$2:$CCV$14,8,FALSE),"NA") -> 5.171797907 | AJ28: =IFERROR(HLOOKUP(AH28,DATA!$C$2:$CCV$14,7,FALSE),"NA") -> 5.39510364 | AK28: =IFERROR(TEXT(_xlfn.AGGREGATE(5,7,OFFSET(DATA!$A$1,14,MATCH(AH28,DATA!$A$2:$CCV$2,0)-1,47,1)),"0.0") &" （"& AL28 & "）","NA") -> 3.7 （岩手県） | AL28: =INDEX(DATA!$C$15:$C$61,MATCH(_xlfn.AGGREGATE(5,7,OFFSET(DATA!$A$1,14,MATCH(AH28,DATA!$A$2:$CCV$2,0)-1,47,1)),OFFSET(DATA!$A$1,14,MATCH(AH28,DATA!$A$2:$CCV$2,0)-1,47,1),0)) -> 岩手県
H29: 予D-030102 | I29: =VLOOKUP(H29,INDEXTBL!$C$1:$N$1344,3,FALSE) -> HPVワクチンの実施率 ２回目（％）【再掲】 | J29: =VLOOKUP(H29,INDEXTBL!$C$1:$N$1344,5,FALSE) -> EX017 | K29: =IFERROR(HLOOKUP("EX017",DATA!$C$2:$CCV$14,8,FALSE),"NA") -> 0.143 | L29: =IFERROR(HLOOKUP("EX017",DATA!$C$2:$CCV$14,7,FALSE),"NA") -> 0.401 | M29: =IFERROR(TEXT(_xlfn.AGGREGATE(5,7,OFFSET(DATA!$A$1,14,MATCH("EX017",DATA!$A$2:$BAT$2,0)-1,47,1))*100,"0.0")&"%" &" （"& $N29 & "）","NA") -> NA | N29: =INDEX(DATA!$C$15:$C$61,MATCH(_xlfn.AGGREGATE(5,7,OFFSET(DATA!$A$1,14,MATCH("EX017",DATA!$A$2:$BAT$2,0)-1,47,1)),OFFSET(DATA!$A$1,14,MATCH("EX027",DATA!$A$2:$CCV$2,0)-1,47,1),0)) ->  | T29: 予B-030102 | U29: =VLOOKUP(T29,INDEXTBL!$C$1:$N$1344,3,FALSE) -> HPVワクチンの接種率 ２回目（％） | V29: =VLOOKUP(T29,INDEXTBL!$C$1:$N$1344,5,FALSE) -> EX017 | W29: =IFERROR(HLOOKUP("EX017",DATA!$C$2:$CCV$14,8,FALSE),"NA") -> 0.143 | X29: =IFERROR(HLOOKUP("EX017",DATA!$C$2:$CCV$14,7,FALSE),"NA") -> 0.401 | Y29: =IFERROR(TEXT(_xlfn.AGGREGATE(5,7,OFFSET(DATA!$A$1,14,MATCH("EX017",DATA!$A$2:$BAT$2,0)-1,47,1))*100,"0.0")&"%" &" （"& $Z29 & "）","NA") -> NA | Z29: =INDEX(DATA!$C$15:$C$61,MATCH(_xlfn.AGGREGATE(5,7,OFFSET(DATA!$A$1,14,MATCH("EX017",DATA!$A$2:$BAT$2,0)-1,47,1)),OFFSET(DATA!$A$1,14,MATCH("EX017",DATA!$A$2:$CCV$2,0)-1,47,1),0)) ->  | AD29: グラフ | AF29: 予A-020109 | AG29: =VLOOKUP(AF29,INDEXTBL!$C$1:$N$1344,3,FALSE) -> 肺がん罹患率（男）（年齢調整、人口10万人対） | AH29: =VLOOKUP(AF29,INDEXTBL!$C$1:$N$1344,7,FALSE) -> 肺21 | AI29: =IFERROR(HLOOKUP(AH29,DATA!$C$2:$CCV$14,8,FALSE),"NA") -> 49.80934203 | AJ29: =IFERROR(HLOOKUP(AH29,DATA!$C$2:$CCV$14,7,FALSE),"NA") -> 59.48870617 | AK29: =IFERROR(TEXT(_xlfn.AGGREGATE(5,7,OFFSET(DATA!$A$1,14,MATCH(AH29,DATA!$A$2:$CCV$2,0)-1,47,1)),"0.0") &" （"& AL29 & "）","NA") -> 49.8 （沖縄県） | AL29: =INDEX(DATA!$C$15:$C$61,MATCH(_xlfn.AGGREGATE(5,7,OFFSET(DATA!$A$1,14,MATCH(AH29,DATA!$A$2:$CCV$2,0)-1,47,1)),OFFSET(DATA!$A$1,14,MATCH(AH29,DATA!$A$2:$CCV$2,0)-1,47,1),0)) -> 沖縄県
H30: 予D-030103 | I30: =VLOOKUP(H30,INDEXTBL!$C$1:$N$1344,3,FALSE) -> HPVワクチンの実施率 ３回目（％）【再掲】 | J30: =VLOOKUP(H30,INDEXTBL!$C$1:$N$1344,5,FALSE) -> EX018 | K30: =IFERROR(HLOOKUP("EX018",DATA!$C$2:$CCV$14,8,FALSE),"NA") -> 0.091 | L30: =IFERROR(HLOOKUP("EX018",DATA!$C$2:$CCV$14,7,FALSE),"NA") -> 0.249 | M30: =IFERROR(TEXT(_xlfn.AGGREGATE(5,7,OFFSET(DATA!$A$1,14,MATCH("EX018",DATA!$A$2:$BAT$2,0)-1,47,1))*100,"0.0")&"%" &" （"& $N30 & "）","NA") -> NA | N30: =INDEX(DATA!$C$15:$C$61,MATCH(_xlfn.AGGREGATE(5,7,OFFSET(DATA!$A$1,14,MATCH("EX018",DATA!$A$2:$BAT$2,0)-1,47,1)),OFFSET(DATA!$A$1,14,MATCH("EX028",DATA!$A$2:$CCV$2,0)-1,47,1),0)) ->  | T30: 予B-030103 | U30: =VLOOKUP(T30,INDEXTBL!$C$1:$N$1344,3,FALSE) -> HPVワクチンの接種率 ３回目（％） | V30: =VLOOKUP(T30,INDEXTBL!$C$1:$N$1344,5,FALSE) -> EX018 | W30: =IFERROR(HLOOKUP("EX018",DATA!$C$2:$CCV$14,8,FALSE),"NA") -> 0.091 | X30: =IFERROR(HLOOKUP("EX018",DATA!$C$2:$CCV$14,7,FALSE),"NA") -> 0.249 | Y30: =IFERROR(TEXT(_xlfn.AGGREGATE(5,7,OFFSET(DATA!$A$1,14,MATCH("EX018",DATA!$A$2:$BAT$2,0)-1,47,1))*100,"0.0")&"%" &" （"& $Z30 & "）","NA") -> NA | Z30: =INDEX(DATA!$C$15:$C$61,MATCH(_xlfn.AGGREGATE(5,7,OFFSET(DATA!$A$1,14,MATCH("EX018",DATA!$A$2:$BAT$2,0)-1,47,1)),OFFSET(DATA!$A$1,14,MATCH("EX018",DATA!$A$2:$CCV$2,0)-1,47,1),0)) ->  | AD30: グラフ | AF30: 予A-020110 | AG30: =VLOOKUP(AF30,INDEXTBL!$C$1:$N$1344,3,FALSE) -> 肺がん罹患率（女）（年齢調整、人口10万人対） | AH30: =VLOOKUP(AF30,INDEXTBL!$C$1:$N$1344,7,FALSE) -> 肺22 | AI30: =IFERROR(HLOOKUP(AH30,DATA!$C$2:$CCV$14,8,FALSE),"NA") -> 20.46464546 | AJ30: =IFERROR(HLOOKUP(AH30,DATA!$C$2:$CCV$14,7,FALSE),"NA") -> 25.1154082 | AK30: =IFERROR(TEXT(_xlfn.AGGREGATE(5,7,OFFSET(DATA!$A$1,14,MATCH(AH30,DATA!$A$2:$CCV$2,0)-1,47,1)),"0.0") &" （"& AL30 & "）","NA") -> 20.3 （秋田県） | AL30: =INDEX(DATA!$C$15:$C$61,MATCH(_xlfn.AGGREGATE(5,7,OFFSET(DATA!$A$1,14,MATCH(AH30,DATA!$A$2:$CCV$2,0)-1,47,1)),OFFSET(DATA!$A$1,14,MATCH(AH30,DATA!$A$2:$CCV$2,0)-1,47,1),0)) -> 秋田県
E31: 予D-0302 | I31: =VLOOKUP(E31,INDEXTBL!$A$1:$N$1344,2,FALSE) -> HPVワクチンの予防接種後に生じた症状への対応を行う | K31: 沖縄県 | L31: 全国 | M31: 最良値 （都道府県） | AD31: グラフ | AF31: 予A-020111 | AG31: =VLOOKUP(AF31,INDEXTBL!$C$1:$N$1344,3,FALSE) -> 女性乳房がん罹患率（女）（年齢調整、人口10万人対） | AH31: =VLOOKUP(AF31,INDEXTBL!$C$1:$N$1344,9,FALSE) -> 乳15 | AI31: =IFERROR(HLOOKUP(AH31,DATA!$C$2:$CCV$14,8,FALSE),"NA") -> 116.2 | AJ31: =IFERROR(HLOOKUP(AH31,DATA!$C$2:$CCV$14,7,FALSE),"NA") -> 91.1 | AK31: =IFERROR(TEXT(_xlfn.AGGREGATE(5,7,OFFSET(DATA!$A$1,14,MATCH(AH31,DATA!$A$2:$CCV$2,0)-1,47,1)),"0.0") &" （"& AL31 & "）","NA") -> 76.0 （山形県） | AL31: =INDEX(DATA!$C$15:$C$61,MATCH(_xlfn.AGGREGATE(5,7,OFFSET(DATA!$A$1,14,MATCH(AH31,DATA!$A$2:$CCV$2,0)-1,47,1)),OFFSET(DATA!$A$1,14,MATCH(AH31,DATA!$A$2:$CCV$2,0)-1,47,1),0)) -> 山形県
H32: 予D-030201 | I32: =VLOOKUP(H32,INDEXTBL!$C$1:$N$1344,3,FALSE) -> 予防接種健康被害救済制度の申請者数に対する協力医療機関への受診割合（％） | K32: =IFERROR(HLOOKUP(VLOOKUP($H32,INDEXTBL!$C$1:$N$1344,$C$3,FALSE),DATA!$C$2:$CCV$14,8,FALSE),"NA") -> NA | L32: =IFERROR(HLOOKUP(VLOOKUP($H32,INDEXTBL!$C$1:$N$1344,$C$3,FALSE),DATA!$C$2:$CCV$14,7,FALSE),"NA") -> NA | M32: =IFERROR(TEXT(_xlfn.AGGREGATE(4,7,OFFSET(DATA!$A$1,14,MATCH(VLOOKUP($H32,INDEXTBL!$C$1:$N$1344,10,FALSE),DATA!$A$2:$CCV$2,0)-1,47,1)),"#.#") &" （"& N32 & "）","NA") -> NA | N32: =INDEX(DATA!$C$15:$C$61,MATCH(_xlfn.AGGREGATE(4,7,OFFSET(DATA!$A$1,14,MATCH(VLOOKUP($H32,INDEXTBL!$C$1:$N$1344,10,FALSE),DATA!$A$2:$CCV$2,0)-1,47,1)),OFFSET(DATA!$A$1,14,MATCH(VLOOKUP($H32,INDEXTBL!$C$1:$N$1344,10,FALSE),DATA!$A$2:$CCV$2,0)-1,47,1),0)) ->  | AD32: グラフ | AF32: 予A-020112 | AG32: =VLOOKUP(AF32,INDEXTBL!$C$1:$N$1344,3,FALSE) -> 子宮頸部がん罹患率（女）（年齢調整、人口10万人対） | AH32: =VLOOKUP(AF32,INDEXTBL!$C$1:$N$1344,5,FALSE) -> EX003 | AI32: =IFERROR(HLOOKUP(AH32,DATA!$C$2:$CCV$14,8,FALSE),"NA") -> 14.91588063 | AJ32: =IFERROR(HLOOKUP(AH32,DATA!$C$2:$CCV$14,7,FALSE),"NA") -> 13.61914476 | AK32: =IFERROR(TEXT(_xlfn.AGGREGATE(5,7,OFFSET(DATA!$A$1,14,MATCH(AH32,DATA!$A$2:$CCV$2,0)-1,47,1)),"0.0") &" （"& AL32 & "）","NA") -> 8.0 （山形県） | AL32: =INDEX(DATA!$C$15:$C$61,MATCH(_xlfn.AGGREGATE(5,7,OFFSET(DATA!$A$1,14,MATCH(AH32,DATA!$A$2:$CCV$2,0)-1,47,1)),OFFSET(DATA!$A$1,14,MATCH(AH32,DATA!$A$2:$CCV$2,0)-1,47,1),0)) -> 山形県
AD33: グラフ | AF33: 予A-020113 | AG33: =VLOOKUP(AF33,INDEXTBL!$C$1:$N$1344,3,FALSE) -> 成人Ｔ細胞白血病リンパ腫罹患率（男）（年齢調整、人口10万人対） | AH33: =VLOOKUP(AF33,INDEXTBL!$C$1:$N$1344,5,FALSE) -> EX006 | AI33: =IFERROR(HLOOKUP(AH33,DATA!$C$2:$CCV$14,8,FALSE),"NA") -> 10.16049755 | AJ33: =IFERROR(HLOOKUP(AH33,DATA!$C$2:$CCV$14,7,FALSE),"NA") -> 9.131598955 | AK33: =IFERROR(TEXT(_xlfn.AGGREGATE(5,7,OFFSET(DATA!$A$1,14,MATCH(AH33,DATA!$A$2:$CCV$2,0)-1,47,1)),"0.0") &" （"& AL33 & "）","NA") -> 5.7 （鳥取県） | AL33: =INDEX(DATA!$C$15:$C$61,MATCH(_xlfn.AGGREGATE(5,7,OFFSET(DATA!$A$1,14,MATCH(AH33,DATA!$A$2:$CCV$2,0)-1,47,1)),OFFSET(DATA!$A$1,14,MATCH(AH33,DATA!$A$2:$CCV$2,0)-1,47,1),0)) -> 鳥取県
E34: ④感染症対策（肝炎） | AD34: グラフ | AF34: 予A-020114 | AG34: =VLOOKUP(AF34,INDEXTBL!$C$1:$N$1344,3,FALSE) -> 成人Ｔ細胞白血病リンパ腫罹患率（女）（年齢調整、人口10万人対） | AH34: =VLOOKUP(AF34,INDEXTBL!$C$1:$N$1344,5,FALSE) -> EX007 | AI34: =IFERROR(HLOOKUP(AH34,DATA!$C$2:$CCV$14,8,FALSE),"NA") -> 9.980607837 | AJ34: =IFERROR(HLOOKUP(AH34,DATA!$C$2:$CCV$14,7,FALSE),"NA") -> 5.999523761 | AK34: =IFERROR(TEXT(_xlfn.AGGREGATE(5,7,OFFSET(DATA!$A$1,14,MATCH(AH34,DATA!$A$2:$CCV$2,0)-1,47,1)),"0.0") &" （"& AL34 & "）","NA") -> 4.2 （岐阜県） | AL34: =INDEX(DATA!$C$15:$C$61,MATCH(_xlfn.AGGREGATE(5,7,OFFSET(DATA!$A$1,14,MATCH(AH34,DATA!$A$2:$CCV$2,0)-1,47,1)),OFFSET(DATA!$A$1,14,MATCH(AH34,DATA!$A$2:$CCV$2,0)-1,47,1),0)) -> 岐阜県
E35: 予D-0401 | I35: =VLOOKUP(E35,INDEXTBL!$A$1:$N$1344,2,FALSE) -> HBVの予防接種法に基づく定期接種を推進する | K35: 沖縄県 | L35: 全国 | M35: 最良値 （都道府県） | Q35: 予B-0401 | U35: =VLOOKUP(Q35,INDEXTBL!$A$1:$N$1344,2,FALSE) -> B型・C型肝炎ウィルス陽性者数の減少ができている | W35: 沖縄県 | X35: 全国 | Y35: 最良値 （都道府県）
H36: 予D-040101 | I36: =VLOOKUP(H36,INDEXTBL!$C$1:$N$1344,3,FALSE) -> B型肝炎定期予防接種実施率 １回目（％） | J36: =VLOOKUP(H36,INDEXTBL!$C$1:$N$1344,5,FALSE) -> EX029 | K36: =IFERROR(HLOOKUP("EX029",DATA!$C$2:$CCV$14,8,FALSE),"NA") -> 0.956 | L36: =IFERROR(HLOOKUP("EX029",DATA!$C$2:$CCV$14,7,FALSE),"NA") -> 0.96 | M36: =IFERROR(TEXT(_xlfn.AGGREGATE(5,7,OFFSET(DATA!$A$1,14,MATCH("EX029",DATA!$A$2:$BAT$2,0)-1,47,1))*100,"0.0")&"%" &" （"& $N36 & "）","NA") -> NA | N36: =INDEX(DATA!$C$15:$C$61,MATCH(_xlfn.AGGREGATE(5,7,OFFSET(DATA!$A$1,14,MATCH("EX029",DATA!$A$2:$BAT$2,0)-1,47,1)),OFFSET(DATA!$A$1,14,MATCH("EX029",DATA!$A$2:$CCV$2,0)-1,47,1),0)) ->  | T36: 予B-040101 | U36: =VLOOKUP(T36,INDEXTBL!$C$1:$N$1344,3,FALSE) -> B型・C型肝炎ウイルス検査受検率 B型（％） | V36: =VLOOKUP(T36,INDEXTBL!$C$1:$N$1344,5,FALSE) -> EX019 | W36: =IFERROR(HLOOKUP("EX019",DATA!$C$2:$CCV$14,8,FALSE),"NA") -> 0.0047 | X36: =IFERROR(HLOOKUP("EX019",DATA!$C$2:$CCV$14,7,FALSE),"NA") -> NA | Y36: =IFERROR(TEXT(_xlfn.AGGREGATE(5,7,OFFSET(DATA!$A$1,14,MATCH("EX019",DATA!$A$2:$BAT$2,0)-1,47,1))*100,"0.0")&"%" &" （"& $Z36 & "）","NA") -> 3.1% （山梨県） | Z36: =INDEX(DATA!$C$15:$C$61,MATCH(_xlfn.AGGREGATE(5,7,OFFSET(DATA!$A$1,14,MATCH("EX019",DATA!$A$2:$BAT$2,0)-1,47,1)),OFFSET(DATA!$A$1,14,MATCH("EX019",DATA!$A$2:$CCV$2,0)-1,47,1),0)) -> 山梨県
H37: 予D-040102 | I37: =VLOOKUP(H37,INDEXTBL!$C$1:$N$1344,3,FALSE) -> B型肝炎定期予防接種実施率 ２回目（％） | J37: =VLOOKUP(H37,INDEXTBL!$C$1:$N$1344,5,FALSE) -> EX030 | K37: =IFERROR(HLOOKUP("EX030",DATA!$C$2:$CCV$14,8,FALSE),"NA") -> 0.96 | L37: =IFERROR(HLOOKUP("EX030",DATA!$C$2:$CCV$14,7,FALSE),"NA") -> 0.964 | M37: =IFERROR(TEXT(_xlfn.AGGREGATE(5,7,OFFSET(DATA!$A$1,14,MATCH("EX030",DATA!$A$2:$BAT$2,0)-1,47,1))*100,"0.0")&"%" &" （"& $N37 & "）","NA") -> NA | N37: =INDEX(DATA!$C$15:$C$61,MATCH(_xlfn.AGGREGATE(5,7,OFFSET(DATA!$A$1,14,MATCH("EX030",DATA!$A$2:$BAT$2,0)-1,47,1)),OFFSET(DATA!$A$1,14,MATCH("EX030",DATA!$A$2:$CCV$2,0)-1,47,1),0)) ->  | T37: 予B-040102 | U37: =VLOOKUP(T37,INDEXTBL!$C$1:$N$1344,3,FALSE) -> B型・C型肝炎ウイルス検査受検率 C型（％） | V37: =VLOOKUP(T37,INDEXTBL!$C$1:$N$1344,5,FALSE) -> EX020 | W37: =IFERROR(HLOOKUP("EX020",DATA!$C$2:$CCV$14,8,FALSE),"NA") -> 0.0043 | X37: =IFERROR(HLOOKUP("EX020",DATA!$C$2:$CCV$14,7,FALSE),"NA") -> NA | Y37: =IFERROR(TEXT(_xlfn.AGGREGATE(5,7,OFFSET(DATA!$A$1,14,MATCH("EX020",DATA!$A$2:$BAT$2,0)-1,47,1))*100,"0.0")&"%" &" （"& $Z37 & "）","NA") -> 2.7% （山梨県） | Z37: =INDEX(DATA!$C$15:$C$61,MATCH(_xlfn.AGGREGATE(5,7,OFFSET(DATA!$A$1,14,MATCH("EX020",DATA!$A$2:$BAT$2,0)-1,47,1)),OFFSET(DATA!$A$1,14,MATCH("EX020",DATA!$A$2:$CCV$2,0)-1,47,1),0)) -> 山梨県
H38: 予D-040103 | I38: =VLOOKUP(H38,INDEXTBL!$C$1:$N$1344,3,FALSE) -> B型肝炎定期予防接種実施率 ３回目（％） | J38: =VLOOKUP(H38,INDEXTBL!$C$1:$N$1344,5,FALSE) -> EX031 | K38: =IFERROR(HLOOKUP("EX031",DATA!$C$2:$CCV$14,8,FALSE),"NA") -> 0.882 | L38: =IFERROR(HLOOKUP("EX031",DATA!$C$2:$CCV$14,7,FALSE),"NA") -> 0.943 | M38: =IFERROR(TEXT(_xlfn.AGGREGATE(5,7,OFFSET(DATA!$A$1,14,MATCH("EX031",DATA!$A$2:$BAT$2,0)-1,47,1))*100,"0.0")&"%" &" （"& $N38 & "）","NA") -> NA | N38: =INDEX(DATA!$C$15:$C$61,MATCH(_xlfn.AGGREGATE(5,7,OFFSET(DATA!$A$1,14,MATCH("EX031",DATA!$A$2:$BAT$2,0)-1,47,1)),OFFSET(DATA!$A$1,14,MATCH("EX031",DATA!$A$2:$CCV$2,0)-1,47,1),0)) ->  | T38: 予B-040103 | U38: =VLOOKUP(T38,INDEXTBL!$C$1:$N$1344,3,FALSE) -> B型・C型肝炎ウイルス陽性者数 B型（人） ※代替指標：陽性率 | V38: =VLOOKUP(T38,INDEXTBL!$C$1:$N$1344,5,FALSE) -> EX021 | W38: =IFERROR(HLOOKUP("EX021",DATA!$C$2:$CCV$14,8,FALSE),"NA") -> NA | X38: =IFERROR(HLOOKUP("EX021",DATA!$C$2:$CCV$14,7,FALSE),"NA") -> 陽性率0.55% | Y38: =IFERROR(_xlfn.AGGREGATE(5,7,OFFSET(DATA!$A$1,14,MATCH("EX021",DATA!$A$2:$BAT$2,0)-1,47,1)) &" （"& $Z38 & "）","NA") -> NA | Z38: =INDEX(DATA!$C$15:$C$61,MATCH(_xlfn.AGGREGATE(5,7,OFFSET(DATA!$A$1,14,MATCH("EX021",DATA!$A$2:$BAT$2,0)-1,47,1)),OFFSET(DATA!$A$1,14,MATCH("EX021",DATA!$A$2:$CCV$2,0)-1,47,1),0)) -> 
E39: 予D-0402 | I39: =VLOOKUP(E39,INDEXTBL!$A$1:$N$1344,2,FALSE) -> 肝炎ウイルス検査体制を充実させる | K39: 沖縄県 | L39: 全国 | M39: 最良値 （都道府県） | T39: 予B-040104 | U39: =VLOOKUP(T39,INDEXTBL!$C$1:$N$1344,3,FALSE) -> B型・C型肝炎ウイルス陽性者数 C型（人） ※代替指標：陽性率 | V39: =VLOOKUP(T39,INDEXTBL!$C$1:$N$1344,5,FALSE) -> EX022 | W39: =IFERROR(HLOOKUP("EX022",DATA!$C$2:$CCV$14,8,FALSE),"NA") -> NA | X39: =IFERROR(HLOOKUP("EX022",DATA!$C$2:$CCV$14,7,FALSE),"NA") -> 陽性率0.23% | Y39: =IFERROR(_xlfn.AGGREGATE(5,7,OFFSET(DATA!$A$1,14,MATCH("EX022",DATA!$A$2:$BAT$2,0)-1,47,1)) &" （"& $Z39 & "）","NA") -> NA | Z39: =INDEX(DATA!$C$15:$C$61,MATCH(_xlfn.AGGREGATE(5,7,OFFSET(DATA!$A$1,14,MATCH("EX022",DATA!$A$2:$BAT$2,0)-1,47,1)),OFFSET(DATA!$A$1,14,MATCH("EX022",DATA!$A$2:$CCV$2,0)-1,47,1),0)) -> 
H40: 予D-040201 | I40: =VLOOKUP(H40,INDEXTBL!$C$1:$N$1344,3,FALSE) -> 肝疾患専門医療機関数 | J40: =VLOOKUP(H40,INDEXTBL!$C$1:$N$1344,5,FALSE) -> EX148 | K40: =IFERROR(TEXT(HLOOKUP("EX148",DATA!$C$2:$CCV$14,8,FALSE)/DATA!$H$9*1000000,"0.0"),"NA") -> 8.9 | L40: =IFERROR(TEXT(HLOOKUP("EX148",DATA!$C$2:$CCV$14,7,FALSE)/DATA!$H$8*1000000,"0.0"),"NA") -> 25.8 | M40: =IFERROR(TEXT(MAX(OFFSET(DATA!$A$1,14,MATCH("EX148",DATA!$A$2:$CCV$2,0)-1,47,1)/DATA!$H$15:$H$61*1000000),"0.0") &" （"& N40 & "）","NA") -> 96.9 （高知県） | N40: =INDEX(DATA!$C$15:$C$61,MATCH(_xlfn.AGGREGATE(4,7,OFFSET(DATA!$A$1,14,MATCH("EX148",DATA!$A$2:$CCV$2,0)-1,47,1)),OFFSET(DATA!$A$1,14,MATCH("EX148",DATA!$A$2:$CCV$2,0)-1,47,1),0)) -> 高知県 | O40: ＊＊
H41: 予D-040202 | I41: =VLOOKUP(H41,INDEXTBL!$C$1:$N$1344,3,FALSE) -> 公費肝炎検査実施数 B型肝炎ウイルス検査 | J41: =VLOOKUP(H41,INDEXTBL!$C$1:$N$1344,5,FALSE) -> EX032 | K41: =IFERROR(TEXT(HLOOKUP("EX032",DATA!$C$2:$CCV$14,8,FALSE)/DATA!$H$9*100000,"0.0"),"NA") -> 365.8 | L41: =IFERROR(TEXT(HLOOKUP("EX032",DATA!$C$2:$CCV$14,7,FALSE)/DATA!$H$8*100000,"0.0"),"NA") -> 623.3 | M41: =IFERROR(TEXT(MAX(OFFSET(DATA!$A$1,14,MATCH("EX032",DATA!$A$2:$CCV$2,0)-1,47,1)/DATA!$H$15:$H$61*100000),"0.0") &" （"& N41 & "）","NA") -> 2440.1 （山梨県） | N41: =INDEX(DATA!$C$15:$C$61,MATCH(_xlfn.AGGREGATE(4,7,OFFSET(DATA!$A$1,14,MATCH("EX032",DATA!$A$2:$CCV$2,0)-1,47,1)),OFFSET(DATA!$A$1,14,MATCH("EX032",DATA!$A$2:$CCV$2,0)-1,47,1),0)) -> 山梨県 | O41: ＊
H42: 予D-040203 | I42: =VLOOKUP(H42,INDEXTBL!$C$1:$N$1344,3,FALSE) -> 公費肝炎検査実施数 C型肝炎ウイルス検査 | J42: =VLOOKUP(H42,INDEXTBL!$C$1:$N$1344,5,FALSE) -> EX033 | K42: =IFERROR(TEXT(HLOOKUP("EX033",DATA!$C$2:$CCV$14,8,FALSE)/DATA!$H$9*100000,"0.0"),"NA") -> 338.7 | L42: =IFERROR(TEXT(HLOOKUP("EX033",DATA!$C$2:$CCV$14,7,FALSE)/DATA!$H$8*100000,"0.0"),"NA") -> 615.3 | M42: =IFERROR(TEXT(MAX(OFFSET(DATA!$A$1,14,MATCH("EX033",DATA!$A$2:$CCV$2,0)-1,47,1)/DATA!$H$15:$H$61*100000),"0.0") &" （"& N42 & "）","NA") -> 2430.8 （山梨県） | N42: =INDEX(DATA!$C$15:$C$61,MATCH(_xlfn.AGGREGATE(4,7,OFFSET(DATA!$A$1,14,MATCH("EX033",DATA!$A$2:$CCV$2,0)-1,47,1)),OFFSET(DATA!$A$1,14,MATCH("EX033",DATA!$A$2:$CCV$2,0)-1,47,1),0)) -> 山梨県 | O42: ＊
E43: 予D-0403 | I43: =VLOOKUP(E43,INDEXTBL!$A$1:$N$1344,2,FALSE) -> 肝炎ウイルス陽性者への受診勧奨を行う | K43: 沖縄県 | L43: 全国 | M43: 最良値 （都道府県）
H44: 予D-040301 | I44: =VLOOKUP(H44,INDEXTBL!$C$1:$N$1344,3,FALSE) -> 肝炎医療コーディネーターの養成者数 | J44: =VLOOKUP(H44,INDEXTBL!$C$1:$N$1344,5,FALSE) -> EX034 | K44: =IFERROR(TEXT(HLOOKUP("EX034",DATA!$C$2:$CCV$14,8,FALSE)/DATA!$H$9*1000000,"0.0"),"NA") -> 12.9 | L44: =IFERROR(TEXT(HLOOKUP("EX034",DATA!$C$2:$CCV$14,7,FALSE)/DATA!$H$8*1000000,"0.0"),"NA") -> 46.2 | M44: =IFERROR(TEXT(MAX(OFFSET(DATA!$A$1,14,MATCH("EX034",DATA!$A$2:$CCV$2,0)-1,47,1)/DATA!$H$15:$H$61*1000000),"0.0") &" （"& N44 & "）","NA") -> 91.1 （大阪府） | N44: =INDEX(DATA!$C$15:$C$61,MATCH(_xlfn.AGGREGATE(4,7,OFFSET(DATA!$A$1,14,MATCH("EX034",DATA!$A$2:$CCV$2,0)-1,47,1)),OFFSET(DATA!$A$1,14,MATCH("EX034",DATA!$A$2:$CCV$2,0)-1,47,1),0)) -> 大阪府 | O44: ＊＊
H45: 予D-040302 | I45: =VLOOKUP(H45,INDEXTBL!$C$1:$N$1344,3,FALSE) -> 公費肝炎治療開始者数 B型肝炎（人） | J45: =VLOOKUP(H45,INDEXTBL!$C$1:$N$1344,5,FALSE) -> EX035 | K45: =IFERROR(TEXT(HLOOKUP("EX035",DATA!$C$2:$CCV$14,8,FALSE)/DATA!$H$9*100000,"0.0"),"NA") -> 51.2 | L45: =IFERROR(TEXT(HLOOKUP("EX035",DATA!$C$2:$CCV$14,7,FALSE)/DATA!$H$8*100000,"0.0"),"NA") -> 70.5 | M45: =IFERROR(TEXT(MAX(OFFSET(DATA!$A$1,14,MATCH("EX035",DATA!$A$2:$CCV$2,0)-1,47,1)/DATA!$H$15:$H$61*100000),"0.0") &" （"& N45 & "）","NA") -> 139.8 （北海道） | N45: =INDEX(DATA!$C$15:$C$61,MATCH(_xlfn.AGGREGATE(4,7,OFFSET(DATA!$A$1,14,MATCH("EX035",DATA!$A$2:$CCV$2,0)-1,47,1)),OFFSET(DATA!$A$1,14,MATCH("EX035",DATA!$A$2:$CCV$2,0)-1,47,1),0)) -> 北海道 | O45: ＊
H46: 予D-040303 | I46: =VLOOKUP(H46,INDEXTBL!$C$1:$N$1344,3,FALSE) -> 公費肝炎治療開始者数 C型肝炎（人） | J46: =VLOOKUP(H46,INDEXTBL!$C$1:$N$1344,5,FALSE) -> EX036 | K46: =IFERROR(TEXT(HLOOKUP("EX036",DATA!$C$2:$CCV$14,8,FALSE)/DATA!$H$9*100000,"0.0"),"NA") -> 2.6 | L46: =IFERROR(TEXT(HLOOKUP("EX036",DATA!$C$2:$CCV$14,7,FALSE)/DATA!$H$8*100000,"0.0"),"NA") -> 6.3 | M46: =IFERROR(TEXT(MAX(OFFSET(DATA!$A$1,14,MATCH("EX036",DATA!$A$2:$CCV$2,0)-1,47,1)/DATA!$H$15:$H$61*100000),"0.0") &" （"& N46 & "）","NA") -> 8.6 （大阪府） | N46: =INDEX(DATA!$C$15:$C$61,MATCH(_xlfn.AGGREGATE(4,7,OFFSET(DATA!$A$1,14,MATCH("EX036",DATA!$A$2:$CCV$2,0)-1,47,1)),OFFSET(DATA!$A$1,14,MATCH("EX036",DATA!$A$2:$CCV$2,0)-1,47,1),0)) -> 大阪府 | O46: ＊
M47: ＊：人口10万人あたり
E48: ⑤感染症対策（HTLV-1）
E49: 予D-0501 | I49: =VLOOKUP(E49,INDEXTBL!$A$1:$N$1344,2,FALSE) -> 妊婦に対するHTLV-1抗体検査と保健指導を行う | K49: 沖縄県 | L49: 全国 | M49: 最良値 （都道府県） | Q49: 予B-0501 | U49: =VLOOKUP(Q49,INDEXTBL!$A$1:$N$1344,2,FALSE) -> HTLV-1 感染者数の減少ができている | W49: 沖縄県 | X49: 全国 | Y49: 最良値 （都道府県）
H50: 予D-050101 | I50: =VLOOKUP(H50,INDEXTBL!$C$1:$N$1344,3,FALSE) -> HTLV-1抗体検査の公費負担実施率（％） | J50: =VLOOKUP(H50,INDEXTBL!$C$1:$N$1344,5,FALSE) -> EX037 | K50: =IFERROR(HLOOKUP("EX037",DATA!$C$2:$CCV$14,8,FALSE),"NA") -> 0.976 | L50: =IFERROR(HLOOKUP("EX037",DATA!$C$2:$CCV$14,7,FALSE),"NA") -> 0.919 | M50: =IFERROR(TEXT(_xlfn.AGGREGATE(5,7,OFFSET(DATA!$A$1,14,MATCH("EX037",DATA!$A$2:$BAT$2,0)-1,47,1))*100,"0.0")&"%" &" （"& $N50 & "）","NA") -> 100.0% （青森県） | N50: =INDEX(DATA!$C$15:$C$61,MATCH(_xlfn.AGGREGATE(5,7,OFFSET(DATA!$A$1,14,MATCH("EX037",DATA!$A$2:$BAT$2,0)-1,47,1)),OFFSET(DATA!$A$1,14,MATCH("EX037",DATA!$A$2:$CCV$2,0)-1,47,1),0)) -> 青森県 | T50: 予B-050101 | U50: =VLOOKUP(T50,INDEXTBL!$C$1:$N$1344,3,FALSE) -> HTLV-1 感染率（％） | W50: =IFERROR(HLOOKUP(VLOOKUP($T50,INDEXTBL!$C$1:$N$1344,$C$3,FALSE),DATA!$C$2:$CCV$14,8,FALSE),"NA") -> NA | X50: =IFERROR(HLOOKUP(VLOOKUP($T50,INDEXTBL!$C$1:$N$1344,$C$3,FALSE),DATA!$C$2:$CCV$14,7,FALSE),"NA") -> NA | Y50: =IFERROR(HLOOKUP(VLOOKUP($T50,INDEXTBL!$C$1:$N$1344,$C$3,FALSE),DATA!$C$2:$CCV$14,10,FALSE),"NA") -> NA
E51: 予D-0502 | I51: =VLOOKUP(E51,INDEXTBL!$A$1:$N$1344,2,FALSE) -> 保健所においてHTLV-1抗体検査と相談指導を行う | K51: 沖縄県 | L51: 全国 | M51: 最良値 （都道府県）
H52: 予D-050203 | I52: =VLOOKUP(H52,INDEXTBL!$C$1:$N$1344,3,FALSE) -> HTLV-1の保健所の検査数 | K52: =IFERROR(HLOOKUP(VLOOKUP($H52,INDEXTBL!$C$1:$N$1344,$C$3,FALSE),DATA!$C$2:$CCV$14,8,FALSE),"NA") -> NA | L52: =IFERROR(HLOOKUP(VLOOKUP($H52,INDEXTBL!$C$1:$N$1344,$C$3,FALSE),DATA!$C$2:$CCV$14,7,FALSE),"NA") -> NA | M52: =IFERROR(TEXT(_xlfn.AGGREGATE(4,7,OFFSET(DATA!$A$1,14,MATCH(VLOOKUP($H52,INDEXTBL!$C$1:$N$1344,10,FALSE),DATA!$A$2:$CCV$2,0)-1,47,1)),"#.#") &" （"& N52 & "）","NA") -> NA | N52: =INDEX(DATA!$C$15:$C$61,MATCH(_xlfn.AGGREGATE(4,7,OFFSET(DATA!$A$1,14,MATCH(VLOOKUP($H52,INDEXTBL!$C$1:$N$1344,10,FALSE),DATA!$A$2:$CCV$2,0)-1,47,1)),OFFSET(DATA!$A$1,14,MATCH(VLOOKUP($H52,INDEXTBL!$C$1:$N$1344,10,FALSE),DATA!$A$2:$CCV$2,0)-1,47,1),0)) -> 

Sheet がん検診
B1: ▼がん種を選択してください
B2: 胃がん | C2: =IF(ISBLANK($B$2),"",SUBSTITUTE($B$2,"がん","")) -> 胃 | E2: 番号 | H2: 個別施策 | Q2: 番号 | T2: 中間アウトカム | AC2: 番号 | AF2: 分野アウトカム
C3: =IF($C$2="大腸",6,IF($C$2="肺",7,IF($C$2="胃",8,IF($C$2="女性乳房",9,IF($C$2="子宮頸部",5,""))))) -> 8
E4: ①科学的根拠に基づくがん検診の実施について
E5: 検D-0101 | I5: =VLOOKUP(E5,INDEXTBL!$A$1:$N$1344,2,FALSE) -> 指針に基づいたがん検診のみを行う | K5: 沖縄県 | L5: 全国 | M5: 最良値 （都道府県） | Q5: 検B-0101 | U5: =VLOOKUP(Q5,INDEXTBL!$A$1:$N$1344,2,FALSE) -> 科学的根拠に基づいた検診の実施ができている | W5: 沖縄県 | X5: 全国 | Y5: 最良値 （都道府県） | AC5: 検A-0101 | AG5: =VLOOKUP(AC5,INDEXTBL!$A$1:$N$1293,2,FALSE) -> 有効ながん検診を有するがんの死亡の減少ができている | AI5: 沖縄県 | AJ5: 全国 | AK5: 最良値 （都道府県）
F6: グラフ | H6: 検D-010101 | I6: =$B$2 & " " & VLOOKUP(H6,INDEXTBL!$C$1:$N$1344,3,FALSE) -> 胃がん 指針の遵守市町村の割合（％）【再掲】 | J6: =VLOOKUP(H6,INDEXTBL!$C$1:$N$1344,_xlfn.SWITCH($B$2,"胃がん",8,"大腸がん",6,"肺がん",7,"女性乳房がん",9,"子宮頸部がん",5),FALSE) -> 胃66 | K6: =IFERROR(TEXT(HLOOKUP(VLOOKUP($H6,INDEXTBL!$C$1:$N$1344,$C$3,FALSE),DATA!$C$2:$BCV$14,8,FALSE),"0.0")&"%","NA") -> 97.6% | L6: =IFERROR(TEXT(HLOOKUP(VLOOKUP($H6,INDEXTBL!$C$1:$N$1344,$C$3,FALSE),DATA!$C$2:$BCV$14,7,FALSE),"0.0")&"%","NA") -> 99.8% | M6: =IFERROR(TEXT(_xlfn.AGGREGATE(4,7,OFFSET(DATA!$A$1,14,MATCH(VLOOKUP($H6,INDEXTBL!$C$1:$N$1344,$C$3,FALSE),DATA!$A$2:$BCV$2,0)-1,47,1)),"0.0")&"%" &" （"& N6 & "）","NA") -> 100.0% （北海道） | N6: =INDEX(DATA!$C$15:$C$61,MATCH(_xlfn.AGGREGATE(4,7,OFFSET(DATA!$A$1,14,MATCH(VLOOKUP($H6,INDEXTBL!$C$1:$N$1344,$C$3,FALSE),DATA!$A$2:$BCV$2,0)-1,47,1)),OFFSET(DATA!$A$1,14,MATCH(VLOOKUP($H6,INDEXTBL!$C$1:$N$1344,$C$3,FALSE),DATA!$A$2:$BCV$2,0)-1,47,1),0)) -> 北海道 | R6: グラフ | T6: 検B-010101 | U6: =$B$2 & " " & VLOOKUP(T6,INDEXTBL!$C$1:$N$1344,3,FALSE) -> 胃がん 指針の遵守市町村の割合（％） | V6: =VLOOKUP(T6,INDEXTBL!$C$1:$N$1344,_xlfn.SWITCH($B$2,"胃がん",8,"大腸がん",6,"肺がん",7,"女性乳房がん",9,"子宮頸部がん",5),FALSE) -> 胃66 | W6: =IFERROR(TEXT(HLOOKUP(VLOOKUP($T6,INDEXTBL!$C$1:$N$1306,$C$3,FALSE),DATA!$C$2:$BCV$14,8,FALSE),"0.0")&"%","NA") -> 97.6% | X6: =IFERROR(TEXT(HLOOKUP(VLOOKUP($T6,INDEXTBL!$C$1:$N$1306,$C$3,FALSE),DATA!$C$2:$BFP$14,7,FALSE),"0.0")&"%","NA") -> 99.8% | Y6: =IFERROR(TEXT(_xlfn.AGGREGATE(4,7,OFFSET(DATA!$A$1,14,MATCH(VLOOKUP($T6,INDEXTBL!$C$1:$N$1306,$C$3,FALSE),DATA!$A$2:$BCV$2,0)-1,47,1)),"0.0")&"%" &" （"& Z6 & "）","NA") -> 100.0% （北海道） | Z6: =INDEX(DATA!$C$15:$C$61,MATCH(_xlfn.AGGREGATE(4,7,OFFSET(DATA!$A$1,14,MATCH(VLOOKUP($T6,INDEXTBL!$C$1:$N$1306,$C$3,FALSE),DATA!$A$2:$BCV$2,0)-1,47,1)),OFFSET(DATA!$A$1,14,MATCH(VLOOKUP($T6,INDEXTBL!$C$1:$N$1306,$C$3,FALSE),DATA!$A$2:$BCV$2,0)-1,47,1),0)) -> 北海道 | AD6: グラフ | AF6: 検A-010101 | AG6: =IF(OR($C$2="女性乳房",$C$2="子宮頸部"),"-",$B$2&VLOOKUP(AF6,INDEXTBL!$C$1:$N$1293,3,FALSE)) -> 胃がん死亡率（男）（75歳未満、年齢調整、人口10万対） | AH6: =IF(OR($C$2="女性乳房",$C$2="子宮頸部"),"",VLOOKUP(AF6,INDEXTBL!$C$1:$N$1344,_xlfn.SWITCH($B$2,"胃がん",8,"大腸がん",6,"肺がん",7,"女性乳房がん",9,"子宮頸部がん",5),FALSE)) -> 胃13 | AI6: =IFERROR(TEXT(HLOOKUP(VLOOKUP($AF6,INDEXTBL!$C$1:$N$1293,$C$3,FALSE),DATA!$C$2:$BCV$14,8,FALSE),"0.0"),"NA") -> 4.9 | AJ6: =IFERROR(TEXT(HLOOKUP(VLOOKUP($AF6,INDEXTBL!$C$1:$N$1293,$C$3,FALSE),DATA!$C$2:$BCV$14,7,FALSE),"0.0"),"NA") -> 8.4 | AK6: =IFERROR(TEXT(_xlfn.AGGREGATE(5,7,OFFSET(DATA!$A$1,14,MATCH(VLOOKUP($AF6,INDEXTBL!$C$1:$N$1293,$C$3,FALSE),DATA!$A$2:$BCV$2,0)-1,47,1)),"0.0") &" （"& AL6 & "）","NA") -> 4.9 （沖縄県） | AL6: =INDEX(DATA!$C$15:$C$61,MATCH(_xlfn.AGGREGATE(5,7,OFFSET(DATA!$A$1,14,MATCH(VLOOKUP($AF6,INDEXTBL!$C$1:$N$1293,$C$3,FALSE),DATA!$A$2:$BCV$2,0)-1,47,1)),OFFSET(DATA!$A$1,14,MATCH(VLOOKUP($AF6,INDEXTBL!$C$1:$N$1293,$C$3,FALSE),DATA!$A$2:$BCV$2,0)-1,47,1),0)) -> 沖縄県
E7: 検D-0102 | I7: =VLOOKUP(E7,INDEXTBL!$A$1:$N$1344,2,FALSE) -> 指針に基づかないがん検診を中止する | K7: 沖縄県 | L7: 全国 | M7: 最良値 （都道府県） | AD7: グラフ | AF7: 検A-010102 | AG7: =$B$2&VLOOKUP(AF7,INDEXTBL!$C$1:$N$1293,3,FALSE) -> 胃がん死亡率（女）（75歳未満、年齢調整、人口10万対） | AH7: =VLOOKUP(AF7,INDEXTBL!$C$1:$N$1344,_xlfn.SWITCH($B$2,"胃がん",8,"大腸がん",6,"肺がん",7,"女性乳房がん",9,"子宮頸部がん",5),FALSE) -> 胃14 | AI7: =IFERROR(TEXT(HLOOKUP(VLOOKUP($AF7,INDEXTBL!$C$1:$N$1293,$C$3,FALSE),DATA!$C$2:$BCV$14,8,FALSE),"0.0"),"NA") -> 2.7 | AJ7: =IFERROR(TEXT(HLOOKUP(VLOOKUP($AF7,INDEXTBL!$C$1:$N$1293,$C$3,FALSE),DATA!$C$2:$BCV$14,7,FALSE),"0.0"),"NA") -> 3.3 | AK7: =IFERROR(TEXT(_xlfn.AGGREGATE(5,7,OFFSET(DATA!$A$1,14,MATCH(VLOOKUP($AF7,INDEXTBL!$C$1:$N$1293,$C$3,FALSE),DATA!$A$2:$BCV$2,0)-1,47,1)),"0.0") &" （"& AL7 & "）","NA") -> 1.9 （佐賀県） | AL7: =INDEX(DATA!$C$15:$C$61,MATCH(_xlfn.AGGREGATE(5,7,OFFSET(DATA!$A$1,14,MATCH(VLOOKUP($AF7,INDEXTBL!$C$1:$N$1293,$C$3,FALSE),DATA!$A$2:$BCV$2,0)-1,47,1)),OFFSET(DATA!$A$1,14,MATCH(VLOOKUP($AF7,INDEXTBL!$C$1:$N$1293,$C$3,FALSE),DATA!$A$2:$BCV$2,0)-1,47,1),0)) -> 佐賀県
F8: グラフ | H8: 検D-010201 | I8: =$B$2 & " " & VLOOKUP(H8,INDEXTBL!$C$1:$N$1344,3,FALSE) -> 胃がん 指針に基づかない検診の実施数（集団） 指針に基づく項目以外を実施（実施市区町村数） | J8: =VLOOKUP(H8,INDEXTBL!$C$1:$N$1344,_xlfn.SWITCH($B$2,"胃がん",8,"大腸がん",6,"肺がん",7,"女性乳房がん",9,"子宮頸部がん",5),FALSE) -> EX胃1 | K8: =IFERROR(HLOOKUP(VLOOKUP($H8,INDEXTBL!$C$1:$N$1344,$C$3,FALSE),DATA!$C$2:$BCV$14,8,FALSE),"NA") -> 3 | L8: =IFERROR(HLOOKUP(VLOOKUP($H8,INDEXTBL!$C$1:$N$1344,$C$3,FALSE),DATA!$C$2:$BCV$14,7,FALSE),"NA") -> 478 | M8: =IFERROR(_xlfn.AGGREGATE(5,7,OFFSET(DATA!$A$1,14,MATCH(VLOOKUP($H8,INDEXTBL!$C$1:$N$1344,$C$3,FALSE),DATA!$A$2:$BCV$2,0)-1,47,1)) &" （"& N8 & "）","NA") -> 0 （北海道） | N8: =INDEX(DATA!$C$15:$C$61,MATCH(_xlfn.AGGREGATE(4,7,OFFSET(DATA!$A$1,14,MATCH(VLOOKUP($H8,INDEXTBL!$C$1:$N$1344,$C$3,FALSE),DATA!$A$2:$BFP$2,0)-1,47,1)),OFFSET(DATA!$A$1,14,MATCH(VLOOKUP($H8,INDEXTBL!$C$1:$N$1344,$C$3,FALSE),DATA!$A$2:$BFP$2,0)-1,47,1),0)) -> 北海道 | AC8: 検A-0102 | AG8: =VLOOKUP(AC8,INDEXTBL!$A$1:$N$1293,2,FALSE) -> 有効ながん検診を有するがんの進行がんの減少ができている | AI8: 沖縄県 | AJ8: 全国 | AK8: 最良値 （都道府県）
F9: グラフ | H9: 検D-010202 | I9: =$B$2 & " " & VLOOKUP(H9,INDEXTBL!$C$1:$N$1344,3,FALSE) -> 胃がん 指針に基づかない検診の実施割合（集団） 指針に基づく項目以外を実施（％） | J9: =VLOOKUP(H9,INDEXTBL!$C$1:$N$1344,_xlfn.SWITCH($B$2,"胃がん",8,"大腸がん",6,"肺がん",7,"女性乳房がん",9,"子宮頸部がん",5),FALSE) -> 胃74 | K9: =IFERROR(TEXT(HLOOKUP(VLOOKUP($H9,INDEXTBL!$C$1:$N$1344,$C$3,FALSE),DATA!$C$2:$BCV$14,8,FALSE),"0.0")&"%","NA") -> 7.9% | L9: =IFERROR(TEXT(HLOOKUP(VLOOKUP($H9,INDEXTBL!$C$1:$N$1344,$C$3,FALSE),DATA!$C$2:$BCV$14,7,FALSE),"0.0")&"%","NA") -> 28.8% | M9: =IFERROR(TEXT(_xlfn.AGGREGATE(5,7,OFFSET(DATA!$A$1,14,MATCH(VLOOKUP($H9,INDEXTBL!$C$1:$N$1344,$C$3,FALSE),DATA!$A$2:$BCV$2,0)-1,47,1)),"0.0")&"%" &" （"& N9 & "）","NA") -> 0.0% （滋賀県） | N9: =INDEX(DATA!$C$15:$C$61,MATCH(_xlfn.AGGREGATE(5,7,OFFSET(DATA!$A$1,14,MATCH(VLOOKUP($H9,INDEXTBL!$C$1:$N$1344,$C$3,FALSE),DATA!$A$2:$BFP$2,0)-1,47,1)),OFFSET(DATA!$A$1,14,MATCH(VLOOKUP($H9,INDEXTBL!$C$1:$N$1344,$C$3,FALSE),DATA!$A$2:$BFP$2,0)-1,47,1),0)) -> 滋賀県 | AF9: 検A-010201 | AG9: =IF(OR($C$2="女性乳房",$C$2="子宮頸部"),"-",$B$2& " " &VLOOKUP(AF9,INDEXTBL!$C$1:$N$1293,3,FALSE)) -> 胃がん 進行がん罹患率（男）（年齢調整、人口10万人対） | AH9: =IF(OR($C$2="女性乳房",$C$2="子宮頸部"),"",VLOOKUP(AF9,INDEXTBL!$C$1:$N$1344,_xlfn.SWITCH($B$2,"胃がん",8,"大腸がん",6,"肺がん",7,"女性乳房がん",9,"子宮頸部がん",5),FALSE)) -> 0 | AI9: =IFERROR(TEXT(HLOOKUP(VLOOKUP($AF9,INDEXTBL!$C$1:$N$1293,$C$3,FALSE),DATA!$C$2:$BCV$14,8,FALSE),"0.0"),"NA") -> NA | AJ9: =IFERROR(TEXT(HLOOKUP(VLOOKUP($AF9,INDEXTBL!$C$1:$N$1293,$C$3,FALSE),DATA!$C$2:$BCV$14,7,FALSE),"0.0"),"NA") -> NA | AK9: =IFERROR(TEXT(_xlfn.AGGREGATE(5,7,OFFSET(DATA!$A$1,14,MATCH(VLOOKUP($AF9,INDEXTBL!$C$1:$N$1293,$C$3,FALSE),DATA!$A$2:$BCV$2,0)-1,47,1)),"0.0") &" （"& AL9 & "）","NA") -> NA | AL9: =INDEX(DATA!$C$15:$C$61,MATCH(_xlfn.AGGREGATE(5,7,OFFSET(DATA!$A$1,14,MATCH(VLOOKUP($AF9,INDEXTBL!$C$1:$N$1293,$C$3,FALSE),DATA!$A$2:$BCV$2,0)-1,47,1)),OFFSET(DATA!$A$1,14,MATCH(VLOOKUP($AF9,INDEXTBL!$C$1:$N$1293,$C$3,FALSE),DATA!$A$2:$BCV$2,0)-1,47,1),0)) -> 
F10: グラフ | H10: 検D-010203 | I10: =$B$2 & " " & VLOOKUP(H10,INDEXTBL!$C$1:$N$1344,3,FALSE) -> 胃がん 指針に基づかない検診の実施数（個別） 指針に基づく項目以外を実施（実施市区町村数） | J10: =VLOOKUP(H10,INDEXTBL!$C$1:$N$1344,_xlfn.SWITCH($B$2,"胃がん",8,"大腸がん",6,"肺がん",7,"女性乳房がん",9,"子宮頸部がん",5),FALSE) -> EX胃2 | K10: =IFERROR(HLOOKUP(VLOOKUP($H10,INDEXTBL!$C$1:$N$1344,$C$3,FALSE),DATA!$C$2:$BCV$14,8,FALSE),"NA") -> 1 | L10: =IFERROR(HLOOKUP(VLOOKUP($H10,INDEXTBL!$C$1:$N$1344,$C$3,FALSE),DATA!$C$2:$BCV$14,7,FALSE),"NA") -> 293 | M10: =IFERROR(_xlfn.AGGREGATE(5,7,OFFSET(DATA!$A$1,14,MATCH(VLOOKUP($H10,INDEXTBL!$C$1:$N$1344,$C$3,FALSE),DATA!$A$2:$BCV$2,0)-1,47,1)) &" （"& N10 & "）","NA") -> 0 （北海道） | N10: =INDEX(DATA!$C$15:$C$61,MATCH(_xlfn.AGGREGATE(4,7,OFFSET(DATA!$A$1,14,MATCH(VLOOKUP($H10,INDEXTBL!$C$1:$N$1344,$C$3,FALSE),DATA!$A$2:$BFP$2,0)-1,47,1)),OFFSET(DATA!$A$1,14,MATCH(VLOOKUP($H10,INDEXTBL!$C$1:$N$1344,$C$3,FALSE),DATA!$A$2:$BFP$2,0)-1,47,1),0)) -> 北海道 | AF10: 検A-010202 | AG10: =$B$2& " " &VLOOKUP(AF10,INDEXTBL!$C$1:$N$1293,3,FALSE) -> 胃がん 進行がん罹患率（女）（年齢調整、人口10万人対） | AH10: =VLOOKUP(AF10,INDEXTBL!$C$1:$N$1344,_xlfn.SWITCH($B$2,"胃がん",8,"大腸がん",6,"肺がん",7,"女性乳房がん",9,"子宮頸部がん",5),FALSE) -> 0 | AI10: =IFERROR(TEXT(HLOOKUP(VLOOKUP($AF10,INDEXTBL!$C$1:$N$1293,$C$3,FALSE),DATA!$C$2:$BCV$14,8,FALSE),"0.0"),"NA") -> NA | AJ10: =IFERROR(TEXT(HLOOKUP(VLOOKUP($AF10,INDEXTBL!$C$1:$N$1293,$C$3,FALSE),DATA!$C$2:$BCV$14,7,FALSE),"0.0"),"NA") -> NA | AK10: =IFERROR(TEXT(_xlfn.AGGREGATE(5,7,OFFSET(DATA!$A$1,14,MATCH(VLOOKUP($AF10,INDEXTBL!$C$1:$N$1293,$C$3,FALSE),DATA!$A$2:$BCV$2,0)-1,47,1)),"0.0") &" （"& AL10 & "）","NA") -> NA | AL10: =INDEX(DATA!$C$15:$C$61,MATCH(_xlfn.AGGREGATE(5,7,OFFSET(DATA!$A$1,14,MATCH(VLOOKUP($AF10,INDEXTBL!$C$1:$N$1293,$C$3,FALSE),DATA!$A$2:$BCV$2,0)-1,47,1)),OFFSET(DATA!$A$1,14,MATCH(VLOOKUP($AF10,INDEXTBL!$C$1:$N$1293,$C$3,FALSE),DATA!$A$2:$BCV$2,0)-1,47,1),0)) -> 
F11: グラフ | H11: 検D-010204 | I11: =$B$2 & " " & VLOOKUP(H11,INDEXTBL!$C$1:$N$1344,3,FALSE) -> 胃がん 指針に基づかない検診の実施割合（個別） 指針に基づく項目以外を実施（％） | J11: =VLOOKUP(H11,INDEXTBL!$C$1:$N$1344,_xlfn.SWITCH($B$2,"胃がん",8,"大腸がん",6,"肺がん",7,"女性乳房がん",9,"子宮頸部がん",5),FALSE) -> 胃80 | K11: =IFERROR(TEXT(HLOOKUP(VLOOKUP($H11,INDEXTBL!$C$1:$N$1344,$C$3,FALSE),DATA!$C$2:$BCV$14,8,FALSE),"0.0")&"%","NA") -> 3.4% | L11: =IFERROR(TEXT(HLOOKUP(VLOOKUP($H11,INDEXTBL!$C$1:$N$1344,$C$3,FALSE),DATA!$C$2:$BCV$14,7,FALSE),"0.0")&"%","NA") -> 27.1% | M11: =IFERROR(TEXT(_xlfn.AGGREGATE(5,7,OFFSET(DATA!$A$1,14,MATCH(VLOOKUP($H11,INDEXTBL!$C$1:$N$1344,$C$3,FALSE),DATA!$A$2:$BCV$2,0)-1,47,1)),"0.0")&"%" &" （"& N11 & "）","NA") -> 0.0% （宮城県） | N11: =INDEX(DATA!$C$15:$C$61,MATCH(_xlfn.AGGREGATE(5,7,OFFSET(DATA!$A$1,14,MATCH(VLOOKUP($H11,INDEXTBL!$C$1:$N$1344,$C$3,FALSE),DATA!$A$2:$BFP$2,0)-1,47,1)),OFFSET(DATA!$A$1,14,MATCH(VLOOKUP($H11,INDEXTBL!$C$1:$N$1344,$C$3,FALSE),DATA!$A$2:$BFP$2,0)-1,47,1),0)) -> 宮城県
E13: ②がん検診の精度管理等について | AC13: （参考データ）
E14: 検D-0201 | I14: =VLOOKUP(E14,INDEXTBL!$A$1:$N$1344,2,FALSE) -> 行政担当者、保健所職員、検診機関の職員等は、国等が企画する研修会を受講する | K14: 沖縄県 | L14: 全国 | M14: 最良値 （都道府県） | Q14: 検B-0201 | U14: =VLOOKUP(Q14,INDEXTBL!$A$1:$N$1344,2,FALSE) -> 検診の質の管理体制の構築と精度向上ができている | W14: 沖縄県 | X14: 全国 | Y14: 最良値 （都道府県） | AC14: 検A-0103 | AI14: 沖縄県 | AJ14: 全国 | AK14: 最良値 （都道府県）
H15: 検D-020101 | I15: =VLOOKUP(H15,INDEXTBL!$C$1:$N$1344,3,FALSE) -> 全国がん検診従事者研修（基礎）を修了した担当者等の割合（％） | J15: =VLOOKUP(H15,INDEXTBL!$C$1:$N$1344,5,FALSE) -> EX194 | K15: =IFERROR(TEXT(HLOOKUP(VLOOKUP($H15,INDEXTBL!$C$1:$N$1344,5,FALSE),DATA!$C$2:$DEU$14,8,FALSE)*1,"0.0")&"%","NA") -> 51.5% | L15: =IFERROR(TEXT(HLOOKUP(VLOOKUP($H15,INDEXTBL!$C$1:$N$1344,5,FALSE),DATA!$C$2:$DEU$14,7,FALSE)*1,"0.0") &"%","NA") -> NA | M15: =IFERROR(HLOOKUP(VLOOKUP($H15,INDEXTBL!$C$1:$N$1344,$C$3,FALSE),DATA!$C$2:$BCV$14,10,FALSE),"NA") -> NA | R15: =IF(OR($C$2="女性乳房",$C$2="子宮頸部"),"","グラフ") -> グラフ | T15: 検B-020101 | U15: =IF(OR($C$2="女性乳房",$C$2="子宮頸部"),"-",IF($C$2="胃",SUBSTITUTE($B$2 & VLOOKUP(T15,INDEXTBL!$C$1:$N$1344,3,FALSE),"検診","検診（エックス線）"),$B$2 & VLOOKUP(T15,INDEXTBL!$C$1:$N$1344,3,FALSE))) -> 胃がん検診（エックス線） 要精検率（男）（％） | V15: =IF(OR($C$2="女性乳房",$C$2="子宮頸部"),"",VLOOKUP(T15,INDEXTBL!$C$1:$N$1344,_xlfn.SWITCH($B$2,"胃がん",8,"大腸がん",6,"肺がん",7,"女性乳房がん",9,"子宮頸部がん",5),FALSE)) -> 胃60 | W15: =IFERROR(TEXT(HLOOKUP(VLOOKUP($T15,INDEXTBL!$C$1:$N$1344,$C$3,FALSE),DATA!$C$2:$BFP$14,8,FALSE),"0.0")&"%","NA") -> 5.3% | X15: =IFERROR(TEXT(HLOOKUP(VLOOKUP($T15,INDEXTBL!$C$1:$N$1344,$C$3,FALSE),DATA!$C$2:$BFP$14,7,FALSE),"0.0")&"%","NA") -> 7.3% | Y15: =IFERROR(TEXT(_xlfn.AGGREGATE(4,7,OFFSET(DATA!$A$1,14,MATCH(VLOOKUP($T15,INDEXTBL!$C$1:$N$1344,$C$3,FALSE),DATA!$A$2:$BFP$2,0)-1,47,1)),"0.0")&"%" &" （"& Z15 & "）","NA") -> 11.6% （鹿児島県） | Z15: =INDEX(DATA!$C$15:$C$61,MATCH(_xlfn.AGGREGATE(4,7,OFFSET(DATA!$A$1,14,MATCH(VLOOKUP($T15,INDEXTBL!$C$1:$N$1344,$C$3,FALSE),DATA!$A$2:$BFP$2,0)-1,47,1)),OFFSET(DATA!$A$1,14,MATCH(VLOOKUP($T15,INDEXTBL!$C$1:$N$1344,$C$3,FALSE),DATA!$A$2:$BFP$2,0)-1,47,1),0)) -> 鹿児島県 | AD15: グラフ | AF15: 検A-010301 | AG15: =$B$2& " " &VLOOKUP(AF15,INDEXTBL!$C$1:$N$1340,3,FALSE) -> 胃がん 早期がん割合（％） | AH15: =VLOOKUP(AF15,INDEXTBL!$C$1:$N$1391,_xlfn.SWITCH($B$2,"胃がん",8,"大腸がん",6,"肺がん",7,"女性乳房がん",9,"子宮頸部がん",5),FALSE) -> 胃A19 | AI15: =IFERROR(TEXT(HLOOKUP(VLOOKUP($AF15,INDEXTBL!$C$1:$N$1340,$C$3,FALSE),DATA!$C$2:$DCA$14,8,FALSE),"0.0")&"%","NA") -> 54.2% | AJ15: =IFERROR(TEXT(HLOOKUP(VLOOKUP($AF15,INDEXTBL!$C$1:$N$1340,$C$3,FALSE),DATA!$C$2:$DCA$14,7,FALSE),"0.0")&"%","NA") -> 58.8% | AK15: =IFERROR(TEXT(_xlfn.AGGREGATE(4,7,OFFSET(DATA!$A$1,14,MATCH(VLOOKUP($AF15,INDEXTBL!$C$1:$N$1340,$C$3,FALSE),DATA!$A$2:$DCA$2,0)-1,47,1)),"0.0")&"%" &" （"& AL15 & "）","NA") -> 67.3% （宮城県） | AL15: =INDEX(DATA!$C$15:$C$61,MATCH(_xlfn.AGGREGATE(4,7,OFFSET(DATA!$A$1,14,MATCH(VLOOKUP($AF15,INDEXTBL!$C$1:$N$1340,$C$3,FALSE),DATA!$A$2:$DCA$2,0)-1,47,1)),OFFSET(DATA!$A$1,14,MATCH(VLOOKUP($AF15,INDEXTBL!$C$1:$N$1340,$C$3,FALSE),DATA!$A$2:$DCA$2,0)-1,47,1),0)) -> 宮城県
H16: 検D-020103 | I16: =VLOOKUP(H16,INDEXTBL!$C$1:$N$1344,3,FALSE) -> 全国がん検診従事者研修（実務）を修了した担当者等の割合（％） | J16: =VLOOKUP(H16,INDEXTBL!$C$1:$N$1344,5,FALSE) -> EX198 | K16: =IFERROR(TEXT(HLOOKUP(VLOOKUP($H16,INDEXTBL!$C$1:$N$1344,5,FALSE),DATA!$C$2:$DEU$14,8,FALSE)*1,"0.0")&"%","NA") -> 10.3% | L16: =IFERROR(TEXT(HLOOKUP(VLOOKUP($H16,INDEXTBL!$C$1:$N$1344,5,FALSE),DATA!$C$2:$DEU$14,7,FALSE)*1,"0.0") &"%","NA") -> NA | M16: =IFERROR(HLOOKUP(VLOOKUP($H16,INDEXTBL!$C$1:$N$1344,$C$3,FALSE),DATA!$C$2:$BCV$14,10,FALSE),"NA") -> NA | R16: グラフ | T16: 検B-020102 | U16: =IF($C$2="胃",SUBSTITUTE($B$2 & VLOOKUP(T16,INDEXTBL!$C$1:$N$1344,3,FALSE),"検診","検診（エックス線）"),$B$2 & VLOOKUP(T16,INDEXTBL!$C$1:$N$1344,3,FALSE)) -> 胃がん検診（エックス線） 要精検率（女）（％） | V16: =VLOOKUP(T16,INDEXTBL!$C$1:$N$1344,_xlfn.SWITCH($B$2,"胃がん",8,"大腸がん",6,"肺がん",7,"女性乳房がん",9,"子宮頸部がん",5),FALSE) -> 胃61 | W16: =IFERROR(TEXT(HLOOKUP(VLOOKUP($T16,INDEXTBL!$C$1:$N$1344,$C$3,FALSE),DATA!$C$2:$BFP$14,8,FALSE),"0.0")&"%","NA") -> 3.5% | X16: =IFERROR(TEXT(HLOOKUP(VLOOKUP($T16,INDEXTBL!$C$1:$N$1344,$C$3,FALSE),DATA!$C$2:$BFP$14,7,FALSE),"0.0")&"%","NA") -> 4.5% | Y16: =IFERROR(TEXT(_xlfn.AGGREGATE(4,7,OFFSET(DATA!$A$1,14,MATCH(VLOOKUP($T16,INDEXTBL!$C$1:$N$1344,$C$3,FALSE),DATA!$A$2:$BFP$2,0)-1,47,1)),"0.0")&"%" &" （"& Z16 & "）","NA") -> 6.9% （秋田県） | Z16: =INDEX(DATA!$C$15:$C$61,MATCH(_xlfn.AGGREGATE(4,7,OFFSET(DATA!$A$1,14,MATCH(VLOOKUP($T16,INDEXTBL!$C$1:$N$1344,$C$3,FALSE),DATA!$A$2:$BFP$2,0)-1,47,1)),OFFSET(DATA!$A$1,14,MATCH(VLOOKUP($T16,INDEXTBL!$C$1:$N$1344,$C$3,FALSE),DATA!$A$2:$BFP$2,0)-1,47,1),0)) -> 秋田県
H17: 検D-020102 | I17: =VLOOKUP(H17,INDEXTBL!$C$1:$N$1344,3,FALSE) -> 全国がん検診指導者研修を修了した担当者等の割合（％） | J17: =VLOOKUP(H17,INDEXTBL!$C$1:$N$1344,5,FALSE) -> EX199 | K17: =IFERROR(TEXT(HLOOKUP(VLOOKUP($H17,INDEXTBL!$C$1:$N$1344,5,FALSE),DATA!$C$2:$DEU$14,8,FALSE)*1,"0.0")&"%","NA") -> 6.0% | L17: =IFERROR(TEXT(HLOOKUP(VLOOKUP($H17,INDEXTBL!$C$1:$N$1344,5,FALSE),DATA!$C$2:$DEU$14,7,FALSE)*1,"0.0") &"%","NA") -> NA | M17: =IFERROR(HLOOKUP(VLOOKUP($H17,INDEXTBL!$C$1:$N$1344,$C$3,FALSE),DATA!$C$2:$BCV$14,10,FALSE),"NA") -> NA | R17: =IF(NOT($C$2="胃"),"","グラフ") -> グラフ | T17: 検B-020101 | U17: =IF(NOT($C$2="胃"),"-",IF($C$2="胃",SUBSTITUTE($B$2 & VLOOKUP(T17,INDEXTBL!$C$1:$N$1344,3,FALSE),"検診","検診（内視鏡）"),$B$2 & VLOOKUP(T17,INDEXTBL!$C$1:$N$1344,3,FALSE))) -> 胃がん検診（内視鏡） 要精検率（男）（％） | V17: =VLOOKUP(T17,INDEXTBL!$C$1:$N$1344,_xlfn.SWITCH($B$2,"胃がん",10,"大腸がん",6,"肺がん",7,"女性乳房がん",9,"子宮頸部がん",5),FALSE) -> 胃A07 | W17: =IF(NOT($C$2="胃"),"NA", IFERROR(TEXT(HLOOKUP(VLOOKUP($T17,INDEXTBL!$C$1:$N$1344,10,FALSE),DATA!$C$2:$BFP$14,8,FALSE),"0.0")&"%","NA")) -> 4.7% | X17: =IF(NOT($C$2="胃"),"NA", IFERROR(TEXT(HLOOKUP(VLOOKUP($T17,INDEXTBL!$C$1:$N$1344,10,FALSE),DATA!$C$2:$BFP$14,7,FALSE),"0.0")&"%","NA")) -> 8.3% | Y17: =IF(NOT($C$2="胃"),"NA", IFERROR(TEXT(_xlfn.AGGREGATE(4,7,OFFSET(DATA!$A$1,14,MATCH(VLOOKUP($T17,INDEXTBL!$C$1:$N$1344,10,FALSE),DATA!$A$2:$BFP$2,0)-1,47,1)),"0.0")&"%" &" （"& Z17 & "）","NA")) -> 16.6% （奈良県） | Z17: =INDEX(DATA!$C$15:$C$61,MATCH(_xlfn.AGGREGATE(4,7,OFFSET(DATA!$A$1,14,MATCH(VLOOKUP($T17,INDEXTBL!$C$1:$N$1344,10,FALSE),DATA!$A$2:$BFP$2,0)-1,47,1)),OFFSET(DATA!$A$1,14,MATCH(VLOOKUP($T17,INDEXTBL!$C$1:$N$1344,10,FALSE),DATA!$A$2:$BFP$2,0)-1,47,1),0)) -> 奈良県
E18: 検D-0202 | I18: =VLOOKUP(E18,INDEXTBL!$A$1:$N$1344,2,FALSE) -> 県は受診率向上と精度管理のために研修会等を開催し、市町村等は担当者を受講させる | K18: 沖縄県 | L18: 全国 | M18: 最良値 （都道府県） | R18: =IF(NOT($C$2="胃"),"","グラフ") -> グラフ | T18: 検B-020102 | U18: =IF(NOT($C$2="胃"),"-",IF($C$2="胃",SUBSTITUTE($B$2 & VLOOKUP(T18,INDEXTBL!$C$1:$N$1344,3,FALSE),"検診","検診（内視鏡）"),$B$2 & VLOOKUP(T18,INDEXTBL!$C$1:$N$1344,3,FALSE))) -> 胃がん検診（内視鏡） 要精検率（女）（％） | V18: =VLOOKUP(T18,INDEXTBL!$C$1:$N$1344,_xlfn.SWITCH($B$2,"胃がん",10,"大腸がん",6,"肺がん",7,"女性乳房がん",9,"子宮頸部がん",5),FALSE) -> 胃A08 | W18: =IF(NOT($C$2="胃"),"NA", IFERROR(TEXT(HLOOKUP(VLOOKUP($T18,INDEXTBL!$C$1:$N$1344,10,FALSE),DATA!$C$2:$BFP$14,8,FALSE),"0.0")&"%","NA")) -> 4.0% | X18: =IF(NOT($C$2="胃"),"NA", IFERROR(TEXT(HLOOKUP(VLOOKUP($T18,INDEXTBL!$C$1:$N$1344,10,FALSE),DATA!$C$2:$BFP$14,7,FALSE),"0.0")&"%","NA")) -> 5.8% | Y18: =IF(NOT($C$2="胃"),"NA", IFERROR(TEXT(_xlfn.AGGREGATE(4,7,OFFSET(DATA!$A$1,14,MATCH(VLOOKUP($T18,INDEXTBL!$C$1:$N$1344,10,FALSE),DATA!$A$2:$BFP$2,0)-1,47,1)),"0.0")&"%" &" （"& Z18 & "）","NA")) -> 11.3% （奈良県） | Z18: =INDEX(DATA!$C$15:$C$61,MATCH(_xlfn.AGGREGATE(4,7,OFFSET(DATA!$A$1,14,MATCH(VLOOKUP($T18,INDEXTBL!$C$1:$N$1344,10,FALSE),DATA!$A$2:$BFP$2,0)-1,47,1)),OFFSET(DATA!$A$1,14,MATCH(VLOOKUP($T18,INDEXTBL!$C$1:$N$1344,10,FALSE),DATA!$A$2:$BFP$2,0)-1,47,1),0)) -> 奈良県
H19: 検D-020201 | I19: =VLOOKUP(H19,INDEXTBL!$C$1:$N$1344,3,FALSE) -> 研修を終了した担当者等の数（人） | J19: =VLOOKUP(H19,INDEXTBL!$C$1:$N$1344,5,FALSE) -> EX200 | K19: =IFERROR(TEXT(HLOOKUP(VLOOKUP($H19,INDEXTBL!$C$1:$N$1344,5,FALSE),DATA!$C$2:$DEU$14,8,FALSE)*1,"0"),"NA") -> 40 | L19: =IFERROR(TEXT(HLOOKUP(VLOOKUP($H19,INDEXTBL!$C$1:$N$1344,5,FALSE),DATA!$C$2:$DEU$14,7,FALSE)*1,"0"),"NA") -> NA | M19: =IFERROR(HLOOKUP(VLOOKUP($H19,INDEXTBL!$C$1:$N$1344,$C$3,FALSE),DATA!$C$2:$BCV$14,10,FALSE),"NA") -> NA | R19: =IF(OR($C$2="女性乳房",$C$2="子宮頸部"),"","グラフ") -> グラフ | T19: 検B-020103 | U19: =IF(OR($C$2="女性乳房",$C$2="子宮頸部"),"-",IF($C$2="胃",SUBSTITUTE($B$2 & VLOOKUP(T19,INDEXTBL!$C$1:$N$1344,3,FALSE),"検診","検診（エックス線）"),$B$2 & VLOOKUP(T19,INDEXTBL!$C$1:$N$1344,3,FALSE))) -> 胃がん検診（エックス線） 精検受診率（男）（％） | V19: =VLOOKUP(T19,INDEXTBL!$C$1:$N$1344,_xlfn.SWITCH($B$2,"胃がん",8,"大腸がん",6,"肺がん",7,"女性乳房がん",9,"子宮頸部がん",5),FALSE) -> 胃58 | W19: =IFERROR(TEXT(HLOOKUP(VLOOKUP($T19,INDEXTBL!$C$1:$N$1344,$C$3,FALSE),DATA!$C$2:$BFP$14,8,FALSE),"0.0")&"%","NA") -> 43.3% | X19: =IFERROR(TEXT(HLOOKUP(VLOOKUP($T19,INDEXTBL!$C$1:$N$1344,$C$3,FALSE),DATA!$C$2:$BFP$14,7,FALSE),"0.0")&"%","NA") -> 79.4% | Y19: =IFERROR(TEXT(_xlfn.AGGREGATE(4,7,OFFSET(DATA!$A$1,14,MATCH(VLOOKUP($T19,INDEXTBL!$C$1:$N$1344,$C$3,FALSE),DATA!$A$2:$BFP$2,0)-1,47,1)),"0.0")&"%" &" （"& Z19 & "）","NA") -> 93.8% （滋賀県） | Z19: =INDEX(DATA!$C$15:$C$61,MATCH(_xlfn.AGGREGATE(4,7,OFFSET(DATA!$A$1,14,MATCH(VLOOKUP($T19,INDEXTBL!$C$1:$N$1344,$C$3,FALSE),DATA!$A$2:$BFP$2,0)-1,47,1)),OFFSET(DATA!$A$1,14,MATCH(VLOOKUP($T19,INDEXTBL!$C$1:$N$1344,$C$3,FALSE),DATA!$A$2:$BFP$2,0)-1,47,1),0)) -> 滋賀県
E20: 検D-0203 | I20: =VLOOKUP(E20,INDEXTBL!$A$1:$N$1344,2,FALSE) -> 県は、がん登録情報等を活用したがん検診の精度管理について、市町村へ技術的支援等を行う | K20: 沖縄県 | L20: 全国 | M20: 最良値 （都道府県） | R20: グラフ | T20: 検B-020104 | U20: =IF($C$2="胃",SUBSTITUTE($B$2 & VLOOKUP(T20,INDEXTBL!$C$1:$N$1344,3,FALSE),"検診","検診（エックス線）"),$B$2 & VLOOKUP(T20,INDEXTBL!$C$1:$N$1344,3,FALSE)) -> 胃がん検診（エックス線） 精検受診率（女）（％） | V20: =VLOOKUP(T20,INDEXTBL!$C$1:$N$1344,_xlfn.SWITCH($B$2,"胃がん",8,"大腸がん",6,"肺がん",7,"女性乳房がん",9,"子宮頸部がん",5),FALSE) -> 胃59 | W20: =IFERROR(TEXT(HLOOKUP(VLOOKUP($T20,INDEXTBL!$C$1:$N$1344,$C$3,FALSE),DATA!$C$2:$BFP$14,8,FALSE),"0.0")&"%","NA") -> 56.4% | X20: =IFERROR(TEXT(HLOOKUP(VLOOKUP($T20,INDEXTBL!$C$1:$N$1344,$C$3,FALSE),DATA!$C$2:$BFP$14,7,FALSE),"0.0")&"%","NA") -> 85.0% | Y20: =IFERROR(TEXT(_xlfn.AGGREGATE(4,7,OFFSET(DATA!$A$1,14,MATCH(VLOOKUP($T20,INDEXTBL!$C$1:$N$1344,$C$3,FALSE),DATA!$A$2:$BFP$2,0)-1,47,1)),"0.0")&"%" &" （"& Z20 & "）","NA") -> 94.8% （宮城県） | Z20: =INDEX(DATA!$C$15:$C$61,MATCH(_xlfn.AGGREGATE(4,7,OFFSET(DATA!$A$1,14,MATCH(VLOOKUP($T20,INDEXTBL!$C$1:$N$1344,$C$3,FALSE),DATA!$A$2:$BFP$2,0)-1,47,1)),OFFSET(DATA!$A$1,14,MATCH(VLOOKUP($T20,INDEXTBL!$C$1:$N$1344,$C$3,FALSE),DATA!$A$2:$BFP$2,0)-1,47,1),0)) -> 宮城県
H21: 検D-020301 | I21: =VLOOKUP(H21,INDEXTBL!$C$1:$N$1344,3,FALSE) -> がん登録情報を活用した精度管理実施市町村の割合（％） | J21: =VLOOKUP(H21,INDEXTBL!$C$1:$N$1344,5,FALSE) -> EX205 | K21: =IFERROR(TEXT(HLOOKUP(VLOOKUP($H21,INDEXTBL!$C$1:$N$1344,5,FALSE),DATA!$C$2:$DEU$14,8,FALSE)*1,"0.0")&"%","NA") -> 0.0% | L21: =IFERROR(TEXT(HLOOKUP(VLOOKUP($H21,INDEXTBL!$C$1:$N$1344,5,FALSE),DATA!$C$2:$DEU$14,7,FALSE)*1,"0.0") &"%","NA") -> NA | M21: =IFERROR(HLOOKUP(VLOOKUP($H21,INDEXTBL!$C$1:$N$1344,$C$3,FALSE),DATA!$C$2:$BCV$14,10,FALSE),"NA") -> NA | R21: =IF(NOT($C$2="胃"),"","グラフ") -> グラフ | T21: 検B-020103 | U21: =IF(NOT($C$2="胃"),"-",IF($C$2="胃",SUBSTITUTE($B$2 & VLOOKUP(T21,INDEXTBL!$C$1:$N$1344,3,FALSE),"検診","検診（内視鏡）"),$B$2 & VLOOKUP(T21,INDEXTBL!$C$1:$N$1344,3,FALSE))) -> 胃がん検診（内視鏡） 精検受診率（男）（％） | V21: =VLOOKUP(T21,INDEXTBL!$C$1:$N$1344,_xlfn.SWITCH($B$2,"胃がん",10,"大腸がん",6,"肺がん",7,"女性乳房がん",9,"子宮頸部がん",5),FALSE) -> 胃A09 | W21: =IF(NOT($C$2="胃"),"NA", IFERROR(TEXT(HLOOKUP(VLOOKUP($T21,INDEXTBL!$C$1:$N$1344,10,FALSE),DATA!$C$2:$BFP$14,8,FALSE),"0.0")&"%","NA")) -> 63.7% | X21: =IF(NOT($C$2="胃"),"NA", IFERROR(TEXT(HLOOKUP(VLOOKUP($T21,INDEXTBL!$C$1:$N$1344,10,FALSE),DATA!$C$2:$BFP$14,7,FALSE),"0.0")&"%","NA")) -> 93.2% | Y21: =IF(NOT($C$2="胃"),"NA", IFERROR(TEXT(_xlfn.AGGREGATE(4,7,OFFSET(DATA!$A$1,14,MATCH(VLOOKUP($T21,INDEXTBL!$C$1:$N$1344,10,FALSE),DATA!$A$2:$BFP$2,0)-1,47,1)),"0.0")&"%" &" （"& Z21 & "）","NA")) -> 100.0% （岩手県） | Z21: =INDEX(DATA!$C$15:$C$61,MATCH(_xlfn.AGGREGATE(4,7,OFFSET(DATA!$A$1,14,MATCH(VLOOKUP($T21,INDEXTBL!$C$1:$N$1344,10,FALSE),DATA!$A$2:$BFP$2,0)-1,47,1)),OFFSET(DATA!$A$1,14,MATCH(VLOOKUP($T21,INDEXTBL!$C$1:$N$1344,10,FALSE),DATA!$A$2:$BFP$2,0)-1,47,1),0)) -> 岩手県
E22: 検D-0204 | I22: =VLOOKUP(E22,INDEXTBL!$A$1:$N$1344,2,FALSE) -> 県は、精密検査受診率の低い市町村の実態把握を行い、それらに関する指導・助言等を行う | K22: 沖縄県 | L22: 全国 | M22: 最良値 （都道府県） | R22: =IF(NOT($C$2="胃"),"","グラフ") -> グラフ | T22: 検B-020104 | U22: =IF(NOT($C$2="胃"),"-",IF($C$2="胃",SUBSTITUTE($B$2 & VLOOKUP(T22,INDEXTBL!$C$1:$N$1344,3,FALSE),"検診","検診（内視鏡）"),$B$2 & VLOOKUP(T22,INDEXTBL!$C$1:$N$1344,3,FALSE))) -> 胃がん検診（内視鏡） 精検受診率（女）（％） | V22: =VLOOKUP(T22,INDEXTBL!$C$1:$N$1344,_xlfn.SWITCH($B$2,"胃がん",10,"大腸がん",6,"肺がん",7,"女性乳房がん",9,"子宮頸部がん",5),FALSE) -> 胃A10 | W22: =IF(NOT($C$2="胃"),"NA", IFERROR(TEXT(HLOOKUP(VLOOKUP($T22,INDEXTBL!$C$1:$N$1344,10,FALSE),DATA!$C$2:$BFP$14,8,FALSE),"0.0")&"%","NA")) -> 65.8% | X22: =IF(NOT($C$2="胃"),"NA", IFERROR(TEXT(HLOOKUP(VLOOKUP($T22,INDEXTBL!$C$1:$N$1344,10,FALSE),DATA!$C$2:$BFP$14,7,FALSE),"0.0")&"%","NA")) -> 94.2% | Y22: =IF(NOT($C$2="胃"),"NA", IFERROR(TEXT(_xlfn.AGGREGATE(4,7,OFFSET(DATA!$A$1,14,MATCH(VLOOKUP($T22,INDEXTBL!$C$1:$N$1344,10,FALSE),DATA!$A$2:$BFP$2,0)-1,47,1)),"0.0")&"%" &" （"& Z22 & "）","NA")) -> 100.0% （岩手県） | Z22: =INDEX(DATA!$C$15:$C$61,MATCH(_xlfn.AGGREGATE(4,7,OFFSET(DATA!$A$1,14,MATCH(VLOOKUP($T22,INDEXTBL!$C$1:$N$1344,10,FALSE),DATA!$A$2:$BFP$2,0)-1,47,1)),OFFSET(DATA!$A$1,14,MATCH(VLOOKUP($T22,INDEXTBL!$C$1:$N$1344,10,FALSE),DATA!$A$2:$BFP$2,0)-1,47,1),0)) -> 岩手県
H23: 検D-020401 | I23: =VLOOKUP(H23,INDEXTBL!$C$1:$N$1344,3,FALSE) -> 県が指導・助言等を行った市町村数 | J23: =VLOOKUP(H23,INDEXTBL!$C$1:$N$1344,5,FALSE) -> EX206 | K23: =IFERROR(TEXT(HLOOKUP(VLOOKUP($H23,INDEXTBL!$C$1:$N$1344,5,FALSE),DATA!$C$2:$DEU$14,8,FALSE)*1,"0"),"NA") -> 41 | L23: =IFERROR(TEXT(HLOOKUP(VLOOKUP($H23,INDEXTBL!$C$1:$N$1344,5,FALSE),DATA!$C$2:$DEU$14,7,FALSE)*1,"0"),"NA") -> NA | M23: =IFERROR(HLOOKUP(VLOOKUP($H23,INDEXTBL!$C$1:$N$1344,$C$3,FALSE),DATA!$C$2:$BCV$14,10,FALSE),"NA") -> NA | R23: =IF(OR($C$2="女性乳房",$C$2="子宮頸部"),"","グラフ") -> グラフ | T23: 検B-020105 | U23: =IF(OR($C$2="女性乳房",$C$2="子宮頸部"),"-",IF($C$2="胃",SUBSTITUTE($B$2 & VLOOKUP(T23,INDEXTBL!$C$1:$N$1344,3,FALSE),"検診","検診（エックス線）"),$B$2 & VLOOKUP(T23,INDEXTBL!$C$1:$N$1344,3,FALSE))) -> 胃がん検診（エックス線） 精検未受診率（男）（％） | V23: =VLOOKUP(T23,INDEXTBL!$C$1:$N$1344,_xlfn.SWITCH($B$2,"胃がん",8,"大腸がん",6,"肺がん",7,"女性乳房がん",9,"子宮頸部がん",5),FALSE) -> 胃A03 | W23: =IFERROR(TEXT(HLOOKUP(VLOOKUP($T23,INDEXTBL!$C$1:$N$1344,$C$3,FALSE),DATA!$C$2:$BFP$14,8,FALSE),"0.0")&"%","NA") -> 21.2% | X23: =IFERROR(TEXT(HLOOKUP(VLOOKUP($T23,INDEXTBL!$C$1:$N$1344,$C$3,FALSE),DATA!$C$2:$BFP$14,7,FALSE),"0.0")&"%","NA") -> 8.9% | Y23: =IFERROR(TEXT(_xlfn.AGGREGATE(5,7,OFFSET(DATA!$A$1,14,MATCH(VLOOKUP($T23,INDEXTBL!$C$1:$N$1344,$C$3,FALSE),DATA!$A$2:$BFP$2,0)-1,47,1)),"0.0")&"%" &" （"& Z23 & "）","NA") -> 2.6% （宮崎県） | Z23: =INDEX(DATA!$C$15:$C$61,MATCH(_xlfn.AGGREGATE(5,7,OFFSET(DATA!$A$1,14,MATCH(VLOOKUP($T23,INDEXTBL!$C$1:$N$1344,$C$3,FALSE),DATA!$A$2:$BFP$2,0)-1,47,1)),OFFSET(DATA!$A$1,14,MATCH(VLOOKUP($T23,INDEXTBL!$C$1:$N$1344,$C$3,FALSE),DATA!$A$2:$BFP$2,0)-1,47,1),0)) -> 宮崎県
E24: 検D-0205 | I24: =VLOOKUP(E24,INDEXTBL!$A$1:$N$1344,2,FALSE) -> 市町村は、指針に基づいたがん検診の実施及び精度管理の向上を行う | K24: 沖縄県 | L24: 全国 | M24: 最良値 （都道府県） | R24: =IF(OR($C$2="女性乳房",$C$2="子宮頸部"),"","グラフ") -> グラフ | T24: 検B-020106 | U24: =IF($C$2="胃",SUBSTITUTE($B$2 & VLOOKUP(T24,INDEXTBL!$C$1:$N$1344,3,FALSE),"検診","検診（エックス線）"),$B$2 & VLOOKUP(T24,INDEXTBL!$C$1:$N$1344,3,FALSE)) -> 胃がん検診（エックス線） 精検未受診率（女）（％） | V24: =VLOOKUP(T24,INDEXTBL!$C$1:$N$1344,_xlfn.SWITCH($B$2,"胃がん",8,"大腸がん",6,"肺がん",7,"女性乳房がん",9,"子宮頸部がん",5),FALSE) -> 胃A04 | W24: =IFERROR(TEXT(HLOOKUP(VLOOKUP($T24,INDEXTBL!$C$1:$N$1344,$C$3,FALSE),DATA!$C$2:$BFP$14,8,FALSE),"0.0")&"%","NA") -> 8.8% | X24: =IFERROR(TEXT(HLOOKUP(VLOOKUP($T24,INDEXTBL!$C$1:$N$1344,$C$3,FALSE),DATA!$C$2:$BFP$14,7,FALSE),"0.0")&"%","NA") -> 5.7% | Y24: =IFERROR(TEXT(_xlfn.AGGREGATE(5,7,OFFSET(DATA!$A$1,14,MATCH(VLOOKUP($T24,INDEXTBL!$C$1:$N$1344,$C$3,FALSE),DATA!$A$2:$BFP$2,0)-1,47,1)),"0.0")&"%" &" （"& Z24 & "）","NA") -> 0.0% （福井県） | Z24: =INDEX(DATA!$C$15:$C$61,MATCH(_xlfn.AGGREGATE(5,7,OFFSET(DATA!$A$1,14,MATCH(VLOOKUP($T24,INDEXTBL!$C$1:$N$1344,$C$3,FALSE),DATA!$A$2:$BFP$2,0)-1,47,1)),OFFSET(DATA!$A$1,14,MATCH(VLOOKUP($T24,INDEXTBL!$C$1:$N$1344,$C$3,FALSE),DATA!$A$2:$BFP$2,0)-1,47,1),0)) -> 福井県
H25: 検D-020501 | I25: =VLOOKUP(H25,INDEXTBL!$C$1:$N$1344,3,FALSE) -> 国の示す「市町村事業におけるがん検診の事業評価の手法について」に基づいた事業評価をしている市町村の割合（％） | J25: =VLOOKUP(H25,INDEXTBL!$C$1:$N$1344,_xlfn.SWITCH($B$2,"胃がん",8,"大腸がん",6,"肺がん",7,"女性乳房がん",9,"子宮頸部がん",5),FALSE) -> 0 | K25: =IFERROR(TEXT(HLOOKUP(VLOOKUP($H25,INDEXTBL!$C$1:$N$1344,$C$3,FALSE),DATA!$C$2:$BCV$14,8,FALSE),"0.0")&"%","NA") -> NA | L25: =IFERROR(HLOOKUP(VLOOKUP($H25,INDEXTBL!$C$1:$N$1344,$C$3,FALSE),DATA!$C$2:$BCV$14,7,FALSE),"NA") -> NA | M25: =IFERROR(HLOOKUP(VLOOKUP($H25,INDEXTBL!$C$1:$N$1344,$C$3,FALSE),DATA!$C$2:$BCV$14,10,FALSE),"NA") -> NA | R25: =IF(NOT($C$2="胃"),"","グラフ") -> グラフ | T25: 検B-020105 | U25: =IF(NOT($C$2="胃"),"-",IF($C$2="胃",SUBSTITUTE($B$2 & VLOOKUP(T25,INDEXTBL!$C$1:$N$1344,3,FALSE),"検診","検診（内視鏡）"),$B$2 & VLOOKUP(T25,INDEXTBL!$C$1:$N$1344,3,FALSE))) -> 胃がん検診（内視鏡） 精検未受診率（男）（％） | V25: =VLOOKUP(T25,INDEXTBL!$C$1:$N$1344,_xlfn.SWITCH($B$2,"胃がん",10,"大腸がん",6,"肺がん",7,"女性乳房がん",9,"子宮頸部がん",5),FALSE) -> 胃A11 | W25: =IF(NOT($C$2="胃"),"NA", IFERROR(TEXT(HLOOKUP(VLOOKUP($T25,INDEXTBL!$C$1:$N$1344,10,FALSE),DATA!$C$2:$BFP$14,8,FALSE),"0.0")&"%","NA")) -> 9.9% | X25: =IF(NOT($C$2="胃"),"NA", IFERROR(TEXT(HLOOKUP(VLOOKUP($T25,INDEXTBL!$C$1:$N$1344,10,FALSE),DATA!$C$2:$BFP$14,7,FALSE),"0.0")&"%","NA")) -> 1.7% | Y25: =IF(NOT($C$2="胃"),"NA", IFERROR(TEXT(_xlfn.AGGREGATE(4,7,OFFSET(DATA!$A$1,14,MATCH(VLOOKUP($T25,INDEXTBL!$C$1:$N$1344,10,FALSE),DATA!$A$2:$BFP$2,0)-1,47,1)),"0.0")&"%" &" （"& Z25 & "）","NA")) -> 12.4% （岩手県） | Z25: =INDEX(DATA!$C$15:$C$61,MATCH(_xlfn.AGGREGATE(5,7,OFFSET(DATA!$A$1,14,MATCH(VLOOKUP($T25,INDEXTBL!$C$1:$N$1344,10,FALSE),DATA!$A$2:$BFP$2,0)-1,47,1)),OFFSET(DATA!$A$1,14,MATCH(VLOOKUP($T25,INDEXTBL!$C$1:$N$1344,10,FALSE),DATA!$A$2:$BFP$2,0)-1,47,1),0)) -> 岩手県
H26: 検D-020502 | I26: =VLOOKUP(H26,INDEXTBL!$C$1:$N$1344,3,FALSE) -> 国の示す「市町村事業におけるがん検診の事業評価の手法について」に基づいた事業評価をしている検診実施機関の割合（％） | J26: =VLOOKUP(H26,INDEXTBL!$C$1:$N$1344,_xlfn.SWITCH($B$2,"胃がん",8,"大腸がん",6,"肺がん",7,"女性乳房がん",9,"子宮頸部がん",5),FALSE) -> 0 | K26: =IFERROR(HLOOKUP(VLOOKUP($H26,INDEXTBL!$C$1:$N$1344,$C$3,FALSE),DATA!$C$2:$BCV$14,8,FALSE),"NA") -> NA | L26: =IFERROR(HLOOKUP(VLOOKUP($H26,INDEXTBL!$C$1:$N$1344,$C$3,FALSE),DATA!$C$2:$BCV$14,7,FALSE),"NA") -> NA | M26: =IFERROR(HLOOKUP(VLOOKUP($H26,INDEXTBL!$C$1:$N$1344,$C$3,FALSE),DATA!$C$2:$BCV$14,10,FALSE),"NA") -> NA | R26: =IF(NOT($C$2="胃"),"","グラフ") -> グラフ | T26: 検B-020106 | U26: =IF(NOT($C$2="胃"),"-",IF($C$2="胃",SUBSTITUTE($B$2 & VLOOKUP(T26,INDEXTBL!$C$1:$N$1344,3,FALSE),"検診","検診（内視鏡）"),$B$2 & VLOOKUP(T26,INDEXTBL!$C$1:$N$1344,3,FALSE))) -> 胃がん検診（内視鏡） 精検未受診率（女）（％） | V26: =VLOOKUP(T26,INDEXTBL!$C$1:$N$1344,_xlfn.SWITCH($B$2,"胃がん",10,"大腸がん",6,"肺がん",7,"女性乳房がん",9,"子宮頸部がん",5),FALSE) -> 胃A12 | W26: =IF(NOT($C$2="胃"),"NA", IFERROR(TEXT(HLOOKUP(VLOOKUP($T26,INDEXTBL!$C$1:$N$1344,10,FALSE),DATA!$C$2:$BFP$14,8,FALSE),"0.0")&"%","NA")) -> 6.9% | X26: =IF(NOT($C$2="胃"),"NA", IFERROR(TEXT(HLOOKUP(VLOOKUP($T26,INDEXTBL!$C$1:$N$1344,10,FALSE),DATA!$C$2:$BFP$14,7,FALSE),"0.0")&"%","NA")) -> 1.2% | Y26: =IF(NOT($C$2="胃"),"NA", IFERROR(TEXT(_xlfn.AGGREGATE(4,7,OFFSET(DATA!$A$1,14,MATCH(VLOOKUP($T26,INDEXTBL!$C$1:$N$1344,10,FALSE),DATA!$A$2:$BFP$2,0)-1,47,1)),"0.0")&"%" &" （"& Z26 & "）","NA")) -> 8.0% （岩手県） | Z26: =INDEX(DATA!$C$15:$C$61,MATCH(_xlfn.AGGREGATE(5,7,OFFSET(DATA!$A$1,14,MATCH(VLOOKUP($T26,INDEXTBL!$C$1:$N$1344,10,FALSE),DATA!$A$2:$BFP$2,0)-1,47,1)),OFFSET(DATA!$A$1,14,MATCH(VLOOKUP($T26,INDEXTBL!$C$1:$N$1344,10,FALSE),DATA!$A$2:$BFP$2,0)-1,47,1),0)) -> 岩手県
H27: 検D-020503 | I27: =$B$2 & " " & VLOOKUP(H27,INDEXTBL!$C$1:$N$1344,3,FALSE) -> 胃がん 精度管理の実態や指標を定期的に評価・公開している市町村の割合（％） | J27: =VLOOKUP(H27,INDEXTBL!$C$1:$N$1344,5,FALSE) -> EX207 | K27: =IFERROR(TEXT(HLOOKUP(VLOOKUP($H27,INDEXTBL!$C$1:$N$1344,5,FALSE),DATA!$C$2:$DEU$14,8,FALSE)*1,"0.0")&"%","NA") -> 100.0% | L27: =IFERROR(TEXT(HLOOKUP(VLOOKUP($H27,INDEXTBL!$C$1:$N$1344,5,FALSE),DATA!$C$2:$DEU$14,7,FALSE)*1,"0.0") &"%","NA") -> NA | M27: =IFERROR(HLOOKUP(VLOOKUP($H27,INDEXTBL!$C$1:$N$1344,$C$3,FALSE),DATA!$C$2:$BCV$14,10,FALSE),"NA") -> NA | R27: =IF(OR($C$2="女性乳房",$C$2="子宮頸部"),"","グラフ") -> グラフ | T27: 検B-020107 | U27: =IF(OR($C$2="女性乳房",$C$2="子宮頸部"),"-",IF($C$2="胃",SUBSTITUTE($B$2 & VLOOKUP(T27,INDEXTBL!$C$1:$N$1344,3,FALSE),"検診","検診（エックス線）"),$B$2 & VLOOKUP(T27,INDEXTBL!$C$1:$N$1344,3,FALSE))) -> 胃がん検診（エックス線） 精検未把握率（男）（％） | V27: =VLOOKUP(T27,INDEXTBL!$C$1:$N$1344,_xlfn.SWITCH($B$2,"胃がん",8,"大腸がん",6,"肺がん",7,"女性乳房がん",9,"子宮頸部がん",5),FALSE) -> 胃A05 | W27: =IFERROR(TEXT(HLOOKUP(VLOOKUP($T27,INDEXTBL!$C$1:$N$1344,$C$3,FALSE),DATA!$C$2:$BFP$14,8,FALSE),"0.0")&"%","NA") -> 35.4% | X27: =IFERROR(TEXT(HLOOKUP(VLOOKUP($T27,INDEXTBL!$C$1:$N$1344,$C$3,FALSE),DATA!$C$2:$BFP$14,7,FALSE),"0.0")&"%","NA") -> 11.7% | Y27: =IFERROR(TEXT(_xlfn.AGGREGATE(5,7,OFFSET(DATA!$A$1,14,MATCH(VLOOKUP($T27,INDEXTBL!$C$1:$N$1344,$C$3,FALSE),DATA!$A$2:$BFP$2,0)-1,47,1)),"0.0")&"%" &" （"& Z27 & "）","NA") -> 0.5% （新潟県） | Z27: =INDEX(DATA!$C$15:$C$61,MATCH(_xlfn.AGGREGATE(5,7,OFFSET(DATA!$A$1,14,MATCH(VLOOKUP($T27,INDEXTBL!$C$1:$N$1344,$C$3,FALSE),DATA!$A$2:$BFP$2,0)-1,47,1)),OFFSET(DATA!$A$1,14,MATCH(VLOOKUP($T27,INDEXTBL!$C$1:$N$1344,$C$3,FALSE),DATA!$A$2:$BFP$2,0)-1,47,1),0)) -> 新潟県
H28: 検D-020504 | I28: =$B$2 & " " & VLOOKUP(H28,INDEXTBL!$C$1:$N$1344,3,FALSE) -> 胃がん 精度管理の実態や指標を定期的に評価・公開している検診実施機関の割合（％） | J28: =VLOOKUP(H28,INDEXTBL!$C$1:$N$1344,_xlfn.SWITCH($B$2,"胃がん",8,"大腸がん",6,"肺がん",7,"女性乳房がん",9,"子宮頸部がん",5),FALSE) -> EX胃3 | K28: =IFERROR(HLOOKUP(VLOOKUP($H28,INDEXTBL!$C$1:$N$1344,$C$3,FALSE),DATA!$C$2:$BCV$14,8,FALSE),"NA") -> X線94.7% 内視鏡89/7% | L28: =IFERROR(TEXT(HLOOKUP(VLOOKUP($H28,INDEXTBL!$C$1:$N$1344,5,FALSE),DATA!$C$2:$DEU$14,7,FALSE)*1,"0.0") &"%","NA") -> NA | M28: =IFERROR(HLOOKUP(VLOOKUP($H28,INDEXTBL!$C$1:$N$1344,$C$3,FALSE),DATA!$C$2:$BCV$14,10,FALSE),"NA") -> 0 | R28: グラフ | T28: 検B-020108 | U28: =IF($C$2="胃",SUBSTITUTE($B$2 & VLOOKUP(T28,INDEXTBL!$C$1:$N$1344,3,FALSE),"検診","検診（エックス線）"),$B$2 & VLOOKUP(T28,INDEXTBL!$C$1:$N$1344,3,FALSE)) -> 胃がん検診（エックス線） 精検未把握率（女）（％） | V28: =VLOOKUP(T28,INDEXTBL!$C$1:$N$1344,_xlfn.SWITCH($B$2,"胃がん",8,"大腸がん",6,"肺がん",7,"女性乳房がん",9,"子宮頸部がん",5),FALSE) -> 胃A06 | W28: =IFERROR(TEXT(HLOOKUP(VLOOKUP($T28,INDEXTBL!$C$1:$N$1344,$C$3,FALSE),DATA!$C$2:$BFP$14,8,FALSE),"0.0")&"%","NA") -> 34.9% | X28: =IFERROR(TEXT(HLOOKUP(VLOOKUP($T28,INDEXTBL!$C$1:$N$1344,$C$3,FALSE),DATA!$C$2:$BFP$14,7,FALSE),"0.0")&"%","NA") -> 9.2% | Y28: =IFERROR(TEXT(_xlfn.AGGREGATE(5,7,OFFSET(DATA!$A$1,14,MATCH(VLOOKUP($T28,INDEXTBL!$C$1:$N$1344,$C$3,FALSE),DATA!$A$2:$BFP$2,0)-1,47,1)),"0.0")&"%" &" （"& Z28 & "）","NA") -> 0.4% （新潟県） | Z28: =INDEX(DATA!$C$15:$C$61,MATCH(_xlfn.AGGREGATE(5,7,OFFSET(DATA!$A$1,14,MATCH(VLOOKUP($T28,INDEXTBL!$C$1:$N$1344,$C$3,FALSE),DATA!$A$2:$BFP$2,0)-1,47,1)),OFFSET(DATA!$A$1,14,MATCH(VLOOKUP($T28,INDEXTBL!$C$1:$N$1344,$C$3,FALSE),DATA!$A$2:$BFP$2,0)-1,47,1),0)) -> 新潟県
H29: 検D-020505 | I29: =$B$2 & " " & VLOOKUP(H29,INDEXTBL!$C$1:$N$1344,3,FALSE) -> 胃がん 要精検率の許容値を達成している市町村の割合（％） | J29: =VLOOKUP(H29,INDEXTBL!$C$1:$N$1344,_xlfn.SWITCH($B$2,"胃がん",8,"大腸がん",6,"肺がん",7,"女性乳房がん",9,"子宮頸部がん",5),FALSE) -> EX胃4 | K29: =IFERROR(HLOOKUP(VLOOKUP($H29,INDEXTBL!$C$1:$N$1344,$C$3,FALSE),DATA!$C$2:$BCV$14,8,FALSE),"NA") -> 0.865 | L29: =IFERROR(HLOOKUP(VLOOKUP($H29,INDEXTBL!$C$1:$N$1344,$C$3,FALSE),DATA!$C$2:$BCV$14,7,FALSE),"NA") -> NA | M29: =IFERROR(HLOOKUP(VLOOKUP($H29,INDEXTBL!$C$1:$N$1344,$C$3,FALSE),DATA!$C$2:$BCV$14,10,FALSE),"NA") -> 0 | R29: =IF(NOT($C$2="胃"),"","グラフ") -> グラフ | T29: 検B-020107 | U29: =IF(NOT($C$2="胃"),"-",IF($C$2="胃",SUBSTITUTE($B$2 & VLOOKUP(T29,INDEXTBL!$C$1:$N$1344,3,FALSE),"検診","検診（内視鏡）"),$B$2 & VLOOKUP(T29,INDEXTBL!$C$1:$N$1344,3,FALSE))) -> 胃がん検診（内視鏡） 精検未把握率（男）（％） | V29: =VLOOKUP(T29,INDEXTBL!$C$1:$N$1344,_xlfn.SWITCH($B$2,"胃がん",10,"大腸がん",6,"肺がん",7,"女性乳房がん",9,"子宮頸部がん",5),FALSE) -> 胃A13 | W29: =IF(NOT($C$2="胃"),"NA", IFERROR(TEXT(HLOOKUP(VLOOKUP($T29,INDEXTBL!$C$1:$N$1344,10,FALSE),DATA!$C$2:$BFP$14,8,FALSE),"0.0")&"%","NA")) -> 26.4% | X29: =IF(NOT($C$2="胃"),"NA", IFERROR(TEXT(HLOOKUP(VLOOKUP($T29,INDEXTBL!$C$1:$N$1344,10,FALSE),DATA!$C$2:$BFP$14,7,FALSE),"0.0")&"%","NA")) -> 5.1% | Y29: =IF(NOT($C$2="胃"),"NA", IFERROR(TEXT(_xlfn.AGGREGATE(4,7,OFFSET(DATA!$A$1,14,MATCH(VLOOKUP($T29,INDEXTBL!$C$1:$N$1344,10,FALSE),DATA!$A$2:$BFP$2,0)-1,47,1)),"0.0")&"%" &" （"& Z29 & "）","NA")) -> 34.8% （岩手県） | Z29: =INDEX(DATA!$C$15:$C$61,MATCH(_xlfn.AGGREGATE(5,7,OFFSET(DATA!$A$1,14,MATCH(VLOOKUP($T29,INDEXTBL!$C$1:$N$1344,10,FALSE),DATA!$A$2:$BFP$2,0)-1,47,1)),OFFSET(DATA!$A$1,14,MATCH(VLOOKUP($T29,INDEXTBL!$C$1:$N$1344,10,FALSE),DATA!$A$2:$BFP$2,0)-1,47,1),0)) -> 岩手県
H30: 検D-020506 | I30: =$B$2 & " " & VLOOKUP(H30,INDEXTBL!$C$1:$N$1344,3,FALSE) -> 胃がん 精検受診率の目標値90%以上を達成している市町村の割合（％） | J30: =VLOOKUP(H30,INDEXTBL!$C$1:$N$1344,_xlfn.SWITCH($B$2,"胃がん",8,"大腸がん",6,"肺がん",7,"女性乳房がん",9,"子宮頸部がん",5),FALSE) -> EX胃5 | K30: =IFERROR(HLOOKUP(VLOOKUP($H30,INDEXTBL!$C$1:$N$1344,$C$3,FALSE),DATA!$C$2:$BCV$14,8,FALSE),"NA") -> 0.303 | L30: =IFERROR(HLOOKUP(VLOOKUP($H30,INDEXTBL!$C$1:$N$1344,$C$3,FALSE),DATA!$C$2:$BCV$14,7,FALSE),"NA") -> NA | M30: =IFERROR(HLOOKUP(VLOOKUP($H30,INDEXTBL!$C$1:$N$1344,$C$3,FALSE),DATA!$C$2:$BCV$14,10,FALSE),"NA") -> 0 | R30: =IF(NOT($C$2="胃"),"","グラフ") -> グラフ | T30: 検B-020108 | U30: =IF(NOT($C$2="胃"),"-",IF($C$2="胃",SUBSTITUTE($B$2 & VLOOKUP(T30,INDEXTBL!$C$1:$N$1344,3,FALSE),"検診","検診（内視鏡）"),$B$2 & VLOOKUP(T30,INDEXTBL!$C$1:$N$1344,3,FALSE))) -> 胃がん検診（内視鏡） 精検未把握率（女）（％） | V30: =VLOOKUP(T30,INDEXTBL!$C$1:$N$1344,_xlfn.SWITCH($B$2,"胃がん",10,"大腸がん",6,"肺がん",7,"女性乳房がん",9,"子宮頸部がん",5),FALSE) -> 胃A14 | W30: =IF(NOT($C$2="胃"),"NA", IFERROR(TEXT(HLOOKUP(VLOOKUP($T30,INDEXTBL!$C$1:$N$1344,10,FALSE),DATA!$C$2:$BFP$14,8,FALSE),"0.0")&"%","NA")) -> 27.3% | X30: =IF(NOT($C$2="胃"),"NA", IFERROR(TEXT(HLOOKUP(VLOOKUP($T30,INDEXTBL!$C$1:$N$1344,10,FALSE),DATA!$C$2:$BFP$14,7,FALSE),"0.0")&"%","NA")) -> 4.6% | Y30: =IF(NOT($C$2="胃"),"NA", IFERROR(TEXT(_xlfn.AGGREGATE(4,7,OFFSET(DATA!$A$1,14,MATCH(VLOOKUP($T30,INDEXTBL!$C$1:$N$1344,10,FALSE),DATA!$A$2:$BFP$2,0)-1,47,1)),"0.0")&"%" &" （"& Z30 & "）","NA")) -> 33.7% （岩手県） | Z30: =INDEX(DATA!$C$15:$C$61,MATCH(_xlfn.AGGREGATE(5,7,OFFSET(DATA!$A$1,14,MATCH(VLOOKUP($T30,INDEXTBL!$C$1:$N$1344,10,FALSE),DATA!$A$2:$BFP$2,0)-1,47,1)),OFFSET(DATA!$A$1,14,MATCH(VLOOKUP($T30,INDEXTBL!$C$1:$N$1344,10,FALSE),DATA!$A$2:$BFP$2,0)-1,47,1),0)) -> 岩手県
H31: 検D-020507 | I31: =$B$2 & " " & VLOOKUP(H31,INDEXTBL!$C$1:$N$1344,3,FALSE) -> 胃がん 未把握率の目標値5%以下を達成している市町村の割合（％） | J31: =VLOOKUP(H31,INDEXTBL!$C$1:$N$1344,_xlfn.SWITCH($B$2,"胃がん",8,"大腸がん",6,"肺がん",7,"女性乳房がん",9,"子宮頸部がん",5),FALSE) -> EX胃6 | K31: =IFERROR(HLOOKUP(VLOOKUP($H31,INDEXTBL!$C$1:$N$1344,$C$3,FALSE),DATA!$C$2:$BCV$14,8,FALSE),"NA") -> 0.6 | L31: =IFERROR(HLOOKUP(VLOOKUP($H31,INDEXTBL!$C$1:$N$1344,$C$3,FALSE),DATA!$C$2:$BCV$14,7,FALSE),"NA") -> NA | M31: =IFERROR(HLOOKUP(VLOOKUP($H31,INDEXTBL!$C$1:$N$1344,$C$3,FALSE),DATA!$C$2:$BCV$14,10,FALSE),"NA") -> 0 | R31: =IF(OR($C$2="女性乳房",$C$2="子宮頸部"),"","グラフ") -> グラフ | T31: 検B-020109 | U31: =IF(OR($C$2="女性乳房",$C$2="子宮頸部"),"-",IF($C$2="胃",SUBSTITUTE($B$2 & VLOOKUP(T31,INDEXTBL!$C$1:$N$1344,3,FALSE),"検診","検診（エックス線）"),$B$2 & VLOOKUP(T31,INDEXTBL!$C$1:$N$1344,3,FALSE))) -> 胃がん検診（エックス線） がん発見率（男）（％） | V31: =VLOOKUP(T31,INDEXTBL!$C$1:$N$1344,_xlfn.SWITCH($B$2,"胃がん",8,"大腸がん",6,"肺がん",7,"女性乳房がん",9,"子宮頸部がん",5),FALSE) -> 胃54 | W31: =IFERROR(TEXT(HLOOKUP(VLOOKUP($T31,INDEXTBL!$C$1:$N$1344,$C$3,FALSE),DATA!$C$2:$BFP$14,8,FALSE),"0.00")&"%","NA") -> 0.02% | X31: =IFERROR(TEXT(HLOOKUP(VLOOKUP($T31,INDEXTBL!$C$1:$N$1344,$C$3,FALSE),DATA!$C$2:$BFP$14,7,FALSE),"0.00")&"%","NA") -> 0.19% | Y31: =IFERROR(TEXT(_xlfn.AGGREGATE(4,7,OFFSET(DATA!$A$1,14,MATCH(VLOOKUP($T31,INDEXTBL!$C$1:$N$1344,$C$3,FALSE),DATA!$A$2:$BFP$2,0)-1,47,1)),"0.00")&"%" &" （"& Z31 & "）","NA") -> 0.40% （宮城県） | Z31: =INDEX(DATA!$C$15:$C$61,MATCH(_xlfn.AGGREGATE(4,7,OFFSET(DATA!$A$1,14,MATCH(VLOOKUP($T31,INDEXTBL!$C$1:$N$1344,$C$3,FALSE),DATA!$A$2:$BFP$2,0)-1,47,1)),OFFSET(DATA!$A$1,14,MATCH(VLOOKUP($T31,INDEXTBL!$C$1:$N$1344,$C$3,FALSE),DATA!$A$2:$BFP$2,0)-1,47,1),0)) -> 宮城県
H32: 検D-020508 | I32: =$B$2 & " " & VLOOKUP(H32,INDEXTBL!$C$1:$N$1344,3,FALSE) -> 胃がん 精検未受診率の目標値5%以下を達成している市町村の割合（％） | J32: =VLOOKUP(H32,INDEXTBL!$C$1:$N$1344,_xlfn.SWITCH($B$2,"胃がん",8,"大腸がん",6,"肺がん",7,"女性乳房がん",9,"子宮頸部がん",5),FALSE) -> EX胃7 | K32: =IFERROR(HLOOKUP(VLOOKUP($H32,INDEXTBL!$C$1:$N$1344,$C$3,FALSE),DATA!$C$2:$BCV$14,8,FALSE),"NA") -> 0.313 | L32: =IFERROR(HLOOKUP(VLOOKUP($H32,INDEXTBL!$C$1:$N$1344,$C$3,FALSE),DATA!$C$2:$BCV$14,7,FALSE),"NA") -> NA | M32: =IFERROR(HLOOKUP(VLOOKUP($H32,INDEXTBL!$C$1:$N$1344,$C$3,FALSE),DATA!$C$2:$BCV$14,10,FALSE),"NA") -> 0 | R32: グラフ | T32: 検B-020110 | U32: =IF($C$2="胃",SUBSTITUTE($B$2 & VLOOKUP(T32,INDEXTBL!$C$1:$N$1344,3,FALSE),"検診","検診（エックス線）"),$B$2 & VLOOKUP(T32,INDEXTBL!$C$1:$N$1344,3,FALSE)) -> 胃がん検診（エックス線） がん発見率（女）（％） | V32: =VLOOKUP(T32,INDEXTBL!$C$1:$N$1344,_xlfn.SWITCH($B$2,"胃がん",8,"大腸がん",6,"肺がん",7,"女性乳房がん",9,"子宮頸部がん",5),FALSE) -> 胃55 | W32: =IFERROR(TEXT(HLOOKUP(VLOOKUP($T32,INDEXTBL!$C$1:$N$1344,$C$3,FALSE),DATA!$C$2:$BFP$14,8,FALSE),"0.00")&"%","NA") -> 0.02% | X32: =IFERROR(TEXT(HLOOKUP(VLOOKUP($T32,INDEXTBL!$C$1:$N$1344,$C$3,FALSE),DATA!$C$2:$BFP$14,7,FALSE),"0.00")&"%","NA") -> 0.06% | Y32: =IFERROR(TEXT(_xlfn.AGGREGATE(4,7,OFFSET(DATA!$A$1,14,MATCH(VLOOKUP($T32,INDEXTBL!$C$1:$N$1344,$C$3,FALSE),DATA!$A$2:$BFP$2,0)-1,47,1)),"0.00")&"%" &" （"& Z32 & "）","NA") -> 0.15% （富山県） | Z32: =INDEX(DATA!$C$15:$C$61,MATCH(_xlfn.AGGREGATE(4,7,OFFSET(DATA!$A$1,14,MATCH(VLOOKUP($T32,INDEXTBL!$C$1:$N$1344,$C$3,FALSE),DATA!$A$2:$BFP$2,0)-1,47,1)),OFFSET(DATA!$A$1,14,MATCH(VLOOKUP($T32,INDEXTBL!$C$1:$N$1344,$C$3,FALSE),DATA!$A$2:$BFP$2,0)-1,47,1),0)) -> 富山県
H33: 検D-020509 | I33: =VLOOKUP(H33,INDEXTBL!$C$1:$N$1344,3,FALSE) -> 感度と特異度の把握をしている市町村の割合（％） | J33: =VLOOKUP(H33,INDEXTBL!$C$1:$N$1344,5,FALSE) -> EX201 | K33: =IFERROR(TEXT(HLOOKUP(VLOOKUP($H33,INDEXTBL!$C$1:$N$1344,5,FALSE),DATA!$C$2:$DEU$14,8,FALSE)*100,"0.0")&"%","NA") -> 9.8% | L33: =IFERROR(TEXT(HLOOKUP(VLOOKUP($H33,INDEXTBL!$C$1:$N$1344,5,FALSE),DATA!$C$2:$DEU$14,7,FALSE)*1,"0.0") &"%","NA") -> NA | M33: =IFERROR(HLOOKUP(VLOOKUP($H33,INDEXTBL!$C$1:$N$1344,$C$3,FALSE),DATA!$C$2:$BCV$14,10,FALSE),"NA") -> NA | R33: =IF(NOT($C$2="胃"),"","グラフ") -> グラフ | T33: 検B-020109 | U33: =IF(NOT($C$2="胃"),"-",IF($C$2="胃",SUBSTITUTE($B$2 & VLOOKUP(T33,INDEXTBL!$C$1:$N$1344,3,FALSE),"検診","検診（内視鏡）"),$B$2 & VLOOKUP(T33,INDEXTBL!$C$1:$N$1344,3,FALSE))) -> 胃がん検診（内視鏡） がん発見率（男）（％） | V33: =VLOOKUP(T33,INDEXTBL!$C$1:$N$1344,_xlfn.SWITCH($B$2,"胃がん",10,"大腸がん",6,"肺がん",7,"女性乳房がん",9,"子宮頸部がん",5),FALSE) -> 胃A15 | W33: =IF(NOT($C$2="胃"),"NA", IFERROR(TEXT(HLOOKUP(VLOOKUP($T33,INDEXTBL!$C$1:$N$1344,10,FALSE),DATA!$C$2:$BFP$14,8,FALSE),"0.00")&"%","NA")) -> 0.17% | X33: =IF(NOT($C$2="胃"),"NA", IFERROR(TEXT(HLOOKUP(VLOOKUP($T33,INDEXTBL!$C$1:$N$1344,10,FALSE),DATA!$C$2:$BFP$14,7,FALSE),"0.00")&"%","NA")) -> 0.56% | Y33: =IF(NOT($C$2="胃"),"NA", IFERROR(TEXT(_xlfn.AGGREGATE(4,7,OFFSET(DATA!$A$1,14,MATCH(VLOOKUP($T33,INDEXTBL!$C$1:$N$1344,10,FALSE),DATA!$A$2:$BFP$2,0)-1,47,1)),"0.00")&"%" &" （"& Z33 & "）","NA")) -> 1.28% （茨城県） | Z33: =INDEX(DATA!$C$15:$C$61,MATCH(_xlfn.AGGREGATE(4,7,OFFSET(DATA!$A$1,14,MATCH(VLOOKUP($T33,INDEXTBL!$C$1:$N$1344,10,FALSE),DATA!$A$2:$BFP$2,0)-1,47,1)),OFFSET(DATA!$A$1,14,MATCH(VLOOKUP($T33,INDEXTBL!$C$1:$N$1344,10,FALSE),DATA!$A$2:$BFP$2,0)-1,47,1),0)) -> 茨城県
E34: 検D-0206 | I34: =VLOOKUP(E34,INDEXTBL!$A$1:$N$1344,2,FALSE) -> 職域を含めた、がん検診の実施者による分かりやすい情報提供を推進する | K34: 沖縄県 | L34: 全国 | M34: 最良値 （都道府県） | R34: =IF(NOT($C$2="胃"),"","グラフ") -> グラフ | T34: 検B-020110 | U34: =IF(NOT($C$2="胃"),"-",IF($C$2="胃",SUBSTITUTE($B$2 & VLOOKUP(T34,INDEXTBL!$C$1:$N$1344,3,FALSE),"検診","検診（内視鏡）"),$B$2 & VLOOKUP(T34,INDEXTBL!$C$1:$N$1344,3,FALSE))) -> 胃がん検診（内視鏡） がん発見率（女）（％） | V34: =VLOOKUP(T34,INDEXTBL!$C$1:$N$1344,_xlfn.SWITCH($B$2,"胃がん",10,"大腸がん",6,"肺がん",7,"女性乳房がん",9,"子宮頸部がん",5),FALSE) -> 胃A16 | W34: =IF(NOT($C$2="胃"),"NA", IFERROR(TEXT(HLOOKUP(VLOOKUP($T34,INDEXTBL!$C$1:$N$1344,10,FALSE),DATA!$C$2:$BFP$14,8,FALSE),"0.00")&"%","NA")) -> 0.13% | X34: =IF(NOT($C$2="胃"),"NA", IFERROR(TEXT(HLOOKUP(VLOOKUP($T34,INDEXTBL!$C$1:$N$1344,10,FALSE),DATA!$C$2:$BFP$14,7,FALSE),"0.00")&"%","NA")) -> 0.19% | Y34: =IF(NOT($C$2="胃"),"NA", IFERROR(TEXT(_xlfn.AGGREGATE(4,7,OFFSET(DATA!$A$1,14,MATCH(VLOOKUP($T34,INDEXTBL!$C$1:$N$1344,10,FALSE),DATA!$A$2:$BFP$2,0)-1,47,1)),"0.00")&"%" &" （"& Z34 & "）","NA")) -> 0.47% （高知県） | Z34: =INDEX(DATA!$C$15:$C$61,MATCH(_xlfn.AGGREGATE(4,7,OFFSET(DATA!$A$1,14,MATCH(VLOOKUP($T34,INDEXTBL!$C$1:$N$1344,10,FALSE),DATA!$A$2:$BFP$2,0)-1,47,1)),OFFSET(DATA!$A$1,14,MATCH(VLOOKUP($T34,INDEXTBL!$C$1:$N$1344,10,FALSE),DATA!$A$2:$BFP$2,0)-1,47,1),0)) -> 高知県
H35: 検D-020601 | I35: =$B$2 & " " & VLOOKUP(H35,INDEXTBL!$C$1:$N$1344,3,FALSE) -> 胃がん がん検診の正しい情報提供を実施した市町村の割合（％） | J35: =VLOOKUP(H35,INDEXTBL!$C$1:$N$1344,_xlfn.SWITCH($B$2,"胃がん",8,"大腸がん",6,"肺がん",7,"女性乳房がん",9,"子宮頸部がん",5),FALSE) -> EX胃8 | K35: =IFERROR(HLOOKUP(VLOOKUP($H35,INDEXTBL!$C$1:$N$1344,$C$3,FALSE),DATA!$C$2:$BCV$14,8,FALSE)&"%","NA") -> X線78.9% 内視鏡100%% | L35: =IFERROR(TEXT(HLOOKUP(VLOOKUP($H35,INDEXTBL!$C$1:$N$1344,$C$3,FALSE),DATA!$C$2:$BCV$14,7,FALSE),"0.0")&"%","NA") -> X線81.1% 内視鏡78.6%% | M35: =IFERROR(TEXT(_xlfn.AGGREGATE(5,7,OFFSET(DATA!$A$1,14,MATCH(VLOOKUP($H35,INDEXTBL!$C$1:$N$1344,$C$3,FALSE),DATA!$A$2:$BCV$2,0)-1,47,1)),"0.0")&"%" &" （"& N35 & "）","NA") -> 100.0% （秋田県） | N35: =INDEX(DATA!$C$15:$C$61,MATCH(_xlfn.AGGREGATE(5,7,OFFSET(DATA!$A$1,14,MATCH(VLOOKUP($H35,INDEXTBL!$C$1:$N$1344,$C$3,FALSE),DATA!$A$2:$BFP$2,0)-1,47,1)),OFFSET(DATA!$A$1,14,MATCH(VLOOKUP($H35,INDEXTBL!$C$1:$N$1344,$C$3,FALSE),DATA!$A$2:$BFP$2,0)-1,47,1),0)) -> 秋田県 | R35: =IF(OR($C$2="女性乳房",$C$2="子宮頸部"),"","グラフ") -> グラフ | T35: 検B-020111 | U35: =IF(OR($C$2="女性乳房",$C$2="子宮頸部"),"-",IF($C$2="胃",SUBSTITUTE($B$2 & VLOOKUP(T35,INDEXTBL!$C$1:$N$1344,3,FALSE),"検診","検診（エックス線）"),$B$2 & VLOOKUP(T35,INDEXTBL!$C$1:$N$1344,3,FALSE))) -> 胃がん検診（エックス線） 陽性反応的中度（男）（％） | V35: =VLOOKUP(T35,INDEXTBL!$C$1:$N$1344,_xlfn.SWITCH($B$2,"胃がん",8,"大腸がん",6,"肺がん",7,"女性乳房がん",9,"子宮頸部がん",5),FALSE) -> 胃56 | W35: =IFERROR(TEXT(HLOOKUP(VLOOKUP($T35,INDEXTBL!$C$1:$N$1344,$C$3,FALSE),DATA!$C$2:$BFP$14,8,FALSE),"0.00")&"%","NA") -> 0.45% | X35: =IFERROR(TEXT(HLOOKUP(VLOOKUP($T35,INDEXTBL!$C$1:$N$1344,$C$3,FALSE),DATA!$C$2:$BFP$14,7,FALSE),"0.00")&"%","NA") -> 2.65% | Y35: =IFERROR(TEXT(_xlfn.AGGREGATE(4,7,OFFSET(DATA!$A$1,14,MATCH(VLOOKUP($T35,INDEXTBL!$C$1:$N$1344,$C$3,FALSE),DATA!$A$2:$BFP$2,0)-1,47,1)),"0.00")&"%" &" （"& Z35 & "）","NA") -> 5.45% （宮城県） | Z35: =INDEX(DATA!$C$15:$C$61,MATCH(_xlfn.AGGREGATE(4,7,OFFSET(DATA!$A$1,14,MATCH(VLOOKUP($T35,INDEXTBL!$C$1:$N$1344,$C$3,FALSE),DATA!$A$2:$BFP$2,0)-1,47,1)),OFFSET(DATA!$A$1,14,MATCH(VLOOKUP($T35,INDEXTBL!$C$1:$N$1344,$C$3,FALSE),DATA!$A$2:$BFP$2,0)-1,47,1),0)) -> 宮城県
R36: グラフ | T36: 検B-020112 | U36: =IF($C$2="胃",SUBSTITUTE($B$2 & VLOOKUP(T36,INDEXTBL!$C$1:$N$1344,3,FALSE),"検診","検診（エックス線）"),$B$2 & VLOOKUP(T36,INDEXTBL!$C$1:$N$1344,3,FALSE)) -> 胃がん検診（エックス線） 陽性反応的中度（女）（％） | V36: =VLOOKUP(T36,INDEXTBL!$C$1:$N$1344,_xlfn.SWITCH($B$2,"胃がん",8,"大腸がん",6,"肺がん",7,"女性乳房がん",9,"子宮頸部がん",5),FALSE) -> 胃57 | W36: =IFERROR(TEXT(HLOOKUP(VLOOKUP($T36,INDEXTBL!$C$1:$N$1344,$C$3,FALSE),DATA!$C$2:$BFP$14,8,FALSE),"0.00")&"%","NA") -> 0.65% | X36: =IFERROR(TEXT(HLOOKUP(VLOOKUP($T36,INDEXTBL!$C$1:$N$1344,$C$3,FALSE),DATA!$C$2:$BFP$14,7,FALSE),"0.00")&"%","NA") -> 1.23% | Y36: =IFERROR(TEXT(_xlfn.AGGREGATE(4,7,OFFSET(DATA!$A$1,14,MATCH(VLOOKUP($T36,INDEXTBL!$C$1:$N$1344,$C$3,FALSE),DATA!$A$2:$BFP$2,0)-1,47,1)),"0.00")&"%" &" （"& Z36 & "）","NA") -> 3.91% （富山県） | Z36: =INDEX(DATA!$C$15:$C$61,MATCH(_xlfn.AGGREGATE(4,7,OFFSET(DATA!$A$1,14,MATCH(VLOOKUP($T36,INDEXTBL!$C$1:$N$1344,$C$3,FALSE),DATA!$A$2:$BFP$2,0)-1,47,1)),OFFSET(DATA!$A$1,14,MATCH(VLOOKUP($T36,INDEXTBL!$C$1:$N$1344,$C$3,FALSE),DATA!$A$2:$BFP$2,0)-1,47,1),0)) -> 富山県
R37: =IF(NOT($C$2="胃"),"","グラフ") -> グラフ | T37: 検B-020111 | U37: =IF(NOT($C$2="胃"),"-",IF($C$2="胃",SUBSTITUTE($B$2 & VLOOKUP(T37,INDEXTBL!$C$1:$N$1344,3,FALSE),"検診","検診（内視鏡）"),$B$2 & VLOOKUP(T37,INDEXTBL!$C$1:$N$1344,3,FALSE))) -> 胃がん検診（内視鏡） 陽性反応的中度（男）（％） | V37: =VLOOKUP(T37,INDEXTBL!$C$1:$N$1344,_xlfn.SWITCH($B$2,"胃がん",10,"大腸がん",6,"肺がん",7,"女性乳房がん",9,"子宮頸部がん",5),FALSE) -> 胃A17 | W37: =IF(NOT($C$2="胃"),"NA", IFERROR(TEXT(HLOOKUP(VLOOKUP($T37,INDEXTBL!$C$1:$N$1344,10,FALSE),DATA!$C$2:$BFP$14,8,FALSE),"0.00")&"%","NA")) -> 3.70% | X37: =IF(NOT($C$2="胃"),"NA", IFERROR(TEXT(HLOOKUP(VLOOKUP($T37,INDEXTBL!$C$1:$N$1344,10,FALSE),DATA!$C$2:$BFP$14,7,FALSE),"0.00")&"%","NA")) -> 6.73% | Y37: =IF(NOT($C$2="胃"),"NA", IFERROR(TEXT(_xlfn.AGGREGATE(4,7,OFFSET(DATA!$A$1,14,MATCH(VLOOKUP($T37,INDEXTBL!$C$1:$N$1344,10,FALSE),DATA!$A$2:$BFP$2,0)-1,47,1)),"0.00")&"%" &" （"& Z37 & "）","NA")) -> 17.18% （宮城県） | Z37: =INDEX(DATA!$C$15:$C$61,MATCH(_xlfn.AGGREGATE(4,7,OFFSET(DATA!$A$1,14,MATCH(VLOOKUP($T37,INDEXTBL!$C$1:$N$1344,10,FALSE),DATA!$A$2:$BFP$2,0)-1,47,1)),OFFSET(DATA!$A$1,14,MATCH(VLOOKUP($T37,INDEXTBL!$C$1:$N$1344,10,FALSE),DATA!$A$2:$BFP$2,0)-1,47,1),0)) -> 宮城県
R38: =IF(NOT($C$2="胃"),"","グラフ") -> グラフ | T38: 検B-020112 | U38: =IF(NOT($C$2="胃"),"-",IF($C$2="胃",SUBSTITUTE($B$2 & VLOOKUP(T38,INDEXTBL!$C$1:$N$1344,3,FALSE),"検診","検診（内視鏡）"),$B$2 & VLOOKUP(T38,INDEXTBL!$C$1:$N$1344,3,FALSE))) -> 胃がん検診（内視鏡） 陽性反応的中度（女）（％） | V38: =VLOOKUP(T38,INDEXTBL!$C$1:$N$1344,_xlfn.SWITCH($B$2,"胃がん",10,"大腸がん",6,"肺がん",7,"女性乳房がん",9,"子宮頸部がん",5),FALSE) -> 胃A18 | W38: =IF(NOT($C$2="胃"),"NA", IFERROR(TEXT(HLOOKUP(VLOOKUP($T38,INDEXTBL!$C$1:$N$1344,10,FALSE),DATA!$C$2:$BFP$14,8,FALSE),"0.00")&"%","NA")) -> 3.33% | X38: =IF(NOT($C$2="胃"),"NA", IFERROR(TEXT(HLOOKUP(VLOOKUP($T38,INDEXTBL!$C$1:$N$1344,10,FALSE),DATA!$C$2:$BFP$14,7,FALSE),"0.00")&"%","NA")) -> 3.19% | Y38: =IF(NOT($C$2="胃"),"NA", IFERROR(TEXT(_xlfn.AGGREGATE(4,7,OFFSET(DATA!$A$1,14,MATCH(VLOOKUP($T38,INDEXTBL!$C$1:$N$1344,10,FALSE),DATA!$A$2:$BFP$2,0)-1,47,1)),"0.00")&"%" &" （"& Z38 & "）","NA")) -> 10.53% （高知県） | Z38: =INDEX(DATA!$C$15:$C$61,MATCH(_xlfn.AGGREGATE(4,7,OFFSET(DATA!$A$1,14,MATCH(VLOOKUP($T38,INDEXTBL!$C$1:$N$1344,10,FALSE),DATA!$A$2:$BFP$2,0)-1,47,1)),OFFSET(DATA!$A$1,14,MATCH(VLOOKUP($T38,INDEXTBL!$C$1:$N$1344,10,FALSE),DATA!$A$2:$BFP$2,0)-1,47,1),0)) -> 高知県
T39: 検B-020113 | U39: =IF(OR($C$2="女性乳房",$C$2="子宮頸部"),"-",$B$2 & VLOOKUP(T39,INDEXTBL!$C$1:$N$1344,3,FALSE)) -> 胃がん検診 感度（男）（％） | V39: =VLOOKUP(T39,INDEXTBL!$C$1:$N$1344,_xlfn.SWITCH($B$2,"胃がん",8,"大腸がん",6,"肺がん",7,"女性乳房がん",9,"子宮頸部がん",5),FALSE) -> 0 | W39: =IFERROR(HLOOKUP(VLOOKUP($T39,INDEXTBL!$C$1:$N$1344,$C$3,FALSE),DATA!$C$2:$BFP$14,8,FALSE),"NA") -> NA | X39: =IFERROR(HLOOKUP(VLOOKUP($T39,INDEXTBL!$C$1:$N$1344,$C$3,FALSE),DATA!$C$2:$BFP$14,7,FALSE),"NA") -> NA | Y39: =IFERROR(TEXT(_xlfn.AGGREGATE(4,7,OFFSET(DATA!$A$1,14,MATCH(VLOOKUP($T39,INDEXTBL!$C$1:$N$1344,$C$3,FALSE),DATA!$A$2:$BFP$2,0)-1,47,1)),"0.0")&"%" &" （"& Z39 & "）","NA") -> NA | Z39: =INDEX(DATA!$C$15:$C$61,MATCH(_xlfn.AGGREGATE(4,7,OFFSET(DATA!$A$1,14,MATCH(VLOOKUP($T39,INDEXTBL!$C$1:$N$1344,$C$3,FALSE),DATA!$A$2:$BFP$2,0)-1,47,1)),OFFSET(DATA!$A$1,14,MATCH(VLOOKUP($T39,INDEXTBL!$C$1:$N$1344,$C$3,FALSE),DATA!$A$2:$BFP$2,0)-1,47,1),0)) -> 
T40: 検B-020114 | U40: =$B$2 & VLOOKUP(T40,INDEXTBL!$C$1:$N$1344,3,FALSE) -> 胃がん検診 感度（女）（％） | V40: =VLOOKUP(T40,INDEXTBL!$C$1:$N$1344,_xlfn.SWITCH($B$2,"胃がん",8,"大腸がん",6,"肺がん",7,"女性乳房がん",9,"子宮頸部がん",5),FALSE) -> 0 | W40: =IFERROR(HLOOKUP(VLOOKUP($T40,INDEXTBL!$C$1:$N$1344,$C$3,FALSE),DATA!$C$2:$BFP$14,8,FALSE),"NA") -> NA | X40: =IFERROR(HLOOKUP(VLOOKUP($T40,INDEXTBL!$C$1:$N$1344,$C$3,FALSE),DATA!$C$2:$BFP$14,7,FALSE),"NA") -> NA | Y40: =IFERROR(TEXT(_xlfn.AGGREGATE(4,7,OFFSET(DATA!$A$1,14,MATCH(VLOOKUP($T40,INDEXTBL!$C$1:$N$1344,$C$3,FALSE),DATA!$A$2:$BFP$2,0)-1,47,1)),"0.0")&"%" &" （"& Z40 & "）","NA") -> NA | Z40: =INDEX(DATA!$C$15:$C$61,MATCH(_xlfn.AGGREGATE(4,7,OFFSET(DATA!$A$1,14,MATCH(VLOOKUP($T40,INDEXTBL!$C$1:$N$1344,$C$3,FALSE),DATA!$A$2:$BFP$2,0)-1,47,1)),OFFSET(DATA!$A$1,14,MATCH(VLOOKUP($T40,INDEXTBL!$C$1:$N$1344,$C$3,FALSE),DATA!$A$2:$BFP$2,0)-1,47,1),0)) -> 
T41: 検B-020115 | U41: =IF(OR($C$2="女性乳房",$C$2="子宮頸部"),"-",$B$2 & VLOOKUP(T41,INDEXTBL!$C$1:$N$1344,3,FALSE)) -> 胃がん検診 特異度（男）（％） | V41: =VLOOKUP(T41,INDEXTBL!$C$1:$N$1344,_xlfn.SWITCH($B$2,"胃がん",8,"大腸がん",6,"肺がん",7,"女性乳房がん",9,"子宮頸部がん",5),FALSE) -> 0 | W41: =IFERROR(HLOOKUP(VLOOKUP($T41,INDEXTBL!$C$1:$N$1344,$C$3,FALSE),DATA!$C$2:$BFP$14,8,FALSE),"NA") -> NA | X41: =IFERROR(HLOOKUP(VLOOKUP($T41,INDEXTBL!$C$1:$N$1344,$C$3,FALSE),DATA!$C$2:$BFP$14,7,FALSE),"NA") -> NA | Y41: =IFERROR(TEXT(_xlfn.AGGREGATE(4,7,OFFSET(DATA!$A$1,14,MATCH(VLOOKUP($T41,INDEXTBL!$C$1:$N$1344,$C$3,FALSE),DATA!$A$2:$BFP$2,0)-1,47,1)),"0.0")&"%" &" （"& Z41 & "）","NA") -> NA | Z41: =INDEX(DATA!$C$15:$C$61,MATCH(_xlfn.AGGREGATE(4,7,OFFSET(DATA!$A$1,14,MATCH(VLOOKUP($T41,INDEXTBL!$C$1:$N$1344,$C$3,FALSE),DATA!$A$2:$BFP$2,0)-1,47,1)),OFFSET(DATA!$A$1,14,MATCH(VLOOKUP($T41,INDEXTBL!$C$1:$N$1344,$C$3,FALSE),DATA!$A$2:$BFP$2,0)-1,47,1),0)) -> 
T42: 検B-020116 | U42: =$B$2 & VLOOKUP(T42,INDEXTBL!$C$1:$N$1344,3,FALSE) -> 胃がん検診 特異度（女）（％） | V42: =VLOOKUP(T42,INDEXTBL!$C$1:$N$1344,_xlfn.SWITCH($B$2,"胃がん",8,"大腸がん",6,"肺がん",7,"女性乳房がん",9,"子宮頸部がん",5),FALSE) -> 0 | W42: =IFERROR(HLOOKUP(VLOOKUP($T42,INDEXTBL!$C$1:$N$1344,$C$3,FALSE),DATA!$C$2:$BFP$14,8,FALSE),"NA") -> NA | X42: =IFERROR(HLOOKUP(VLOOKUP($T42,INDEXTBL!$C$1:$N$1344,$C$3,FALSE),DATA!$C$2:$BFP$14,7,FALSE),"NA") -> NA | Y42: =IFERROR(TEXT(_xlfn.AGGREGATE(4,7,OFFSET(DATA!$A$1,14,MATCH(VLOOKUP($T42,INDEXTBL!$C$1:$N$1344,$C$3,FALSE),DATA!$A$2:$BFP$2,0)-1,47,1)),"0.0")&"%" &" （"& Z42 & "）","NA") -> NA | Z42: =INDEX(DATA!$C$15:$C$61,MATCH(_xlfn.AGGREGATE(4,7,OFFSET(DATA!$A$1,14,MATCH(VLOOKUP($T42,INDEXTBL!$C$1:$N$1344,$C$3,FALSE),DATA!$A$2:$BFP$2,0)-1,47,1)),OFFSET(DATA!$A$1,14,MATCH(VLOOKUP($T42,INDEXTBL!$C$1:$N$1344,$C$3,FALSE),DATA!$A$2:$BFP$2,0)-1,47,1),0)) -> 
T43: 検B-020117 | U43: =IF(OR($C$2="女性乳房",$C$2="子宮頸部"),$B$2 & " " & VLOOKUP(T43,INDEXTBL!$C$1:$N$1344,3,FALSE),"-") -> - | V43: =VLOOKUP(T43,INDEXTBL!$C$1:$N$1344,_xlfn.SWITCH($B$2,"胃がん",8,"大腸がん",6,"肺がん",7,"女性乳房がん",9,"子宮頸部がん",5),FALSE) -> 0 | W43: =IFERROR(TEXT(HLOOKUP(VLOOKUP($T43,INDEXTBL!$C$1:$N$1344,$C$3,FALSE),DATA!$C$2:$BCV$14,8,FALSE),"0.0")&"%","NA") -> NA | X43: =IFERROR(HLOOKUP(VLOOKUP($T43,INDEXTBL!$C$1:$N$1344,$C$3,FALSE),DATA!$C$2:$BCV$14,7,FALSE),"NA") -> NA | Y43: =IFERROR(TEXT(_xlfn.AGGREGATE(4,7,OFFSET(DATA!$A$1,14,MATCH(VLOOKUP($T43,INDEXTBL!$C$1:$N$1344,$C$3,FALSE),DATA!$A$2:$BCV$2,0)-1,47,1)),"0.0")&"%" &" （"& Z43 & "）","NA") -> NA | Z43: =INDEX(DATA!$C$15:$C$61,MATCH(_xlfn.AGGREGATE(4,7,OFFSET(DATA!$A$1,14,MATCH(VLOOKUP($T43,INDEXTBL!$C$1:$N$1344,$C$3,FALSE),DATA!$A$2:$BCV$2,0)-1,47,1)),OFFSET(DATA!$A$1,14,MATCH(VLOOKUP($T43,INDEXTBL!$C$1:$N$1344,$C$3,FALSE),DATA!$A$2:$BCV$2,0)-1,47,1),0)) -> 
T44: 検B-020118 | U44: =IF($C$2="子宮頸部",$B$2 & " " & VLOOKUP(T44,INDEXTBL!$C$1:$N$1344,3,FALSE),"-") -> - | V44: =VLOOKUP(T44,INDEXTBL!$C$1:$N$1344,_xlfn.SWITCH($B$2,"胃がん",8,"大腸がん",6,"肺がん",7,"女性乳房がん",9,"子宮頸部がん",5),FALSE) -> 0 | W44: =IFERROR(TEXT(HLOOKUP(VLOOKUP($T44,INDEXTBL!$C$1:$N$1344,$C$3,FALSE),DATA!$C$2:$BCV$14,8,FALSE),"0.00")&"%","NA") -> NA | X44: =IFERROR(TEXT(HLOOKUP(VLOOKUP($T44,INDEXTBL!$C$1:$N$1344,$C$3,FALSE),DATA!$C$2:$BCV$14,7,FALSE),"0.00")&"%","NA") -> NA | Y44: =IFERROR(TEXT(_xlfn.AGGREGATE(4,7,OFFSET(DATA!$A$1,14,MATCH(VLOOKUP($T44,INDEXTBL!$C$1:$N$1344,$C$3,FALSE),DATA!$A$2:$BCV$2,0)-1,47,1)),"0.00")&"%" &" （"& Z44 & "）","NA") -> NA | Z44: =INDEX(DATA!$C$15:$C$61,MATCH(_xlfn.AGGREGATE(4,7,OFFSET(DATA!$A$1,14,MATCH(VLOOKUP($T44,INDEXTBL!$C$1:$N$1344,$C$3,FALSE),DATA!$A$2:$BCV$2,0)-1,47,1)),OFFSET(DATA!$A$1,14,MATCH(VLOOKUP($T44,INDEXTBL!$C$1:$N$1344,$C$3,FALSE),DATA!$A$2:$BCV$2,0)-1,47,1),0)) -> 
E46: ③受診率対策について
E47: 検D-0301 | I47: =VLOOKUP(E47,INDEXTBL!$A$1:$N$1344,2,FALSE) -> 受診率向上に向けて、がん検診受診率をより正確かつ精緻に、また、個人単位で把握することができるように検討する | K47: 沖縄県 | L47: 全国 | M47: 最良値 （都道府県） | Q47: 検B-0301 | U47: =VLOOKUP(Q47,INDEXTBL!$A$1:$N$1344,2,FALSE) -> 科学的根拠に基づく受診勧奨を行い、検診受診率の増加ができている | W47: 沖縄県 | X47: 全国 | Y47: 最良値 （都道府県）
H48: 検D-030101 | I48: =VLOOKUP(H48,INDEXTBL!$C$1:$N$1344,3,FALSE) -> 検討を行っている市町村の割合（％） | J48: =VLOOKUP(H48,INDEXTBL!$C$1:$N$1344,5,FALSE) -> EX202 | K48: =IFERROR(TEXT(HLOOKUP(VLOOKUP($H48,INDEXTBL!$C$1:$N$1344,5,FALSE),DATA!$C$2:$DEU$14,8,FALSE)*1,"0.0")&"%","NA") -> 34.1% | L48: =IFERROR(TEXT(HLOOKUP(VLOOKUP($H48,INDEXTBL!$C$1:$N$1344,5,FALSE),DATA!$C$2:$DEU$14,7,FALSE)*1,"0.0") &"%","NA") -> NA | M48: =IFERROR(HLOOKUP(VLOOKUP($H48,INDEXTBL!$C$1:$N$1344,$C$3,FALSE),DATA!$C$2:$BCV$14,10,FALSE),"NA") -> NA | R48: =IF(OR($C$2="女性乳房",$C$2="子宮頸部"),"","グラフ") -> グラフ | T48: 検B-030101 | U48: =IF(OR($C$2="女性乳房",$C$2="子宮頸部"),"-", $B$2 & " " & VLOOKUP(T48,INDEXTBL!$C$1:$N$1344,3,FALSE)) -> 胃がん 検診受診率（国民生活基礎調査）（男）（％） | V48: =VLOOKUP(T48,INDEXTBL!$C$1:$N$1344,_xlfn.SWITCH($B$2,"胃がん",8,"大腸がん",6,"肺がん",7,"女性乳房がん",9,"子宮頸部がん",5),FALSE) -> 胃64 | W48: =IFERROR(TEXT(HLOOKUP(VLOOKUP($T48,INDEXTBL!$C$1:$N$1344,$C$3,FALSE),DATA!$C$2:$BCV$14,8,FALSE),"0.0")&"%","NA") -> 49.5% | X48: =IFERROR(TEXT(HLOOKUP(VLOOKUP($T48,INDEXTBL!$C$1:$N$1344,$C$3,FALSE),DATA!$C$2:$BCV$14,7,FALSE),"0.0")&"%","NA") -> 53.7% | Y48: =IFERROR(TEXT(_xlfn.AGGREGATE(4,7,OFFSET(DATA!$A$1,14,MATCH(VLOOKUP($T48,INDEXTBL!$C$1:$N$1344,$C$3,FALSE),DATA!$A$2:$BCV$2,0)-1,47,1)),"0.0")&"%" &" （"& Z48 & "）","NA") -> 73.6% （山形県） | Z48: =INDEX(DATA!$C$15:$C$61,MATCH(_xlfn.AGGREGATE(4,7,OFFSET(DATA!$A$1,14,MATCH(VLOOKUP($T48,INDEXTBL!$C$1:$N$1344,$C$3,FALSE),DATA!$A$2:$BCV$2,0)-1,47,1)),OFFSET(DATA!$A$1,14,MATCH(VLOOKUP($T48,INDEXTBL!$C$1:$N$1344,$C$3,FALSE),DATA!$A$2:$BCV$2,0)-1,47,1),0)) -> 山形県
E49: 検D-0302 | I49: =VLOOKUP(E49,INDEXTBL!$A$1:$N$1344,2,FALSE) -> 市町村及び県が連携して、より科学的かつ効率的な受診勧奨策（コール・リコールなど）を推進し検診受診率を増加する | K49: 沖縄県 | L49: 全国 | M49: 最良値 （都道府県） | R49: グラフ | T49: 検B-030102 | U49: =$B$2 & " " & VLOOKUP(T49,INDEXTBL!$C$1:$N$1344,3,FALSE) -> 胃がん 検診受診率（国民生活基礎調査）（女）（％） | V49: =VLOOKUP(T49,INDEXTBL!$C$1:$N$1344,_xlfn.SWITCH($B$2,"胃がん",8,"大腸がん",6,"肺がん",7,"女性乳房がん",9,"子宮頸部がん",5),FALSE) -> 胃65 | W49: =IFERROR(TEXT(HLOOKUP(VLOOKUP($T49,INDEXTBL!$C$1:$N$1344,$C$3,FALSE),DATA!$C$2:$BCV$14,8,FALSE),"0.0")&"%","NA") -> 45.7% | X49: =IFERROR(TEXT(HLOOKUP(VLOOKUP($T49,INDEXTBL!$C$1:$N$1344,$C$3,FALSE),DATA!$C$2:$BCV$14,7,FALSE),"0.0")&"%","NA") -> 43.5% | Y49: =IFERROR(TEXT(_xlfn.AGGREGATE(4,7,OFFSET(DATA!$A$1,14,MATCH(VLOOKUP($T49,INDEXTBL!$C$1:$N$1344,$C$3,FALSE),DATA!$A$2:$BCV$2,0)-1,47,1)),"0.0")&"%" &" （"& Z49 & "）","NA") -> 67.3% （山形県） | Z49: =INDEX(DATA!$C$15:$C$61,MATCH(_xlfn.AGGREGATE(4,7,OFFSET(DATA!$A$1,14,MATCH(VLOOKUP($T49,INDEXTBL!$C$1:$N$1344,$C$3,FALSE),DATA!$A$2:$BCV$2,0)-1,47,1)),OFFSET(DATA!$A$1,14,MATCH(VLOOKUP($T49,INDEXTBL!$C$1:$N$1344,$C$3,FALSE),DATA!$A$2:$BCV$2,0)-1,47,1),0)) -> 山形県
F50: グラフ | H50: 検D-030201 | I50: =$B$2 & " " & VLOOKUP(H50,INDEXTBL!$C$1:$N$1344,3,FALSE) -> 胃がん 受診勧奨実施市町村の割合（％） | J50: =VLOOKUP(H50,INDEXTBL!$C$1:$N$1344,_xlfn.SWITCH($B$2,"胃がん",8,"大腸がん",6,"肺がん",7,"女性乳房がん",9,"子宮頸部がん",5),FALSE) -> 胃70 | K50: =IFERROR(TEXT(HLOOKUP(VLOOKUP($H50,INDEXTBL!$C$1:$N$1344,$C$3,FALSE),DATA!$C$2:$BCV$14,8,FALSE),"0.0")&"%","NA") -> 67.5% | L50: =IFERROR(TEXT(HLOOKUP(VLOOKUP($H50,INDEXTBL!$C$1:$N$1344,$C$3,FALSE),DATA!$C$2:$BCV$14,7,FALSE),"0.0")&"%","NA") -> 84.1% | M50: =IFERROR(TEXT(_xlfn.AGGREGATE(4,7,OFFSET(DATA!$A$1,14,MATCH(VLOOKUP($H50,INDEXTBL!$C$1:$N$1344,$C$3,FALSE),DATA!$A$2:$BCV$2,0)-1,47,1)),"0.0")&"%" &" （"& N50 & "）","NA") -> 100.0% （群馬県） | N50: =INDEX(DATA!$C$15:$C$61,MATCH(_xlfn.AGGREGATE(4,7,OFFSET(DATA!$A$1,14,MATCH(VLOOKUP($H50,INDEXTBL!$C$1:$N$1344,$C$3,FALSE),DATA!$A$2:$BFP$2,0)-1,47,1)),OFFSET(DATA!$A$1,14,MATCH(VLOOKUP($H50,INDEXTBL!$C$1:$N$1344,$C$3,FALSE),DATA!$A$2:$BFP$2,0)-1,47,1),0)) -> 群馬県
H51: 検D-030202 | I51: =$B$2 & " " & VLOOKUP(H51,INDEXTBL!$C$1:$N$1344,3,FALSE) -> 胃がん 検診受診率の目標値60%以上を達成している市町村の割合（％） | J51: =VLOOKUP(H51,INDEXTBL!$C$1:$N$1344,_xlfn.SWITCH($B$2,"胃がん",8,"大腸がん",6,"肺がん",7,"女性乳房がん",9,"子宮頸部がん",5),FALSE) -> EX胃9 | K51: =IFERROR(HLOOKUP(VLOOKUP($H51,INDEXTBL!$C$1:$N$1344,$C$3,FALSE),DATA!$C$2:$BCV$14,8,FALSE)&"%","NA") -> 0% | L51: =IFERROR(HLOOKUP(VLOOKUP($H51,INDEXTBL!$C$1:$N$1344,$C$3,FALSE),DATA!$C$2:$BCV$14,7,FALSE)&"%","NA") -> 0.06% | M51: =IFERROR(TEXT(_xlfn.AGGREGATE(4,7,OFFSET(DATA!$A$1,14,MATCH(VLOOKUP($H51,INDEXTBL!$C$1:$N$1344,$C$3,FALSE),DATA!$A$2:$BCV$2,0)-1,47,1)),"0.0")&"%" &" （"& N51 & "）","NA") -> NA | N51: =INDEX(DATA!$C$15:$C$61,MATCH(_xlfn.AGGREGATE(4,7,OFFSET(DATA!$A$1,14,MATCH(VLOOKUP($H51,INDEXTBL!$C$1:$N$1344,$C$3,FALSE),DATA!$A$2:$BFP$2,0)-1,47,1)),OFFSET(DATA!$A$1,14,MATCH(VLOOKUP($H51,INDEXTBL!$C$1:$N$1344,$C$3,FALSE),DATA!$A$2:$BFP$2,0)-1,47,1),0)) -> 
E52: 検D-0303 | I52: =VLOOKUP(E52,INDEXTBL!$A$1:$N$1344,2,FALSE) -> 市町村及び県は、受診者の立場に立ったがん検診を受診する上での利便性の向上を行う | K52: 沖縄県 | L52: 全国 | M52: 最良値 （都道府県）
F53: グラフ | H53: 検D-030301 | I53: =$B$2 & " " & VLOOKUP(H53,INDEXTBL!$C$1:$N$1344,3,FALSE) -> 胃がん 利便性の向上を行っている市町村の割合（％） | J53: =VLOOKUP(H53,INDEXTBL!$C$1:$N$1344,_xlfn.SWITCH($B$2,"胃がん",8,"大腸がん",6,"肺がん",7,"女性乳房がん",9,"子宮頸部がん",5),FALSE) -> EX胃10 | K53: =IFERROR(TEXT(HLOOKUP(VLOOKUP($H53,INDEXTBL!$C$1:$N$1344,$C$3,FALSE),DATA!$C$2:$BCV$14,8,FALSE),"0.0")&"%","NA") -> 84.2% | L53: =IFERROR(TEXT(HLOOKUP(VLOOKUP($H53,INDEXTBL!$C$1:$N$1344,$C$3,FALSE),DATA!$C$2:$BCV$14,7,FALSE),"0.0")&"%","NA") -> 86.1% | M53: =IFERROR(TEXT(_xlfn.AGGREGATE(4,7,OFFSET(DATA!$A$1,14,MATCH(VLOOKUP($H53,INDEXTBL!$C$1:$N$1344,$C$3,FALSE),DATA!$A$2:$BCV$2,0)-1,47,1)),"0.0")&"%" &" （"& N53 & "）","NA") -> 100.0% （岩手県） | N53: =INDEX(DATA!$C$15:$C$61,MATCH(_xlfn.AGGREGATE(4,7,OFFSET(DATA!$A$1,14,MATCH(VLOOKUP($H53,INDEXTBL!$C$1:$N$1344,$C$3,FALSE),DATA!$A$2:$BFP$2,0)-1,47,1)),OFFSET(DATA!$A$1,14,MATCH(VLOOKUP($H53,INDEXTBL!$C$1:$N$1344,$C$3,FALSE),DATA!$A$2:$BFP$2,0)-1,47,1),0)) -> 岩手県
E54: 検D-0304 | I54: =VLOOKUP(E54,INDEXTBL!$A$1:$N$1344,2,FALSE) -> 市町村は、啓発のための研修会等を行う | K54: 沖縄県 | L54: 全国 | M54: 最良値 （都道府県）
H55: 検D-030401 | I55: =VLOOKUP(H55,INDEXTBL!$C$1:$N$1344,3,FALSE) -> 普及啓発キャンペーン実施市町村数 | J55: =VLOOKUP(H55,INDEXTBL!$C$1:$N$1344,5,FALSE) -> EX045 | K55: =IFERROR(HLOOKUP(VLOOKUP($H55,INDEXTBL!$C$1:$N$1344,5,FALSE),DATA!$C$2:$BCV$14,8,FALSE),"NA") -> 22 | L55: =IFERROR(HLOOKUP(VLOOKUP($H55,INDEXTBL!$C$1:$N$1344,5,FALSE),DATA!$C$2:$BCV$14,7,FALSE),"NA") -> NA | M55: =IFERROR(_xlfn.AGGREGATE(5,7,OFFSET(DATA!$A$1,14,MATCH(VLOOKUP($H55,INDEXTBL!$C$1:$N$1344,5,FALSE),DATA!$A$2:$BCV$2,0)-1,47,1)) &" （"& N55 & "）","NA") -> NA | N55: =INDEX(DATA!$C$15:$C$61,MATCH(_xlfn.AGGREGATE(4,7,OFFSET(DATA!$A$1,14,MATCH(VLOOKUP($H55,INDEXTBL!$C$1:$N$1344,5,FALSE),DATA!$A$2:$BCV$2,0)-1,47,1)),OFFSET(DATA!$A$1,14,MATCH(VLOOKUP($H55,INDEXTBL!$C$1:$N$1344,5,FALSE),DATA!$A$2:$BCV$2,0)-1,47,1),0)) -> 
E56: 検D-0305 | I56: =VLOOKUP(E56,INDEXTBL!$A$1:$N$1344,2,FALSE) -> 県は、職域等におけるがん検診や人間ドックについて、実施状況の継続的な把握に務める | K56: 沖縄県 | L56: 全国 | M56: 最良値 （都道府県）
H57: 検D-030501 | I57: =$B$2 & " " & VLOOKUP(H57,INDEXTBL!$C$1:$N$1344,3,FALSE) -> 胃がん 指針に基づく検診の実施率（％） | J57: =VLOOKUP(H57,INDEXTBL!$C$1:$N$1344,_xlfn.SWITCH($B$2,"胃がん",8,"大腸がん",6,"肺がん",7,"女性乳房がん",9,"子宮頸部がん",5),FALSE) -> 0 | K57: =IFERROR(HLOOKUP(VLOOKUP($H57,INDEXTBL!$C$1:$N$1344,$C$3,FALSE),DATA!$C$2:$BCV$14,8,FALSE),"NA") -> NA | L57: =IFERROR(HLOOKUP(VLOOKUP($H57,INDEXTBL!$C$1:$N$1344,$C$3,FALSE),DATA!$C$2:$BCV$14,7,FALSE),"NA") -> NA | M57: =IFERROR(HLOOKUP(VLOOKUP($H57,INDEXTBL!$C$1:$N$1344,$C$3,FALSE),DATA!$C$2:$BCV$14,10,FALSE),"NA") -> NA

Sheet がん医療提供体制
E2: 番号 | H2: 個別施策 | Q2: 番号 | T2: 中間アウトカム | AC2: 番号 | AF2: 分野アウトカム
E4: ①医療提供全般
E5: 提D-0101 | I5: =VLOOKUP(E5,INDEXTBL!$A$1:$O$1344,2,FALSE) -> 沖縄県は、必要に応じたがん医療の集約化と機能分化と連携を行う | K5: 沖縄県 | L5: 全国 | M5: 最良値 （都道府県） | Q5: 提B-0101 | U5: =VLOOKUP(Q5,INDEXTBL!$A$1:$O$1344,2,FALSE) -> 患者が、「がん診療を行う医療施設」（「施設」）で、医療機関の機能分担を通じた質の高い安心な医療の効率的な提供が受けられている | W5: 沖縄県 | X5: 全国 | Y5: 最良値 （都道府県） | AC5: 提A-0101 | AG5: =VLOOKUP(AC5,INDEXTBL!$A$1:$O$1344,2,FALSE) -> がん診療の質の向上と均てん化が行われ、患者に提供できている | AI5: 沖縄県 | AJ5: 全国 | AK5: 最良値 （都道府県）
H6: 提D-010101 | I6: =VLOOKUP(H6,INDEXTBL!$C$1:$O$1344,3,FALSE) -> 第８次医療計画に基づいて協議を行い決定したがん種の数 | J6: =VLOOKUP($H6,INDEXTBL!$C$1:$O$1344,5,FALSE) -> EX051 | K6: =IFERROR(HLOOKUP(VLOOKUP($H6,INDEXTBL!$C$1:$O$1344,5,FALSE),DATA!$C$2:$CCV$14,8,FALSE),"NA") -> 12 | L6: =IFERROR(HLOOKUP(VLOOKUP($H6,INDEXTBL!$C$1:$O$1344,5,FALSE),DATA!$C$2:$CCV$14,7,FALSE),"NA") -> NA | M6: =IFERROR(TEXT(_xlfn.AGGREGATE(5,7,OFFSET(DATA!$A$1,14,MATCH(J6,DATA!$A$2:$CCV$2,0)-1,47,1))*100,"0.0")&"%" &" （"& $N6 & "）","NA") -> NA | N6: =INDEX(DATA!$C$15:$C$61,MATCH(_xlfn.AGGREGATE(5,7,OFFSET(DATA!$A$1,14,MATCH(J6,DATA!$A$2:$CCV$2,0)-1,47,1)),OFFSET(DATA!$A$1,14,MATCH(J6,DATA!$A$2:$CCV$2,0)-1,47,1),0)) ->  | T6: 提B-010101 | U6: =VLOOKUP(T6,INDEXTBL!$C$1:$O$1344,3,FALSE) -> （患者体験調査）担当した医師ががんについて十分な知識や経験を持っていたと思う患者の割合（％） | V6: =VLOOKUP(T6,INDEXTBL!$C$1:$O$1344,11,FALSE) -> 患A12 | W6: =IFERROR(TEXT(HLOOKUP(VLOOKUP($T6,INDEXTBL!$C$1:$O$1344,11,FALSE),DATA!$C$2:$AZH$14,8,FALSE),"0.0")&"%","NA") -> 琉大病院84.6%% | X6: =IFERROR(TEXT(HLOOKUP(VLOOKUP($T6,INDEXTBL!$C$1:$O$1344,11,FALSE),DATA!$C$2:$AZH$14,7,FALSE),"0.0")&"%","NA") -> 89.8% | Y6: =IFERROR(TEXT(_xlfn.AGGREGATE(4,7,OFFSET(DATA!$A$1,14,MATCH(VLOOKUP($T6,INDEXTBL!$C$1:$O$1344,11,FALSE),DATA!$A$2:$AZH$2,0)-1,47,1)),"0.0")&"%" &" （"& Z6 & "）","NA") -> NA | Z6: =INDEX(DATA!$C$15:$C$61,MATCH(_xlfn.AGGREGATE(4,7,OFFSET(DATA!$A$1,14,MATCH(VLOOKUP($T6,INDEXTBL!$C$1:$O$1344,11,FALSE),DATA!$A$2:$AZH$2,0)-1,47,1)),OFFSET(DATA!$A$1,14,MATCH(VLOOKUP($T6,INDEXTBL!$C$1:$O$1344,11,FALSE),DATA!$A$2:$AZH$2,0)-1,47,1),0)) ->  | AF6: 提A-010101 | AG6: =VLOOKUP(AF6,INDEXTBL!$C$1:$O$1344,3,FALSE) -> 全がん5年相対生存率（％） | AH6: =VLOOKUP(AF6,INDEXTBL!$C$1:$N$1344,5,FALSE) -> 全26 | AI6: =IFERROR(TEXT(HLOOKUP(AH6,DATA!$C$2:$CCV$14,8,FALSE),"0.0")&"%","NA") -> 60.7% | AJ6: =IFERROR(TEXT(HLOOKUP(AH6,DATA!$C$2:$CCV$14,7,FALSE),"0.0")&"%","NA") -> 66.2% | AK6: =IFERROR(TEXT(_xlfn.AGGREGATE(4,7,OFFSET(DATA!$A$1,14,MATCH(AH6,DATA!$A$2:$CCV$2,0)-1,47,1)),"0.0")&"%" &" （"& AL6 & "）","NA") -> 71.5% （東京都） | AL6: =INDEX(DATA!$C$15:$C$61,MATCH(_xlfn.AGGREGATE(4,7,OFFSET(DATA!$A$1,14,MATCH(AH6,DATA!$A$2:$CCV$2,0)-1,47,1)),OFFSET(DATA!$A$1,14,MATCH(AH6,DATA!$A$2:$CCV$2,0)-1,47,1),0)) -> 東京都
H7: 提D-010102 | I7: =VLOOKUP(H7,INDEXTBL!$C$1:$O$1344,3,FALSE) -> 第８次医療計画に基づいて協議を行い決定した「施設」の総数 | J7: =VLOOKUP($H7,INDEXTBL!$C$1:$O$1344,5,FALSE) -> EX208 | K7: =IFERROR(HLOOKUP(VLOOKUP($H7,INDEXTBL!$C$1:$O$1344,5,FALSE),DATA!$C$2:$CCV$14,8,FALSE),"NA") -> 25 | L7: =IFERROR(HLOOKUP(VLOOKUP($H7,INDEXTBL!$C$1:$O$1344,5,FALSE),DATA!$C$2:$CCV$14,7,FALSE),"NA") -> NA | M7: =IFERROR(TEXT(_xlfn.AGGREGATE(5,7,OFFSET(DATA!$A$1,14,MATCH(J7,DATA!$A$2:$CCV$2,0)-1,47,1))*100,"0.0")&"%" &" （"& $N7 & "）","NA") -> NA | N7: =INDEX(DATA!$C$15:$C$61,MATCH(_xlfn.AGGREGATE(5,7,OFFSET(DATA!$A$1,14,MATCH(J7,DATA!$A$2:$CCV$2,0)-1,47,1)),OFFSET(DATA!$A$1,14,MATCH(J7,DATA!$A$2:$CCV$2,0)-1,47,1),0)) ->  | R7: グラフ | T7: 提B-010102 | U7: =VLOOKUP(T7,INDEXTBL!$C$1:$O$1344,3,FALSE) -> （患者体験調査）治療決定までに医療スタッフから治療に関する十分な情報を得られた患者の割合（％） | V7: =VLOOKUP(T7,INDEXTBL!$C$1:$O$1344,11,FALSE) -> 患5 | W7: =IFERROR(TEXT(HLOOKUP(VLOOKUP($T7,INDEXTBL!$C$1:$O$1344,11,FALSE),DATA!$C$2:$AZH$14,8,FALSE),"0.0")&"%","NA") -> 琉大病院100.0% | X7: =IFERROR(TEXT(HLOOKUP(VLOOKUP($T7,INDEXTBL!$C$1:$O$1344,11,FALSE),DATA!$C$2:$AZH$14,7,FALSE),"0.0")&"%","NA") -> 89.5% | Y7: =IFERROR(TEXT(_xlfn.AGGREGATE(4,7,OFFSET(DATA!$A$1,14,MATCH(VLOOKUP($T7,INDEXTBL!$C$1:$O$1344,11,FALSE),DATA!$A$2:$AZH$2,0)-1,47,1)),"0.0")&"%" &" （"& Z7 & "）","NA") -> NA | Z7: =INDEX(DATA!$C$15:$C$61,MATCH(_xlfn.AGGREGATE(4,7,OFFSET(DATA!$A$1,14,MATCH(VLOOKUP($T7,INDEXTBL!$C$1:$O$1344,11,FALSE),DATA!$A$2:$AZH$2,0)-1,47,1)),OFFSET(DATA!$A$1,14,MATCH(VLOOKUP($T7,INDEXTBL!$C$1:$O$1344,11,FALSE),DATA!$A$2:$AZH$2,0)-1,47,1),0)) ->  | AF7: 提A-010102 | AG7: =VLOOKUP(AF7,INDEXTBL!$C$1:$O$1344,3,FALSE) -> 胃がん5年相対生存率（％） | AH7: =VLOOKUP(AF7,INDEXTBL!$C$1:$N$1344,8,FALSE) -> 胃23 | AI7: =IFERROR(TEXT(HLOOKUP(AH7,DATA!$C$2:$CCV$14,8,FALSE),"0.0")&"%","NA") -> 59.0% | AJ7: =IFERROR(TEXT(HLOOKUP(AH7,DATA!$C$2:$CCV$14,7,FALSE),"0.0")&"%","NA") -> 70.2% | AK7: =IFERROR(TEXT(_xlfn.AGGREGATE(4,7,OFFSET(DATA!$A$1,14,MATCH(AH7,DATA!$A$2:$CCV$2,0)-1,47,1)),"0.0")&"%" &" （"& AL7 & "）","NA") -> 78.1% （京都府） | AL7: =INDEX(DATA!$C$15:$C$61,MATCH(_xlfn.AGGREGATE(4,7,OFFSET(DATA!$A$1,14,MATCH(AH7,DATA!$A$2:$CCV$2,0)-1,47,1)),OFFSET(DATA!$A$1,14,MATCH(AH7,DATA!$A$2:$CCV$2,0)-1,47,1),0)) -> 京都府
E8: 提D-0102 | I8: =VLOOKUP(E8,INDEXTBL!$A$1:$O$1344,2,FALSE) -> 「施設」同士および「施設」とそれ以外の医療機関等の連携を行う | K8: 沖縄県 | L8: 全国 | M8: 最良値 （都道府県） | T8: 提B-010103 | U8: =VLOOKUP(T8,INDEXTBL!$C$1:$O$1344,3,FALSE) -> 「施設」における治療開始のカバー率（％） | W8: =IFERROR(TEXT(HLOOKUP(VLOOKUP($T8,INDEXTBL!$C$1:$O$1344,5,FALSE),DATA!$C$2:$CCV$14,8,FALSE),"0.0")&"%","NA") -> NA | X8: =IFERROR(TEXT(HLOOKUP(VLOOKUP($T8,INDEXTBL!$C$1:$O$1344,5,FALSE),DATA!$C$2:$CCV$14,7,FALSE),"0.0")&"%","NA") -> NA | Y8: =IFERROR(TEXT(_xlfn.AGGREGATE(4,7,OFFSET(DATA!$A$1,14,MATCH(VLOOKUP($T8,INDEXTBL!$C$1:$O$1344,5,FALSE),DATA!$A$2:$AZH$2,0)-1,47,1)),"0.0")&"%" &" （"& Z8 & "）","NA") -> NA | Z8: =INDEX(DATA!$C$15:$C$61,MATCH(_xlfn.AGGREGATE(4,7,OFFSET(DATA!$A$1,14,MATCH(VLOOKUP($T8,INDEXTBL!$C$1:$O$1344,5,FALSE),DATA!$A$2:$AZH$2,0)-1,47,1)),OFFSET(DATA!$A$1,14,MATCH(VLOOKUP($T8,INDEXTBL!$C$1:$O$1344,5,FALSE),DATA!$A$2:$AZH$2,0)-1,47,1),0)) ->  | AF8: 提A-010103 | AG8: =VLOOKUP(AF8,INDEXTBL!$C$1:$O$1344,3,FALSE) -> 大腸がん5年相対生存率（％） | AH8: =VLOOKUP(AF8,INDEXTBL!$C$1:$N$1344,6,FALSE) -> 大腸23 | AI8: =IFERROR(TEXT(HLOOKUP(AH8,DATA!$C$2:$CCV$14,8,FALSE),"0.0")&"%","NA") -> 63.3% | AJ8: =IFERROR(TEXT(HLOOKUP(AH8,DATA!$C$2:$CCV$14,7,FALSE),"0.0")&"%","NA") -> 70.9% | AK8: =IFERROR(TEXT(_xlfn.AGGREGATE(4,7,OFFSET(DATA!$A$1,14,MATCH(AH8,DATA!$A$2:$CCV$2,0)-1,47,1)),"0.0")&"%" &" （"& AL8 & "）","NA") -> 75.8% （東京都） | AL8: =INDEX(DATA!$C$15:$C$61,MATCH(_xlfn.AGGREGATE(4,7,OFFSET(DATA!$A$1,14,MATCH(AH8,DATA!$A$2:$CCV$2,0)-1,47,1)),OFFSET(DATA!$A$1,14,MATCH(AH8,DATA!$A$2:$CCV$2,0)-1,47,1),0)) -> 東京都
H9: 提D-010201 | I9: =VLOOKUP(H9,INDEXTBL!$C$1:$O$1344,3,FALSE) -> ※（検討中） | J9: =VLOOKUP($H9,INDEXTBL!$C$1:$O$1344,5,FALSE) -> 0 | K9: =IFERROR(HLOOKUP(VLOOKUP($H9,INDEXTBL!$C$1:$O$1344,5,FALSE),DATA!$C$2:$CCV$14,8,FALSE),"NA") -> NA | L9: =IFERROR(HLOOKUP(VLOOKUP($H9,INDEXTBL!$C$1:$O$1344,5,FALSE),DATA!$C$2:$CCV$14,7,FALSE),"NA") -> NA | M9: =IFERROR(HLOOKUP(VLOOKUP($H9,INDEXTBL!$C$1:$O$1344,5,FALSE),DATA!$C$2:$CCV$14,10,FALSE),"NA") -> NA | R9: グラフ | T9: 提B-010104 | U9: =VLOOKUP(T9,INDEXTBL!$C$1:$O$1344,3,FALSE) -> （NDB-SCR）がん患者指導管理料（医師と看護師の共同診療方針等を文書等で提供） 入院 | V9: =VLOOKUP(T9,INDEXTBL!$C$1:$O$1344,10,FALSE) -> N262 | W9: =IFERROR(TEXT(HLOOKUP(VLOOKUP($T9,INDEXTBL!$C$1:$O$1344,10,FALSE),DATA!$C$2:$AZH$14,8,FALSE),"0.0"),"NA") -> 127.3 | X9: =IFERROR(TEXT(HLOOKUP(VLOOKUP($T9,INDEXTBL!$C$1:$O$1344,10,FALSE),DATA!$C$2:$AZH$14,7,FALSE),"0.0"),"NA") -> 100.0 | Y9: =IFERROR(TEXT(_xlfn.AGGREGATE(4,7,OFFSET(DATA!$A$1,14,MATCH(VLOOKUP($T9,INDEXTBL!$C$1:$O$1344,10,FALSE),DATA!$A$2:$AZH$2,0)-1,47,1)),"0.0") &" （"& Z9 & "）","NA") -> 430.2 （大分県） | Z9: =INDEX(DATA!$C$15:$C$61,MATCH(_xlfn.AGGREGATE(4,7,OFFSET(DATA!$A$1,14,MATCH(VLOOKUP($T9,INDEXTBL!$C$1:$O$1344,10,FALSE),DATA!$A$2:$AZH$2,0)-1,47,1)),OFFSET(DATA!$A$1,14,MATCH(VLOOKUP($T9,INDEXTBL!$C$1:$O$1344,10,FALSE),DATA!$A$2:$AZH$2,0)-1,47,1),0)) -> 大分県 | AF9: 提A-010104 | AG9: =VLOOKUP(AF9,INDEXTBL!$C$1:$O$1344,3,FALSE) -> 肝細胞がん5年相対生存率（％） | AH9: =VLOOKUP(AF9,INDEXTBL!$C$1:$N$1344,5,FALSE) -> EX149 | AI9: =IFERROR(TEXT(HLOOKUP(AH9,DATA!$C$2:$CCV$14,8,FALSE),"0.0")&"%","NA") -> 37.1% | AJ9: =IFERROR(TEXT(HLOOKUP(AH9,DATA!$C$2:$CCV$14,7,FALSE),"0.0")&"%","NA") -> 45.1% | AK9: =IFERROR(TEXT(_xlfn.AGGREGATE(4,7,OFFSET(DATA!$A$1,14,MATCH(AH9,DATA!$A$2:$CCV$2,0)-1,47,1)),"0.0")&"%" &" （"& AL9 & "）","NA") -> 52.8% （大分県） | AL9: =INDEX(DATA!$C$15:$C$61,MATCH(_xlfn.AGGREGATE(4,7,OFFSET(DATA!$A$1,14,MATCH(AH9,DATA!$A$2:$CCV$2,0)-1,47,1)),OFFSET(DATA!$A$1,14,MATCH(AH9,DATA!$A$2:$CCV$2,0)-1,47,1),0)) -> 大分県
E10: 提D-0103 | I10: =VLOOKUP(E10,INDEXTBL!$A$1:$O$1344,2,FALSE) -> すべての医療機関において、患者に対するICを適切に実施する | K10: 沖縄県 | L10: 全国 | M10: 最良値 （都道府県） | R10: グラフ | T10: 提B-010105 | U10: =VLOOKUP(T10,INDEXTBL!$C$1:$O$1344,3,FALSE) -> （NDB-SCR）がん患者指導管理料（医師と看護師の共同診療方針等を文書等で提供） 外来 | V10: =VLOOKUP(T10,INDEXTBL!$C$1:$O$1344,10,FALSE) -> N263 | W10: =IFERROR(TEXT(HLOOKUP(VLOOKUP($T10,INDEXTBL!$C$1:$O$1344,10,FALSE),DATA!$C$2:$CCV$14,8,FALSE),"0.0"),"NA") -> 106.7 | X10: =IFERROR(TEXT(HLOOKUP(VLOOKUP($T10,INDEXTBL!$C$1:$O$1344,10,FALSE),DATA!$C$2:$CCV$14,7,FALSE),"0.0"),"NA") -> 100.0 | Y10: =IFERROR(TEXT(_xlfn.AGGREGATE(4,7,OFFSET(DATA!$A$1,14,MATCH(VLOOKUP($T10,INDEXTBL!$C$1:$O$1344,10,FALSE),DATA!$A$2:$AZH$2,0)-1,47,1)),"0.0") &" （"& Z10 & "）","NA") -> 261.7 （鳥取県） | Z10: =INDEX(DATA!$C$15:$C$61,MATCH(_xlfn.AGGREGATE(4,7,OFFSET(DATA!$A$1,14,MATCH(VLOOKUP($T10,INDEXTBL!$C$1:$O$1344,10,FALSE),DATA!$A$2:$AZH$2,0)-1,47,1)),OFFSET(DATA!$A$1,14,MATCH(VLOOKUP($T10,INDEXTBL!$C$1:$O$1344,10,FALSE),DATA!$A$2:$AZH$2,0)-1,47,1),0)) -> 鳥取県 | AF10: 提A-010105 | AG10: =VLOOKUP(AF10,INDEXTBL!$C$1:$O$1344,3,FALSE) -> 肝内胆管がん5年相対生存率（％） | AH10: =VLOOKUP(AF10,INDEXTBL!$C$1:$N$1344,5,FALSE) -> EX150 | AI10: =IFERROR(TEXT(HLOOKUP(AH10,DATA!$C$2:$CCV$14,8,FALSE),"0.0")&"%","NA") -> 13.5% | AJ10: =IFERROR(TEXT(HLOOKUP(AH10,DATA!$C$2:$CCV$14,7,FALSE),"0.0")&"%","NA") -> 21.1% | AK10: =IFERROR(TEXT(_xlfn.AGGREGATE(4,7,OFFSET(DATA!$A$1,14,MATCH(AH10,DATA!$A$2:$CCV$2,0)-1,47,1)),"0.0")&"%" &" （"& AL10 & "）","NA") -> 34.7% （広島県） | AL10: =INDEX(DATA!$C$15:$C$61,MATCH(_xlfn.AGGREGATE(4,7,OFFSET(DATA!$A$1,14,MATCH(AH10,DATA!$A$2:$CCV$2,0)-1,47,1)),OFFSET(DATA!$A$1,14,MATCH(AH10,DATA!$A$2:$CCV$2,0)-1,47,1),0)) -> 広島県
H11: 提D-010301 | I11: =VLOOKUP(H11,INDEXTBL!$C$1:$O$1344,3,FALSE) -> ※（検討中） | J11: =VLOOKUP($H11,INDEXTBL!$C$1:$O$1344,5,FALSE) -> 0 | K11: ="NA" -> NA | L11: ="NA" -> NA | M11: NA | R11: グラフ | T11: 提B-010106 | U11: =VLOOKUP(T11,INDEXTBL!$C$1:$O$1344,3,FALSE) -> （NDB-SCR）がん患者指導管理料（医師と看護師の共同診療方針等を文書等で提供） 入院＋外来 | V11: =VLOOKUP(T11,INDEXTBL!$C$1:$O$1344,10,FALSE) -> N264 | W11: =IFERROR(TEXT(HLOOKUP(VLOOKUP($T11,INDEXTBL!$C$1:$O$1344,10,FALSE),DATA!$C$2:$CCV$14,8,FALSE),"0.0"),"NA") -> 110.1 | X11: =IFERROR(TEXT(HLOOKUP(VLOOKUP($T11,INDEXTBL!$C$1:$O$1344,10,FALSE),DATA!$C$2:$CCV$14,7,FALSE),"0.0"),"NA") -> 100.0 | Y11: =IFERROR(TEXT(_xlfn.AGGREGATE(4,7,OFFSET(DATA!$A$1,14,MATCH(VLOOKUP($T11,INDEXTBL!$C$1:$O$1344,10,FALSE),DATA!$A$2:$AZH$2,0)-1,47,1)),"0.0") &" （"& Z11 & "）","NA") -> 251.7 （鳥取県） | Z11: =INDEX(DATA!$C$15:$C$61,MATCH(_xlfn.AGGREGATE(4,7,OFFSET(DATA!$A$1,14,MATCH(VLOOKUP($T11,INDEXTBL!$C$1:$O$1344,10,FALSE),DATA!$A$2:$AZH$2,0)-1,47,1)),OFFSET(DATA!$A$1,14,MATCH(VLOOKUP($T11,INDEXTBL!$C$1:$O$1344,10,FALSE),DATA!$A$2:$AZH$2,0)-1,47,1),0)) -> 鳥取県 | AF11: 提A-010106 | AG11: =VLOOKUP(AF11,INDEXTBL!$C$1:$O$1344,3,FALSE) -> 胆のうがん5年相対生存率（％） | AH11: =VLOOKUP(AF11,INDEXTBL!$C$1:$N$1344,5,FALSE) -> EX151 | AI11: =IFERROR(TEXT(HLOOKUP(AH11,DATA!$C$2:$CCV$14,8,FALSE),"0.0")&"%","NA") -> 47.4% | AJ11: =IFERROR(TEXT(HLOOKUP(AH11,DATA!$C$2:$CCV$14,7,FALSE),"0.0")&"%","NA") -> 27.2% | AK11: =IFERROR(TEXT(_xlfn.AGGREGATE(4,7,OFFSET(DATA!$A$1,14,MATCH(AH11,DATA!$A$2:$CCV$2,0)-1,47,1)),"0.0")&"%" &" （"& AL11 & "）","NA") -> 47.4% （沖縄県） | AL11: =INDEX(DATA!$C$15:$C$61,MATCH(_xlfn.AGGREGATE(4,7,OFFSET(DATA!$A$1,14,MATCH(AH11,DATA!$A$2:$CCV$2,0)-1,47,1)),OFFSET(DATA!$A$1,14,MATCH(AH11,DATA!$A$2:$CCV$2,0)-1,47,1),0)) -> 沖縄県
E12: 提D-0104 | I12: =VLOOKUP(E12,INDEXTBL!$A$1:$O$1344,2,FALSE) -> 「施設」では、患者に対するセカンドオピニオンの提示などを適切に実施する | K12: 沖縄県 | L12: 全国 | M12: 最良値 （都道府県） | R12: グラフ | T12: 提B-010107 | U12: =VLOOKUP(T12,INDEXTBL!$C$1:$O$1344,3,FALSE) -> （NDB-SCR）診療情報提供料(2) 入院 | V12: =VLOOKUP(T12,INDEXTBL!$C$1:$O$1344,10,FALSE) -> NA01 | W12: =IFERROR(TEXT(HLOOKUP(VLOOKUP($T12,INDEXTBL!$C$1:$O$1344,10,FALSE),DATA!$C$2:$AZH$14,8,FALSE),"0.0"),"NA") -> 85.5 | X12: =IFERROR(TEXT(HLOOKUP(VLOOKUP($T12,INDEXTBL!$C$1:$O$1344,10,FALSE),DATA!$C$2:$AZH$14,7,FALSE),"0.0"),"NA") -> 100.0 | Y12: =IFERROR(TEXT(_xlfn.AGGREGATE(4,7,OFFSET(DATA!$A$1,14,MATCH(VLOOKUP($T12,INDEXTBL!$C$1:$O$1344,10,FALSE),DATA!$A$2:$AZH$2,0)-1,47,1)),"0.0") &" （"& Z12 & "）","NA") -> 193.9 （東京都） | Z12: =INDEX(DATA!$C$15:$C$61,MATCH(_xlfn.AGGREGATE(4,7,OFFSET(DATA!$A$1,14,MATCH(VLOOKUP($T12,INDEXTBL!$C$1:$O$1344,10,FALSE),DATA!$A$2:$AZH$2,0)-1,47,1)),OFFSET(DATA!$A$1,14,MATCH(VLOOKUP($T12,INDEXTBL!$C$1:$O$1344,10,FALSE),DATA!$A$2:$AZH$2,0)-1,47,1),0)) -> 東京都 | AF12: 提A-010107 | AG12: =VLOOKUP(AF12,INDEXTBL!$C$1:$O$1344,3,FALSE) -> 膵がん5年相対生存率（％） | AH12: =VLOOKUP(AF12,INDEXTBL!$C$1:$N$1344,5,FALSE) -> EX152 | AI12: =IFERROR(TEXT(HLOOKUP(AH12,DATA!$C$2:$CCV$14,8,FALSE),"0.0")&"%","NA") -> 12.6% | AJ12: =IFERROR(TEXT(HLOOKUP(AH12,DATA!$C$2:$CCV$14,7,FALSE),"0.0")&"%","NA") -> 12.7% | AK12: =IFERROR(TEXT(_xlfn.AGGREGATE(4,7,OFFSET(DATA!$A$1,14,MATCH(AH12,DATA!$A$2:$CCV$2,0)-1,47,1)),"0.0")&"%" &" （"& AL12 & "）","NA") -> 23.1% （山梨県） | AL12: =INDEX(DATA!$C$15:$C$61,MATCH(_xlfn.AGGREGATE(4,7,OFFSET(DATA!$A$1,14,MATCH(AH12,DATA!$A$2:$CCV$2,0)-1,47,1)),OFFSET(DATA!$A$1,14,MATCH(AH12,DATA!$A$2:$CCV$2,0)-1,47,1),0)) -> 山梨県
H13: 提D-010401 | I13: =VLOOKUP(H13,INDEXTBL!$C$1:$O$1344,3,FALSE) -> 「施設」におけるセカンドオピニオンの数 | J13: =VLOOKUP($H13,INDEXTBL!$C$1:$O$1344,5,FALSE) -> 0 | K13: =IFERROR(HLOOKUP(VLOOKUP($H13,INDEXTBL!$C$1:$O$1344,5,FALSE),DATA!$C$2:$CCV$14,8,FALSE),"NA") -> NA | L13: =IFERROR(HLOOKUP(VLOOKUP($H13,INDEXTBL!$C$1:$O$1344,5,FALSE),DATA!$C$2:$CCV$14,7,FALSE),"NA") -> NA | M13: =IFERROR(HLOOKUP(VLOOKUP($H13,INDEXTBL!$C$1:$O$1344,5,FALSE),DATA!$C$2:$CCV$14,10,FALSE),"NA") -> NA | R13: グラフ | T13: 提B-010108 | U13: =VLOOKUP(T13,INDEXTBL!$C$1:$O$1344,3,FALSE) -> （NDB-SCR）診療情報提供料(2) 外来 | V13: =VLOOKUP(T13,INDEXTBL!$C$1:$O$1344,10,FALSE) -> NA02 | W13: =IFERROR(TEXT(HLOOKUP(VLOOKUP($T13,INDEXTBL!$C$1:$O$1344,10,FALSE),DATA!$C$2:$AZH$14,8,FALSE),"0.0"),"NA") -> 66.1 | X13: =IFERROR(TEXT(HLOOKUP(VLOOKUP($T13,INDEXTBL!$C$1:$O$1344,10,FALSE),DATA!$C$2:$AZH$14,7,FALSE),"0.0"),"NA") -> 100.0 | Y13: =IFERROR(TEXT(_xlfn.AGGREGATE(4,7,OFFSET(DATA!$A$1,14,MATCH(VLOOKUP($T13,INDEXTBL!$C$1:$O$1344,10,FALSE),DATA!$A$2:$AZH$2,0)-1,47,1)),"0.0") &" （"& Z13 & "）","NA") -> 244.0 （東京都） | Z13: =INDEX(DATA!$C$15:$C$61,MATCH(_xlfn.AGGREGATE(4,7,OFFSET(DATA!$A$1,14,MATCH(VLOOKUP($T13,INDEXTBL!$C$1:$O$1344,10,FALSE),DATA!$A$2:$AZH$2,0)-1,47,1)),OFFSET(DATA!$A$1,14,MATCH(VLOOKUP($T13,INDEXTBL!$C$1:$O$1344,10,FALSE),DATA!$A$2:$AZH$2,0)-1,47,1),0)) -> 東京都 | AF13: 提A-010108 | AG13: =VLOOKUP(AF13,INDEXTBL!$C$1:$O$1344,3,FALSE) -> 小細胞肺がん5年相対生存率（％） | AH13: =VLOOKUP(AF13,INDEXTBL!$C$1:$N$1344,7,FALSE) -> 肺23 | AI13: =IFERROR(TEXT(HLOOKUP(AH13,DATA!$C$2:$CCV$14,8,FALSE),"0.0")&"%","NA") -> 3.9% | AJ13: =IFERROR(TEXT(HLOOKUP(AH13,DATA!$C$2:$CCV$14,7,FALSE),"0.0")&"%","NA") -> 11.5% | AK13: =IFERROR(TEXT(_xlfn.AGGREGATE(4,7,OFFSET(DATA!$A$1,14,MATCH(AH13,DATA!$A$2:$CCV$2,0)-1,47,1)),"0.0")&"%" &" （"& AL13 & "）","NA") -> 19.4% （福井県） | AL13: =INDEX(DATA!$C$15:$C$61,MATCH(_xlfn.AGGREGATE(4,7,OFFSET(DATA!$A$1,14,MATCH(AH13,DATA!$A$2:$CCV$2,0)-1,47,1)),OFFSET(DATA!$A$1,14,MATCH(AH13,DATA!$A$2:$CCV$2,0)-1,47,1),0)) -> 福井県
E14: 提D-0105 | I14: =VLOOKUP(E14,INDEXTBL!$A$1:$O$1344,2,FALSE) -> すべての医療機関において、患者に対するACPを適切に実施する | K14: 沖縄県 | L14: 全国 | M14: 最良値 （都道府県） | R14: グラフ | T14: 提B-010109 | U14: =VLOOKUP(T14,INDEXTBL!$C$1:$O$1344,3,FALSE) -> （NDB-SCR）診療情報提供料(2) 入院＋外来 | V14: =VLOOKUP(T14,INDEXTBL!$C$1:$O$1344,10,FALSE) -> NA03 | W14: =IFERROR(TEXT(HLOOKUP(VLOOKUP($T14,INDEXTBL!$C$1:$O$1344,10,FALSE),DATA!$C$2:$AZH$14,8,FALSE),"0.0"),"NA") -> 67.2 | X14: =IFERROR(TEXT(HLOOKUP(VLOOKUP($T14,INDEXTBL!$C$1:$O$1344,10,FALSE),DATA!$C$2:$AZH$14,7,FALSE),"0.0"),"NA") -> 100.0 | Y14: =IFERROR(TEXT(_xlfn.AGGREGATE(4,7,OFFSET(DATA!$A$1,14,MATCH(VLOOKUP($T14,INDEXTBL!$C$1:$O$1344,10,FALSE),DATA!$A$2:$AZH$2,0)-1,47,1)),"0.0") &" （"& Z14 & "）","NA") -> 241.3 （東京都） | Z14: =INDEX(DATA!$C$15:$C$61,MATCH(_xlfn.AGGREGATE(4,7,OFFSET(DATA!$A$1,14,MATCH(VLOOKUP($T14,INDEXTBL!$C$1:$O$1344,10,FALSE),DATA!$A$2:$AZH$2,0)-1,47,1)),OFFSET(DATA!$A$1,14,MATCH(VLOOKUP($T14,INDEXTBL!$C$1:$O$1344,10,FALSE),DATA!$A$2:$AZH$2,0)-1,47,1),0)) -> 東京都 | AF14: 提A-010109 | AG14: =VLOOKUP(AF14,INDEXTBL!$C$1:$O$1344,3,FALSE) -> 非小細胞肺がん5年相対生存率（％） | AH14: =VLOOKUP(AF14,INDEXTBL!$C$1:$N$1344,7,FALSE) -> 肺24 | AI14: =IFERROR(TEXT(HLOOKUP(AH14,DATA!$C$2:$CCV$14,8,FALSE),"0.0")&"%","NA") -> 34.7% | AJ14: =IFERROR(TEXT(HLOOKUP(AH14,DATA!$C$2:$CCV$14,7,FALSE),"0.0")&"%","NA") -> 47.5% | AK14: =IFERROR(TEXT(_xlfn.AGGREGATE(4,7,OFFSET(DATA!$A$1,14,MATCH(AH14,DATA!$A$2:$CCV$2,0)-1,47,1)),"0.0")&"%" &" （"& AL14 & "）","NA") -> 57.9% （宮崎県） | AL14: =INDEX(DATA!$C$15:$C$61,MATCH(_xlfn.AGGREGATE(4,7,OFFSET(DATA!$A$1,14,MATCH(AH14,DATA!$A$2:$CCV$2,0)-1,47,1)),OFFSET(DATA!$A$1,14,MATCH(AH14,DATA!$A$2:$CCV$2,0)-1,47,1),0)) -> 宮崎県
H15: 提D-010501 | I15: =VLOOKUP(H15,INDEXTBL!$C$1:$O$1344,3,FALSE) -> ACPに関する院内のマニュアル等を策定している「施設」の割合（％） | J15: =VLOOKUP($H15,INDEXTBL!$C$1:$O$1344,5,FALSE) -> EX209 | K15: =IFERROR(TEXT(HLOOKUP(J15,DATA!$C$2:$CCV$14,8,FALSE),"0.0")&"%","NA") -> 40.0% | L15: =IFERROR(HLOOKUP(VLOOKUP($H15,INDEXTBL!$C$1:$O$1344,5,FALSE),DATA!$C$2:$CCV$14,7,FALSE),"NA") -> NA | M15: =IFERROR(TEXT(_xlfn.AGGREGATE(5,7,OFFSET(DATA!$A$1,14,MATCH(J15,DATA!$A$2:$CCV$2,0)-1,47,1))*100,"0.0")&"%" &" （"& $N15 & "）","NA") -> NA | N15: =INDEX(DATA!$C$15:$C$61,MATCH(_xlfn.AGGREGATE(5,7,OFFSET(DATA!$A$1,14,MATCH(J15,DATA!$A$2:$CCV$2,0)-1,47,1)),OFFSET(DATA!$A$1,14,MATCH(J15,DATA!$A$2:$CCV$2,0)-1,47,1),0)) ->  | T15: 提B-010110 | U15: =VLOOKUP(T15,INDEXTBL!$C$1:$O$1344,3,FALSE) -> （医療者調査）治療方針（告知等）の説明の際に、医師以外の職種も参加している割合が75%以上であると回答した人の割合（％） | V15: =VLOOKUP(T15,INDEXTBL!$C$1:$O$1344,13,FALSE) -> 医13 | W15: =IFERROR(TEXT(HLOOKUP(VLOOKUP($T15,INDEXTBL!$C$1:$O$1344,13,FALSE),DATA!$C$2:$AZH$14,8,FALSE),"0.0")&"%","NA") -> 68.7% | X15: =IFERROR(TEXT(HLOOKUP(VLOOKUP($T15,INDEXTBL!$C$1:$O$1344,13,FALSE),DATA!$C$2:$AZH$14,7,FALSE)*100,"0.0")&"%","NA") -> NA | Y15: =IFERROR(TEXT(_xlfn.AGGREGATE(4,7,OFFSET(DATA!$A$1,14,MATCH(VLOOKUP($T15,INDEXTBL!$C$1:$O$1344,13,FALSE),DATA!$A$2:$AZH$2,0)-1,47,1)),"0.0") &" （"& Z15 & "）","NA") -> NA | Z15: =INDEX(DATA!$C$15:$C$61,MATCH(_xlfn.AGGREGATE(4,7,OFFSET(DATA!$A$1,14,MATCH(VLOOKUP($T15,INDEXTBL!$C$1:$O$1344,13,FALSE),DATA!$A$2:$AZH$2,0)-1,47,1)),OFFSET(DATA!$A$1,14,MATCH(VLOOKUP($T15,INDEXTBL!$C$1:$O$1344,13,FALSE),DATA!$A$2:$AZH$2,0)-1,47,1),0)) ->  | AF15: 提A-010110 | AG15: =VLOOKUP(AF15,INDEXTBL!$C$1:$O$1344,3,FALSE) -> 女性乳房がん5年相対生存率（％） | AH15: =VLOOKUP(AF15,INDEXTBL!$C$1:$N$1344,9,FALSE) -> 乳16 | AI15: =IFERROR(TEXT(HLOOKUP(AH15,DATA!$C$2:$CCV$14,8,FALSE),"0.0")&"%","NA") -> 89.3% | AJ15: =IFERROR(TEXT(HLOOKUP(AH15,DATA!$C$2:$CCV$14,7,FALSE),"0.0")&"%","NA") -> 91.6% | AK15: =IFERROR(TEXT(_xlfn.AGGREGATE(4,7,OFFSET(DATA!$A$1,14,MATCH(AH15,DATA!$A$2:$CCV$2,0)-1,47,1)),"0.0")&"%" &" （"& AL15 & "）","NA") -> 94.6% （三重県） | AL15: =INDEX(DATA!$C$15:$C$61,MATCH(_xlfn.AGGREGATE(4,7,OFFSET(DATA!$A$1,14,MATCH(AH15,DATA!$A$2:$CCV$2,0)-1,47,1)),OFFSET(DATA!$A$1,14,MATCH(AH15,DATA!$A$2:$CCV$2,0)-1,47,1),0)) -> 三重県
E16: 提D-0106 | I16: =VLOOKUP(E16,INDEXTBL!$A$1:$O$1344,2,FALSE) -> 全県および各二次医療圏におけるBCPについて整備する | K16: 沖縄県 | L16: 全国 | M16: 最良値 （都道府県） | T16: 提B-010111 | U16: =VLOOKUP(T16,INDEXTBL!$C$1:$O$1344,3,FALSE) -> （医療者調査）沖縄県内において、がん医療の適切な集約化と機能分化が十分にできていると思う人の割合（％） | V16: =VLOOKUP(T16,INDEXTBL!$C$1:$O$1344,13,FALSE) -> 0 | W16: =IFERROR(HLOOKUP(VLOOKUP($T16,INDEXTBL!$C$1:$O$1344,13,FALSE),DATA!$C$2:$BCV$14,8,FALSE),"NA") -> NA | X16: =IFERROR(HLOOKUP(VLOOKUP($T16,INDEXTBL!$C$1:$O$1344,13,FALSE),DATA!$C$2:$BCV$14,7,FALSE),"NA") -> NA | Y16: =IFERROR(HLOOKUP(VLOOKUP($T16,INDEXTBL!$C$1:$O$1344,13,FALSE),DATA!$C$2:$BCV$14,10,FALSE),"NA") -> NA | AF16: 提A-010111 | AG16: =VLOOKUP(AF16,INDEXTBL!$C$1:$O$1344,3,FALSE) -> 前立腺がん5年相対生存率（％） | AH16: =VLOOKUP(AF16,INDEXTBL!$C$1:$N$1344,5,FALSE) -> EX153 | AI16: =IFERROR(TEXT(HLOOKUP(AH16,DATA!$C$2:$CCV$14,8,FALSE),"0.0")&"%","NA") -> 92.5% | AJ16: =IFERROR(TEXT(HLOOKUP(AH16,DATA!$C$2:$CCV$14,7,FALSE),"0.0")&"%","NA") -> 95.1% | AK16: =IFERROR(TEXT(_xlfn.AGGREGATE(4,7,OFFSET(DATA!$A$1,14,MATCH(AH16,DATA!$A$2:$CCV$2,0)-1,47,1)),"0.0")&"%" &" （"& AL16 & "）","NA") -> 99.4% （香川県） | AL16: =INDEX(DATA!$C$15:$C$61,MATCH(_xlfn.AGGREGATE(4,7,OFFSET(DATA!$A$1,14,MATCH(AH16,DATA!$A$2:$CCV$2,0)-1,47,1)),OFFSET(DATA!$A$1,14,MATCH(AH16,DATA!$A$2:$CCV$2,0)-1,47,1),0)) -> 香川県
H17: 提D-010601 | I17: =VLOOKUP(H17,INDEXTBL!$C$1:$O$1344,3,FALSE) -> BCPを整備している「施設」の割合（％） | J17: =VLOOKUP($H17,INDEXTBL!$C$1:$O$1344,5,FALSE) -> EX210 | K17: =IFERROR(TEXT(HLOOKUP(J17,DATA!$C$2:$CCV$14,8,FALSE),"0.0")&"%","NA") -> 72.0% | L17: =IFERROR(HLOOKUP(VLOOKUP($H17,INDEXTBL!$C$1:$O$1344,5,FALSE),DATA!$C$2:$CCV$14,7,FALSE),"NA") -> NA | M17: =IFERROR(TEXT(_xlfn.AGGREGATE(5,7,OFFSET(DATA!$A$1,14,MATCH(J17,DATA!$A$2:$CCV$2,0)-1,47,1))*100,"0.0")&"%" &" （"& $N17 & "）","NA") -> NA | N17: =INDEX(DATA!$C$15:$C$61,MATCH(_xlfn.AGGREGATE(5,7,OFFSET(DATA!$A$1,14,MATCH(J17,DATA!$A$2:$CCV$2,0)-1,47,1)),OFFSET(DATA!$A$1,14,MATCH(J17,DATA!$A$2:$CCV$2,0)-1,47,1),0)) ->  | AF17: 提A-010112 | AG17: =VLOOKUP(AF17,INDEXTBL!$C$1:$O$1344,3,FALSE) -> （患者体験調査）がんの診断・治療全体の総合的評価（平均点） | AH17: =VLOOKUP(AF17,INDEXTBL!$C$1:$N$1344,11,FALSE) -> 患A01 | AI17: =IFERROR(TEXT(HLOOKUP(VLOOKUP($AF17,INDEXTBL!$C$1:$O$1344,11,FALSE),DATA!$C$2:$AZH$14,8,FALSE),"0.0")&"点","NA") -> 琉大病院 8.4点 | AJ17: =IFERROR(TEXT(HLOOKUP(VLOOKUP($AF17,INDEXTBL!$C$1:$O$1344,11,FALSE),DATA!$C$2:$AZH$14,7,FALSE),"0.0")&"点","NA") -> 8.2点 | AK17: =IFERROR(TEXT(_xlfn.AGGREGATE(4,7,OFFSET(DATA!$A$1,14,MATCH(VLOOKUP($AF17,INDEXTBL!$C$1:$O$1344,11,FALSE),DATA!$A$2:$AZH$2,0)-1,47,1)),"0.0")&"点" &" （"& AL17 & "）","NA") -> NA | AL17: =INDEX(DATA!$C$15:$C$61,MATCH(_xlfn.AGGREGATE(4,7,OFFSET(DATA!$A$1,14,MATCH(VLOOKUP($AF17,INDEXTBL!$C$1:$O$1344,11,FALSE),DATA!$A$2:$AZH$2,0)-1,47,1)),OFFSET(DATA!$A$1,14,MATCH(VLOOKUP($AF17,INDEXTBL!$C$1:$O$1344,11,FALSE),DATA!$A$2:$AZH$2,0)-1,47,1),0)) -> 
AF18: 提A-010113 | AG18: =VLOOKUP(AF18,INDEXTBL!$C$1:$O$1344,3,FALSE) -> （患者体験調査）専門的な医療を受けられたと思う患者の割合（％） | AH18: =VLOOKUP(AF18,INDEXTBL!$C$1:$N$1344,11,FALSE) -> 患A02 | AI18: =IFERROR(TEXT(HLOOKUP(VLOOKUP($AF18,INDEXTBL!$C$1:$O$1344,11,FALSE),DATA!$C$2:$AZH$14,8,FALSE),"0.0")&"%","NA") -> 87.2% | AJ18: =IFERROR(TEXT(HLOOKUP(VLOOKUP($AF18,INDEXTBL!$C$1:$O$1344,11,FALSE),DATA!$C$2:$AZH$14,7,FALSE),"0.0")&"%","NA") -> 79.0% | AK18: =IFERROR(TEXT(_xlfn.AGGREGATE(4,7,OFFSET(DATA!$A$1,14,MATCH(VLOOKUP($AF18,INDEXTBL!$C$1:$O$1344,11,FALSE),DATA!$A$2:$AZH$2,0)-1,47,1)),"0.0")&"%" &" （"& AL18 & "）","NA") -> 88.3% （東京都） | AL18: =INDEX(DATA!$C$15:$C$61,MATCH(_xlfn.AGGREGATE(4,7,OFFSET(DATA!$A$1,14,MATCH(VLOOKUP($AF18,INDEXTBL!$C$1:$O$1344,11,FALSE),DATA!$A$2:$AZH$2,0)-1,47,1)),OFFSET(DATA!$A$1,14,MATCH(VLOOKUP($AF18,INDEXTBL!$C$1:$O$1344,11,FALSE),DATA!$A$2:$AZH$2,0)-1,47,1),0)) -> 東京都
E19: ②病理診断 | AD19: グラフ | AF19: 提A-010114 | AG19: =VLOOKUP(AF19,INDEXTBL!$C$1:$O$1344,3,FALSE) -> （患者体験調査）これまで受けた治療に納得している患者の割合（％） | AH19: =VLOOKUP(AF19,INDEXTBL!$C$1:$N$1344,11,FALSE) -> 患15 | AI19: =IFERROR(TEXT(HLOOKUP(VLOOKUP($AF19,INDEXTBL!$C$1:$O$1344,11,FALSE),DATA!$C$2:$AZH$14,8,FALSE),"0.0")&"%","NA") -> 85.4% | AJ19: =IFERROR(TEXT(HLOOKUP(VLOOKUP($AF19,INDEXTBL!$C$1:$O$1344,11,FALSE),DATA!$C$2:$AZH$14,7,FALSE),"0.0")&"%","NA") -> 77.4% | AK19: =IFERROR(TEXT(_xlfn.AGGREGATE(4,7,OFFSET(DATA!$A$1,14,MATCH(VLOOKUP($AF19,INDEXTBL!$C$1:$O$1344,11,FALSE),DATA!$A$2:$AZH$2,0)-1,47,1)),"0.0")&"%" &" （"& AL19 & "）","NA") -> 89.5% （愛媛県） | AL19: =INDEX(DATA!$C$15:$C$61,MATCH(_xlfn.AGGREGATE(4,7,OFFSET(DATA!$A$1,14,MATCH(VLOOKUP($AF19,INDEXTBL!$C$1:$O$1344,11,FALSE),DATA!$A$2:$AZH$2,0)-1,47,1)),OFFSET(DATA!$A$1,14,MATCH(VLOOKUP($AF19,INDEXTBL!$C$1:$O$1344,11,FALSE),DATA!$A$2:$AZH$2,0)-1,47,1),0)) -> 愛媛県
E20: 提D-0201 | I20: =VLOOKUP(E20,INDEXTBL!$A$1:$O$1344,2,FALSE) -> 「施設」では、質の高い病理診断や細胞診断を行う | K20: 沖縄県 | L20: 全国 | M20: 最良値 （都道府県） | Q20: 提B-0201 | U20: =VLOOKUP(Q20,INDEXTBL!$A$1:$O$1344,2,FALSE) -> 患者が、速やかな病理診断を受けられている | W20: 沖縄県 | X20: 全国 | Y20: 最良値 （都道府県）
H21: 提D-020101 | I21: =VLOOKUP(H21,INDEXTBL!$C$1:$O$1344,3,FALSE) -> 常勤の病理専門医が１名以上配置されている「施設」の割合（％） | J21: =VLOOKUP($H21,INDEXTBL!$C$1:$O$1344,5,FALSE) -> EX211 | K21: =IFERROR(TEXT(HLOOKUP(J21,DATA!$C$2:$CCV$14,8,FALSE),"0.0")&"%","NA") -> 56.0% | L21: =IFERROR(HLOOKUP(VLOOKUP($H21,INDEXTBL!$C$1:$O$1344,5,FALSE),DATA!$C$2:$CCV$14,7,FALSE),"NA") -> NA | M21: =IFERROR(TEXT(_xlfn.AGGREGATE(5,7,OFFSET(DATA!$A$1,14,MATCH(J21,DATA!$A$2:$CCV$2,0)-1,47,1))*100,"0.0")&"%" &" （"& $N21 & "）","NA") -> NA | N21: =INDEX(DATA!$C$15:$C$61,MATCH(_xlfn.AGGREGATE(5,7,OFFSET(DATA!$A$1,14,MATCH(J21,DATA!$A$2:$CCV$2,0)-1,47,1)),OFFSET(DATA!$A$1,14,MATCH(J21,DATA!$A$2:$CCV$2,0)-1,47,1),0)) ->  | T21: 提B-020101 | U21: =VLOOKUP(T21,INDEXTBL!$C$1:$O$1344,3,FALSE) -> （患者体験調査）初診時から確定診断までの１ヶ月未満の人の割合（％） | V21: =VLOOKUP(T21,INDEXTBL!$C$1:$O$1344,11,FALSE) -> 患A04 | W21: =IFERROR(TEXT(HLOOKUP(VLOOKUP($T21,INDEXTBL!$C$1:$O$1344,11,FALSE),DATA!$C$2:$AZH$14,8,FALSE),"0.0")&"%","NA") -> 琉大病院64.3%% | X21: =IFERROR(TEXT(HLOOKUP(VLOOKUP($T21,INDEXTBL!$C$1:$O$1344,11,FALSE),DATA!$C$2:$AZH$14,7,FALSE),"0.0")&"%","NA") -> 70.0% | Y21: =IFERROR(TEXT(_xlfn.AGGREGATE(4,7,OFFSET(DATA!$A$1,14,MATCH(VLOOKUP($T21,INDEXTBL!$C$1:$O$1344,11,FALSE),DATA!$A$2:$AZH$2,0)-1,47,1)),"0.0")&"%" &" （"& Z21 & "）","NA") -> NA | Z21: =INDEX(DATA!$C$15:$C$61,MATCH(_xlfn.AGGREGATE(4,7,OFFSET(DATA!$A$1,14,MATCH(VLOOKUP($T21,INDEXTBL!$C$1:$O$1344,11,FALSE),DATA!$A$2:$AZH$2,0)-1,47,1)),OFFSET(DATA!$A$1,14,MATCH(VLOOKUP($T21,INDEXTBL!$C$1:$O$1344,11,FALSE),DATA!$A$2:$AZH$2,0)-1,47,1),0)) -> 
E23: ③がんゲノム医療
E24: 提D-0301 | I24: =VLOOKUP(E24,INDEXTBL!$A$1:$O$1344,2,FALSE) -> 必要な患者に対し、適切なタイミングで、がん遺伝子パネル検査等及びその結果を踏まえた治療を行う | K24: 沖縄県 | L24: 全国 | M24: 最良値 （都道府県） | Q24: 提B-0301 | U24: =VLOOKUP(Q24,INDEXTBL!$A$1:$O$1344,2,FALSE) -> 患者が、がん遺伝子パネル検査を受け、その結果に基づいて治療が選択できている | W24: 沖縄県 | X24: 全国 | Y24: 最良値 （都道府県）
H25: 提D-030101 | I25: =VLOOKUP(H25,INDEXTBL!$C$1:$O$1344,3,FALSE) -> がんゲノム情報管理センターに登録された患者数（人） | J25: =VLOOKUP($H25,INDEXTBL!$C$1:$O$1344,5,FALSE) -> EX052 | K25: =IFERROR(HLOOKUP(VLOOKUP($H25,INDEXTBL!$C$1:$O$1344,5,FALSE),DATA!$C$2:$BCV$14,8,FALSE),"NA") -> 126 | L25: =IFERROR(HLOOKUP(VLOOKUP($H25,INDEXTBL!$C$1:$O$1344,5,FALSE),DATA!$C$2:$BCV$14,7,FALSE),"NA") -> NA | M25: =IFERROR(TEXT(_xlfn.AGGREGATE(4,7,OFFSET(DATA!$A$1,14,MATCH(VLOOKUP($H25,INDEXTBL!$C$1:$O$1344,5,FALSE),DATA!$A$2:$BCV$2,0)-1,47,1)),"#.#") &" （"& N25 & "）","NA") -> NA | N25: =INDEX(DATA!$C$15:$C$61,MATCH(_xlfn.AGGREGATE(4,7,OFFSET(DATA!$A$1,14,MATCH(VLOOKUP($H25,INDEXTBL!$C$1:$O$1344,5,FALSE),DATA!$A$2:$BCV$2,0)-1,47,1)),OFFSET(DATA!$A$1,14,MATCH(VLOOKUP($H25,INDEXTBL!$C$1:$O$1344,5,FALSE),DATA!$A$2:$BCV$2,0)-1,47,1),0)) ->  | T25: 提B-030101 | U25: =VLOOKUP(T25,INDEXTBL!$C$1:$O$1344,3,FALSE) -> がん遺伝子パネル検査を実施した患者のうち、エキスパートパネルで推奨された薬剤が投与された割合（％） | W25: =IFERROR(TEXT(HLOOKUP(VLOOKUP($T25,INDEXTBL!$C$1:$O$1344,5,FALSE),DATA!$C$2:$CCV$14,8,FALSE),"0.0")&"%","NA") -> 2.4% | X25: =IFERROR(TEXT(HLOOKUP(VLOOKUP($T25,INDEXTBL!$C$1:$O$1344,13,FALSE),DATA!$C$2:$AZH$14,7,FALSE)*100,"0.0")&"%","NA") -> NA | Y25: =IFERROR(TEXT(_xlfn.AGGREGATE(4,7,OFFSET(DATA!$A$1,14,MATCH(VLOOKUP($T25,INDEXTBL!$C$1:$O$1344,13,FALSE),DATA!$A$2:$AZH$2,0)-1,47,1)),"0.0") &" （"& Z25 & "）","NA") -> NA | Z25: =INDEX(DATA!$C$15:$C$61,MATCH(_xlfn.AGGREGATE(4,7,OFFSET(DATA!$A$1,14,MATCH(VLOOKUP($T25,INDEXTBL!$C$1:$O$1344,13,FALSE),DATA!$A$2:$AZH$2,0)-1,47,1)),OFFSET(DATA!$A$1,14,MATCH(VLOOKUP($T25,INDEXTBL!$C$1:$O$1344,13,FALSE),DATA!$A$2:$AZH$2,0)-1,47,1),0)) -> 
H26: 提D-030102 | I26: =VLOOKUP(H26,INDEXTBL!$C$1:$O$1344,3,FALSE) -> 琉球大学病院において遺伝性腫瘍に関する遺伝カウンセリングを実施した患者数（人） | J26: =VLOOKUP($H26,INDEXTBL!$C$1:$O$1344,5,FALSE) -> EX053 | K26: =IFERROR(HLOOKUP(VLOOKUP($H26,INDEXTBL!$C$1:$O$1344,5,FALSE),DATA!$C$2:$BCV$14,8,FALSE),"NA") -> 7 | L26: =IFERROR(HLOOKUP(VLOOKUP($H26,INDEXTBL!$C$1:$O$1344,5,FALSE),DATA!$C$2:$BCV$14,7,FALSE),"NA") -> NA | M26: =IFERROR(TEXT(_xlfn.AGGREGATE(4,7,OFFSET(DATA!$A$1,14,MATCH(VLOOKUP($H26,INDEXTBL!$C$1:$O$1344,5,FALSE),DATA!$A$2:$BCV$2,0)-1,47,1)),"#.#") &" （"& N26 & "）","NA") -> NA | N26: =INDEX(DATA!$C$15:$C$61,MATCH(_xlfn.AGGREGATE(4,7,OFFSET(DATA!$A$1,14,MATCH(VLOOKUP($H26,INDEXTBL!$C$1:$O$1344,5,FALSE),DATA!$A$2:$BCV$2,0)-1,47,1)),OFFSET(DATA!$A$1,14,MATCH(VLOOKUP($H26,INDEXTBL!$C$1:$O$1344,5,FALSE),DATA!$A$2:$BCV$2,0)-1,47,1),0)) ->  | R26: グラフ | T26: 提B-030102 | U26: =VLOOKUP(T26,INDEXTBL!$C$1:$O$1344,3,FALSE) -> （DPC-QI）IV期肺腺癌に対するがん薬物療法前のEGFR遺伝子変異検査 実施率（％） | V26: =VLOOKUP(T26,INDEXTBL!$C$1:$O$1344,7,FALSE) -> 肺95 | W26: =IFERROR(TEXT(HLOOKUP(VLOOKUP($T26,INDEXTBL!$C$1:$O$1344,7,FALSE),DATA!$C$2:$AZH$14,8,FALSE)*100,"0.0")&"%","NA") -> 42.9% | X26: =IFERROR(TEXT(HLOOKUP(VLOOKUP($T26,INDEXTBL!$C$1:$O$1344,7,FALSE),DATA!$C$2:$AZH$14,7,FALSE)*100,"0.0")&"%","NA") -> 98.5% | Y26: =IFERROR(TEXT(_xlfn.AGGREGATE(4,7,OFFSET(DATA!$A$1,14,MATCH(VLOOKUP($T26,INDEXTBL!$C$1:$O$1344,7,FALSE),DATA!$A$2:$AZH$2,0)-1,47,1))*100,"0.0")&"%" &" （"& Z26 & "）","NA") -> 100.0% （北海道） | Z26: =INDEX(DATA!$C$15:$C$61,MATCH(_xlfn.AGGREGATE(4,7,OFFSET(DATA!$A$1,14,MATCH(VLOOKUP($T26,INDEXTBL!$C$1:$O$1344,7,FALSE),DATA!$A$2:$AZH$2,0)-1,47,1)),OFFSET(DATA!$A$1,14,MATCH(VLOOKUP($T26,INDEXTBL!$C$1:$O$1344,7,FALSE),DATA!$A$2:$AZH$2,0)-1,47,1),0)) -> 北海道
F27: グラフ | H27: 提D-030103 | I27: =VLOOKUP(H27,INDEXTBL!$C$1:$O$1344,3,FALSE) -> 臨床遺伝専門医（人） | J27: =VLOOKUP($H27,INDEXTBL!$C$1:$O$1344,5,FALSE) -> EX054 | K27: =IFERROR(TEXT(HLOOKUP(VLOOKUP($H27,INDEXTBL!$C$1:$O$1344,5,FALSE),DATA!$C$2:$BCV$14,8,FALSE)/DATA!$H$9*1000000,"0.0"),"NA") -> 6.1 | L27: =IFERROR(TEXT(HLOOKUP(VLOOKUP($H27,INDEXTBL!$C$1:$O$1344,5,FALSE),DATA!$C$2:$BCV$14,7,FALSE)/DATA!$H$8*1000000,"0.0"),"NA") -> 10.3 | M27: =IFERROR(TEXT(MAX(OFFSET(DATA!$A$1,14,MATCH(VLOOKUP($H27,INDEXTBL!$C$1:$O$1344,5,FALSE),DATA!$A$2:$BCV$2,0)-1,47,1)/DATA!$H$15:$H$61*1000000),"0.0") &" （"& N27 & "）","NA") -> 21.6 （東京都） | N27: =INDEX(DATA!$C$15:$C$61,MATCH(MAX(OFFSET(DATA!$A$1,14,MATCH(VLOOKUP($H27,INDEXTBL!$C$1:$O$1344,5,FALSE),DATA!$A$2:$BCV$2,0)-1,47,1)/DATA!$H$15:$H$61*1000000),OFFSET(DATA!$A$1,14,MATCH(VLOOKUP($H27,INDEXTBL!$C$1:$O$1344,5,FALSE),DATA!$A$2:$BCV$2,0)-1,47,1)/DATA!$H$15:$H$61*1000000,0)) -> 東京都 | O27: ＊＊ | R27: グラフ | T27: 提B-030103 | U27: =VLOOKUP(T27,INDEXTBL!$C$1:$O$1344,3,FALSE) -> （DPC-QI）切除不能IV期胃がんへの化学療法前HER2検査 実施率（％） | V27: =VLOOKUP(T27,INDEXTBL!$C$1:$O$1344,8,FALSE) -> 胃98 | W27: =IFERROR(TEXT(HLOOKUP(VLOOKUP($T27,INDEXTBL!$C$1:$O$1344,8,FALSE),DATA!$C$2:$AZH$14,8,FALSE)*100,"0.0")&"%","NA") -> 50.0% | X27: =IFERROR(TEXT(HLOOKUP(VLOOKUP($T27,INDEXTBL!$C$1:$O$1344,8,FALSE),DATA!$C$2:$CCV$14,7,FALSE)*100,"0.0")&"%","NA") -> 97.5% | Y27: =IFERROR(TEXT(_xlfn.AGGREGATE(4,7,OFFSET(DATA!$A$1,14,MATCH(VLOOKUP($T27,INDEXTBL!$C$1:$O$1344,8,FALSE),DATA!$A$2:$AZH$2,0)-1,47,1))*100,"0.0")&"%" &" （"& Z27 & "）","NA") -> 100.0% （宮城県） | Z27: =INDEX(DATA!$C$15:$C$61,MATCH(_xlfn.AGGREGATE(4,7,OFFSET(DATA!$A$1,14,MATCH(VLOOKUP($T27,INDEXTBL!$C$1:$O$1344,8,FALSE),DATA!$A$2:$AZH$2,0)-1,47,1)),OFFSET(DATA!$A$1,14,MATCH(VLOOKUP($T27,INDEXTBL!$C$1:$O$1344,8,FALSE),DATA!$A$2:$AZH$2,0)-1,47,1),0)) -> 宮城県
H28: 提D-030104 | I28: =VLOOKUP(H28,INDEXTBL!$C$1:$O$1344,3,FALSE) -> 認定遺伝カウンセラー（人） | J28: =VLOOKUP($H28,INDEXTBL!$C$1:$O$1344,5,FALSE) -> EX055 | K28: =IFERROR(TEXT(HLOOKUP(VLOOKUP($H28,INDEXTBL!$C$1:$O$1344,5,FALSE),DATA!$C$2:$BCV$14,8,FALSE)/DATA!$H$9*1000000,"0.0"),"NA") -> 0.7 | L28: =IFERROR(TEXT(HLOOKUP(VLOOKUP($H28,INDEXTBL!$C$1:$O$1344,5,FALSE),DATA!$C$2:$BCV$14,7,FALSE)/DATA!$H$8*1000000,"0.0"),"NA") -> 3.1 | M28: =IFERROR(TEXT(MAX(OFFSET(DATA!$A$1,14,MATCH(VLOOKUP($H28,INDEXTBL!$C$1:$O$1344,5,FALSE),DATA!$A$2:$BCV$2,0)-1,47,1)/DATA!$H$15:$H$61*1000000),"0.0") &" （"& N28 & "）","NA") -> 6.5 （東京都） | N28: =INDEX(DATA!$C$15:$C$61,MATCH(MAX(OFFSET(DATA!$A$1,14,MATCH(VLOOKUP($H28,INDEXTBL!$C$1:$O$1344,5,FALSE),DATA!$A$2:$BCV$2,0)-1,47,1)/DATA!$H$15:$H$61*1000000),OFFSET(DATA!$A$1,14,MATCH(VLOOKUP($H28,INDEXTBL!$C$1:$O$1344,5,FALSE),DATA!$A$2:$BCV$2,0)-1,47,1)/DATA!$H$15:$H$61*1000000,0)) -> 東京都 | O28: ＊＊ | T28: 提B-030104 | U28: =VLOOKUP(T28,INDEXTBL!$C$1:$O$1344,3,FALSE) -> （医療者調査）がんゲノム医療に関する十分な情報提供をした割合が21%以上であると回答した人の割合（％） | V28: =VLOOKUP(T28,INDEXTBL!$C$1:$O$1344,13,FALSE) -> 医21 | W28: =IFERROR(TEXT(HLOOKUP(VLOOKUP($T28,INDEXTBL!$C$1:$O$1344,13,FALSE),DATA!$C$2:$AZH$14,8,FALSE)*100,"0.0")&"%","NA") -> 23.3% | X28: =IFERROR(TEXT(HLOOKUP(VLOOKUP($T28,INDEXTBL!$C$1:$O$1344,13,FALSE),DATA!$C$2:$AZH$14,7,FALSE)*100,"0.0")&"%","NA") -> NA | Y28: =IFERROR(TEXT(_xlfn.AGGREGATE(4,7,OFFSET(DATA!$A$1,14,MATCH(VLOOKUP($T28,INDEXTBL!$C$1:$O$1344,13,FALSE),DATA!$A$2:$AZH$2,0)-1,47,1)),"0.0") &" （"& Z28 & "）","NA") -> NA | Z28: =INDEX(DATA!$C$15:$C$61,MATCH(_xlfn.AGGREGATE(4,7,OFFSET(DATA!$A$1,14,MATCH(VLOOKUP($T28,INDEXTBL!$C$1:$O$1344,13,FALSE),DATA!$A$2:$AZH$2,0)-1,47,1)),OFFSET(DATA!$A$1,14,MATCH(VLOOKUP($T28,INDEXTBL!$C$1:$O$1344,13,FALSE),DATA!$A$2:$AZH$2,0)-1,47,1),0)) -> 
H29: 提D-030105 | I29: =VLOOKUP(H29,INDEXTBL!$C$1:$O$1344,3,FALSE) -> がんゲノム医療コーディネーター（人） | J29: =VLOOKUP($H29,INDEXTBL!$C$1:$O$1344,5,FALSE) -> EX056 | K29: =IFERROR(HLOOKUP(VLOOKUP($H29,INDEXTBL!$C$1:$O$1344,5,FALSE),DATA!$C$2:$BCV$14,8,FALSE),"NA") -> 4.3 | L29: =IFERROR(HLOOKUP(VLOOKUP($H29,INDEXTBL!$C$1:$O$1344,5,FALSE),DATA!$C$2:$BCV$14,7,FALSE),"NA") -> 18.74 | M29: =IFERROR(TEXT(_xlfn.AGGREGATE(4,7,OFFSET(DATA!$A$1,14,MATCH(VLOOKUP($H29,INDEXTBL!$C$1:$O$1344,5,FALSE),DATA!$A$2:$BCV$2,0)-1,47,1)),"0.0") &" （"& N29 & "）","NA") -> 45.0 （島根県） | N29: =INDEX(DATA!$C$15:$C$61,MATCH(_xlfn.AGGREGATE(4,7,OFFSET(DATA!$A$1,14,MATCH(VLOOKUP($H29,INDEXTBL!$C$1:$O$1344,5,FALSE),DATA!$A$2:$BCV$2,0)-1,47,1)),OFFSET(DATA!$A$1,14,MATCH(VLOOKUP($H29,INDEXTBL!$C$1:$O$1344,5,FALSE),DATA!$A$2:$BCV$2,0)-1,47,1),0)) -> 島根県 | O29: ＊＊
M30: ＊＊：人口100万人あたり
E31: ④手術療法
E32: 提D-0401 | I32: =VLOOKUP(E32,INDEXTBL!$A$1:$O$1344,2,FALSE) -> 必要な資格を持った専門家が計画的に養成を行い、「施設」に必要に応じて配置する | K32: 沖縄県 | L32: 全国 | M32: 最良値 （都道府県） | Q32: 提B-0401 | U32: =VLOOKUP(Q32,INDEXTBL!$A$1:$O$1344,2,FALSE) -> 必要な患者が、最適な手術を、タイムリーで質が高く安全に受けられている | W32: 沖縄県 | X32: 全国 | Y32: 最良値 （都道府県）
F33: グラフ | H33: 提D-040101 | I33: =VLOOKUP(H33,INDEXTBL!$C$1:$O$1344,3,FALSE) -> 消化器外科専門医（人） | J33: =VLOOKUP($H33,INDEXTBL!$C$1:$O$1344,6,FALSE) -> 大腸109 | K33: =IFERROR(TEXT(HLOOKUP("大腸109",DATA!$C$2:$AZH$14,8,FALSE)/DATA!$H$9*1000000,"0.0"),"NA") -> 57.9 | L33: =IFERROR(TEXT(HLOOKUP("大腸109",DATA!$C$2:$CCV$14,7,FALSE)/DATA!$H$8*1000000,"0.0"),"NA") -> 72.8 | M33: =IFERROR(TEXT(MAX(OFFSET(DATA!$A$1,14,MATCH("大腸109",DATA!$A$2:$AZH$2,0)-1,47,1)/DATA!$H$15:$H$61*1000000),"0.0") &" （"& N33 & "）","NA") -> 106.6 （鳥取県） | N33: =INDEX(DATA!$C$15:$C$61,MATCH(MAX(OFFSET(DATA!$A$1,14,MATCH("大腸109",DATA!$A$2:$BCV$2,0)-1,47,1)/DATA!$H$15:$H$61*1000000),OFFSET(DATA!$A$1,14,MATCH("大腸109",DATA!$A$2:$BCV$2,0)-1,47,1)/DATA!$H$15:$H$61*1000000,0)) -> 鳥取県 | O33: ＊＊ | T33: 提B-040101 | U33: =VLOOKUP(T33,INDEXTBL!$C$1:$O$1344,3,FALSE) -> （DPC-QI）StageII・IIIの大腸癌に対するD3リンパ節郭清 | V33: =VLOOKUP(T33,INDEXTBL!$C$1:$O$1344,6,FALSE) -> EX047 | W33: =IFERROR(HLOOKUP(VLOOKUP($T33,INDEXTBL!$C$1:$O$1344,6,FALSE),DATA!$C$2:$BCV$14,8,FALSE),"NA") -> 0.962 | X33: =IFERROR(HLOOKUP(VLOOKUP($T33,INDEXTBL!$C$1:$O$1344,6,FALSE),DATA!$C$2:$BCV$14,7,FALSE),"NA") -> 0.811 | Y33: =IFERROR(TEXT(_xlfn.AGGREGATE(4,7,OFFSET(DATA!$A$1,14,MATCH(VLOOKUP($T33,INDEXTBL!$C$1:$O$1344,6,FALSE),DATA!$A$2:$BCV$2,0)-1,47,1))*100,"0.0")&"%" &" （"& Z33 & "）","NA") -> NA | Z33: =INDEX(DATA!$C$15:$C$61,MATCH(_xlfn.AGGREGATE(4,7,OFFSET(DATA!$A$1,14,MATCH(VLOOKUP($T33,INDEXTBL!$C$1:$O$1344,6,FALSE),DATA!$A$2:$BCV$2,0)-1,47,1)),OFFSET(DATA!$A$1,14,MATCH(VLOOKUP($T33,INDEXTBL!$C$1:$O$1344,6,FALSE),DATA!$A$2:$BCV$2,0)-1,47,1),0)) -> 
F34: グラフ | H34: 提D-040102 | I34: =VLOOKUP(H34,INDEXTBL!$C$1:$O$1344,3,FALSE) -> 呼吸器外科専門医（人） | J34: =VLOOKUP($H34,INDEXTBL!$C$1:$O$1344,7,FALSE) -> 肺119 | K34: =IFERROR(TEXT(HLOOKUP("肺119",DATA!$C$2:$AZH$14,8,FALSE)/DATA!$H$9*1000000,"0.0"),"NA") -> 11.6 | L34: =IFERROR(TEXT(HLOOKUP("肺119",DATA!$C$2:$CCV$14,7,FALSE)/DATA!$H$8*1000000,"0.0"),"NA") -> 13.1 | M34: =IFERROR(TEXT(MAX(OFFSET(DATA!$A$1,14,MATCH("肺119",DATA!$A$2:$AZH$2,0)-1,47,1)/DATA!$H$15:$H$61*1000000),"0.0") &" （"& N34 & "）","NA") -> 22.2 （徳島県） | N34: =INDEX(DATA!$C$15:$C$61,MATCH(MAX(OFFSET(DATA!$A$1,14,MATCH("肺119",DATA!$A$2:$BCV$2,0)-1,47,1)/DATA!$H$15:$H$61*1000000),OFFSET(DATA!$A$1,14,MATCH("肺119",DATA!$A$2:$BCV$2,0)-1,47,1)/DATA!$H$15:$H$61*1000000,0)) -> 徳島県 | O34: ＊＊ | T34: 提B-040102 | U34: =VLOOKUP(T34,INDEXTBL!$C$1:$O$1344,3,FALSE) -> （DPC-QI）進行胃癌に対する定型手術 | V34: =VLOOKUP(T34,INDEXTBL!$C$1:$O$1344,8,FALSE) -> EX048 | W34: =IFERROR(HLOOKUP(VLOOKUP($T34,INDEXTBL!$C$1:$O$1344,8,FALSE),DATA!$C$2:$BCV$14,8,FALSE),"NA") -> 1 | X34: =IFERROR(HLOOKUP(VLOOKUP($T34,INDEXTBL!$C$1:$O$1344,8,FALSE),DATA!$C$2:$BCV$14,7,FALSE),"NA") -> 0.925 | Y34: =IFERROR(TEXT(_xlfn.AGGREGATE(4,7,OFFSET(DATA!$A$1,14,MATCH(VLOOKUP($T34,INDEXTBL!$C$1:$O$1344,8,FALSE),DATA!$A$2:$BCV$2,0)-1,47,1))*100,"0.0")&"%" &" （"& Z34 & "）","NA") -> NA | Z34: =INDEX(DATA!$C$15:$C$61,MATCH(_xlfn.AGGREGATE(4,7,OFFSET(DATA!$A$1,14,MATCH(VLOOKUP($T34,INDEXTBL!$C$1:$O$1344,8,FALSE),DATA!$A$2:$BCV$2,0)-1,47,1)),OFFSET(DATA!$A$1,14,MATCH(VLOOKUP($T34,INDEXTBL!$C$1:$O$1344,8,FALSE),DATA!$A$2:$BCV$2,0)-1,47,1),0)) -> 
F35: グラフ | H35: 提D-040103 | I35: =VLOOKUP(H35,INDEXTBL!$C$1:$O$1344,3,FALSE) -> 乳腺外科専門医（人） | J35: =VLOOKUP($H35,INDEXTBL!$C$1:$O$1344,9,FALSE) -> 乳88 | K35: =IFERROR(TEXT(HLOOKUP("乳88",DATA!$C$2:$AZH$14,8,FALSE)/DATA!$H$9*1000000,"0.0"),"NA") -> 9.5 | L35: =IFERROR(TEXT(HLOOKUP("乳88",DATA!$C$2:$CCV$14,7,FALSE)/DATA!$H$8*1000000,"0.0"),"NA") -> 13.2 | M35: =IFERROR(TEXT(MAX(OFFSET(DATA!$A$1,14,MATCH("乳88",DATA!$A$2:$AZH$2,0)-1,47,1)/DATA!$H$15:$H$61*1000000),"0.0") &" （"& N35 & "）","NA") -> 20.6 （和歌山県） | N35: =INDEX(DATA!$C$15:$C$61,MATCH(MAX(OFFSET(DATA!$A$1,14,MATCH("乳88",DATA!$A$2:$BCV$2,0)-1,47,1)/DATA!$H$15:$H$61*1000000),OFFSET(DATA!$A$1,14,MATCH("乳88",DATA!$A$2:$BCV$2,0)-1,47,1)/DATA!$H$15:$H$61*1000000,0)) -> 和歌山県 | O35: ＊＊ | T35: 提B-040103 | U35: =VLOOKUP(T35,INDEXTBL!$C$1:$O$1344,3,FALSE) -> （医療者調査）手術を受けた患者のうち、質の高い最適な手術を提供できた患者の割合が75%以上であると回答した人の割合（％） | V35: =VLOOKUP(T35,INDEXTBL!$C$1:$O$1344,13,FALSE) -> 医23 | W35: =IFERROR(TEXT(HLOOKUP(VLOOKUP($T35,INDEXTBL!$C$1:$O$1344,13,FALSE),DATA!$C$2:$AZH$14,8,FALSE)*100,"0.0")&"%","NA") -> 78.2% | X35: =IFERROR(TEXT(HLOOKUP(VLOOKUP($T35,INDEXTBL!$C$1:$O$1344,13,FALSE),DATA!$C$2:$AZH$14,7,FALSE)*100,"0.0")&"%","NA") -> NA | Y35: =IFERROR(TEXT(_xlfn.AGGREGATE(4,7,OFFSET(DATA!$A$1,14,MATCH(VLOOKUP($T35,INDEXTBL!$C$1:$O$1344,13,FALSE),DATA!$A$2:$AZH$2,0)-1,47,1)),"0.0") &" （"& Z35 & "）","NA") -> NA | Z35: =INDEX(DATA!$C$15:$C$61,MATCH(_xlfn.AGGREGATE(4,7,OFFSET(DATA!$A$1,14,MATCH(VLOOKUP($T35,INDEXTBL!$C$1:$O$1344,13,FALSE),DATA!$A$2:$AZH$2,0)-1,47,1)),OFFSET(DATA!$A$1,14,MATCH(VLOOKUP($T35,INDEXTBL!$C$1:$O$1344,13,FALSE),DATA!$A$2:$AZH$2,0)-1,47,1),0)) -> 
F36: グラフ | H36: 提D-040104 | I36: =VLOOKUP(H36,INDEXTBL!$C$1:$O$1344,3,FALSE) -> 小児外科専門医（人） | J36: =VLOOKUP($H36,INDEXTBL!$C$1:$O$1344,5,FALSE) -> EX057 | K36: =IFERROR(TEXT(HLOOKUP(VLOOKUP($H36,INDEXTBL!$C$1:$O$1344,5,FALSE),DATA!$C$2:$BCV$14,8,FALSE)/DATA!$H$9*1000000,"0.0"),"NA") -> 4.8 | L36: =IFERROR(TEXT(HLOOKUP(VLOOKUP($H36,INDEXTBL!$C$1:$O$1344,5,FALSE),DATA!$C$2:$BCV$14,7,FALSE)/DATA!$H$8*1000000,"0.0"),"NA") -> 5.9 | M36: =IFERROR(TEXT(MAX(OFFSET(DATA!$A$1,14,MATCH(VLOOKUP($H36,INDEXTBL!$C$1:$O$1344,5,FALSE),DATA!$A$2:$BCV$2,0)-1,47,1)/DATA!$H$15:$H$61*1000000),"0.0") &" （"& N36 & "）","NA") -> 13.4 （島根県） | N36: =INDEX(DATA!$C$15:$C$61,MATCH(MAX(OFFSET(DATA!$A$1,14,MATCH(VLOOKUP($H36,INDEXTBL!$C$1:$O$1344,5,FALSE),DATA!$A$2:$BCV$2,0)-1,47,1)/DATA!$H$15:$H$61*1000000),OFFSET(DATA!$A$1,14,MATCH(VLOOKUP($H36,INDEXTBL!$C$1:$O$1344,5,FALSE),DATA!$A$2:$BCV$2,0)-1,47,1)/DATA!$H$15:$H$61*1000000,0)) -> 島根県 | O36: ＊＊
F37: グラフ | H37: 提D-040105 | I37: =VLOOKUP(H37,INDEXTBL!$C$1:$O$1344,3,FALSE) -> 肝胆膵外科高度技能専門医（人） | J37: =VLOOKUP($H37,INDEXTBL!$C$1:$O$1344,5,FALSE) -> EX058 | K37: =IFERROR(TEXT(HLOOKUP(VLOOKUP($H37,INDEXTBL!$C$1:$O$1344,5,FALSE),DATA!$C$2:$BCV$14,8,FALSE)/DATA!$H$9*1000000,"0.0"),"NA") -> 2.0 | L37: =IFERROR(TEXT(HLOOKUP(VLOOKUP($H37,INDEXTBL!$C$1:$O$1344,5,FALSE),DATA!$C$2:$BCV$14,7,FALSE)/DATA!$H$8*1000000,"0.0"),"NA") -> 5.7 | M37: =IFERROR(TEXT(MAX(OFFSET(DATA!$A$1,14,MATCH(VLOOKUP($H37,INDEXTBL!$C$1:$O$1344,5,FALSE),DATA!$A$2:$BCV$2,0)-1,47,1)/DATA!$H$15:$H$61*1000000),"0.0") &" （"& N37 & "）","NA") -> 11.4 （広島県） | N37: =INDEX(DATA!$C$15:$C$61,MATCH(MAX(OFFSET(DATA!$A$1,14,MATCH(VLOOKUP($H37,INDEXTBL!$C$1:$O$1344,5,FALSE),DATA!$A$2:$BCV$2,0)-1,47,1)/DATA!$H$15:$H$61*1000000),OFFSET(DATA!$A$1,14,MATCH(VLOOKUP($H37,INDEXTBL!$C$1:$O$1344,5,FALSE),DATA!$A$2:$BCV$2,0)-1,47,1)/DATA!$H$15:$H$61*1000000,0)) -> 広島県 | O37: ＊＊
F38: グラフ | H38: 提D-040106 | I38: =VLOOKUP(H38,INDEXTBL!$C$1:$O$1344,3,FALSE) -> 脳神経外科専門医（人） | J38: =VLOOKUP($H38,INDEXTBL!$C$1:$O$1344,5,FALSE) -> EX059 | K38: =IFERROR(TEXT(HLOOKUP(VLOOKUP($H38,INDEXTBL!$C$1:$O$1344,5,FALSE),DATA!$C$2:$BCV$14,8,FALSE)/DATA!$H$9*1000000,"0.0"),"NA") -> 50.4 | L38: =IFERROR(TEXT(HLOOKUP(VLOOKUP($H38,INDEXTBL!$C$1:$O$1344,5,FALSE),DATA!$C$2:$BCV$14,7,FALSE)/DATA!$H$8*1000000,"0.0"),"NA") -> 63.0 | M38: =IFERROR(TEXT(MAX(OFFSET(DATA!$A$1,14,MATCH(VLOOKUP($H38,INDEXTBL!$C$1:$O$1344,5,FALSE),DATA!$A$2:$BCV$2,0)-1,47,1)/DATA!$H$15:$H$61*1000000),"0.0") &" （"& N38 & "）","NA") -> 96.9 （高知県） | N38: =INDEX(DATA!$C$15:$C$61,MATCH(MAX(OFFSET(DATA!$A$1,14,MATCH(VLOOKUP($H38,INDEXTBL!$C$1:$O$1344,5,FALSE),DATA!$A$2:$BCV$2,0)-1,47,1)/DATA!$H$15:$H$61*1000000),OFFSET(DATA!$A$1,14,MATCH(VLOOKUP($H38,INDEXTBL!$C$1:$O$1344,5,FALSE),DATA!$A$2:$BCV$2,0)-1,47,1)/DATA!$H$15:$H$61*1000000,0)) -> 高知県 | O38: ＊＊
H39: 提D-040107 | I39: =VLOOKUP(H39,INDEXTBL!$C$1:$O$1344,3,FALSE) -> 認定骨・軟部腫瘍医（人） | J39: =VLOOKUP($H39,INDEXTBL!$C$1:$O$1344,5,FALSE) -> EX060 | K39: =IFERROR(TEXT(HLOOKUP(VLOOKUP($H39,INDEXTBL!$C$1:$O$1344,5,FALSE),DATA!$C$2:$BCV$14,8,FALSE)/DATA!$H$9*1000000,"0.0"),"NA") -> 0.7 | L39: =IFERROR(TEXT(HLOOKUP(VLOOKUP($H39,INDEXTBL!$C$1:$O$1344,5,FALSE),DATA!$C$2:$BCV$14,7,FALSE)/DATA!$H$8*1000000,"0.0"),"NA") -> 1.5 | M39: =IFERROR(TEXT(MAX(OFFSET(DATA!$A$1,14,MATCH(VLOOKUP($H39,INDEXTBL!$C$1:$O$1344,5,FALSE),DATA!$A$2:$BCV$2,0)-1,47,1)/DATA!$H$15:$H$61*1000000),"0.0") &" （"& N39 & "）","NA") -> 4.2 （徳島県） | N39: =INDEX(DATA!$C$15:$C$61,MATCH(MAX(OFFSET(DATA!$A$1,14,MATCH(VLOOKUP($H39,INDEXTBL!$C$1:$O$1344,5,FALSE),DATA!$A$2:$BCV$2,0)-1,47,1)/DATA!$H$15:$H$61*1000000),OFFSET(DATA!$A$1,14,MATCH(VLOOKUP($H39,INDEXTBL!$C$1:$O$1344,5,FALSE),DATA!$A$2:$BCV$2,0)-1,47,1)/DATA!$H$15:$H$61*1000000,0)) -> 徳島県 | O39: ＊＊
F40: グラフ | H40: 提D-040108 | I40: =VLOOKUP(H40,INDEXTBL!$C$1:$O$1344,3,FALSE) -> 婦人科腫瘍専門医（人） | J40: =VLOOKUP($H40,INDEXTBL!$C$1:$O$1344,5,FALSE) -> EX061 | K40: =IFERROR(TEXT(HLOOKUP(VLOOKUP($H40,INDEXTBL!$C$1:$O$1344,5,FALSE),DATA!$C$2:$BCV$14,8,FALSE)/DATA!$H$9*1000000,"0.0"),"NA") -> 10.2 | L40: =IFERROR(TEXT(HLOOKUP(VLOOKUP($H40,INDEXTBL!$C$1:$O$1344,5,FALSE),DATA!$C$2:$BCV$14,7,FALSE)/DATA!$H$8*1000000,"0.0"),"NA") -> 10.3 | M40: =IFERROR(TEXT(MAX(OFFSET(DATA!$A$1,14,MATCH(VLOOKUP($H40,INDEXTBL!$C$1:$O$1344,5,FALSE),DATA!$A$2:$BCV$2,0)-1,47,1)/DATA!$H$15:$H$61*1000000),"0.0") &" （"& N40 & "）","NA") -> 16.2 （東京都） | N40: =INDEX(DATA!$C$15:$C$61,MATCH(MAX(OFFSET(DATA!$A$1,14,MATCH(VLOOKUP($H40,INDEXTBL!$C$1:$O$1344,5,FALSE),DATA!$A$2:$BCV$2,0)-1,47,1)/DATA!$H$15:$H$61*1000000),OFFSET(DATA!$A$1,14,MATCH(VLOOKUP($H40,INDEXTBL!$C$1:$O$1344,5,FALSE),DATA!$A$2:$BCV$2,0)-1,47,1)/DATA!$H$15:$H$61*1000000,0)) -> 東京都 | O40: ＊＊
H41: 提D-040109 | I41: =VLOOKUP(H41,INDEXTBL!$C$1:$O$1344,3,FALSE) -> 皮膚悪性腫瘍指導専門医（人） | J41: =VLOOKUP($H41,INDEXTBL!$C$1:$O$1344,5,FALSE) -> EX062 | K41: =IFERROR(TEXT(HLOOKUP(VLOOKUP($H41,INDEXTBL!$C$1:$O$1344,5,FALSE),DATA!$C$2:$BCV$14,8,FALSE)/DATA!$H$9*1000000,"0.0"),"NA") -> 1.4 | L41: =IFERROR(TEXT(HLOOKUP(VLOOKUP($H41,INDEXTBL!$C$1:$O$1344,5,FALSE),DATA!$C$2:$BCV$14,7,FALSE)/DATA!$H$8*1000000,"0.0"),"NA") -> 0.7 | M41: =IFERROR(TEXT(MAX(OFFSET(DATA!$A$1,14,MATCH(VLOOKUP($H41,INDEXTBL!$C$1:$O$1344,5,FALSE),DATA!$A$2:$BCV$2,0)-1,47,1)/DATA!$H$15:$H$61*1000000),"0.0") &" （"& N41 & "）","NA") -> 2.6 （福井県） | N41: =INDEX(DATA!$C$15:$C$61,MATCH(MAX(OFFSET(DATA!$A$1,14,MATCH(VLOOKUP($H41,INDEXTBL!$C$1:$O$1344,5,FALSE),DATA!$A$2:$BCV$2,0)-1,47,1)/DATA!$H$15:$H$61*1000000),OFFSET(DATA!$A$1,14,MATCH(VLOOKUP($H41,INDEXTBL!$C$1:$O$1344,5,FALSE),DATA!$A$2:$BCV$2,0)-1,47,1)/DATA!$H$15:$H$61*1000000,0)) -> 福井県 | O41: ＊＊
F42: グラフ | H42: 提D-040110 | I42: =VLOOKUP(H42,INDEXTBL!$C$1:$O$1344,3,FALSE) -> 泌尿器科専門医（人） | J42: =VLOOKUP($H42,INDEXTBL!$C$1:$O$1344,5,FALSE) -> EX063 | K42: =IFERROR(TEXT(HLOOKUP(VLOOKUP($H42,INDEXTBL!$C$1:$O$1344,5,FALSE),DATA!$C$2:$BCV$14,8,FALSE)/DATA!$H$9*1000000,"0.0"),"NA") -> 45.7 | L42: =IFERROR(TEXT(HLOOKUP(VLOOKUP($H42,INDEXTBL!$C$1:$O$1344,5,FALSE),DATA!$C$2:$BCV$14,7,FALSE)/DATA!$H$8*1000000,"0.0"),"NA") -> 57.0 | M42: =IFERROR(TEXT(MAX(OFFSET(DATA!$A$1,14,MATCH(VLOOKUP($H42,INDEXTBL!$C$1:$O$1344,5,FALSE),DATA!$A$2:$BCV$2,0)-1,47,1)/DATA!$H$15:$H$61*1000000),"0.0") &" （"& N42 & "）","NA") -> 91.1 （高知県） | N42: =INDEX(DATA!$C$15:$C$61,MATCH(MAX(OFFSET(DATA!$A$1,14,MATCH(VLOOKUP($H42,INDEXTBL!$C$1:$O$1344,5,FALSE),DATA!$A$2:$BCV$2,0)-1,47,1)/DATA!$H$15:$H$61*1000000),OFFSET(DATA!$A$1,14,MATCH(VLOOKUP($H42,INDEXTBL!$C$1:$O$1344,5,FALSE),DATA!$A$2:$BCV$2,0)-1,47,1)/DATA!$H$15:$H$61*1000000,0)) -> 高知県 | O42: ＊＊
H43: 提D-040111 | I43: =VLOOKUP(H43,INDEXTBL!$C$1:$O$1344,3,FALSE) -> 頭頸部がん専門医（人） | J43: =VLOOKUP($H43,INDEXTBL!$C$1:$O$1344,5,FALSE) -> EX064 | K43: =IFERROR(TEXT(HLOOKUP(VLOOKUP($H43,INDEXTBL!$C$1:$O$1344,5,FALSE),DATA!$C$2:$BCV$14,8,FALSE)/DATA!$H$9*1000000,"0.0"),"NA") -> 4.8 | L43: =IFERROR(TEXT(HLOOKUP(VLOOKUP($H43,INDEXTBL!$C$1:$O$1344,5,FALSE),DATA!$C$2:$BCV$14,7,FALSE)/DATA!$H$8*1000000,"0.0"),"NA") -> 4.5 | M43: =IFERROR(TEXT(MAX(OFFSET(DATA!$A$1,14,MATCH(VLOOKUP($H43,INDEXTBL!$C$1:$O$1344,5,FALSE),DATA!$A$2:$BCV$2,0)-1,47,1)/DATA!$H$15:$H$61*1000000),"0.0") &" （"& N43 & "）","NA") -> 34.5 （京都府） | N43: =INDEX(DATA!$C$15:$C$61,MATCH(MAX(OFFSET(DATA!$A$1,14,MATCH(VLOOKUP($H43,INDEXTBL!$C$1:$O$1344,5,FALSE),DATA!$A$2:$BCV$2,0)-1,47,1)/DATA!$H$15:$H$61*1000000),OFFSET(DATA!$A$1,14,MATCH(VLOOKUP($H43,INDEXTBL!$C$1:$O$1344,5,FALSE),DATA!$A$2:$BCV$2,0)-1,47,1)/DATA!$H$15:$H$61*1000000,0)) -> 京都府 | O43: ＊＊
F44: グラフ | H44: 提D-040112 | I44: =VLOOKUP(H44,INDEXTBL!$C$1:$O$1344,3,FALSE) -> 口腔外科専門医（人） | J44: =VLOOKUP($H44,INDEXTBL!$C$1:$O$1344,5,FALSE) -> EX065 | K44: =IFERROR(TEXT(HLOOKUP(VLOOKUP($H44,INDEXTBL!$C$1:$O$1344,5,FALSE),DATA!$C$2:$BCV$14,8,FALSE)/DATA!$H$9*1000000,"0.0"),"NA") -> 17.7 | L44: =IFERROR(TEXT(HLOOKUP(VLOOKUP($H44,INDEXTBL!$C$1:$O$1344,5,FALSE),DATA!$C$2:$BCV$14,7,FALSE)/DATA!$H$8*1000000,"0.0"),"NA") -> 18.5 | M44: =IFERROR(TEXT(MAX(OFFSET(DATA!$A$1,14,MATCH(VLOOKUP($H44,INDEXTBL!$C$1:$O$1344,5,FALSE),DATA!$A$2:$BCV$2,0)-1,47,1)/DATA!$H$15:$H$61*1000000),"0.0") &" （"& N44 & "）","NA") -> 32.5 （鳥取県） | N44: =INDEX(DATA!$C$15:$C$61,MATCH(MAX(OFFSET(DATA!$A$1,14,MATCH(VLOOKUP($H44,INDEXTBL!$C$1:$O$1344,5,FALSE),DATA!$A$2:$BCV$2,0)-1,47,1)/DATA!$H$15:$H$61*1000000),OFFSET(DATA!$A$1,14,MATCH(VLOOKUP($H44,INDEXTBL!$C$1:$O$1344,5,FALSE),DATA!$A$2:$BCV$2,0)-1,47,1)/DATA!$H$15:$H$61*1000000,0)) -> 鳥取県 | O44: ＊＊
H45: 提D-040113 | I45: =VLOOKUP(H45,INDEXTBL!$C$1:$O$1344,3,FALSE) -> 消化器外科専門医が常勤で配置されている「施設」の割合（％） | J45: =VLOOKUP($H45,INDEXTBL!$C$1:$O$1344,5,FALSE) -> EX212 | K45: =IFERROR(TEXT(HLOOKUP(J45,DATA!$C$2:$CCV$14,8,FALSE),"0.0")&"%","NA") -> 72.0% | L45: =IFERROR(HLOOKUP(VLOOKUP($H45,INDEXTBL!$C$1:$O$1344,5,FALSE),DATA!$C$2:$CCV$14,7,FALSE),"NA") -> NA | M45: =IFERROR(TEXT(MAX(OFFSET(DATA!$A$1,14,MATCH(VLOOKUP($H45,INDEXTBL!$C$1:$O$1344,5,FALSE),DATA!$A$2:$BCV$2,0)-1,47,1)/DATA!$H$15:$H$61*1000000),"0.0") &" （"& N45 & "）","NA") -> NA | N45: =INDEX(DATA!$C$15:$C$61,MATCH(MAX(OFFSET(DATA!$A$1,14,MATCH(VLOOKUP($H45,INDEXTBL!$C$1:$O$1344,5,FALSE),DATA!$A$2:$BCV$2,0)-1,47,1)/DATA!$H$15:$H$61*1000000),OFFSET(DATA!$A$1,14,MATCH(VLOOKUP($H45,INDEXTBL!$C$1:$O$1344,5,FALSE),DATA!$A$2:$BCV$2,0)-1,47,1)/DATA!$H$15:$H$61*1000000,0)) -> 
H46: 提D-040114 | I46: =VLOOKUP(H46,INDEXTBL!$C$1:$O$1344,3,FALSE) -> 呼吸器専門医が常勤で配置されている「施設」の割合（％） | J46: =VLOOKUP($H46,INDEXTBL!$C$1:$O$1344,5,FALSE) -> EX213 | K46: =IFERROR(TEXT(HLOOKUP(J46,DATA!$C$2:$CCV$14,8,FALSE),"0.0")&"%","NA") -> 40.0% | L46: =IFERROR(HLOOKUP(VLOOKUP($H46,INDEXTBL!$C$1:$O$1344,5,FALSE),DATA!$C$2:$CCV$14,7,FALSE),"NA") -> NA | M46: =IFERROR(TEXT(MAX(OFFSET(DATA!$A$1,14,MATCH(VLOOKUP($H46,INDEXTBL!$C$1:$O$1344,5,FALSE),DATA!$A$2:$BCV$2,0)-1,47,1)/DATA!$H$15:$H$61*1000000),"0.0") &" （"& N46 & "）","NA") -> NA | N46: =INDEX(DATA!$C$15:$C$61,MATCH(MAX(OFFSET(DATA!$A$1,14,MATCH(VLOOKUP($H46,INDEXTBL!$C$1:$O$1344,5,FALSE),DATA!$A$2:$BCV$2,0)-1,47,1)/DATA!$H$15:$H$61*1000000),OFFSET(DATA!$A$1,14,MATCH(VLOOKUP($H46,INDEXTBL!$C$1:$O$1344,5,FALSE),DATA!$A$2:$BCV$2,0)-1,47,1)/DATA!$H$15:$H$61*1000000,0)) -> 
H47: 提D-040115 | I47: =VLOOKUP(H47,INDEXTBL!$C$1:$O$1344,3,FALSE) -> 乳腺外科専門医が常勤で配置されている「施設」の割合（％） | J47: =VLOOKUP($H47,INDEXTBL!$C$1:$O$1344,5,FALSE) -> EX214 | K47: =IFERROR(TEXT(HLOOKUP(J47,DATA!$C$2:$CCV$14,8,FALSE),"0.0")&"%","NA") -> 40.0% | L47: =IFERROR(HLOOKUP(VLOOKUP($H47,INDEXTBL!$C$1:$O$1344,5,FALSE),DATA!$C$2:$CCV$14,7,FALSE),"NA") -> NA | M47: =IFERROR(TEXT(MAX(OFFSET(DATA!$A$1,14,MATCH(VLOOKUP($H47,INDEXTBL!$C$1:$O$1344,5,FALSE),DATA!$A$2:$BCV$2,0)-1,47,1)/DATA!$H$15:$H$61*1000000),"0.0") &" （"& N47 & "）","NA") -> NA | N47: =INDEX(DATA!$C$15:$C$61,MATCH(MAX(OFFSET(DATA!$A$1,14,MATCH(VLOOKUP($H47,INDEXTBL!$C$1:$O$1344,5,FALSE),DATA!$A$2:$BCV$2,0)-1,47,1)/DATA!$H$15:$H$61*1000000),OFFSET(DATA!$A$1,14,MATCH(VLOOKUP($H47,INDEXTBL!$C$1:$O$1344,5,FALSE),DATA!$A$2:$BCV$2,0)-1,47,1)/DATA!$H$15:$H$61*1000000,0)) -> 
H48: 提D-040116 | I48: =VLOOKUP(H48,INDEXTBL!$C$1:$O$1344,3,FALSE) -> 小児外科専門医が常勤で配置されている「施設」の割合（％） | J48: =VLOOKUP($H48,INDEXTBL!$C$1:$O$1344,5,FALSE) -> EX215 | K48: =IFERROR(TEXT(HLOOKUP(J48,DATA!$C$2:$CCV$14,8,FALSE),"0.0")&"%","NA") -> 8.0% | L48: =IFERROR(HLOOKUP(VLOOKUP($H48,INDEXTBL!$C$1:$O$1344,5,FALSE),DATA!$C$2:$CCV$14,7,FALSE),"NA") -> NA | M48: =IFERROR(TEXT(MAX(OFFSET(DATA!$A$1,14,MATCH(VLOOKUP($H48,INDEXTBL!$C$1:$O$1344,5,FALSE),DATA!$A$2:$BCV$2,0)-1,47,1)/DATA!$H$15:$H$61*1000000),"0.0") &" （"& N48 & "）","NA") -> NA | N48: =INDEX(DATA!$C$15:$C$61,MATCH(MAX(OFFSET(DATA!$A$1,14,MATCH(VLOOKUP($H48,INDEXTBL!$C$1:$O$1344,5,FALSE),DATA!$A$2:$BCV$2,0)-1,47,1)/DATA!$H$15:$H$61*1000000),OFFSET(DATA!$A$1,14,MATCH(VLOOKUP($H48,INDEXTBL!$C$1:$O$1344,5,FALSE),DATA!$A$2:$BCV$2,0)-1,47,1)/DATA!$H$15:$H$61*1000000,0)) -> 
H49: 提D-040117 | I49: =VLOOKUP(H49,INDEXTBL!$C$1:$O$1344,3,FALSE) -> 肝胆膵外科高度技能専門医が常勤で配置されている「施設」の割合（％） | J49: =VLOOKUP($H49,INDEXTBL!$C$1:$O$1344,5,FALSE) -> EX216 | K49: =IFERROR(TEXT(HLOOKUP(J49,DATA!$C$2:$CCV$14,8,FALSE),"0.0")&"%","NA") -> 12.0% | L49: =IFERROR(HLOOKUP(VLOOKUP($H49,INDEXTBL!$C$1:$O$1344,5,FALSE),DATA!$C$2:$CCV$14,7,FALSE),"NA") -> NA | M49: =IFERROR(TEXT(MAX(OFFSET(DATA!$A$1,14,MATCH(VLOOKUP($H49,INDEXTBL!$C$1:$O$1344,5,FALSE),DATA!$A$2:$BCV$2,0)-1,47,1)/DATA!$H$15:$H$61*1000000),"0.0") &" （"& N49 & "）","NA") -> NA | N49: =INDEX(DATA!$C$15:$C$61,MATCH(MAX(OFFSET(DATA!$A$1,14,MATCH(VLOOKUP($H49,INDEXTBL!$C$1:$O$1344,5,FALSE),DATA!$A$2:$BCV$2,0)-1,47,1)/DATA!$H$15:$H$61*1000000),OFFSET(DATA!$A$1,14,MATCH(VLOOKUP($H49,INDEXTBL!$C$1:$O$1344,5,FALSE),DATA!$A$2:$BCV$2,0)-1,47,1)/DATA!$H$15:$H$61*1000000,0)) -> 
H50: 提D-040118 | I50: =VLOOKUP(H50,INDEXTBL!$C$1:$O$1344,3,FALSE) -> 脳神経外科専門医が常勤で配置されている「施設」の割合（％） | J50: =VLOOKUP($H50,INDEXTBL!$C$1:$O$1344,5,FALSE) -> EX217 | K50: =IFERROR(TEXT(HLOOKUP(J50,DATA!$C$2:$CCV$14,8,FALSE),"0.0")&"%","NA") -> 60.0% | L50: =IFERROR(HLOOKUP(VLOOKUP($H50,INDEXTBL!$C$1:$O$1344,5,FALSE),DATA!$C$2:$CCV$14,7,FALSE),"NA") -> NA | M50: =IFERROR(TEXT(MAX(OFFSET(DATA!$A$1,14,MATCH(VLOOKUP($H50,INDEXTBL!$C$1:$O$1344,5,FALSE),DATA!$A$2:$BCV$2,0)-1,47,1)/DATA!$H$15:$H$61*1000000),"0.0") &" （"& N50 & "）","NA") -> NA | N50: =INDEX(DATA!$C$15:$C$61,MATCH(MAX(OFFSET(DATA!$A$1,14,MATCH(VLOOKUP($H50,INDEXTBL!$C$1:$O$1344,5,FALSE),DATA!$A$2:$BCV$2,0)-1,47,1)/DATA!$H$15:$H$61*1000000),OFFSET(DATA!$A$1,14,MATCH(VLOOKUP($H50,INDEXTBL!$C$1:$O$1344,5,FALSE),DATA!$A$2:$BCV$2,0)-1,47,1)/DATA!$H$15:$H$61*1000000,0)) -> 
H51: 提D-040119 | I51: =VLOOKUP(H51,INDEXTBL!$C$1:$O$1344,3,FALSE) -> 認定骨・軟部腫瘍医が常勤で配置されている「施設」の割合（％） | J51: =VLOOKUP($H51,INDEXTBL!$C$1:$O$1344,5,FALSE) -> EX218 | K51: =IFERROR(TEXT(HLOOKUP(J51,DATA!$C$2:$CCV$14,8,FALSE),"0.0")&"%","NA") -> 0.0% | L51: =IFERROR(HLOOKUP(VLOOKUP($H51,INDEXTBL!$C$1:$O$1344,5,FALSE),DATA!$C$2:$CCV$14,7,FALSE),"NA") -> NA | M51: =IFERROR(TEXT(MAX(OFFSET(DATA!$A$1,14,MATCH(VLOOKUP($H51,INDEXTBL!$C$1:$O$1344,5,FALSE),DATA!$A$2:$BCV$2,0)-1,47,1)/DATA!$H$15:$H$61*1000000),"0.0") &" （"& N51 & "）","NA") -> NA | N51: =INDEX(DATA!$C$15:$C$61,MATCH(MAX(OFFSET(DATA!$A$1,14,MATCH(VLOOKUP($H51,INDEXTBL!$C$1:$O$1344,5,FALSE),DATA!$A$2:$BCV$2,0)-1,47,1)/DATA!$H$15:$H$61*1000000),OFFSET(DATA!$A$1,14,MATCH(VLOOKUP($H51,INDEXTBL!$C$1:$O$1344,5,FALSE),DATA!$A$2:$BCV$2,0)-1,47,1)/DATA!$H$15:$H$61*1000000,0)) -> 
H52: 提D-040120 | I52: =VLOOKUP(H52,INDEXTBL!$C$1:$O$1344,3,FALSE) -> 婦人科腫瘍専門医が常勤で配置されている「施設」の割合（％） | J52: =VLOOKUP($H52,INDEXTBL!$C$1:$O$1344,5,FALSE) -> EX219 | K52: =IFERROR(TEXT(HLOOKUP(J52,DATA!$C$2:$CCV$14,8,FALSE),"0.0")&"%","NA") -> 28.0% | L52: =IFERROR(HLOOKUP(VLOOKUP($H52,INDEXTBL!$C$1:$O$1344,5,FALSE),DATA!$C$2:$CCV$14,7,FALSE),"NA") -> NA | M52: =IFERROR(TEXT(MAX(OFFSET(DATA!$A$1,14,MATCH(VLOOKUP($H52,INDEXTBL!$C$1:$O$1344,5,FALSE),DATA!$A$2:$BCV$2,0)-1,47,1)/DATA!$H$15:$H$61*1000000),"0.0") &" （"& N52 & "）","NA") -> NA | N52: =INDEX(DATA!$C$15:$C$61,MATCH(MAX(OFFSET(DATA!$A$1,14,MATCH(VLOOKUP($H52,INDEXTBL!$C$1:$O$1344,5,FALSE),DATA!$A$2:$BCV$2,0)-1,47,1)/DATA!$H$15:$H$61*1000000),OFFSET(DATA!$A$1,14,MATCH(VLOOKUP($H52,INDEXTBL!$C$1:$O$1344,5,FALSE),DATA!$A$2:$BCV$2,0)-1,47,1)/DATA!$H$15:$H$61*1000000,0)) -> 
H53: 提D-040121 | I53: =VLOOKUP(H53,INDEXTBL!$C$1:$O$1344,3,FALSE) -> 皮膚悪性腫瘍指導専門医が常勤で配置されている「施設」の割合（％） | J53: =VLOOKUP($H53,INDEXTBL!$C$1:$O$1344,5,FALSE) -> EX220 | K53: =IFERROR(TEXT(HLOOKUP(J53,DATA!$C$2:$CCV$14,8,FALSE),"0.0")&"%","NA") -> 4.0% | L53: =IFERROR(HLOOKUP(VLOOKUP($H53,INDEXTBL!$C$1:$O$1344,5,FALSE),DATA!$C$2:$CCV$14,7,FALSE),"NA") -> NA | M53: =IFERROR(TEXT(MAX(OFFSET(DATA!$A$1,14,MATCH(VLOOKUP($H53,INDEXTBL!$C$1:$O$1344,5,FALSE),DATA!$A$2:$BCV$2,0)-1,47,1)/DATA!$H$15:$H$61*1000000),"0.0") &" （"& N53 & "）","NA") -> NA | N53: =INDEX(DATA!$C$15:$C$61,MATCH(MAX(OFFSET(DATA!$A$1,14,MATCH(VLOOKUP($H53,INDEXTBL!$C$1:$O$1344,5,FALSE),DATA!$A$2:$BCV$2,0)-1,47,1)/DATA!$H$15:$H$61*1000000),OFFSET(DATA!$A$1,14,MATCH(VLOOKUP($H53,INDEXTBL!$C$1:$O$1344,5,FALSE),DATA!$A$2:$BCV$2,0)-1,47,1)/DATA!$H$15:$H$61*1000000,0)) -> 
H54: 提D-040122 | I54: =VLOOKUP(H54,INDEXTBL!$C$1:$O$1344,3,FALSE) -> 泌尿器科専門医が常勤で配置されている「施設」の割合（％） | J54: =VLOOKUP($H54,INDEXTBL!$C$1:$O$1344,5,FALSE) -> EX221 | K54: =IFERROR(TEXT(HLOOKUP(J54,DATA!$C$2:$CCV$14,8,FALSE),"0.0")&"%","NA") -> 56.0% | L54: =IFERROR(HLOOKUP(VLOOKUP($H54,INDEXTBL!$C$1:$O$1344,5,FALSE),DATA!$C$2:$CCV$14,7,FALSE),"NA") -> NA | M54: =IFERROR(TEXT(MAX(OFFSET(DATA!$A$1,14,MATCH(VLOOKUP($H54,INDEXTBL!$C$1:$O$1344,5,FALSE),DATA!$A$2:$BCV$2,0)-1,47,1)/DATA!$H$15:$H$61*1000000),"0.0") &" （"& N54 & "）","NA") -> NA | N54: =INDEX(DATA!$C$15:$C$61,MATCH(MAX(OFFSET(DATA!$A$1,14,MATCH(VLOOKUP($H54,INDEXTBL!$C$1:$O$1344,5,FALSE),DATA!$A$2:$BCV$2,0)-1,47,1)/DATA!$H$15:$H$61*1000000),OFFSET(DATA!$A$1,14,MATCH(VLOOKUP($H54,INDEXTBL!$C$1:$O$1344,5,FALSE),DATA!$A$2:$BCV$2,0)-1,47,1)/DATA!$H$15:$H$61*1000000,0)) -> 
H55: 提D-040123 | I55: =VLOOKUP(H55,INDEXTBL!$C$1:$O$1344,3,FALSE) -> 頭頸部がん専門医が常勤で配置されている「施設」の割合（％） | J55: =VLOOKUP($H55,INDEXTBL!$C$1:$O$1344,5,FALSE) -> EX222 | K55: =IFERROR(TEXT(HLOOKUP(J55,DATA!$C$2:$CCV$14,8,FALSE),"0.0")&"%","NA") -> 8.0% | L55: =IFERROR(HLOOKUP(VLOOKUP($H55,INDEXTBL!$C$1:$O$1344,5,FALSE),DATA!$C$2:$CCV$14,7,FALSE),"NA") -> NA | M55: =IFERROR(TEXT(MAX(OFFSET(DATA!$A$1,14,MATCH(VLOOKUP($H55,INDEXTBL!$C$1:$O$1344,5,FALSE),DATA!$A$2:$BCV$2,0)-1,47,1)/DATA!$H$15:$H$61*1000000),"0.0") &" （"& N55 & "）","NA") -> NA | N55: =INDEX(DATA!$C$15:$C$61,MATCH(MAX(OFFSET(DATA!$A$1,14,MATCH(VLOOKUP($H55,INDEXTBL!$C$1:$O$1344,5,FALSE),DATA!$A$2:$BCV$2,0)-1,47,1)/DATA!$H$15:$H$61*1000000),OFFSET(DATA!$A$1,14,MATCH(VLOOKUP($H55,INDEXTBL!$C$1:$O$1344,5,FALSE),DATA!$A$2:$BCV$2,0)-1,47,1)/DATA!$H$15:$H$61*1000000,0)) -> 
H56: 提D-040124 | I56: =VLOOKUP(H56,INDEXTBL!$C$1:$O$1344,3,FALSE) -> 口腔外科専門医が常勤で配置されている「施設」の割合（％） | J56: =VLOOKUP($H56,INDEXTBL!$C$1:$O$1344,5,FALSE) -> EX223 | K56: =IFERROR(TEXT(HLOOKUP(J56,DATA!$C$2:$CCV$14,8,FALSE),"0.0")&"%","NA") -> 36.0% | L56: =IFERROR(HLOOKUP(VLOOKUP($H56,INDEXTBL!$C$1:$O$1344,5,FALSE),DATA!$C$2:$CCV$14,7,FALSE),"NA") -> NA | M56: =IFERROR(TEXT(MAX(OFFSET(DATA!$A$1,14,MATCH(VLOOKUP($H56,INDEXTBL!$C$1:$O$1344,5,FALSE),DATA!$A$2:$BCV$2,0)-1,47,1)/DATA!$H$15:$H$61*1000000),"0.0") &" （"& N56 & "）","NA") -> NA | N56: =INDEX(DATA!$C$15:$C$61,MATCH(MAX(OFFSET(DATA!$A$1,14,MATCH(VLOOKUP($H56,INDEXTBL!$C$1:$O$1344,5,FALSE),DATA!$A$2:$BCV$2,0)-1,47,1)/DATA!$H$15:$H$61*1000000),OFFSET(DATA!$A$1,14,MATCH(VLOOKUP($H56,INDEXTBL!$C$1:$O$1344,5,FALSE),DATA!$A$2:$BCV$2,0)-1,47,1)/DATA!$H$15:$H$61*1000000,0)) -> 
E57: 提D-0402 | I57: =VLOOKUP(E57,INDEXTBL!$A$1:$O$1344,2,FALSE) -> 「施設」では、標準治療を質が高く安全に実施する | K57: 沖縄県 | L57: 全国 | M57: 最良値 （都道府県）
H58: 提D-040125 | I58: =VLOOKUP(H58,INDEXTBL!$C$1:$O$1344,3,FALSE) -> 厚生労働省院内感染対策サーベイランス事業(JANIS)へ登録している「施設」の割合（％） | J58: =VLOOKUP($H58,INDEXTBL!$C$1:$O$1344,5,FALSE) -> EX224 | K58: =IFERROR(TEXT(HLOOKUP(J58,DATA!$C$2:$CCV$14,8,FALSE),"0.0")&"%","NA") -> 64.0% | L58: =IFERROR(HLOOKUP(VLOOKUP($H58,INDEXTBL!$C$1:$O$1344,5,FALSE),DATA!$C$2:$CCV$14,7,FALSE),"NA") -> NA | M58: =IFERROR(TEXT(MAX(OFFSET(DATA!$A$1,14,MATCH(VLOOKUP($H58,INDEXTBL!$C$1:$O$1344,5,FALSE),DATA!$A$2:$BCV$2,0)-1,47,1)/DATA!$H$15:$H$61*1000000),"0.0") &" （"& N58 & "）","NA") -> NA | N58: =INDEX(DATA!$C$15:$C$61,MATCH(MAX(OFFSET(DATA!$A$1,14,MATCH(VLOOKUP($H58,INDEXTBL!$C$1:$O$1344,5,FALSE),DATA!$A$2:$BCV$2,0)-1,47,1)/DATA!$H$15:$H$61*1000000),OFFSET(DATA!$A$1,14,MATCH(VLOOKUP($H58,INDEXTBL!$C$1:$O$1344,5,FALSE),DATA!$A$2:$BCV$2,0)-1,47,1)/DATA!$H$15:$H$61*1000000,0)) -> 
E59: 提D-0403 | I59: =VLOOKUP(E59,INDEXTBL!$A$1:$O$1344,2,FALSE) -> 高い技術を要する手術療法について、集約化を行う | K59: 沖縄県 | L59: 全国 | M59: 最良値 （都道府県）
H60: 提D-040126 | I60: =VLOOKUP(H60,INDEXTBL!$C$1:$O$1344,3,FALSE) -> 食道、肝胆膵の手術を「施設」で行った患者の割合（％） | J60: =VLOOKUP($H60,INDEXTBL!$C$1:$O$1344,5,FALSE) -> 0 | K60: =IFERROR(HLOOKUP(VLOOKUP($H60,INDEXTBL!$C$1:$O$1344,5,FALSE),DATA!$C$2:$CCV$14,8,FALSE),"NA") -> NA | L60: =IFERROR(HLOOKUP(VLOOKUP($H60,INDEXTBL!$C$1:$O$1344,5,FALSE),DATA!$C$2:$CCV$14,7,FALSE),"NA") -> NA | M60: =IFERROR(HLOOKUP(VLOOKUP($H60,INDEXTBL!$C$1:$O$1344,5,FALSE),DATA!$C$2:$CCV$14,10,FALSE),"NA") -> NA
M61: ＊＊：人口100万人あたり
E62: ⑤放射線療法
E63: 提D-0501 | I63: =VLOOKUP(E63,INDEXTBL!$A$1:$O$1344,2,FALSE) -> 必要な資格を持った専門家を計画的に養成し、「施設」に必要に応じて配置する | K63: 沖縄県 | L63: 全国 | M63: 最良値 （都道府県） | Q63: 提B-0501 | U63: =VLOOKUP(Q63,INDEXTBL!$A$1:$O$1344,2,FALSE) -> 必要な患者が、最適な放射線治療をタイムリーで質が高く安全に受けられている | W63: 沖縄県 | X63: 全国 | Y63: 最良値 （都道府県）
H64: 提D-050101 | I64: =VLOOKUP(H64,INDEXTBL!$C$1:$O$1344,3,FALSE) -> 放射線治療専門医が何らかの形で週に1回以上または月に1回以上関わっている「施設」の割合（％） | J64: =VLOOKUP($H64,INDEXTBL!$C$1:$O$1344,5,FALSE) -> EX225 | K64: =IFERROR(TEXT(HLOOKUP(J64,DATA!$C$2:$CCV$14,8,FALSE),"0.0")&"%","NA") -> 36.0% | L64: =IFERROR(HLOOKUP(VLOOKUP($H64,INDEXTBL!$C$1:$O$1344,5,FALSE),DATA!$C$2:$CCV$14,7,FALSE),"NA") -> NA | M64: =IFERROR(TEXT(MAX(OFFSET(DATA!$A$1,14,MATCH(VLOOKUP($H64,INDEXTBL!$C$1:$O$1344,5,FALSE),DATA!$A$2:$BCV$2,0)-1,47,1)/DATA!$H$15:$H$61*1000000),"0.0") &" （"& N64 & "）","NA") -> NA | N64: =INDEX(DATA!$C$15:$C$61,MATCH(MAX(OFFSET(DATA!$A$1,14,MATCH(VLOOKUP($H64,INDEXTBL!$C$1:$O$1344,5,FALSE),DATA!$A$2:$BCV$2,0)-1,47,1)/DATA!$H$15:$H$61*1000000),OFFSET(DATA!$A$1,14,MATCH(VLOOKUP($H64,INDEXTBL!$C$1:$O$1344,5,FALSE),DATA!$A$2:$BCV$2,0)-1,47,1)/DATA!$H$15:$H$61*1000000,0)) ->  | R64: グラフ | T64: 提B-050101 | U64: =VLOOKUP(T64,INDEXTBL!$C$1:$O$1344,3,FALSE) -> （DPC-QI）乳房温存術後の放射線療法 実施率（％） | V64: =VLOOKUP(T64,INDEXTBL!$C$1:$O$1344,9,FALSE) -> 乳78 | W64: =IFERROR(TEXT(HLOOKUP(VLOOKUP($T64,INDEXTBL!$C$1:$O$1344,9,FALSE),DATA!$C$2:$AZH$14,8,FALSE)*100,"0.0")&"%","NA") -> 50.0% | X64: =IFERROR(TEXT(HLOOKUP(VLOOKUP($T64,INDEXTBL!$C$1:$O$1344,9,FALSE),DATA!$C$2:$AZH$14,7,FALSE),"0.0")&"%","NA") -> 98.6% | Y64: =IFERROR(TEXT(_xlfn.AGGREGATE(4,7,OFFSET(DATA!$A$1,14,MATCH(VLOOKUP($T64,INDEXTBL!$C$1:$O$1344,9,FALSE),DATA!$A$2:$AZH$2,0)-1,47,1))*100,"0.0")&"%" &" （"& Z64 & "）","NA") -> 100.0% （青森県） | Z64: =INDEX(DATA!$C$15:$C$61,MATCH(_xlfn.AGGREGATE(4,7,OFFSET(DATA!$A$1,14,MATCH(VLOOKUP($T64,INDEXTBL!$C$1:$O$1344,9,FALSE),DATA!$A$2:$AZH$2,0)-1,47,1)),OFFSET(DATA!$A$1,14,MATCH(VLOOKUP($T64,INDEXTBL!$C$1:$O$1344,9,FALSE),DATA!$A$2:$AZH$2,0)-1,47,1),0)) -> 青森県
H65: 提D-050102 | I65: =VLOOKUP(H65,INDEXTBL!$C$1:$O$1344,3,FALSE) -> 放射線治療専門医（人） | J65: =VLOOKUP($H65,INDEXTBL!$C$1:$O$1344,5,FALSE) -> EX066 | K65: =IFERROR(TEXT(HLOOKUP(VLOOKUP($H65,INDEXTBL!$C$1:$O$1344,5,FALSE),DATA!$C$2:$BCV$14,8,FALSE)/DATA!$H$9*1000000,"0.0"),"NA") -> 10.2 | L65: =IFERROR(TEXT(HLOOKUP(VLOOKUP($H65,INDEXTBL!$C$1:$O$1344,5,FALSE),DATA!$C$2:$BCV$14,7,FALSE)/DATA!$H$8*1000000,"0.0"),"NA") -> 11.4 | M65: =IFERROR(TEXT(MAX(OFFSET(DATA!$A$1,14,MATCH(VLOOKUP($H65,INDEXTBL!$C$1:$O$1344,5,FALSE),DATA!$A$2:$BCV$2,0)-1,47,1)/DATA!$H$15:$H$61*1000000),"0.0") &" （"& N65 & "）","NA") -> 22.1 （京都府） | N65: =INDEX(DATA!$C$15:$C$61,MATCH(MAX(OFFSET(DATA!$A$1,14,MATCH(VLOOKUP($H65,INDEXTBL!$C$1:$O$1344,5,FALSE),DATA!$A$2:$BCV$2,0)-1,47,1)/DATA!$H$15:$H$61*1000000),OFFSET(DATA!$A$1,14,MATCH(VLOOKUP($H65,INDEXTBL!$C$1:$O$1344,5,FALSE),DATA!$A$2:$BCV$2,0)-1,47,1)/DATA!$H$15:$H$61*1000000,0)) -> 京都府 | O65: ＊＊ | R65: グラフ | T65: 提B-050102 | U65: =VLOOKUP(T65,INDEXTBL!$C$1:$O$1344,3,FALSE) -> （DPC-QI）70歳以下III期非小細胞肺癌に対する同時化学放射線療法 実施率（％） | V65: =VLOOKUP(T65,INDEXTBL!$C$1:$O$1344,7,FALSE) -> 肺100 | W65: =IFERROR(TEXT(HLOOKUP(VLOOKUP($T65,INDEXTBL!$C$1:$O$1344,7,FALSE),DATA!$C$2:$AZH$14,8,FALSE)*100,"0.0")&"%","NA") -> 44.4% | X65: =IFERROR(TEXT(HLOOKUP(VLOOKUP($T65,INDEXTBL!$C$1:$O$1344,7,FALSE),DATA!$C$2:$AZH$14,7,FALSE)*100,"0.0")&"%","NA") -> 96.7% | Y65: =IFERROR(TEXT(_xlfn.AGGREGATE(4,7,OFFSET(DATA!$A$1,14,MATCH(VLOOKUP($T65,INDEXTBL!$C$1:$O$1344,7,FALSE),DATA!$A$2:$AZH$2,0)-1,47,1))*100,"0.0")&"%" &" （"& Z65 & "）","NA") -> 100.0% （青森県） | Z65: =INDEX(DATA!$C$15:$C$61,MATCH(_xlfn.AGGREGATE(4,7,OFFSET(DATA!$A$1,14,MATCH(VLOOKUP($T65,INDEXTBL!$C$1:$O$1344,7,FALSE),DATA!$A$2:$AZH$2,0)-1,47,1)),OFFSET(DATA!$A$1,14,MATCH(VLOOKUP($T65,INDEXTBL!$C$1:$O$1344,7,FALSE),DATA!$A$2:$AZH$2,0)-1,47,1),0)) -> 青森県
F66: グラフ | H66: 提D-050103 | I66: =VLOOKUP(H66,INDEXTBL!$C$1:$O$1344,3,FALSE) -> 放射線治療専門放射線技師（人：常勤換算） | J66: =VLOOKUP($H66,INDEXTBL!$C$1:$O$1344,5,FALSE) -> EX067 | K66: =IFERROR(TEXT(HLOOKUP(VLOOKUP($H66,INDEXTBL!$C$1:$O$1344,5,FALSE),DATA!$C$2:$BCV$14,8,FALSE)/DATA!$H$9*1000000,"0.0"),"NA") -> 8.9 | L66: =IFERROR(TEXT(HLOOKUP(VLOOKUP($H66,INDEXTBL!$C$1:$O$1344,5,FALSE),DATA!$C$2:$BCV$14,7,FALSE)/DATA!$H$8*1000000,"0.0"),"NA") -> 15.4 | M66: =IFERROR(TEXT(MAX(OFFSET(DATA!$A$1,14,MATCH(VLOOKUP($H66,INDEXTBL!$C$1:$O$1344,5,FALSE),DATA!$A$2:$BCV$2,0)-1,47,1)/DATA!$H$15:$H$61*1000000),"0.0") &" （"& N66 & "）","NA") -> 32.3 （秋田県） | N66: =INDEX(DATA!$C$15:$C$61,MATCH(MAX(OFFSET(DATA!$A$1,14,MATCH(VLOOKUP($H66,INDEXTBL!$C$1:$O$1344,5,FALSE),DATA!$A$2:$BCV$2,0)-1,47,1)/DATA!$H$15:$H$61*1000000),OFFSET(DATA!$A$1,14,MATCH(VLOOKUP($H66,INDEXTBL!$C$1:$O$1344,5,FALSE),DATA!$A$2:$BCV$2,0)-1,47,1)/DATA!$H$15:$H$61*1000000,0)) -> 秋田県 | O66: ＊＊ | R66: グラフ | T66: 提B-050103 | U66: =VLOOKUP(T66,INDEXTBL!$C$1:$O$1344,3,FALSE) -> （DPC-QI）Ⅰ期非小細胞癌の非手術例に対する定位放射線治療 実施率（％） | V66: =VLOOKUP(T66,INDEXTBL!$C$1:$O$1344,7,FALSE) -> 肺104 | W66: =IFERROR(TEXT(HLOOKUP(VLOOKUP($T66,INDEXTBL!$C$1:$O$1344,7,FALSE),DATA!$C$2:$AZH$14,8,FALSE)*100,"0.0")&"%","NA") -> 100.0% | X66: =IFERROR(TEXT(HLOOKUP(VLOOKUP($T66,INDEXTBL!$C$1:$O$1344,7,FALSE),DATA!$C$2:$AZH$14,7,FALSE)*100,"0.0")&"%","NA") -> 98.6% | Y66: =IFERROR(TEXT(_xlfn.AGGREGATE(4,7,OFFSET(DATA!$A$1,14,MATCH(VLOOKUP($T66,INDEXTBL!$C$1:$O$1344,7,FALSE),DATA!$A$2:$AZH$2,0)-1,47,1))*100,"0.0")&"%" &" （"& Z66 & "）","NA") -> 100.0% （青森県） | Z66: =INDEX(DATA!$C$15:$C$61,MATCH(_xlfn.AGGREGATE(4,7,OFFSET(DATA!$A$1,14,MATCH(VLOOKUP($T66,INDEXTBL!$C$1:$O$1344,7,FALSE),DATA!$A$2:$AZH$2,0)-1,47,1)),OFFSET(DATA!$A$1,14,MATCH(VLOOKUP($T66,INDEXTBL!$C$1:$O$1344,7,FALSE),DATA!$A$2:$AZH$2,0)-1,47,1),0)) -> 青森県
H67: 提D-050104 | I67: =VLOOKUP(H67,INDEXTBL!$C$1:$O$1344,3,FALSE) -> 医学物理士（人） | J67: =VLOOKUP($H67,INDEXTBL!$C$1:$O$1344,5,FALSE) -> EX068 | K67: =IFERROR(TEXT(HLOOKUP(VLOOKUP($H67,INDEXTBL!$C$1:$O$1344,5,FALSE),DATA!$C$2:$BCV$14,8,FALSE)/DATA!$H$9*1000000,"0.0"),"NA") -> 6.1 | L67: =IFERROR(TEXT(HLOOKUP(VLOOKUP($H67,INDEXTBL!$C$1:$O$1344,5,FALSE),DATA!$C$2:$BCV$14,7,FALSE)/DATA!$H$8*1000000,"0.0"),"NA") -> 11.6 | M67: =IFERROR(TEXT(MAX(OFFSET(DATA!$A$1,14,MATCH(VLOOKUP($H67,INDEXTBL!$C$1:$O$1344,5,FALSE),DATA!$A$2:$BCV$2,0)-1,47,1)/DATA!$H$15:$H$61*1000000),"0.0") &" （"& N67 & "）","NA") -> 23.5 （福井県） | N67: =INDEX(DATA!$C$15:$C$61,MATCH(MAX(OFFSET(DATA!$A$1,14,MATCH(VLOOKUP($H67,INDEXTBL!$C$1:$O$1344,5,FALSE),DATA!$A$2:$BCV$2,0)-1,47,1)/DATA!$H$15:$H$61*1000000),OFFSET(DATA!$A$1,14,MATCH(VLOOKUP($H67,INDEXTBL!$C$1:$O$1344,5,FALSE),DATA!$A$2:$BCV$2,0)-1,47,1)/DATA!$H$15:$H$61*1000000,0)) -> 福井県 | O67: ＊＊ | T67: 提B-050104 | U67: =VLOOKUP(T67,INDEXTBL!$C$1:$O$1344,3,FALSE) -> （医療者調査）放射線治療の適応の判断を多職種で議論された上で提供できた患者の割合が75%以上であると回答した人の割合（％） | V67: =VLOOKUP(T67,INDEXTBL!$C$1:$O$1344,13,FALSE) -> 医24 | W67: =IFERROR(TEXT(HLOOKUP(VLOOKUP($T67,INDEXTBL!$C$1:$O$1344,13,FALSE),DATA!$C$2:$AZH$14,8,FALSE)*100,"0.0")&"%","NA") -> 65.3% | X67: =IFERROR(TEXT(HLOOKUP(VLOOKUP($T67,INDEXTBL!$C$1:$O$1344,13,FALSE),DATA!$C$2:$AZH$14,7,FALSE)*100,"0.0")&"%","NA") -> NA | Y67: =IFERROR(TEXT(_xlfn.AGGREGATE(4,7,OFFSET(DATA!$A$1,14,MATCH(VLOOKUP($T67,INDEXTBL!$C$1:$O$1344,13,FALSE),DATA!$A$2:$AZH$2,0)-1,47,1)),"0.0") &" （"& Z67 & "）","NA") -> NA | Z67: =INDEX(DATA!$C$15:$C$61,MATCH(_xlfn.AGGREGATE(4,7,OFFSET(DATA!$A$1,14,MATCH(VLOOKUP($T67,INDEXTBL!$C$1:$O$1344,13,FALSE),DATA!$A$2:$AZH$2,0)-1,47,1)),OFFSET(DATA!$A$1,14,MATCH(VLOOKUP($T67,INDEXTBL!$C$1:$O$1344,13,FALSE),DATA!$A$2:$AZH$2,0)-1,47,1),0)) -> 
F68: グラフ | H68: 提D-050105 | I68: =VLOOKUP(H68,INDEXTBL!$C$1:$O$1344,3,FALSE) -> がん放射線療法看護認定看護師（人） | J68: =VLOOKUP($H68,INDEXTBL!$C$1:$O$1344,5,FALSE) -> EX069 | K68: =IFERROR(TEXT(HLOOKUP(VLOOKUP($H68,INDEXTBL!$C$1:$O$1344,5,FALSE),DATA!$C$2:$BCV$14,8,FALSE)/DATA!$H$9*1000000,"0.0"),"NA") -> 5.5 | L68: =IFERROR(TEXT(HLOOKUP(VLOOKUP($H68,INDEXTBL!$C$1:$O$1344,5,FALSE),DATA!$C$2:$BCV$14,7,FALSE)/DATA!$H$8*1000000,"0.0"),"NA") -> 3.3 | M68: =IFERROR(TEXT(MAX(OFFSET(DATA!$A$1,14,MATCH(VLOOKUP($H68,INDEXTBL!$C$1:$O$1344,5,FALSE),DATA!$A$2:$BCV$2,0)-1,47,1)/DATA!$H$15:$H$61*1000000),"0.0") &" （"& N68 & "）","NA") -> 7.5 （山形県） | N68: =INDEX(DATA!$C$15:$C$61,MATCH(MAX(OFFSET(DATA!$A$1,14,MATCH(VLOOKUP($H68,INDEXTBL!$C$1:$O$1344,5,FALSE),DATA!$A$2:$BCV$2,0)-1,47,1)/DATA!$H$15:$H$61*1000000),OFFSET(DATA!$A$1,14,MATCH(VLOOKUP($H68,INDEXTBL!$C$1:$O$1344,5,FALSE),DATA!$A$2:$BCV$2,0)-1,47,1)/DATA!$H$15:$H$61*1000000,0)) -> 山形県 | O68: ＊＊
H69: 提D-050106 | I69: =VLOOKUP(H69,INDEXTBL!$C$1:$O$1344,3,FALSE) -> 放射線治療専門医2名以上が常勤で配置されている放射線治療施設の割合（％） | J69: =VLOOKUP($H69,INDEXTBL!$C$1:$O$1344,5,FALSE) -> EX226 | K69: =IFERROR(TEXT(HLOOKUP(J69,DATA!$C$2:$CCV$14,8,FALSE),"0.0")&"%","NA") -> 20.0% | L69: =IFERROR(HLOOKUP(VLOOKUP($H69,INDEXTBL!$C$1:$O$1344,5,FALSE),DATA!$C$2:$CCV$14,7,FALSE),"NA") -> NA | M69: =IFERROR(TEXT(MAX(OFFSET(DATA!$A$1,14,MATCH(VLOOKUP($H69,INDEXTBL!$C$1:$O$1344,5,FALSE),DATA!$A$2:$BCV$2,0)-1,47,1)/DATA!$H$15:$H$61*1000000),"0.0") &" （"& N69 & "）","NA") -> NA | N69: =INDEX(DATA!$C$15:$C$61,MATCH(MAX(OFFSET(DATA!$A$1,14,MATCH(VLOOKUP($H69,INDEXTBL!$C$1:$O$1344,5,FALSE),DATA!$A$2:$BCV$2,0)-1,47,1)/DATA!$H$15:$H$61*1000000),OFFSET(DATA!$A$1,14,MATCH(VLOOKUP($H69,INDEXTBL!$C$1:$O$1344,5,FALSE),DATA!$A$2:$BCV$2,0)-1,47,1)/DATA!$H$15:$H$61*1000000,0)) -> 
H70: 提D-050107 | I70: =VLOOKUP(H70,INDEXTBL!$C$1:$O$1344,3,FALSE) -> 放射線治療専門放射線技師2名以上が常勤で配置されている放射線治療施設の割合（％） | J70: =VLOOKUP($H70,INDEXTBL!$C$1:$O$1344,5,FALSE) -> EX227 | K70: =IFERROR(TEXT(HLOOKUP(J70,DATA!$C$2:$CCV$14,8,FALSE),"0.0")&"%","NA") -> 60.0% | L70: =IFERROR(HLOOKUP(VLOOKUP($H70,INDEXTBL!$C$1:$O$1344,5,FALSE),DATA!$C$2:$CCV$14,7,FALSE),"NA") -> NA | M70: =IFERROR(TEXT(MAX(OFFSET(DATA!$A$1,14,MATCH(VLOOKUP($H70,INDEXTBL!$C$1:$O$1344,5,FALSE),DATA!$A$2:$BCV$2,0)-1,47,1)/DATA!$H$15:$H$61*1000000),"0.0") &" （"& N70 & "）","NA") -> NA | N70: =INDEX(DATA!$C$15:$C$61,MATCH(MAX(OFFSET(DATA!$A$1,14,MATCH(VLOOKUP($H70,INDEXTBL!$C$1:$O$1344,5,FALSE),DATA!$A$2:$BCV$2,0)-1,47,1)/DATA!$H$15:$H$61*1000000),OFFSET(DATA!$A$1,14,MATCH(VLOOKUP($H70,INDEXTBL!$C$1:$O$1344,5,FALSE),DATA!$A$2:$BCV$2,0)-1,47,1)/DATA!$H$15:$H$61*1000000,0)) -> 
H71: 提D-050108 | I71: =VLOOKUP(H71,INDEXTBL!$C$1:$O$1344,3,FALSE) -> 医学物理士が常勤で配置されている放射線治療施設の割合（％） | J71: =VLOOKUP($H71,INDEXTBL!$C$1:$O$1344,5,FALSE) -> EX228 | K71: =IFERROR(TEXT(HLOOKUP(J71,DATA!$C$2:$CCV$14,8,FALSE),"0.0")&"%","NA") -> 40.0% | L71: =IFERROR(HLOOKUP(VLOOKUP($H71,INDEXTBL!$C$1:$O$1344,5,FALSE),DATA!$C$2:$CCV$14,7,FALSE),"NA") -> NA | M71: =IFERROR(TEXT(MAX(OFFSET(DATA!$A$1,14,MATCH(VLOOKUP($H71,INDEXTBL!$C$1:$O$1344,5,FALSE),DATA!$A$2:$BCV$2,0)-1,47,1)/DATA!$H$15:$H$61*1000000),"0.0") &" （"& N71 & "）","NA") -> NA | N71: =INDEX(DATA!$C$15:$C$61,MATCH(MAX(OFFSET(DATA!$A$1,14,MATCH(VLOOKUP($H71,INDEXTBL!$C$1:$O$1344,5,FALSE),DATA!$A$2:$BCV$2,0)-1,47,1)/DATA!$H$15:$H$61*1000000),OFFSET(DATA!$A$1,14,MATCH(VLOOKUP($H71,INDEXTBL!$C$1:$O$1344,5,FALSE),DATA!$A$2:$BCV$2,0)-1,47,1)/DATA!$H$15:$H$61*1000000,0)) -> 
H72: 提D-050109 | I72: =VLOOKUP(H72,INDEXTBL!$C$1:$O$1344,3,FALSE) -> がん放射線療法看護認定看護師常勤で配置されている放射線治療施設の割合（％） | J72: =VLOOKUP($H72,INDEXTBL!$C$1:$O$1344,5,FALSE) -> EX229 | K72: =IFERROR(TEXT(HLOOKUP(J72,DATA!$C$2:$CCV$14,8,FALSE),"0.0")&"%","NA") -> 60.0% | L72: =IFERROR(HLOOKUP(VLOOKUP($H72,INDEXTBL!$C$1:$O$1344,5,FALSE),DATA!$C$2:$CCV$14,7,FALSE),"NA") -> NA | M72: =IFERROR(TEXT(MAX(OFFSET(DATA!$A$1,14,MATCH(VLOOKUP($H72,INDEXTBL!$C$1:$O$1344,5,FALSE),DATA!$A$2:$BCV$2,0)-1,47,1)/DATA!$H$15:$H$61*1000000),"0.0") &" （"& N72 & "）","NA") -> NA | N72: =INDEX(DATA!$C$15:$C$61,MATCH(MAX(OFFSET(DATA!$A$1,14,MATCH(VLOOKUP($H72,INDEXTBL!$C$1:$O$1344,5,FALSE),DATA!$A$2:$BCV$2,0)-1,47,1)/DATA!$H$15:$H$61*1000000),OFFSET(DATA!$A$1,14,MATCH(VLOOKUP($H72,INDEXTBL!$C$1:$O$1344,5,FALSE),DATA!$A$2:$BCV$2,0)-1,47,1)/DATA!$H$15:$H$61*1000000,0)) -> 
E73: 提D-0502 | I73: =VLOOKUP(E73,INDEXTBL!$A$1:$O$1344,2,FALSE) -> 放射線療法が可能な全ての医療機関において、IMRTを含む標準治療を行う | K73: 沖縄県 | L73: 全国 | M73: 最良値 （都道府県）
H74: 提D-050201 | I74: =VLOOKUP(H74,INDEXTBL!$C$1:$O$1344,3,FALSE) -> IMRT加算をとっている放射線治療施設の割合（％） | J74: =VLOOKUP($H74,INDEXTBL!$C$1:$O$1344,5,FALSE) -> EX230 | K74: =IFERROR(TEXT(HLOOKUP(J74,DATA!$C$2:$CCV$14,8,FALSE),"0.0")&"%","NA") -> 27.3% | L74: =IFERROR(HLOOKUP(VLOOKUP($H74,INDEXTBL!$C$1:$O$1344,5,FALSE),DATA!$C$2:$CCV$14,7,FALSE),"NA") -> NA | M74: =IFERROR(TEXT(MAX(OFFSET(DATA!$A$1,14,MATCH(VLOOKUP($H74,INDEXTBL!$C$1:$O$1344,5,FALSE),DATA!$A$2:$BCV$2,0)-1,47,1)/DATA!$H$15:$H$61*1000000),"0.0") &" （"& N74 & "）","NA") -> NA | N74: =INDEX(DATA!$C$15:$C$61,MATCH(MAX(OFFSET(DATA!$A$1,14,MATCH(VLOOKUP($H74,INDEXTBL!$C$1:$O$1344,5,FALSE),DATA!$A$2:$BCV$2,0)-1,47,1)/DATA!$H$15:$H$61*1000000),OFFSET(DATA!$A$1,14,MATCH(VLOOKUP($H74,INDEXTBL!$C$1:$O$1344,5,FALSE),DATA!$A$2:$BCV$2,0)-1,47,1)/DATA!$H$15:$H$61*1000000,0)) -> 
E75: 提D-0503 | I75: =VLOOKUP(E75,INDEXTBL!$A$1:$O$1344,2,FALSE) -> 「施設」では、粒子線治療や核医学治療、ホウ素中性子捕捉療法等について、適切に患者を紹介する | K75: 沖縄県 | L75: 全国 | M75: 最良値 （都道府県）
H76: 提D-050301 | I76: =VLOOKUP(H76,INDEXTBL!$C$1:$O$1344,3,FALSE) -> 「施設」から紹介されて、粒子線治療や核医学治療、ホウ素中性子捕捉療法等を受けた患者数（人） | J76: =VLOOKUP($H76,INDEXTBL!$C$1:$O$1344,5,FALSE) -> EX231 | K76: =IFERROR(HLOOKUP(VLOOKUP($H76,INDEXTBL!$C$1:$O$1344,5,FALSE),DATA!$C$2:$CCV$14,8,FALSE),"NA") -> 9 | L76: =IFERROR(HLOOKUP(VLOOKUP($H76,INDEXTBL!$C$1:$O$1344,5,FALSE),DATA!$C$2:$CCV$14,7,FALSE),"NA") -> NA | M76: =IFERROR(HLOOKUP(VLOOKUP($H76,INDEXTBL!$C$1:$O$1344,5,FALSE),DATA!$C$2:$CCV$14,10,FALSE),"NA") -> 0
M77: ＊＊：人口100万人あたり
E78: ⑥薬物療法
E79: 提D-0601 | I79: =VLOOKUP(E79,INDEXTBL!$A$1:$O$1344,2,FALSE) -> 必要な資格を持った専門家を計画的に養成し、「施設」に必要に応じて配置する | K79: 沖縄県 | L79: 全国 | M79: 最良値 （都道府県） | Q79: 提B-0601 | U79: =VLOOKUP(Q79,INDEXTBL!$A$1:$O$1344,2,FALSE) -> 必要な患者が、最新の知見に基づく最適な薬物療法を、タイムリーで質が高く安全に受けられている | W79: 沖縄県 | X79: 全国 | Y79: 最良値 （都道府県）
F80: グラフ | H80: 提D-060102 | I80: =VLOOKUP(H80,INDEXTBL!$C$1:$O$1344,3,FALSE) -> がん薬物療法専門医（人） | J80: =VLOOKUP($H80,INDEXTBL!$C$1:$O$1344,5,FALSE) -> EX070 | K80: =IFERROR(TEXT(HLOOKUP(VLOOKUP($H80,INDEXTBL!$C$1:$O$1344,5,FALSE),DATA!$C$2:$BCV$14,8,FALSE)/DATA!$H$9*1000000,"0.0"),"NA") -> 2.0 | L80: =IFERROR(TEXT(HLOOKUP(VLOOKUP($H80,INDEXTBL!$C$1:$O$1344,5,FALSE),DATA!$C$2:$BCV$14,7,FALSE)/DATA!$H$8*1000000,"0.0"),"NA") -> 10.5 | M80: =IFERROR(TEXT(MAX(OFFSET(DATA!$A$1,14,MATCH(VLOOKUP($H80,INDEXTBL!$C$1:$O$1344,5,FALSE),DATA!$A$2:$BCV$2,0)-1,47,1)/DATA!$H$15:$H$61*1000000),"0.0") &" （"& N80 & "）","NA") -> 19.5 （徳島県） | N80: =INDEX(DATA!$C$15:$C$61,MATCH(MAX(OFFSET(DATA!$A$1,14,MATCH(VLOOKUP($H80,INDEXTBL!$C$1:$O$1344,5,FALSE),DATA!$A$2:$BCV$2,0)-1,47,1)/DATA!$H$15:$H$61*1000000),OFFSET(DATA!$A$1,14,MATCH(VLOOKUP($H80,INDEXTBL!$C$1:$O$1344,5,FALSE),DATA!$A$2:$BCV$2,0)-1,47,1)/DATA!$H$15:$H$61*1000000,0)) -> 徳島県 | O80: ＊＊ | R80: グラフ | T80: 提B-060101 | U80: =VLOOKUP(T80,INDEXTBL!$C$1:$O$1344,3,FALSE) -> （DPC-QI）IIB・IIIA期非小細胞肺癌に対する術後化学療法（74歳以下）術後9週間以内の補助化学療法開始 実施率（％） | V80: =VLOOKUP(T80,INDEXTBL!$C$1:$O$1344,7,FALSE) -> 肺103 | W80: =IFERROR(TEXT(HLOOKUP(VLOOKUP($T80,INDEXTBL!$C$1:$O$1344,7,FALSE),DATA!$C$2:$AZH$14,8,FALSE)*100,"0.0")&"%","NA") -> 93.3% | X80: =IFERROR(TEXT(HLOOKUP(VLOOKUP($T80,INDEXTBL!$C$1:$O$1344,7,FALSE),DATA!$C$2:$AZH$14,7,FALSE)*100,"0.0")&"%","NA") -> 98.1% | Y80: =IFERROR(TEXT(_xlfn.AGGREGATE(4,7,OFFSET(DATA!$A$1,14,MATCH(VLOOKUP($T80,INDEXTBL!$C$1:$O$1344,7,FALSE),DATA!$A$2:$AZH$2,0)-1,47,1))*100,"0.0")&"%" &" （"& Z80 & "）","NA") -> 100.0% （秋田県） | Z80: =INDEX(DATA!$C$15:$C$61,MATCH(_xlfn.AGGREGATE(4,7,OFFSET(DATA!$A$1,14,MATCH(VLOOKUP($T80,INDEXTBL!$C$1:$O$1344,7,FALSE),DATA!$A$2:$AZH$2,0)-1,47,1)),OFFSET(DATA!$A$1,14,MATCH(VLOOKUP($T80,INDEXTBL!$C$1:$O$1344,7,FALSE),DATA!$A$2:$AZH$2,0)-1,47,1),0)) -> 秋田県
F81: グラフ | H81: 提D-060103 | I81: =VLOOKUP(H81,INDEXTBL!$C$1:$O$1344,3,FALSE) -> がん指導薬剤師（人） | J81: =VLOOKUP($H81,INDEXTBL!$C$1:$O$1344,5,FALSE) -> EX071 | K81: =IFERROR(TEXT(HLOOKUP(VLOOKUP($H81,INDEXTBL!$C$1:$O$1344,5,FALSE),DATA!$C$2:$BCV$14,8,FALSE)/DATA!$H$9*1000000,"0.0"),"NA") -> 0.0 | L81: =IFERROR(TEXT(HLOOKUP(VLOOKUP($H81,INDEXTBL!$C$1:$O$1344,5,FALSE),DATA!$C$2:$BCV$14,7,FALSE)/DATA!$H$8*1000000,"0.0"),"NA") -> 3.3 | M81: =IFERROR(TEXT(MAX(OFFSET(DATA!$A$1,14,MATCH(VLOOKUP($H81,INDEXTBL!$C$1:$O$1344,5,FALSE),DATA!$A$2:$BCV$2,0)-1,47,1)/DATA!$H$15:$H$61*1000000),"0.0") &" （"& N81 & "）","NA") -> 10.6 （石川県） | N81: =INDEX(DATA!$C$15:$C$61,MATCH(MAX(OFFSET(DATA!$A$1,14,MATCH(VLOOKUP($H81,INDEXTBL!$C$1:$O$1344,5,FALSE),DATA!$A$2:$BCV$2,0)-1,47,1)/DATA!$H$15:$H$61*1000000),OFFSET(DATA!$A$1,14,MATCH(VLOOKUP($H81,INDEXTBL!$C$1:$O$1344,5,FALSE),DATA!$A$2:$BCV$2,0)-1,47,1)/DATA!$H$15:$H$61*1000000,0)) -> 石川県 | O81: ＊＊ | R81: グラフ | T81: 提B-060102 | U81: =VLOOKUP(T81,INDEXTBL!$C$1:$O$1344,3,FALSE) -> （DPC-QI）胃癌術後6週間以内の補助化学療法開始 実施率（％） | V81: =VLOOKUP(T81,INDEXTBL!$C$1:$O$1344,8,FALSE) -> 胃109 | W81: =IFERROR(TEXT(HLOOKUP(VLOOKUP($T81,INDEXTBL!$C$1:$O$1344,8,FALSE),DATA!$C$2:$AZH$14,8,FALSE)*100,"0.0")&"%","NA") -> 50.0% | X81: =IFERROR(TEXT(HLOOKUP(VLOOKUP($T81,INDEXTBL!$C$1:$O$1344,8,FALSE),DATA!$C$2:$CCV$14,7,FALSE)*100,"0.0")&"%","NA") -> 93.2% | Y81: =IFERROR(TEXT(_xlfn.AGGREGATE(4,7,OFFSET(DATA!$A$1,14,MATCH(VLOOKUP($T81,INDEXTBL!$C$1:$O$1344,8,FALSE),DATA!$A$2:$AZH$2,0)-1,47,1))*100,"0.0")&"%" &" （"& Z81 & "）","NA") -> 100.0% （青森県） | Z81: =INDEX(DATA!$C$15:$C$61,MATCH(_xlfn.AGGREGATE(4,7,OFFSET(DATA!$A$1,14,MATCH(VLOOKUP($T81,INDEXTBL!$C$1:$O$1344,8,FALSE),DATA!$A$2:$AZH$2,0)-1,47,1)),OFFSET(DATA!$A$1,14,MATCH(VLOOKUP($T81,INDEXTBL!$C$1:$O$1344,8,FALSE),DATA!$A$2:$AZH$2,0)-1,47,1),0)) -> 青森県
F82: グラフ | H82: 提D-060104 | I82: =VLOOKUP(H82,INDEXTBL!$C$1:$O$1344,3,FALSE) -> がん専門薬剤師（人） | J82: =VLOOKUP($H82,INDEXTBL!$C$1:$O$1344,5,FALSE) -> EX072 | K82: =IFERROR(TEXT(HLOOKUP(VLOOKUP($H82,INDEXTBL!$C$1:$O$1344,5,FALSE),DATA!$C$2:$BCV$14,8,FALSE)/DATA!$H$9*1000000,"0.0"),"NA") -> 0.7 | L82: =IFERROR(TEXT(HLOOKUP(VLOOKUP($H82,INDEXTBL!$C$1:$O$1344,5,FALSE),DATA!$C$2:$BCV$14,7,FALSE)/DATA!$H$8*1000000,"0.0"),"NA") -> 6.7 | M82: =IFERROR(TEXT(MAX(OFFSET(DATA!$A$1,14,MATCH(VLOOKUP($H82,INDEXTBL!$C$1:$O$1344,5,FALSE),DATA!$A$2:$BCV$2,0)-1,47,1)/DATA!$H$15:$H$61*1000000),"0.0") &" （"& N82 & "）","NA") -> 19.4 （石川県） | N82: =INDEX(DATA!$C$15:$C$61,MATCH(MAX(OFFSET(DATA!$A$1,14,MATCH(VLOOKUP($H82,INDEXTBL!$C$1:$O$1344,5,FALSE),DATA!$A$2:$BCV$2,0)-1,47,1)/DATA!$H$15:$H$61*1000000),OFFSET(DATA!$A$1,14,MATCH(VLOOKUP($H82,INDEXTBL!$C$1:$O$1344,5,FALSE),DATA!$A$2:$BCV$2,0)-1,47,1)/DATA!$H$15:$H$61*1000000,0)) -> 石川県 | O82: ＊＊ | R82: グラフ | T82: 提B-060103 | U82: =VLOOKUP(T82,INDEXTBL!$C$1:$O$1344,3,FALSE) -> （DPC-QI）StageIII大腸癌に対する術後補助化学療法 実施率（％） | V82: =VLOOKUP(T82,INDEXTBL!$C$1:$O$1344,6,FALSE) -> 大腸102 | W82: =IFERROR(TEXT(HLOOKUP(VLOOKUP($T82,INDEXTBL!$C$1:$O$1344,6,FALSE),DATA!$C$2:$AZH$14,8,FALSE),"0.0")&"%","NA") -> 97.7% | X82: =IFERROR(TEXT(HLOOKUP(VLOOKUP($T82,INDEXTBL!$C$1:$O$1344,6,FALSE),DATA!$C$2:$CCV$14,7,FALSE),"0.0")&"%","NA") -> 97.8% | Y82: =IFERROR(TEXT(_xlfn.AGGREGATE(4,7,OFFSET(DATA!$A$1,14,MATCH(VLOOKUP($T82,INDEXTBL!$C$1:$O$1344,6,FALSE),DATA!$A$2:$AZH$2,0)-1,47,1)),"0.0")&"%" &" （"& Z82 & "）","NA") -> 100.0% （青森県） | Z82: =INDEX(DATA!$C$15:$C$61,MATCH(_xlfn.AGGREGATE(4,7,OFFSET(DATA!$A$1,14,MATCH(VLOOKUP($T82,INDEXTBL!$C$1:$O$1344,6,FALSE),DATA!$A$2:$AZH$2,0)-1,47,1)),OFFSET(DATA!$A$1,14,MATCH(VLOOKUP($T82,INDEXTBL!$C$1:$O$1344,6,FALSE),DATA!$A$2:$AZH$2,0)-1,47,1),0)) -> 青森県
H83: 提D-060105 | I83: =VLOOKUP(H83,INDEXTBL!$C$1:$O$1344,3,FALSE) -> がん薬物療法認定薬剤師（人） | J83: =VLOOKUP($H83,INDEXTBL!$C$1:$O$1344,5,FALSE) -> EX073 | K83: =IFERROR(TEXT(HLOOKUP(VLOOKUP($H83,INDEXTBL!$C$1:$O$1344,5,FALSE),DATA!$C$2:$BCV$14,8,FALSE)/DATA!$H$9*1000000,"0.0"),"NA") -> 8.2 | L83: =IFERROR(TEXT(HLOOKUP(VLOOKUP($H83,INDEXTBL!$C$1:$O$1344,5,FALSE),DATA!$C$2:$BCV$14,7,FALSE)/DATA!$H$8*1000000,"0.0"),"NA") -> 8.1 | M83: =IFERROR(TEXT(MAX(OFFSET(DATA!$A$1,14,MATCH(VLOOKUP($H83,INDEXTBL!$C$1:$O$1344,5,FALSE),DATA!$A$2:$BCV$2,0)-1,47,1)/DATA!$H$15:$H$61*1000000),"0.0") &" （"& N83 & "）","NA") -> 19.4 （島根県） | N83: =INDEX(DATA!$C$15:$C$61,MATCH(MAX(OFFSET(DATA!$A$1,14,MATCH(VLOOKUP($H83,INDEXTBL!$C$1:$O$1344,5,FALSE),DATA!$A$2:$BCV$2,0)-1,47,1)/DATA!$H$15:$H$61*1000000),OFFSET(DATA!$A$1,14,MATCH(VLOOKUP($H83,INDEXTBL!$C$1:$O$1344,5,FALSE),DATA!$A$2:$BCV$2,0)-1,47,1)/DATA!$H$15:$H$61*1000000,0)) -> 島根県 | O83: ＊＊ | T83: 提B-060104 | U83: =VLOOKUP(T83,INDEXTBL!$C$1:$O$1344,3,FALSE) -> （医療者調査）薬物療法を受けた患者のうち、質の高い薬物療法を提供できた患者の割合が75%以上であると回答した人の割合（％） | V83: =VLOOKUP(T83,INDEXTBL!$C$1:$O$1344,13,FALSE) -> 医25 | W83: =IFERROR(TEXT(HLOOKUP(VLOOKUP($T83,INDEXTBL!$C$1:$O$1344,13,FALSE),DATA!$C$2:$AZH$14,8,FALSE)*100,"0.0")&"%","NA") -> 74.7% | X83: =IFERROR(TEXT(HLOOKUP(VLOOKUP($T83,INDEXTBL!$C$1:$O$1344,13,FALSE),DATA!$C$2:$AZH$14,7,FALSE)*100,"0.0")&"%","NA") -> NA | Y83: =IFERROR(TEXT(_xlfn.AGGREGATE(4,7,OFFSET(DATA!$A$1,14,MATCH(VLOOKUP($T83,INDEXTBL!$C$1:$O$1344,13,FALSE),DATA!$A$2:$AZH$2,0)-1,47,1)),"0.0") &" （"& Z83 & "）","NA") -> NA | Z83: =INDEX(DATA!$C$15:$C$61,MATCH(_xlfn.AGGREGATE(4,7,OFFSET(DATA!$A$1,14,MATCH(VLOOKUP($T83,INDEXTBL!$C$1:$O$1344,13,FALSE),DATA!$A$2:$AZH$2,0)-1,47,1)),OFFSET(DATA!$A$1,14,MATCH(VLOOKUP($T83,INDEXTBL!$C$1:$O$1344,13,FALSE),DATA!$A$2:$AZH$2,0)-1,47,1),0)) -> 
H84: 提D-060106 | I84: =VLOOKUP(H84,INDEXTBL!$C$1:$O$1344,3,FALSE) -> 外来がん治療認定薬剤師（人） | J84: =VLOOKUP($H84,INDEXTBL!$C$1:$O$1344,5,FALSE) -> EX074 | K84: =IFERROR(TEXT(HLOOKUP(VLOOKUP($H84,INDEXTBL!$C$1:$O$1344,5,FALSE),DATA!$C$2:$BCV$14,8,FALSE)/DATA!$H$9*1000000,"0.0"),"NA") -> 4.1 | L84: =IFERROR(TEXT(HLOOKUP(VLOOKUP($H84,INDEXTBL!$C$1:$O$1344,5,FALSE),DATA!$C$2:$BCV$14,7,FALSE)/DATA!$H$8*1000000,"0.0"),"NA") -> 7.8 | M84: =IFERROR(TEXT(MAX(OFFSET(DATA!$A$1,14,MATCH(VLOOKUP($H84,INDEXTBL!$C$1:$O$1344,5,FALSE),DATA!$A$2:$BCV$2,0)-1,47,1)/DATA!$H$15:$H$61*1000000),"0.0") &" （"& N84 & "）","NA") -> 11.9 （和歌山県） | N84: =INDEX(DATA!$C$15:$C$61,MATCH(MAX(OFFSET(DATA!$A$1,14,MATCH(VLOOKUP($H84,INDEXTBL!$C$1:$O$1344,5,FALSE),DATA!$A$2:$BCV$2,0)-1,47,1)/DATA!$H$15:$H$61*1000000),OFFSET(DATA!$A$1,14,MATCH(VLOOKUP($H84,INDEXTBL!$C$1:$O$1344,5,FALSE),DATA!$A$2:$BCV$2,0)-1,47,1)/DATA!$H$15:$H$61*1000000,0)) -> 和歌山県 | O84: ＊＊
F85: グラフ | H85: 提D-060107 | I85: =VLOOKUP(H85,INDEXTBL!$C$1:$O$1344,3,FALSE) -> がん看護専門看護師（人） | J85: =VLOOKUP($H85,INDEXTBL!$C$1:$O$1344,5,FALSE) -> EX075 | K85: =IFERROR(TEXT(HLOOKUP(VLOOKUP($H85,INDEXTBL!$C$1:$O$1344,5,FALSE),DATA!$C$2:$BCV$14,8,FALSE)/DATA!$H$9*1000000,"0.0"),"NA") -> 8.9 | L85: =IFERROR(TEXT(HLOOKUP(VLOOKUP($H85,INDEXTBL!$C$1:$O$1344,5,FALSE),DATA!$C$2:$BCV$14,7,FALSE)/DATA!$H$8*1000000,"0.0"),"NA") -> 9.0 | M85: =IFERROR(TEXT(MAX(OFFSET(DATA!$A$1,14,MATCH(VLOOKUP($H85,INDEXTBL!$C$1:$O$1344,5,FALSE),DATA!$A$2:$BCV$2,0)-1,47,1)/DATA!$H$15:$H$61*1000000),"0.0") &" （"& N85 & "）","NA") -> 28.9 （高知県） | N85: =INDEX(DATA!$C$15:$C$61,MATCH(MAX(OFFSET(DATA!$A$1,14,MATCH(VLOOKUP($H85,INDEXTBL!$C$1:$O$1344,5,FALSE),DATA!$A$2:$BCV$2,0)-1,47,1)/DATA!$H$15:$H$61*1000000),OFFSET(DATA!$A$1,14,MATCH(VLOOKUP($H85,INDEXTBL!$C$1:$O$1344,5,FALSE),DATA!$A$2:$BCV$2,0)-1,47,1)/DATA!$H$15:$H$61*1000000,0)) -> 高知県 | O85: ＊＊
F86: グラフ | H86: 提D-060108 | I86: =VLOOKUP(H86,INDEXTBL!$C$1:$O$1344,3,FALSE) -> がん薬物療法看護認定看護師（人） | J86: =VLOOKUP($H86,INDEXTBL!$C$1:$O$1344,5,FALSE) -> EX076 | K86: =IFERROR(TEXT(HLOOKUP(VLOOKUP($H86,INDEXTBL!$C$1:$O$1344,5,FALSE),DATA!$C$2:$BCV$14,8,FALSE)/DATA!$H$9*1000000,"0.0"),"NA") -> 2.7 | L86: =IFERROR(TEXT(HLOOKUP(VLOOKUP($H86,INDEXTBL!$C$1:$O$1344,5,FALSE),DATA!$C$2:$BCV$14,7,FALSE)/DATA!$H$8*1000000,"0.0"),"NA") -> 2.3 | M86: =IFERROR(TEXT(MAX(OFFSET(DATA!$A$1,14,MATCH(VLOOKUP($H86,INDEXTBL!$C$1:$O$1344,5,FALSE),DATA!$A$2:$BCV$2,0)-1,47,1)/DATA!$H$15:$H$61*1000000),"0.0") &" （"& N86 & "）","NA") -> 6.6 （山形県） | N86: =INDEX(DATA!$C$15:$C$61,MATCH(MAX(OFFSET(DATA!$A$1,14,MATCH(VLOOKUP($H86,INDEXTBL!$C$1:$O$1344,5,FALSE),DATA!$A$2:$BCV$2,0)-1,47,1)/DATA!$H$15:$H$61*1000000),OFFSET(DATA!$A$1,14,MATCH(VLOOKUP($H86,INDEXTBL!$C$1:$O$1344,5,FALSE),DATA!$A$2:$BCV$2,0)-1,47,1)/DATA!$H$15:$H$61*1000000,0)) -> 山形県 | O86: ＊＊
F87: グラフ | H87: 提D-060109 | I87: =VLOOKUP(H87,INDEXTBL!$C$1:$O$1344,3,FALSE) -> 乳がん看護認定看護師（人） | J87: =VLOOKUP($H87,INDEXTBL!$C$1:$O$1344,5,FALSE) -> EX077 | K87: =IFERROR(TEXT(HLOOKUP(VLOOKUP($H87,INDEXTBL!$C$1:$O$1344,5,FALSE),DATA!$C$2:$BCV$14,8,FALSE)/DATA!$H$9*1000000,"0.0"),"NA") -> 2.7 | L87: =IFERROR(TEXT(HLOOKUP(VLOOKUP($H87,INDEXTBL!$C$1:$O$1344,5,FALSE),DATA!$C$2:$BCV$14,7,FALSE)/DATA!$H$8*1000000,"0.0"),"NA") -> 3.1 | M87: =IFERROR(TEXT(MAX(OFFSET(DATA!$A$1,14,MATCH(VLOOKUP($H87,INDEXTBL!$C$1:$O$1344,5,FALSE),DATA!$A$2:$BCV$2,0)-1,47,1)/DATA!$H$15:$H$61*1000000),"0.0") &" （"& N87 & "）","NA") -> 12.6 （鳥取県） | N87: =INDEX(DATA!$C$15:$C$61,MATCH(MAX(OFFSET(DATA!$A$1,14,MATCH(VLOOKUP($H87,INDEXTBL!$C$1:$O$1344,5,FALSE),DATA!$A$2:$BCV$2,0)-1,47,1)/DATA!$H$15:$H$61*1000000),OFFSET(DATA!$A$1,14,MATCH(VLOOKUP($H87,INDEXTBL!$C$1:$O$1344,5,FALSE),DATA!$A$2:$BCV$2,0)-1,47,1)/DATA!$H$15:$H$61*1000000,0)) -> 鳥取県 | O87: ＊＊
H88: 提D-060110 | I88: =VLOOKUP(H88,INDEXTBL!$C$1:$O$1344,3,FALSE) -> がん薬物療法専門医が常勤で配置されている「施設」の割合（％） | J88: =VLOOKUP($H88,INDEXTBL!$C$1:$O$1344,5,FALSE) -> EX232 | K88: =IFERROR(TEXT(HLOOKUP(J88,DATA!$C$2:$CCV$14,8,FALSE),"0.0")&"%","NA") -> 12.0% | L88: =IFERROR(HLOOKUP(VLOOKUP($H88,INDEXTBL!$C$1:$O$1344,5,FALSE),DATA!$C$2:$CCV$14,7,FALSE),"NA") -> NA | M88: =IFERROR(TEXT(MAX(OFFSET(DATA!$A$1,14,MATCH(VLOOKUP($H88,INDEXTBL!$C$1:$O$1344,5,FALSE),DATA!$A$2:$BCV$2,0)-1,47,1)/DATA!$H$15:$H$61*1000000),"0.0") &" （"& N88 & "）","NA") -> NA | N88: =INDEX(DATA!$C$15:$C$61,MATCH(MAX(OFFSET(DATA!$A$1,14,MATCH(VLOOKUP($H88,INDEXTBL!$C$1:$O$1344,5,FALSE),DATA!$A$2:$BCV$2,0)-1,47,1)/DATA!$H$15:$H$61*1000000),OFFSET(DATA!$A$1,14,MATCH(VLOOKUP($H88,INDEXTBL!$C$1:$O$1344,5,FALSE),DATA!$A$2:$BCV$2,0)-1,47,1)/DATA!$H$15:$H$61*1000000,0)) -> 
H89: 提D-060111 | I89: =VLOOKUP(H89,INDEXTBL!$C$1:$O$1344,3,FALSE) -> がん指導薬剤師が常勤で配置されている「施設」の割合（％） | J89: =VLOOKUP($H89,INDEXTBL!$C$1:$O$1344,5,FALSE) -> EX233 | K89: =IFERROR(TEXT(HLOOKUP(J89,DATA!$C$2:$CCV$14,8,FALSE),"0.0")&"%","NA") -> 4.0% | L89: =IFERROR(HLOOKUP(VLOOKUP($H89,INDEXTBL!$C$1:$O$1344,5,FALSE),DATA!$C$2:$CCV$14,7,FALSE),"NA") -> NA | M89: =IFERROR(TEXT(MAX(OFFSET(DATA!$A$1,14,MATCH(VLOOKUP($H89,INDEXTBL!$C$1:$O$1344,5,FALSE),DATA!$A$2:$BCV$2,0)-1,47,1)/DATA!$H$15:$H$61*1000000),"0.0") &" （"& N89 & "）","NA") -> NA | N89: =INDEX(DATA!$C$15:$C$61,MATCH(MAX(OFFSET(DATA!$A$1,14,MATCH(VLOOKUP($H89,INDEXTBL!$C$1:$O$1344,5,FALSE),DATA!$A$2:$BCV$2,0)-1,47,1)/DATA!$H$15:$H$61*1000000),OFFSET(DATA!$A$1,14,MATCH(VLOOKUP($H89,INDEXTBL!$C$1:$O$1344,5,FALSE),DATA!$A$2:$BCV$2,0)-1,47,1)/DATA!$H$15:$H$61*1000000,0)) -> 
H90: 提D-060112 | I90: =VLOOKUP(H90,INDEXTBL!$C$1:$O$1344,3,FALSE) -> がん専門薬剤師が常勤で配置されている「施設」の割合（％） | J90: =VLOOKUP($H90,INDEXTBL!$C$1:$O$1344,5,FALSE) -> EX234 | K90: =IFERROR(TEXT(HLOOKUP(J90,DATA!$C$2:$CCV$14,8,FALSE),"0.0")&"%","NA") -> 8.0% | L90: =IFERROR(HLOOKUP(VLOOKUP($H90,INDEXTBL!$C$1:$O$1344,5,FALSE),DATA!$C$2:$CCV$14,7,FALSE),"NA") -> NA | M90: =IFERROR(TEXT(MAX(OFFSET(DATA!$A$1,14,MATCH(VLOOKUP($H90,INDEXTBL!$C$1:$O$1344,5,FALSE),DATA!$A$2:$BCV$2,0)-1,47,1)/DATA!$H$15:$H$61*1000000),"0.0") &" （"& N90 & "）","NA") -> NA | N90: =INDEX(DATA!$C$15:$C$61,MATCH(MAX(OFFSET(DATA!$A$1,14,MATCH(VLOOKUP($H90,INDEXTBL!$C$1:$O$1344,5,FALSE),DATA!$A$2:$BCV$2,0)-1,47,1)/DATA!$H$15:$H$61*1000000),OFFSET(DATA!$A$1,14,MATCH(VLOOKUP($H90,INDEXTBL!$C$1:$O$1344,5,FALSE),DATA!$A$2:$BCV$2,0)-1,47,1)/DATA!$H$15:$H$61*1000000,0)) -> 
H91: 提D-060113 | I91: =VLOOKUP(H91,INDEXTBL!$C$1:$O$1344,3,FALSE) -> がん薬物療法認定薬剤師が常勤で配置されている「施設」の割合（％） | J91: =VLOOKUP($H91,INDEXTBL!$C$1:$O$1344,5,FALSE) -> EX235 | K91: =IFERROR(TEXT(HLOOKUP(J91,DATA!$C$2:$CCV$14,8,FALSE),"0.0")&"%","NA") -> 20.0% | L91: =IFERROR(HLOOKUP(VLOOKUP($H91,INDEXTBL!$C$1:$O$1344,5,FALSE),DATA!$C$2:$CCV$14,7,FALSE),"NA") -> NA | M91: =IFERROR(TEXT(MAX(OFFSET(DATA!$A$1,14,MATCH(VLOOKUP($H91,INDEXTBL!$C$1:$O$1344,5,FALSE),DATA!$A$2:$BCV$2,0)-1,47,1)/DATA!$H$15:$H$61*1000000),"0.0") &" （"& N91 & "）","NA") -> NA | N91: =INDEX(DATA!$C$15:$C$61,MATCH(MAX(OFFSET(DATA!$A$1,14,MATCH(VLOOKUP($H91,INDEXTBL!$C$1:$O$1344,5,FALSE),DATA!$A$2:$BCV$2,0)-1,47,1)/DATA!$H$15:$H$61*1000000),OFFSET(DATA!$A$1,14,MATCH(VLOOKUP($H91,INDEXTBL!$C$1:$O$1344,5,FALSE),DATA!$A$2:$BCV$2,0)-1,47,1)/DATA!$H$15:$H$61*1000000,0)) -> 
H92: 提D-060114 | I92: =VLOOKUP(H92,INDEXTBL!$C$1:$O$1344,3,FALSE) -> 外来がん治療認定薬剤師が常勤で配置されている「施設」の割合（％） | J92: =VLOOKUP($H92,INDEXTBL!$C$1:$O$1344,5,FALSE) -> EX236 | K92: =IFERROR(TEXT(HLOOKUP(J92,DATA!$C$2:$CCV$14,8,FALSE),"0.0")&"%","NA") -> 16.0% | L92: =IFERROR(HLOOKUP(VLOOKUP($H92,INDEXTBL!$C$1:$O$1344,5,FALSE),DATA!$C$2:$CCV$14,7,FALSE),"NA") -> NA | M92: =IFERROR(TEXT(MAX(OFFSET(DATA!$A$1,14,MATCH(VLOOKUP($H92,INDEXTBL!$C$1:$O$1344,5,FALSE),DATA!$A$2:$BCV$2,0)-1,47,1)/DATA!$H$15:$H$61*1000000),"0.0") &" （"& N92 & "）","NA") -> NA | N92: =INDEX(DATA!$C$15:$C$61,MATCH(MAX(OFFSET(DATA!$A$1,14,MATCH(VLOOKUP($H92,INDEXTBL!$C$1:$O$1344,5,FALSE),DATA!$A$2:$BCV$2,0)-1,47,1)/DATA!$H$15:$H$61*1000000),OFFSET(DATA!$A$1,14,MATCH(VLOOKUP($H92,INDEXTBL!$C$1:$O$1344,5,FALSE),DATA!$A$2:$BCV$2,0)-1,47,1)/DATA!$H$15:$H$61*1000000,0)) -> 
H93: 提D-060115 | I93: =VLOOKUP(H93,INDEXTBL!$C$1:$O$1344,3,FALSE) -> がん看護専門看護師が常勤で配置されている「施設」の割合（％） | J93: =VLOOKUP($H93,INDEXTBL!$C$1:$O$1344,5,FALSE) -> EX237 | K93: =IFERROR(TEXT(HLOOKUP(J93,DATA!$C$2:$CCV$14,8,FALSE),"0.0")&"%","NA") -> 12.0% | L93: =IFERROR(HLOOKUP(VLOOKUP($H93,INDEXTBL!$C$1:$O$1344,5,FALSE),DATA!$C$2:$CCV$14,7,FALSE),"NA") -> NA | M93: =IFERROR(TEXT(MAX(OFFSET(DATA!$A$1,14,MATCH(VLOOKUP($H93,INDEXTBL!$C$1:$O$1344,5,FALSE),DATA!$A$2:$BCV$2,0)-1,47,1)/DATA!$H$15:$H$61*1000000),"0.0") &" （"& N93 & "）","NA") -> NA | N93: =INDEX(DATA!$C$15:$C$61,MATCH(MAX(OFFSET(DATA!$A$1,14,MATCH(VLOOKUP($H93,INDEXTBL!$C$1:$O$1344,5,FALSE),DATA!$A$2:$BCV$2,0)-1,47,1)/DATA!$H$15:$H$61*1000000),OFFSET(DATA!$A$1,14,MATCH(VLOOKUP($H93,INDEXTBL!$C$1:$O$1344,5,FALSE),DATA!$A$2:$BCV$2,0)-1,47,1)/DATA!$H$15:$H$61*1000000,0)) -> 
H94: 提D-060116 | I94: =VLOOKUP(H94,INDEXTBL!$C$1:$O$1344,3,FALSE) -> がん薬物療法看護認定看護師が常勤で配置されている「施設」の割合（％） | J94: =VLOOKUP($H94,INDEXTBL!$C$1:$O$1344,5,FALSE) -> EX238 | K94: =IFERROR(TEXT(HLOOKUP(J94,DATA!$C$2:$CCV$14,8,FALSE),"0.0")&"%","NA") -> 32.0% | L94: =IFERROR(HLOOKUP(VLOOKUP($H94,INDEXTBL!$C$1:$O$1344,5,FALSE),DATA!$C$2:$CCV$14,7,FALSE),"NA") -> NA | M94: =IFERROR(TEXT(MAX(OFFSET(DATA!$A$1,14,MATCH(VLOOKUP($H94,INDEXTBL!$C$1:$O$1344,5,FALSE),DATA!$A$2:$BCV$2,0)-1,47,1)/DATA!$H$15:$H$61*1000000),"0.0") &" （"& N94 & "）","NA") -> NA | N94: =INDEX(DATA!$C$15:$C$61,MATCH(MAX(OFFSET(DATA!$A$1,14,MATCH(VLOOKUP($H94,INDEXTBL!$C$1:$O$1344,5,FALSE),DATA!$A$2:$BCV$2,0)-1,47,1)/DATA!$H$15:$H$61*1000000),OFFSET(DATA!$A$1,14,MATCH(VLOOKUP($H94,INDEXTBL!$C$1:$O$1344,5,FALSE),DATA!$A$2:$BCV$2,0)-1,47,1)/DATA!$H$15:$H$61*1000000,0)) -> 
H95: 提D-060117 | I95: =VLOOKUP(H95,INDEXTBL!$C$1:$O$1344,3,FALSE) -> 乳がん看護認定看護師が常勤で配置されている「施設」の割合（％） | J95: =VLOOKUP($H95,INDEXTBL!$C$1:$O$1344,5,FALSE) -> EX239 | K95: =IFERROR(TEXT(HLOOKUP(J95,DATA!$C$2:$CCV$14,8,FALSE),"0.0")&"%","NA") -> 0.0% | L95: =IFERROR(HLOOKUP(VLOOKUP($H95,INDEXTBL!$C$1:$O$1344,5,FALSE),DATA!$C$2:$CCV$14,7,FALSE),"NA") -> NA | M95: =IFERROR(TEXT(MAX(OFFSET(DATA!$A$1,14,MATCH(VLOOKUP($H95,INDEXTBL!$C$1:$O$1344,5,FALSE),DATA!$A$2:$BCV$2,0)-1,47,1)/DATA!$H$15:$H$61*1000000),"0.0") &" （"& N95 & "）","NA") -> NA | N95: =INDEX(DATA!$C$15:$C$61,MATCH(MAX(OFFSET(DATA!$A$1,14,MATCH(VLOOKUP($H95,INDEXTBL!$C$1:$O$1344,5,FALSE),DATA!$A$2:$BCV$2,0)-1,47,1)/DATA!$H$15:$H$61*1000000),OFFSET(DATA!$A$1,14,MATCH(VLOOKUP($H95,INDEXTBL!$C$1:$O$1344,5,FALSE),DATA!$A$2:$BCV$2,0)-1,47,1)/DATA!$H$15:$H$61*1000000,0)) -> 
E96: 提D-0602 | I96: =VLOOKUP(E96,INDEXTBL!$A$1:$O$1344,2,FALSE) -> 「施設」では、標準治療を、質が高く安全に実施する | K96: 沖縄県 | L96: 全国 | M96: 最良値 （都道府県）
H97: 提D-060201 | I97: =VLOOKUP(H97,INDEXTBL!$C$1:$O$1344,3,FALSE) -> ※（検討中） | J97: =VLOOKUP($H97,INDEXTBL!$C$1:$O$1344,5,FALSE) -> 0 | K97: =IFERROR(HLOOKUP(VLOOKUP($H97,INDEXTBL!$C$1:$O$1344,5,FALSE),DATA!$C$2:$CCV$14,8,FALSE),"NA") -> NA | L97: =IFERROR(HLOOKUP(VLOOKUP($H97,INDEXTBL!$C$1:$O$1344,5,FALSE),DATA!$C$2:$CCV$14,7,FALSE),"NA") -> NA | M97: =IFERROR(HLOOKUP(VLOOKUP($H97,INDEXTBL!$C$1:$O$1344,5,FALSE),DATA!$C$2:$CCV$14,10,FALSE),"NA") -> NA
E98: 提D-0603 | I98: =VLOOKUP(E98,INDEXTBL!$A$1:$O$1344,2,FALSE) -> 拠点病院等では、並存疾患のある患者に対する薬物療法を安全に実施する | K98: 沖縄県 | L98: 全国 | M98: 最良値 （都道府県）
H99: 提D-060301 | I99: =VLOOKUP(H99,INDEXTBL!$C$1:$O$1344,3,FALSE) -> 免疫関連有害事象を含む有害事象に対して、他診療科や他病院と連携等して対応している「施設」の割合（％） | J99: =VLOOKUP($H99,INDEXTBL!$C$1:$O$1344,5,FALSE) -> EX240 | K99: =IFERROR(TEXT(HLOOKUP(J99,DATA!$C$2:$CCV$14,8,FALSE),"0.0")&"%","NA") -> 88.0% | L99: =IFERROR(HLOOKUP(VLOOKUP($H99,INDEXTBL!$C$1:$O$1344,5,FALSE),DATA!$C$2:$CCV$14,7,FALSE),"NA") -> NA | M99: =IFERROR(TEXT(MAX(OFFSET(DATA!$A$1,14,MATCH(VLOOKUP($H99,INDEXTBL!$C$1:$O$1344,5,FALSE),DATA!$A$2:$BCV$2,0)-1,47,1)/DATA!$H$15:$H$61*1000000),"0.0") &" （"& N99 & "）","NA") -> NA | N99: =INDEX(DATA!$C$15:$C$61,MATCH(MAX(OFFSET(DATA!$A$1,14,MATCH(VLOOKUP($H99,INDEXTBL!$C$1:$O$1344,5,FALSE),DATA!$A$2:$BCV$2,0)-1,47,1)/DATA!$H$15:$H$61*1000000),OFFSET(DATA!$A$1,14,MATCH(VLOOKUP($H99,INDEXTBL!$C$1:$O$1344,5,FALSE),DATA!$A$2:$BCV$2,0)-1,47,1)/DATA!$H$15:$H$61*1000000,0)) -> 
M100: ＊＊：人口100万人あたり
E101: ⑦チーム医療の推進
E102: 提D-0701 | I102: =VLOOKUP(E102,INDEXTBL!$A$1:$O$1344,2,FALSE) -> 「施設」では、医療者、特に医師とそれ以外の医療者の間でのコミュニケーションが取れた医療を行う | K102: 沖縄県 | L102: 全国 | M102: 最良値 （都道府県） | Q102: 提B-0701 | U102: =VLOOKUP(Q102,INDEXTBL!$A$1:$O$1344,2,FALSE) -> 患者が、医療者の間の情報共有ができた医療を受けられている | W102: 沖縄県 | X102: 全国 | Y102: 最良値 （都道府県）
H103: 提D-070101 | I103: =VLOOKUP(H103,INDEXTBL!$C$1:$O$1344,3,FALSE) -> ※（検討中） | J103: =VLOOKUP($H103,INDEXTBL!$C$1:$O$1344,5,FALSE) -> 0 | K103: =IFERROR(HLOOKUP(VLOOKUP($H103,INDEXTBL!$C$1:$O$1344,5,FALSE),DATA!$C$2:$CCV$14,8,FALSE),"NA") -> NA | L103: =IFERROR(HLOOKUP(VLOOKUP($H103,INDEXTBL!$C$1:$O$1344,5,FALSE),DATA!$C$2:$CCV$14,7,FALSE),"NA") -> NA | M103: =IFERROR(HLOOKUP(VLOOKUP($H103,INDEXTBL!$C$1:$O$1344,5,FALSE),DATA!$C$2:$CCV$14,10,FALSE),"NA") -> NA | T103: 提B-070101 | U103: =VLOOKUP(T103,INDEXTBL!$C$1:$O$1344,3,FALSE) -> （患者体験調査）医療スタッフ間で情報が十分に共有されていると感じた患者の割合（％） | V103: =VLOOKUP(T103,INDEXTBL!$C$1:$O$1344,11,FALSE) -> 患13 | W103: =IFERROR(TEXT(HLOOKUP(VLOOKUP($T103,INDEXTBL!$C$1:$O$1344,11,FALSE),DATA!$C$2:$AZH$14,8,FALSE),"0.0")&"%","NA") -> 琉大病院84.6%% | X103: =IFERROR(TEXT(HLOOKUP(VLOOKUP($T103,INDEXTBL!$C$1:$O$1344,11,FALSE),DATA!$C$2:$AZH$14,7,FALSE),"0.0")&"%","NA") -> 79.8% | Y103: =IFERROR(TEXT(_xlfn.AGGREGATE(4,7,OFFSET(DATA!$A$1,14,MATCH(VLOOKUP($T103,INDEXTBL!$C$1:$O$1344,11,FALSE),DATA!$A$2:$AZH$2,0)-1,47,1)),"0.0")&"%" &" （"& Z103 & "）","NA") -> NA | Z103: =INDEX(DATA!$C$15:$C$61,MATCH(_xlfn.AGGREGATE(4,7,OFFSET(DATA!$A$1,14,MATCH(VLOOKUP($T103,INDEXTBL!$C$1:$O$1344,11,FALSE),DATA!$A$2:$AZH$2,0)-1,47,1)),OFFSET(DATA!$A$1,14,MATCH(VLOOKUP($T103,INDEXTBL!$C$1:$O$1344,11,FALSE),DATA!$A$2:$AZH$2,0)-1,47,1),0)) -> 
E104: 提D-0702 | I104: =VLOOKUP(E104,INDEXTBL!$A$1:$O$1344,2,FALSE) -> 「施設」では、院内や地域の歯科医師、歯科衛生士等と連携し、医科歯科連携によるがん患者の口腔の管理を行う | K104: 沖縄県 | L104: 全国 | M104: 最良値 （都道府県） | T104: 提B-070102 | U104: =VLOOKUP(T104,INDEXTBL!$C$1:$O$1344,3,FALSE) -> （患者体験調査）主治医以外にも相談しやすいスタッフがいた患者の割合（％） | V104: =VLOOKUP(T104,INDEXTBL!$C$1:$O$1344,11,FALSE) -> 患14 | W104: =IFERROR(TEXT(HLOOKUP(VLOOKUP($T104,INDEXTBL!$C$1:$O$1344,11,FALSE),DATA!$C$2:$AZH$14,8,FALSE),"0.0")&"%","NA") -> 琉大病院84.6%% | X104: =IFERROR(TEXT(HLOOKUP(VLOOKUP($T104,INDEXTBL!$C$1:$O$1344,11,FALSE),DATA!$C$2:$AZH$14,7,FALSE),"0.0")&"%","NA") -> 58.4% | Y104: =IFERROR(TEXT(_xlfn.AGGREGATE(4,7,OFFSET(DATA!$A$1,14,MATCH(VLOOKUP($T104,INDEXTBL!$C$1:$O$1344,11,FALSE),DATA!$A$2:$AZH$2,0)-1,47,1)),"0.0")&"%" &" （"& Z104 & "）","NA") -> NA | Z104: =INDEX(DATA!$C$15:$C$61,MATCH(_xlfn.AGGREGATE(4,7,OFFSET(DATA!$A$1,14,MATCH(VLOOKUP($T104,INDEXTBL!$C$1:$O$1344,11,FALSE),DATA!$A$2:$AZH$2,0)-1,47,1)),OFFSET(DATA!$A$1,14,MATCH(VLOOKUP($T104,INDEXTBL!$C$1:$O$1344,11,FALSE),DATA!$A$2:$AZH$2,0)-1,47,1),0)) -> 
H105: 提D-070201 | I105: =VLOOKUP(H105,INDEXTBL!$C$1:$O$1344,3,FALSE) -> がん患者の口腔健康管理のため院内又は地域の歯科医師と連携して対応している「施設」の割合（％） | J105: =VLOOKUP($H105,INDEXTBL!$C$1:$O$1344,5,FALSE) -> EX241 | K105: =IFERROR(TEXT(HLOOKUP(J105,DATA!$C$2:$CCV$14,8,FALSE),"0.0")&"%","NA") -> 96.0% | L105: =IFERROR(HLOOKUP(VLOOKUP($H105,INDEXTBL!$C$1:$O$1344,5,FALSE),DATA!$C$2:$CCV$14,7,FALSE),"NA") -> NA | M105: =IFERROR(TEXT(MAX(OFFSET(DATA!$A$1,14,MATCH(VLOOKUP($H105,INDEXTBL!$C$1:$O$1344,5,FALSE),DATA!$A$2:$BCV$2,0)-1,47,1)/DATA!$H$15:$H$61*1000000),"0.0") &" （"& N105 & "）","NA") -> NA | N105: =INDEX(DATA!$C$15:$C$61,MATCH(MAX(OFFSET(DATA!$A$1,14,MATCH(VLOOKUP($H105,INDEXTBL!$C$1:$O$1344,5,FALSE),DATA!$A$2:$BCV$2,0)-1,47,1)/DATA!$H$15:$H$61*1000000),OFFSET(DATA!$A$1,14,MATCH(VLOOKUP($H105,INDEXTBL!$C$1:$O$1344,5,FALSE),DATA!$A$2:$BCV$2,0)-1,47,1)/DATA!$H$15:$H$61*1000000,0)) ->  | T105: 提B-070103 | U105: =VLOOKUP(T105,INDEXTBL!$C$1:$O$1344,3,FALSE) -> （DPC-QI）胃がん患者への栄養指導 | V105: =VLOOKUP(T105,INDEXTBL!$C$1:$O$1344,8,FALSE) -> EX049 | W105: =IFERROR(TEXT(HLOOKUP(VLOOKUP($T105,INDEXTBL!$C$1:$O$1344,8,FALSE),DATA!$C$2:$BCV$14,8,FALSE),"0.0")&"%","NA") -> 100.0% | X105: =IFERROR(TEXT(HLOOKUP(VLOOKUP($T105,INDEXTBL!$C$1:$O$1344,8,FALSE),DATA!$C$2:$BCV$14,7,FALSE),"0.0")&"%","NA") -> 98.3% | Y105: =IFERROR(TEXT(_xlfn.AGGREGATE(4,7,OFFSET(DATA!$A$1,14,MATCH(VLOOKUP($T105,INDEXTBL!$C$1:$O$1344,8,FALSE),DATA!$A$2:$BCV$2,0)-1,47,1)),"0.0")&"%" &" （"& Z105 & "）","NA") -> 100.0% （青森県） | Z105: =INDEX(DATA!$C$15:$C$61,MATCH(_xlfn.AGGREGATE(4,7,OFFSET(DATA!$A$1,14,MATCH(VLOOKUP($T105,INDEXTBL!$C$1:$O$1344,8,FALSE),DATA!$A$2:$BCV$2,0)-1,47,1)),OFFSET(DATA!$A$1,14,MATCH(VLOOKUP($T105,INDEXTBL!$C$1:$O$1344,8,FALSE),DATA!$A$2:$BCV$2,0)-1,47,1),0)) -> 青森県
E106: 提D-0703 | I106: =VLOOKUP(E106,INDEXTBL!$A$1:$O$1344,2,FALSE) -> 「施設」では、栄養サポートチーム等の専門チームと連携し、栄養指導や管理を行う | K106: 沖縄県 | L106: 全国 | M106: 最良値 （都道府県） | R106: グラフ | T106: 提B-070104 | U106: =VLOOKUP(T106,INDEXTBL!$C$1:$O$1344,3,FALSE) -> （NDB-SCR）栄養サポートチーム加算 | V106: =VLOOKUP(T106,INDEXTBL!$C$1:$O$1344,10,FALSE) -> NA06 | W106: =IFERROR(TEXT(HLOOKUP(VLOOKUP($T106,INDEXTBL!$C$1:$O$1344,10,FALSE),DATA!$C$2:$AZH$14,8,FALSE),"0.0"),"NA") -> 158.2 | X106: =IFERROR(TEXT(HLOOKUP(VLOOKUP($T106,INDEXTBL!$C$1:$O$1344,10,FALSE),DATA!$C$2:$AZH$14,7,FALSE),"0.0"),"NA") -> 100.0 | Y106: =IFERROR(TEXT(_xlfn.AGGREGATE(4,7,OFFSET(DATA!$A$1,14,MATCH(VLOOKUP($T106,INDEXTBL!$C$1:$O$1344,10,FALSE),DATA!$A$2:$AZH$2,0)-1,47,1)),"0.0") &" （"& Z106 & "）","NA") -> 188.0 （高知県） | Z106: =INDEX(DATA!$C$15:$C$61,MATCH(_xlfn.AGGREGATE(4,7,OFFSET(DATA!$A$1,14,MATCH(VLOOKUP($T106,INDEXTBL!$C$1:$O$1344,10,FALSE),DATA!$A$2:$AZH$2,0)-1,47,1)),OFFSET(DATA!$A$1,14,MATCH(VLOOKUP($T106,INDEXTBL!$C$1:$O$1344,10,FALSE),DATA!$A$2:$AZH$2,0)-1,47,1),0)) -> 高知県
H107: 提D-070301 | I107: =VLOOKUP(H107,INDEXTBL!$C$1:$O$1344,3,FALSE) -> 「栄養サポートチーム加算」を算定している「施設」の割合（％） | J107: =VLOOKUP($H107,INDEXTBL!$C$1:$O$1344,5,FALSE) -> EX242 | K107: =IFERROR(TEXT(HLOOKUP(J107,DATA!$C$2:$CCV$14,8,FALSE),"0.0")&"%","NA") -> 76.0% | L107: =IFERROR(HLOOKUP(VLOOKUP($H107,INDEXTBL!$C$1:$O$1344,5,FALSE),DATA!$C$2:$CCV$14,7,FALSE),"NA") -> NA | M107: =IFERROR(TEXT(MAX(OFFSET(DATA!$A$1,14,MATCH(VLOOKUP($H107,INDEXTBL!$C$1:$O$1344,5,FALSE),DATA!$A$2:$BCV$2,0)-1,47,1)/DATA!$H$15:$H$61*1000000),"0.0") &" （"& N107 & "）","NA") -> NA | N107: =INDEX(DATA!$C$15:$C$61,MATCH(MAX(OFFSET(DATA!$A$1,14,MATCH(VLOOKUP($H107,INDEXTBL!$C$1:$O$1344,5,FALSE),DATA!$A$2:$BCV$2,0)-1,47,1)/DATA!$H$15:$H$61*1000000),OFFSET(DATA!$A$1,14,MATCH(VLOOKUP($H107,INDEXTBL!$C$1:$O$1344,5,FALSE),DATA!$A$2:$BCV$2,0)-1,47,1)/DATA!$H$15:$H$61*1000000,0)) ->  | T107: 提B-070105 | U107: =VLOOKUP(T107,INDEXTBL!$C$1:$O$1344,3,FALSE) -> （NDB-SCR）周術期口腔機能管理計画策定料 | V107: =VLOOKUP(T107,INDEXTBL!$C$1:$O$1344,10,FALSE) -> NA04 | W107: =IFERROR(TEXT(HLOOKUP(VLOOKUP($T107,INDEXTBL!$C$1:$O$1344,10,FALSE),DATA!$C$2:$AZH$14,8,FALSE),"0.0"),"NA") -> NA | X107: =IFERROR(TEXT(HLOOKUP(VLOOKUP($T107,INDEXTBL!$C$1:$O$1344,10,FALSE),DATA!$C$2:$AZH$14,7,FALSE),"0.0"),"NA") -> 100.0 | Y107: =IFERROR(TEXT(_xlfn.AGGREGATE(4,7,OFFSET(DATA!$A$1,14,MATCH(VLOOKUP($T107,INDEXTBL!$C$1:$O$1344,10,FALSE),DATA!$A$2:$AZH$2,0)-1,47,1)),"0.0") &" （"& Z107 & "）","NA") -> NA | Z107: =INDEX(DATA!$C$15:$C$61,MATCH(_xlfn.AGGREGATE(4,7,OFFSET(DATA!$A$1,14,MATCH(VLOOKUP($T107,INDEXTBL!$C$1:$O$1344,10,FALSE),DATA!$A$2:$AZH$2,0)-1,47,1)),OFFSET(DATA!$A$1,14,MATCH(VLOOKUP($T107,INDEXTBL!$C$1:$O$1344,10,FALSE),DATA!$A$2:$AZH$2,0)-1,47,1),0)) -> 
T108: 提B-070106 | U108: =VLOOKUP(T108,INDEXTBL!$C$1:$O$1344,3,FALSE) -> （NDB-SCR）周術期口腔機能管理料(I)(II)(III) | V108: =VLOOKUP(T108,INDEXTBL!$C$1:$O$1344,10,FALSE) -> NA05 | W108: =IFERROR(TEXT(HLOOKUP(VLOOKUP($T108,INDEXTBL!$C$1:$O$1344,10,FALSE),DATA!$C$2:$AZH$14,8,FALSE),"0.0"),"NA") -> NA | X108: =IFERROR(TEXT(HLOOKUP(VLOOKUP($T108,INDEXTBL!$C$1:$O$1344,10,FALSE),DATA!$C$2:$AZH$14,7,FALSE),"0.0"),"NA") -> 100.0 | Y108: =IFERROR(TEXT(_xlfn.AGGREGATE(4,7,OFFSET(DATA!$A$1,14,MATCH(VLOOKUP($T108,INDEXTBL!$C$1:$O$1344,10,FALSE),DATA!$A$2:$AZH$2,0)-1,47,1)),"0.0") &" （"& Z108 & "）","NA") -> NA | Z108: =INDEX(DATA!$C$15:$C$61,MATCH(_xlfn.AGGREGATE(4,7,OFFSET(DATA!$A$1,14,MATCH(VLOOKUP($T108,INDEXTBL!$C$1:$O$1344,10,FALSE),DATA!$A$2:$AZH$2,0)-1,47,1)),OFFSET(DATA!$A$1,14,MATCH(VLOOKUP($T108,INDEXTBL!$C$1:$O$1344,10,FALSE),DATA!$A$2:$AZH$2,0)-1,47,1),0)) -> 
T109: 提B-070107 | U109: =VLOOKUP(T109,INDEXTBL!$C$1:$O$1344,3,FALSE) -> （医療者調査）がん患者のケアに関して自分の意見を医師に対して自由に言える人の割合（％）（医師以外の医療スタッフに限る） | V109: =VLOOKUP(T109,INDEXTBL!$C$1:$O$1344,13,FALSE) -> 医39 | W109: =IFERROR(HLOOKUP(VLOOKUP($T109,INDEXTBL!$C$1:$O$1344,13,FALSE),DATA!$C$2:$BCV$14,8,FALSE),"NA") -> 0.139 | X109: =IFERROR(HLOOKUP(VLOOKUP($T109,INDEXTBL!$C$1:$O$1344,13,FALSE),DATA!$C$2:$BCV$14,7,FALSE),"NA") -> NA | Y109: =IFERROR(HLOOKUP(VLOOKUP($T109,INDEXTBL!$C$1:$O$1344,13,FALSE),DATA!$C$2:$BCV$14,10,FALSE),"NA") -> NA
T110: 提B-070108 | U110: =VLOOKUP(T110,INDEXTBL!$C$1:$O$1344,3,FALSE) -> （医療者調査）医師以外の医療スタッフの話に耳を傾けている医師の割合（％）（医師に限る） | V110: =VLOOKUP(T110,INDEXTBL!$C$1:$O$1344,13,FALSE) -> 医40 | W110: =IFERROR(HLOOKUP(VLOOKUP($T110,INDEXTBL!$C$1:$O$1344,13,FALSE),DATA!$C$2:$BCV$14,8,FALSE),"NA") -> 0.639 | X110: =IFERROR(HLOOKUP(VLOOKUP($T110,INDEXTBL!$C$1:$O$1344,13,FALSE),DATA!$C$2:$BCV$14,7,FALSE),"NA") -> NA | Y110: =IFERROR(HLOOKUP(VLOOKUP($T110,INDEXTBL!$C$1:$O$1344,13,FALSE),DATA!$C$2:$BCV$14,10,FALSE),"NA") -> NA
E112: ⑧医療実装
E113: 提D-0801 | I113: =VLOOKUP(E113,INDEXTBL!$A$1:$O$1344,2,FALSE) -> 「施設」では、新規に認可された医薬品、医療機器及び医療技術を速やかに患者に提供する | K113: 沖縄県 | L113: 全国 | M113: 最良値 （都道府県） | Q113: 提B-0801 | U113: =VLOOKUP(Q113,INDEXTBL!$A$1:$O$1344,2,FALSE) -> 患者が、新規に認可された医薬品、医療機器及び医療技術を受けられており、希望する患者が治験等に参加できている | W113: 沖縄県 | X113: 全国 | Y113: 最良値 （都道府県）
H114: 提D-080101 | I114: =VLOOKUP(H114,INDEXTBL!$C$1:$O$1344,3,FALSE) -> 「拠点病院等」において新規に認可された免疫チェックポイント阻害薬が実際に使えるようになった日数 | J114: =VLOOKUP($H114,INDEXTBL!$C$1:$O$1344,5,FALSE) -> 0 | K114: =IFERROR(HLOOKUP(VLOOKUP($H114,INDEXTBL!$C$1:$O$1344,5,FALSE),DATA!$C$2:$CCV$14,8,FALSE),"NA") -> NA | L114: =IFERROR(HLOOKUP(VLOOKUP($H114,INDEXTBL!$C$1:$O$1344,5,FALSE),DATA!$C$2:$CCV$14,7,FALSE),"NA") -> NA | M114: =IFERROR(HLOOKUP(VLOOKUP($H114,INDEXTBL!$C$1:$O$1344,5,FALSE),DATA!$C$2:$CCV$14,10,FALSE),"NA") -> NA | T114: 提B-080101 | U114: =IF($C$2="乳","-",VLOOKUP(T114,INDEXTBL!$C$1:$O$1344,3,FALSE)) -> 治験も含めた医薬品等の臨床研究、先進医療、患者申出療養等に参加した患者数（人） | W114: =IFERROR(HLOOKUP(VLOOKUP($T114,INDEXTBL!$C$1:$O$1344,5,FALSE),DATA!$C$2:$CCV$14,8,FALSE),"NA") -> 298 | X114: =IFERROR(HLOOKUP(VLOOKUP($T114,INDEXTBL!$C$1:$O$1344,13,FALSE),DATA!$C$2:$BCV$14,7,FALSE),"NA") -> NA | Y114: =IFERROR(TEXT(_xlfn.AGGREGATE(4,7,OFFSET(DATA!$A$1,14,MATCH(VLOOKUP($T114,INDEXTBL!$C$1:$O$1344,13,FALSE),DATA!$A$2:$BCV$2,0)-1,47,1)),"0.0")&"%" &" （"& Z114 & "）","NA") -> NA | Z114: =INDEX(DATA!$C$15:$C$61,MATCH(_xlfn.AGGREGATE(4,7,OFFSET(DATA!$A$1,14,MATCH(VLOOKUP($T114,INDEXTBL!$C$1:$O$1344,13,FALSE),DATA!$A$2:$BCV$2,0)-1,47,1)),OFFSET(DATA!$A$1,14,MATCH(VLOOKUP($T114,INDEXTBL!$C$1:$O$1344,13,FALSE),DATA!$A$2:$BCV$2,0)-1,47,1),0)) -> 
E115: 提D-0802 | I115: =VLOOKUP(E115,INDEXTBL!$A$1:$O$1344,2,FALSE) -> 「拠点病院等」では、治験も含めた医薬品等の臨床研究、先進医療、患者申出療養等に関する適切な情報提供を行い、患者を紹介する | K115: 沖縄県 | L115: 全国 | M115: 最良値 （都道府県） | T115: 提B-080102 | U115: =VLOOKUP(T115,INDEXTBL!$C$1:$O$1344,3,FALSE) -> （医療者調査）レジメン登録が遅かったために患者へのタイムリーな投薬が遅れた医師の割合（％）（医師に限る、2023年） | V115: =VLOOKUP(T115,INDEXTBL!$C$1:$O$1344,13,FALSE) -> EX050 | W115: =IFERROR(HLOOKUP(VLOOKUP($T115,INDEXTBL!$C$1:$O$1344,13,FALSE),DATA!$C$2:$BCV$14,8,FALSE),"NA") -> 0.356 | X115: =IFERROR(HLOOKUP(VLOOKUP($T115,INDEXTBL!$C$1:$O$1344,13,FALSE),DATA!$C$2:$BCV$14,7,FALSE),"NA") -> NA | Y115: =IFERROR(TEXT(_xlfn.AGGREGATE(4,7,OFFSET(DATA!$A$1,14,MATCH(VLOOKUP($T115,INDEXTBL!$C$1:$O$1344,13,FALSE),DATA!$A$2:$BCV$2,0)-1,47,1)),"0.0")&"%" &" （"& Z115 & "）","NA") -> NA | Z115: =INDEX(DATA!$C$15:$C$61,MATCH(_xlfn.AGGREGATE(4,7,OFFSET(DATA!$A$1,14,MATCH(VLOOKUP($T115,INDEXTBL!$C$1:$O$1344,13,FALSE),DATA!$A$2:$BCV$2,0)-1,47,1)),OFFSET(DATA!$A$1,14,MATCH(VLOOKUP($T115,INDEXTBL!$C$1:$O$1344,13,FALSE),DATA!$A$2:$BCV$2,0)-1,47,1),0)) -> 
H116: 提D-080201 | I116: =VLOOKUP(H116,INDEXTBL!$C$1:$O$1344,3,FALSE) -> 臨床試験に参加していない地域の患者さんやご家族向けの問い合わせ窓口を設置している拠点病院数 | J116: =VLOOKUP($H116,INDEXTBL!$C$1:$O$1344,5,FALSE) -> EX243 | K116: =IFERROR(HLOOKUP(VLOOKUP($H116,INDEXTBL!$C$1:$O$1344,5,FALSE),DATA!$C$2:$CCV$14,8,FALSE),"NA") -> 2 | L116: =IFERROR(HLOOKUP(VLOOKUP($H116,INDEXTBL!$C$1:$O$1344,5,FALSE),DATA!$C$2:$CCV$14,7,FALSE),"NA") -> NA | M116: =IFERROR(HLOOKUP(VLOOKUP($H116,INDEXTBL!$C$1:$O$1344,5,FALSE),DATA!$C$2:$CCV$14,10,FALSE),"NA") -> 0
H117: 提D-080202 | I117: =VLOOKUP(H117,INDEXTBL!$C$1:$O$1344,3,FALSE) -> 「拠点病院等」において実施されている（参加が可能な）臨床研究の数 | J117: =VLOOKUP($H117,INDEXTBL!$C$1:$O$1344,5,FALSE) -> EX244 | K117: =IFERROR(HLOOKUP(VLOOKUP($H117,INDEXTBL!$C$1:$O$1344,5,FALSE),DATA!$C$2:$CCV$14,8,FALSE),"NA") -> 14 | L117: =IFERROR(HLOOKUP(VLOOKUP($H117,INDEXTBL!$C$1:$O$1344,5,FALSE),DATA!$C$2:$CCV$14,7,FALSE),"NA") -> NA | M117: =IFERROR(HLOOKUP(VLOOKUP($H117,INDEXTBL!$C$1:$O$1344,5,FALSE),DATA!$C$2:$CCV$14,10,FALSE),"NA") -> 0

Sheet 緩和・支持療法
B2: 大腸がん | C2: =IF(ISBLANK($B$2),"",SUBSTITUTE($B$2,"がん","")) -> 大腸 | E2: 番号 | H2: 個別施策 | Q2: 番号 | T2: 中間アウトカム | AC2: 番号 | AF2: 分野アウトカム
C3: =IF($C$2="大腸",6,IF($C$2="肺",7,IF($C$2="胃",8,IF($C$2="乳",9,"")))) -> 6
E4: ①緩和ケア
E5: 緩D-0101 | I5: =VLOOKUP(E5,INDEXTBL!$A$1:$N$1344,2,FALSE) -> 「施設」では、外来初診時および入院時に、看護師による「痛みのスクリーニング」を行い、その後は必要な医療を行う | K5: 沖縄県 | L5: 全国 | M5: 最良値 （都道府県） | Q5: 緩B-0101 | U5: =VLOOKUP(Q5,INDEXTBL!$A$1:$N$1344,2,FALSE) -> がん患者及びその家族の苦痛の軽減ができ、QOLが向上できている | W5: 沖縄県 | X5: 全国 | Y5: 最良値 （都道府県） | AC5: 緩A-0101 | AG5: =VLOOKUP(AC5,INDEXTBL!$A$1:$N$1344,2,FALSE) -> 全てのがん患者及びその家族の苦痛の軽減並びに療養生活の質の維持向上ができている | AI5: 沖縄県 | AJ5: 全国 | AK5: 最良値 （都道府県）
H6: 緩D-010101 | I6: =VLOOKUP(H6,INDEXTBL!$C$1:$N$1344,3,FALSE) -> 看護師による痛みのスクリーニング（外来初診時および入院時）が行われたがん患者の割合（％） | K6: =IFERROR(HLOOKUP(VLOOKUP($H6,INDEXTBL!$C$1:$N$1344,$C$3,FALSE),DATA!$C$2:$ASR$14,8,FALSE),"NA") -> NA | L6: =IFERROR(HLOOKUP(VLOOKUP($H6,INDEXTBL!$C$1:$N$1344,$C$3,FALSE),DATA!$C$2:$ASR$14,7,FALSE),"NA") -> NA | M6: =IFERROR(HLOOKUP(VLOOKUP($H6,INDEXTBL!$C$1:$N$1344,$C$3,FALSE),DATA!$C$2:$ASR$14,10,FALSE),"NA") -> NA | T6: 緩B-010101 | U6: =VLOOKUP(T6,INDEXTBL!$C$1:$N$1344,3,FALSE) -> （患者体験調査）医療者はつらい症状にすみやかに対応していたと感じる割合（％） | V6: =VLOOKUP(T6,INDEXTBL!$C$1:$O$1344,11,FALSE) -> 患12 | W6: =IFERROR(TEXT(HLOOKUP(VLOOKUP($T6,INDEXTBL!$C$1:$N$1344,11,FALSE),DATA!$C$2:$AZH$14,8,FALSE),"0.0")&"%","NA") -> 琉大病院91.6%% | X6: =IFERROR(TEXT(HLOOKUP(VLOOKUP($T6,INDEXTBL!$C$1:$N$1344,11,FALSE),DATA!$C$2:$AZH$14,7,FALSE),"0.0")&"%","NA") -> 90.1% | Y6: =IFERROR(TEXT(_xlfn.AGGREGATE(4,7,OFFSET(DATA!$A$1,14,MATCH(VLOOKUP($T6,INDEXTBL!$C$1:$N$1344,11,FALSE),DATA!$A$2:$AZH$2,0)-1,47,1)),"0.0")&"%" &" （"& Z6 & "）","NA") -> NA | Z6: =INDEX(DATA!$C$15:$C$61,MATCH(_xlfn.AGGREGATE(4,7,OFFSET(DATA!$A$1,14,MATCH(VLOOKUP($T6,INDEXTBL!$C$1:$N$1344,11,FALSE),DATA!$A$2:$AZH$2,0)-1,47,1)),OFFSET(DATA!$A$1,14,MATCH(VLOOKUP($T6,INDEXTBL!$C$1:$N$1344,11,FALSE),DATA!$A$2:$AZH$2,0)-1,47,1),0)) ->  | AD6: グラフ | AF6: 緩A-010101 | AG6: =VLOOKUP(AF6,INDEXTBL!$C$1:$N$1344,3,FALSE) -> （患者体験調査）がんやがん治療に伴う身体の苦痛や気持ちのつらさにより、日常生活を送る上で困っていることがない患者の割合（％） | AH6: =VLOOKUP(AF6,INDEXTBL!$C$1:$O$1344,11,FALSE) -> 患36 | AI6: =IFERROR(TEXT(HLOOKUP(VLOOKUP($AF6,INDEXTBL!$C$1:$N$1344,11,FALSE),DATA!$C$2:$AZH$14,8,FALSE),"0.0"),"NA") -> NA | AJ6: =IFERROR(TEXT(HLOOKUP(VLOOKUP($AF6,INDEXTBL!$C$1:$N$1344,11,FALSE),DATA!$C$2:$AZH$14,7,FALSE),"0.0"),"NA") -> NA | AK6: =IFERROR(TEXT(_xlfn.AGGREGATE(4,7,OFFSET(DATA!$A$1,14,MATCH(VLOOKUP($AF6,INDEXTBL!$C$1:$N$1344,11,FALSE),DATA!$A$2:$AZH$2,0)-1,47,1)),"0.0")&"%" &" （"& AL6 & "）","NA") -> NA | AL6: =INDEX(DATA!$C$15:$C$61,MATCH(_xlfn.AGGREGATE(4,7,OFFSET(DATA!$A$1,14,MATCH(VLOOKUP($AF6,INDEXTBL!$C$1:$N$1344,11,FALSE),DATA!$A$2:$AZH$2,0)-1,47,1)),OFFSET(DATA!$A$1,14,MATCH(VLOOKUP($AF6,INDEXTBL!$C$1:$N$1344,11,FALSE),DATA!$A$2:$AZH$2,0)-1,47,1),0)) -> 
H7: 緩D-010102 | I7: =VLOOKUP(H7,INDEXTBL!$C$1:$N$1344,3,FALSE) -> 痛みのスクリーニングの結果が看護師から主治医に報告されたがん患者の割合（％） | K7: =IFERROR(HLOOKUP(VLOOKUP($H7,INDEXTBL!$C$1:$N$1344,$C$3,FALSE),DATA!$C$2:$ASR$14,8,FALSE),"NA") -> NA | L7: =IFERROR(HLOOKUP(VLOOKUP($H7,INDEXTBL!$C$1:$N$1344,$C$3,FALSE),DATA!$C$2:$ASR$14,7,FALSE),"NA") -> NA | M7: =IFERROR(HLOOKUP(VLOOKUP($H7,INDEXTBL!$C$1:$N$1344,$C$3,FALSE),DATA!$C$2:$ASR$14,10,FALSE),"NA") -> NA | T7: 緩B-010102 | U7: =VLOOKUP(T7,INDEXTBL!$C$1:$N$1344,3,FALSE) -> （患者体験調査）医療スタッフが耳を傾け理解しようとしてくれていたと思う患者の割合（％） | V7: =VLOOKUP(T7,INDEXTBL!$C$1:$O$1344,11,FALSE) -> 患A05 | W7: =IFERROR(TEXT(HLOOKUP(VLOOKUP($T7,INDEXTBL!$C$1:$N$1344,11,FALSE),DATA!$C$2:$AZH$14,8,FALSE),"0.0")&"%","NA") -> 琉大病院100.0% | X7: =IFERROR(TEXT(HLOOKUP(VLOOKUP($T7,INDEXTBL!$C$1:$N$1344,11,FALSE),DATA!$C$2:$AZH$14,7,FALSE),"0.0")&"%","NA") -> 90.1% | Y7: =IFERROR(TEXT(_xlfn.AGGREGATE(4,7,OFFSET(DATA!$A$1,14,MATCH(VLOOKUP($T7,INDEXTBL!$C$1:$N$1344,11,FALSE),DATA!$A$2:$AZH$2,0)-1,47,1)),"0.0")&"%" &" （"& Z7 & "）","NA") -> 79.8% （愛媛県） | Z7: =INDEX(DATA!$C$15:$C$61,MATCH(_xlfn.AGGREGATE(4,7,OFFSET(DATA!$A$1,14,MATCH(VLOOKUP($T7,INDEXTBL!$C$1:$N$1344,11,FALSE),DATA!$A$2:$AZH$2,0)-1,47,1)),OFFSET(DATA!$A$1,14,MATCH(VLOOKUP($T7,INDEXTBL!$C$1:$N$1344,11,FALSE),DATA!$A$2:$AZH$2,0)-1,47,1),0)) -> 愛媛県 | AD7: グラフ | AF7: 緩A-010102 | AG7: =VLOOKUP(AF7,INDEXTBL!$C$1:$N$1344,3,FALSE) -> （患者体験調査）身体の苦痛や気持ちのつらさを和らげる支援は十分であると感じる患者の割合（％） | AH7: =VLOOKUP(AF7,INDEXTBL!$C$1:$O$1344,11,FALSE) -> 患32 | AI7: =IFERROR(TEXT(HLOOKUP(VLOOKUP($AF7,INDEXTBL!$C$1:$N$1344,11,FALSE),DATA!$C$2:$AZH$14,8,FALSE),"0.0")&"%","NA") -> 琉大病院30.7%% | AJ7: =IFERROR(TEXT(HLOOKUP(VLOOKUP($AF7,INDEXTBL!$C$1:$N$1344,11,FALSE),DATA!$C$2:$AZH$14,7,FALSE),"0.0")&"%","NA") -> 33.8% | AK7: =IFERROR(TEXT(_xlfn.AGGREGATE(4,7,OFFSET(DATA!$A$1,14,MATCH(VLOOKUP($AF7,INDEXTBL!$C$1:$N$1344,11,FALSE),DATA!$A$2:$AZH$2,0)-1,47,1)),"0.0")&"%" &" （"& AL7 & "）","NA") -> NA | AL7: =INDEX(DATA!$C$15:$C$61,MATCH(_xlfn.AGGREGATE(4,7,OFFSET(DATA!$A$1,14,MATCH(VLOOKUP($AF7,INDEXTBL!$C$1:$N$1344,11,FALSE),DATA!$A$2:$AZH$2,0)-1,47,1)),OFFSET(DATA!$A$1,14,MATCH(VLOOKUP($AF7,INDEXTBL!$C$1:$N$1344,11,FALSE),DATA!$A$2:$AZH$2,0)-1,47,1),0)) -> 
H8: 緩D-010103 | I8: =VLOOKUP(H8,INDEXTBL!$C$1:$N$1344,3,FALSE) -> 痛みのスクリーニングの結果を受けた主治医が速やかに必要な緩和ケアをしたがん患者の割合（％） | K8: =IFERROR(HLOOKUP(VLOOKUP($H8,INDEXTBL!$C$1:$N$1344,$C$3,FALSE),DATA!$C$2:$ASR$14,8,FALSE),"NA") -> NA | L8: =IFERROR(HLOOKUP(VLOOKUP($H8,INDEXTBL!$C$1:$N$1344,$C$3,FALSE),DATA!$C$2:$ASR$14,7,FALSE),"NA") -> NA | M8: =IFERROR(HLOOKUP(VLOOKUP($H8,INDEXTBL!$C$1:$N$1344,$C$3,FALSE),DATA!$C$2:$ASR$14,10,FALSE),"NA") -> NA | T8: 緩B-010103 | U8: =VLOOKUP(T8,INDEXTBL!$C$1:$N$1344,3,FALSE) -> （医療者調査）痛みのモニタリングの結果が看護師から主治医に速やかに伝えられた患者の割合が75%以上であると答えた人の割合（％） | V8: =VLOOKUP(T8,INDEXTBL!$C$1:$O$1344,13,FALSE) -> 医10 | W8: =IFERROR(TEXT(HLOOKUP(VLOOKUP($T8,INDEXTBL!$C$1:$O$1344,13,FALSE),DATA!$C$2:$AZH$14,8,FALSE)*100,"0.0")&"%","NA") -> 75.2% | X8: =IFERROR(TEXT(HLOOKUP(VLOOKUP($T8,INDEXTBL!$C$1:$O$1344,13,FALSE),DATA!$C$2:$AZH$14,7,FALSE)*100,"0.0")&"%","NA") -> NA | Y8: =IFERROR(TEXT(_xlfn.AGGREGATE(4,7,OFFSET(DATA!$A$1,14,MATCH(VLOOKUP($T8,INDEXTBL!$C$1:$O$1344,13,FALSE),DATA!$A$2:$AZH$2,0)-1,47,1)),"0.0") &" （"& Z8 & "）","NA") -> NA | Z8: =INDEX(DATA!$C$15:$C$61,MATCH(_xlfn.AGGREGATE(4,7,OFFSET(DATA!$A$1,14,MATCH(VLOOKUP($T8,INDEXTBL!$C$1:$O$1344,13,FALSE),DATA!$A$2:$AZH$2,0)-1,47,1)),OFFSET(DATA!$A$1,14,MATCH(VLOOKUP($T8,INDEXTBL!$C$1:$O$1344,13,FALSE),DATA!$A$2:$AZH$2,0)-1,47,1),0)) ->  | AD8: グラフ | AF8: 緩A-010103 | AG8: =VLOOKUP(AF8,INDEXTBL!$C$1:$N$1344,3,FALSE) -> （患者体験調査）現在自分らしい日常生活を送れていると感じる患者の割合（％） | AH8: =VLOOKUP(AF8,INDEXTBL!$C$1:$O$1344,11,FALSE) -> 患31 | AI8: =IFERROR(TEXT(HLOOKUP(VLOOKUP($AF8,INDEXTBL!$C$1:$N$1344,11,FALSE),DATA!$C$2:$AZH$14,8,FALSE),"0.0")&"%","NA") -> 琉大病院76.9%% | AJ8: =IFERROR(TEXT(HLOOKUP(VLOOKUP($AF8,INDEXTBL!$C$1:$N$1344,11,FALSE),DATA!$C$2:$AZH$14,7,FALSE),"0.0")&"%","NA") -> 79.0% | AK8: =IFERROR(TEXT(_xlfn.AGGREGATE(4,7,OFFSET(DATA!$A$1,14,MATCH(VLOOKUP($AF8,INDEXTBL!$C$1:$N$1344,11,FALSE),DATA!$A$2:$AZH$2,0)-1,47,1)),"0.0")&"%" &" （"& AL8 & "）","NA") -> NA | AL8: =INDEX(DATA!$C$15:$C$61,MATCH(_xlfn.AGGREGATE(4,7,OFFSET(DATA!$A$1,14,MATCH(VLOOKUP($AF8,INDEXTBL!$C$1:$N$1344,11,FALSE),DATA!$A$2:$AZH$2,0)-1,47,1)),OFFSET(DATA!$A$1,14,MATCH(VLOOKUP($AF8,INDEXTBL!$C$1:$N$1344,11,FALSE),DATA!$A$2:$AZH$2,0)-1,47,1),0)) -> 
H9: 緩D-010104 | I9: =VLOOKUP(H9,INDEXTBL!$C$1:$N$1344,3,FALSE) -> 痛みのスクリーニングの結果を受けた主治医から速やかに緩和ケアチームへ紹介されたがん患者の割合（％） | K9: =IFERROR(HLOOKUP(VLOOKUP($H9,INDEXTBL!$C$1:$N$1344,$C$3,FALSE),DATA!$C$2:$ASR$14,8,FALSE),"NA") -> NA | L9: =IFERROR(HLOOKUP(VLOOKUP($H9,INDEXTBL!$C$1:$N$1344,$C$3,FALSE),DATA!$C$2:$ASR$14,7,FALSE),"NA") -> NA | M9: =IFERROR(HLOOKUP(VLOOKUP($H9,INDEXTBL!$C$1:$N$1344,$C$3,FALSE),DATA!$C$2:$ASR$14,10,FALSE),"NA") -> NA | T9: 緩B-010104 | U9: =VLOOKUP(T9,INDEXTBL!$C$1:$N$1344,3,FALSE) -> （医療者調査）痛みのモニタリングの結果を受けた主治医が速やかに必要な緩和ケアを行った患者の割合が75%以上であると回答した人の割合（％） | V9: =VLOOKUP(T9,INDEXTBL!$C$1:$O$1344,13,FALSE) -> 医11 | W9: =IFERROR(TEXT(HLOOKUP(VLOOKUP($T9,INDEXTBL!$C$1:$O$1344,13,FALSE),DATA!$C$2:$AZH$14,8,FALSE)*100,"0.0")&"%","NA") -> 71.4% | X9: =IFERROR(TEXT(HLOOKUP(VLOOKUP($T9,INDEXTBL!$C$1:$O$1344,13,FALSE),DATA!$C$2:$AZH$14,7,FALSE)*100,"0.0")&"%","NA") -> NA | Y9: =IFERROR(TEXT(_xlfn.AGGREGATE(4,7,OFFSET(DATA!$A$1,14,MATCH(VLOOKUP($T9,INDEXTBL!$C$1:$O$1344,13,FALSE),DATA!$A$2:$AZH$2,0)-1,47,1)),"0.0") &" （"& Z9 & "）","NA") -> NA | Z9: =INDEX(DATA!$C$15:$C$61,MATCH(_xlfn.AGGREGATE(4,7,OFFSET(DATA!$A$1,14,MATCH(VLOOKUP($T9,INDEXTBL!$C$1:$O$1344,13,FALSE),DATA!$A$2:$AZH$2,0)-1,47,1)),OFFSET(DATA!$A$1,14,MATCH(VLOOKUP($T9,INDEXTBL!$C$1:$O$1344,13,FALSE),DATA!$A$2:$AZH$2,0)-1,47,1),0)) -> 
E10: 緩D-0102 | I10: =VLOOKUP(E10,INDEXTBL!$A$1:$N$1344,2,FALSE) -> 外来患者は毎回の受診時に、入院患者は毎日、看護師による「痛みのモニタリング」を行い、その後は必要な医療を行う | K10: 沖縄県 | L10: 全国 | M10: 最良値 （都道府県） | T10: 緩B-010105 | U10: =VLOOKUP(T10,INDEXTBL!$C$1:$N$1344,3,FALSE) -> （医療者調査）痛みのモニタリングの結果を受けた主治医から速やかに緩和ケアチームへ紹介された患者の割合が75%以上であると回答した人の割合（％） | V10: =VLOOKUP(T10,INDEXTBL!$C$1:$O$1344,13,FALSE) -> 医12 | W10: =IFERROR(TEXT(HLOOKUP(VLOOKUP($T10,INDEXTBL!$C$1:$O$1344,13,FALSE),DATA!$C$2:$AZH$14,8,FALSE)*100,"0.0")&"%","NA") -> 59.4% | X10: =IFERROR(TEXT(HLOOKUP(VLOOKUP($T10,INDEXTBL!$C$1:$O$1344,13,FALSE),DATA!$C$2:$AZH$14,7,FALSE)*100,"0.0")&"%","NA") -> NA | Y10: =IFERROR(TEXT(_xlfn.AGGREGATE(4,7,OFFSET(DATA!$A$1,14,MATCH(VLOOKUP($T10,INDEXTBL!$C$1:$O$1344,13,FALSE),DATA!$A$2:$AZH$2,0)-1,47,1)),"0.0") &" （"& Z10 & "）","NA") -> NA | Z10: =INDEX(DATA!$C$15:$C$61,MATCH(_xlfn.AGGREGATE(4,7,OFFSET(DATA!$A$1,14,MATCH(VLOOKUP($T10,INDEXTBL!$C$1:$O$1344,13,FALSE),DATA!$A$2:$AZH$2,0)-1,47,1)),OFFSET(DATA!$A$1,14,MATCH(VLOOKUP($T10,INDEXTBL!$C$1:$O$1344,13,FALSE),DATA!$A$2:$AZH$2,0)-1,47,1),0)) -> 
H11: 緩D-010201 | I11: =VLOOKUP(H11,INDEXTBL!$C$1:$N$1344,3,FALSE) -> 看護師による痛みのモニタリング（外来患者は受診毎、入院患者は毎日）が行われたがん患者の割合（％） | K11: =IFERROR(HLOOKUP(VLOOKUP($H11,INDEXTBL!$C$1:$N$1344,$C$3,FALSE),DATA!$C$2:$ASR$14,8,FALSE),"NA") -> NA | L11: =IFERROR(HLOOKUP(VLOOKUP($H11,INDEXTBL!$C$1:$N$1344,$C$3,FALSE),DATA!$C$2:$ASR$14,7,FALSE),"NA") -> NA | M11: =IFERROR(HLOOKUP(VLOOKUP($H11,INDEXTBL!$C$1:$N$1344,$C$3,FALSE),DATA!$C$2:$ASR$14,10,FALSE),"NA") -> NA | Q11: 緩B-0102 | U11: =VLOOKUP(Q11,INDEXTBL!$A$1:$N$1344,2,FALSE) -> 緩和ケアの質の向上ができている | W11: 沖縄県 | X11: 全国 | Y11: 最良値 （都道府県）
H12: 緩D-010202 | I12: =VLOOKUP(H12,INDEXTBL!$C$1:$N$1344,3,FALSE) -> 痛みのモニタリングの結果が看護師から主治医に報告されたがん患者の割合（％） | K12: =IFERROR(HLOOKUP(VLOOKUP($H12,INDEXTBL!$C$1:$N$1344,$C$3,FALSE),DATA!$C$2:$ASR$14,8,FALSE),"NA") -> NA | L12: =IFERROR(HLOOKUP(VLOOKUP($H12,INDEXTBL!$C$1:$N$1344,$C$3,FALSE),DATA!$C$2:$ASR$14,7,FALSE),"NA") -> NA | M12: =IFERROR(HLOOKUP(VLOOKUP($H12,INDEXTBL!$C$1:$N$1344,$C$3,FALSE),DATA!$C$2:$ASR$14,10,FALSE),"NA") -> NA | T12: 緩B-010201 | U12: =VLOOKUP(T12,INDEXTBL!$C$1:$N$1344,3,FALSE) -> 患者報告アウトカム（PRO）の症状改善率（％） | W12: =IFERROR(HLOOKUP(VLOOKUP($T12,INDEXTBL!$C$1:$N$1344,$C$3,FALSE),DATA!$C$2:$ASR$14,8,FALSE),"NA") -> NA | X12: =IFERROR(HLOOKUP(VLOOKUP($T12,INDEXTBL!$C$1:$N$1344,$C$3,FALSE),DATA!$C$2:$ASR$14,7,FALSE),"NA") -> NA | Y12: =IFERROR(HLOOKUP(VLOOKUP($T12,INDEXTBL!$C$1:$N$1344,$C$3,FALSE),DATA!$C$2:$ASR$14,10,FALSE),"NA") -> NA
H13: 緩D-010203 | I13: =VLOOKUP(H13,INDEXTBL!$C$1:$N$1344,3,FALSE) -> 痛みのモニタリングの結果を受けた主治医が速やかに必要な緩和ケアをしたがん患者の割合（％） | K13: =IFERROR(HLOOKUP(VLOOKUP($H13,INDEXTBL!$C$1:$N$1344,$C$3,FALSE),DATA!$C$2:$ASR$14,8,FALSE),"NA") -> NA | L13: =IFERROR(HLOOKUP(VLOOKUP($H13,INDEXTBL!$C$1:$N$1344,$C$3,FALSE),DATA!$C$2:$ASR$14,7,FALSE),"NA") -> NA | M13: =IFERROR(HLOOKUP(VLOOKUP($H13,INDEXTBL!$C$1:$N$1344,$C$3,FALSE),DATA!$C$2:$ASR$14,10,FALSE),"NA") -> NA | T13: 緩B-010206 | U13: =VLOOKUP(T13,INDEXTBL!$C$1:$N$1344,3,FALSE) -> ※（検討中） | V13: =VLOOKUP(T13,INDEXTBL!$C$1:$O$1344,10,FALSE) -> 0 | W13: =IFERROR(TEXT(HLOOKUP(VLOOKUP($T13,INDEXTBL!$C$1:$N$1344,10,FALSE),DATA!$C$2:$AZH$14,8,FALSE),"0.0"),"NA") -> NA | X13: =IFERROR(TEXT(HLOOKUP(VLOOKUP($T13,INDEXTBL!$C$1:$N$1344,10,FALSE),DATA!$C$2:$AZH$14,7,FALSE),"0.0"),"NA") -> NA | Y13: =IFERROR(TEXT(_xlfn.AGGREGATE(4,7,OFFSET(DATA!$A$1,14,MATCH(VLOOKUP($T13,INDEXTBL!$C$1:$N$1344,10,FALSE),DATA!$A$2:$AZH$2,0)-1,47,1)),"0.0") &" （"& Z13 & "）","NA") -> NA | Z13: =INDEX(DATA!$C$15:$C$61,MATCH(_xlfn.AGGREGATE(4,7,OFFSET(DATA!$A$1,14,MATCH(VLOOKUP($T13,INDEXTBL!$C$1:$N$1344,10,FALSE),DATA!$A$2:$AZH$2,0)-1,47,1)),OFFSET(DATA!$A$1,14,MATCH(VLOOKUP($T13,INDEXTBL!$C$1:$N$1344,10,FALSE),DATA!$A$2:$AZH$2,0)-1,47,1),0)) -> 
H14: 緩D-010204 | I14: =VLOOKUP(H14,INDEXTBL!$C$1:$N$1344,3,FALSE) -> 痛みのモニタリングの結果を受けた主治医から速やかに緩和ケアチームへ紹介されたがん患者の割合（％） | K14: =IFERROR(HLOOKUP(VLOOKUP($H14,INDEXTBL!$C$1:$N$1344,$C$3,FALSE),DATA!$C$2:$ASR$14,8,FALSE),"NA") -> NA | L14: =IFERROR(HLOOKUP(VLOOKUP($H14,INDEXTBL!$C$1:$N$1344,$C$3,FALSE),DATA!$C$2:$ASR$14,7,FALSE),"NA") -> NA | M14: =IFERROR(HLOOKUP(VLOOKUP($H14,INDEXTBL!$C$1:$N$1344,$C$3,FALSE),DATA!$C$2:$ASR$14,10,FALSE),"NA") -> NA | R14: グラフ | T14: 緩B-010202 | U14: =VLOOKUP(T14,INDEXTBL!$C$1:$N$1344,3,FALSE) -> （NDB-SCR）緩和ケア診療加算 | V14: =VLOOKUP(T14,INDEXTBL!$C$1:$O$1344,10,FALSE) -> NA09 | W14: =IFERROR(TEXT(HLOOKUP(VLOOKUP($T14,INDEXTBL!$C$1:$N$1344,10,FALSE),DATA!$C$2:$AZH$14,8,FALSE),"0.0"),"NA") -> 51.0 | X14: =IFERROR(TEXT(HLOOKUP(VLOOKUP($T14,INDEXTBL!$C$1:$N$1344,10,FALSE),DATA!$C$2:$AZH$14,7,FALSE),"0.0"),"NA") -> 100.0 | Y14: =IFERROR(TEXT(_xlfn.AGGREGATE(4,7,OFFSET(DATA!$A$1,14,MATCH(VLOOKUP($T14,INDEXTBL!$C$1:$N$1344,10,FALSE),DATA!$A$2:$AZH$2,0)-1,47,1)),"0.0") &" （"& Z14 & "）","NA") -> 221.8 （福井県） | Z14: =INDEX(DATA!$C$15:$C$61,MATCH(_xlfn.AGGREGATE(4,7,OFFSET(DATA!$A$1,14,MATCH(VLOOKUP($T14,INDEXTBL!$C$1:$N$1344,10,FALSE),DATA!$A$2:$AZH$2,0)-1,47,1)),OFFSET(DATA!$A$1,14,MATCH(VLOOKUP($T14,INDEXTBL!$C$1:$N$1344,10,FALSE),DATA!$A$2:$AZH$2,0)-1,47,1),0)) -> 福井県
H15: 緩D-010205 | I15: =VLOOKUP(H15,INDEXTBL!$C$1:$O$1344,3,FALSE) -> リンクナース制度を運用している「施設」の割合（％） | J15: =VLOOKUP($H15,INDEXTBL!$C$1:$O$1344,5,FALSE) -> EX247 | K15: =IFERROR(TEXT(HLOOKUP(J15,DATA!$C$2:$CCV$14,8,FALSE),"0.0")&"%","NA") -> 68.0% | L15: =IFERROR(HLOOKUP(VLOOKUP($H15,INDEXTBL!$C$1:$O$1344,5,FALSE),DATA!$C$2:$CCV$14,7,FALSE),"NA") -> NA | M15: =IFERROR(TEXT(_xlfn.AGGREGATE(5,7,OFFSET(DATA!$A$1,14,MATCH(J15,DATA!$A$2:$CCV$2,0)-1,47,1))*100,"0.0")&"%" &" （"& $N15 & "）","NA") -> NA | N15: =INDEX(DATA!$C$15:$C$61,MATCH(_xlfn.AGGREGATE(5,7,OFFSET(DATA!$A$1,14,MATCH(J15,DATA!$A$2:$CCV$2,0)-1,47,1)),OFFSET(DATA!$A$1,14,MATCH(J15,DATA!$A$2:$CCV$2,0)-1,47,1),0)) ->  | R15: グラフ | T15: 緩B-010205 | U15: =VLOOKUP(T15,INDEXTBL!$C$1:$N$1344,3,FALSE) -> （NDB-SCR）神経ブロック（局所麻酔剤又はボツリヌス毒素使用） | V15: =VLOOKUP(T15,INDEXTBL!$C$1:$O$1344,10,FALSE) -> NA20 | W15: =IFERROR(TEXT(HLOOKUP(VLOOKUP($T15,INDEXTBL!$C$1:$N$1344,10,FALSE),DATA!$C$2:$AZH$14,8,FALSE),"0.0"),"NA") -> 78.8 | X15: =IFERROR(TEXT(HLOOKUP(VLOOKUP($T15,INDEXTBL!$C$1:$N$1344,10,FALSE),DATA!$C$2:$AZH$14,7,FALSE),"0.0"),"NA") -> 100.0 | Y15: =IFERROR(TEXT(_xlfn.AGGREGATE(4,7,OFFSET(DATA!$A$1,14,MATCH(VLOOKUP($T15,INDEXTBL!$C$1:$N$1344,10,FALSE),DATA!$A$2:$AZH$2,0)-1,47,1)),"0.0") &" （"& Z15 & "）","NA") -> 226.8 （長野県） | Z15: =INDEX(DATA!$C$15:$C$61,MATCH(_xlfn.AGGREGATE(4,7,OFFSET(DATA!$A$1,14,MATCH(VLOOKUP($T15,INDEXTBL!$C$1:$N$1344,10,FALSE),DATA!$A$2:$AZH$2,0)-1,47,1)),OFFSET(DATA!$A$1,14,MATCH(VLOOKUP($T15,INDEXTBL!$C$1:$N$1344,10,FALSE),DATA!$A$2:$AZH$2,0)-1,47,1),0)) -> 長野県
E16: 緩D-0103 | I16: =VLOOKUP(E16,INDEXTBL!$A$1:$N$1344,2,FALSE) -> 「施設」では、専門的な緩和ケアを提供できる人材とチームを整備する | K16: 沖縄県 | L16: 全国 | M16: 最良値 （都道府県） | R16: グラフ | T16: 緩B-010203 | U16: =VLOOKUP(T16,INDEXTBL!$C$1:$N$1344,3,FALSE) -> （NDB-SCR）神経ブロック(神経破壊剤又は高周波凝固法使用) | V16: =VLOOKUP(T16,INDEXTBL!$C$1:$O$1344,10,FALSE) -> NA21 | W16: =IFERROR(TEXT(HLOOKUP(VLOOKUP($T16,INDEXTBL!$C$1:$N$1344,10,FALSE),DATA!$C$2:$AZH$14,8,FALSE),"0.0"),"NA") -> 78.1 | X16: =IFERROR(TEXT(HLOOKUP(VLOOKUP($T16,INDEXTBL!$C$1:$N$1344,10,FALSE),DATA!$C$2:$AZH$14,7,FALSE),"0.0"),"NA") -> 100.0 | Y16: =IFERROR(TEXT(_xlfn.AGGREGATE(4,7,OFFSET(DATA!$A$1,14,MATCH(VLOOKUP($T16,INDEXTBL!$C$1:$N$1344,10,FALSE),DATA!$A$2:$AZH$2,0)-1,47,1)),"0.0") &" （"& Z16 & "）","NA") -> 899.7 （鹿児島県） | Z16: =INDEX(DATA!$C$15:$C$61,MATCH(_xlfn.AGGREGATE(4,7,OFFSET(DATA!$A$1,14,MATCH(VLOOKUP($T16,INDEXTBL!$C$1:$N$1344,10,FALSE),DATA!$A$2:$AZH$2,0)-1,47,1)),OFFSET(DATA!$A$1,14,MATCH(VLOOKUP($T16,INDEXTBL!$C$1:$N$1344,10,FALSE),DATA!$A$2:$AZH$2,0)-1,47,1),0)) -> 鹿児島県
H17: 緩D-010301 | I17: =VLOOKUP(H17,INDEXTBL!$C$1:$N$1344,3,FALSE) -> 「施設」の緩和ケアチーム新規診療症例数 | J17: =VLOOKUP($H17,INDEXTBL!$C$1:$O$1344,5,FALSE) -> EX248 | K17: =IFERROR(HLOOKUP(VLOOKUP($H17,INDEXTBL!$C$1:$N$1344,5,FALSE),DATA!$C$2:$CCV$14,8,FALSE),"NA") -> 1125 | L17: =IFERROR(HLOOKUP(VLOOKUP($H17,INDEXTBL!$C$1:$N$1344,5,FALSE),DATA!$C$2:$CCV$14,7,FALSE),"NA") -> NA | M17: =IFERROR(HLOOKUP(VLOOKUP($H17,INDEXTBL!$C$1:$N$1344,$C$3,FALSE),DATA!$C$2:$ASR$14,10,FALSE),"NA") -> NA | R17: グラフ | T17: 緩B-010204 | U17: =VLOOKUP(T17,INDEXTBL!$C$1:$N$1344,3,FALSE) -> （NDB-SCR）直線加速器による放射線治療（定位放射線治療以外） 入院+外来 | V17: =VLOOKUP(T17,INDEXTBL!$C$1:$O$1344,10,FALSE) -> NA11 | W17: =IFERROR(TEXT(HLOOKUP(VLOOKUP($T17,INDEXTBL!$C$1:$N$1344,10,FALSE),DATA!$C$2:$AZH$14,8,FALSE),"0.0"),"NA") -> 138.0 | X17: =IFERROR(TEXT(HLOOKUP(VLOOKUP($T17,INDEXTBL!$C$1:$N$1344,10,FALSE),DATA!$C$2:$AZH$14,7,FALSE),"0.0"),"NA") -> 100.0 | Y17: =IFERROR(TEXT(_xlfn.AGGREGATE(4,7,OFFSET(DATA!$A$1,14,MATCH(VLOOKUP($T17,INDEXTBL!$C$1:$N$1344,10,FALSE),DATA!$A$2:$AZH$2,0)-1,47,1)),"0.0") &" （"& Z17 & "）","NA") -> 240.7 （山形県） | Z17: =INDEX(DATA!$C$15:$C$61,MATCH(_xlfn.AGGREGATE(4,7,OFFSET(DATA!$A$1,14,MATCH(VLOOKUP($T17,INDEXTBL!$C$1:$N$1344,10,FALSE),DATA!$A$2:$AZH$2,0)-1,47,1)),OFFSET(DATA!$A$1,14,MATCH(VLOOKUP($T17,INDEXTBL!$C$1:$N$1344,10,FALSE),DATA!$A$2:$AZH$2,0)-1,47,1),0)) -> 山形県
H18: 緩D-010302 | I18: =VLOOKUP(H18,INDEXTBL!$C$1:$N$1344,3,FALSE) -> 緩和ケア外来の新規診療症例数 | J18: =VLOOKUP($H18,INDEXTBL!$C$1:$O$1344,5,FALSE) -> EX249 | K18: =IFERROR(HLOOKUP(VLOOKUP($H18,INDEXTBL!$C$1:$N$1344,5,FALSE),DATA!$C$2:$CCV$14,8,FALSE),"NA") -> 389 | L18: =IFERROR(HLOOKUP(VLOOKUP($H18,INDEXTBL!$C$1:$N$1344,5,FALSE),DATA!$C$2:$CCV$14,7,FALSE),"NA") -> NA | M18: =IFERROR(HLOOKUP(VLOOKUP($H18,INDEXTBL!$C$1:$N$1344,$C$3,FALSE),DATA!$C$2:$ASR$14,10,FALSE),"NA") -> NA
H19: 緩D-010303 | I19: =VLOOKUP(H19,INDEXTBL!$C$1:$N$1344,3,FALSE) -> 緩和ケア外来への、地域の医療機関からの紹介件数 | J19: =VLOOKUP($H19,INDEXTBL!$C$1:$O$1344,5,FALSE) -> EX250 | K19: =IFERROR(HLOOKUP(VLOOKUP($H19,INDEXTBL!$C$1:$N$1344,5,FALSE),DATA!$C$2:$CCV$14,8,FALSE),"NA") -> 626 | L19: =IFERROR(HLOOKUP(VLOOKUP($H19,INDEXTBL!$C$1:$N$1344,5,FALSE),DATA!$C$2:$CCV$14,7,FALSE),"NA") -> NA | M19: =IFERROR(HLOOKUP(VLOOKUP($H19,INDEXTBL!$C$1:$N$1344,$C$3,FALSE),DATA!$C$2:$ASR$14,10,FALSE),"NA") -> NA
F20: グラフ | H20: 緩D-010304 | I20: =VLOOKUP(H20,INDEXTBL!$C$1:$N$1344,3,FALSE) -> 緩和医療学会専門医（人） | J20: =VLOOKUP($H20,INDEXTBL!$C$1:$O$1344,5,FALSE) -> EX078 | K20: =IFERROR(TEXT(HLOOKUP(VLOOKUP($H20,INDEXTBL!$C$1:$N$1344,5,FALSE),DATA!$C$2:$BCV$14,8,FALSE)/DATA!$H$9*1000000,"0.0"),"NA") -> 2.0 | L20: =IFERROR(TEXT(HLOOKUP(VLOOKUP($H20,INDEXTBL!$C$1:$N$1344,5,FALSE),DATA!$C$2:$BCV$14,7,FALSE)/DATA!$H$8*1000000,"0.0"),"NA") -> 4.4 | M20: =IFERROR(TEXT(MAX(OFFSET(DATA!$A$1,14,MATCH(VLOOKUP($H20,INDEXTBL!$C$1:$N$1344,5,FALSE),DATA!$A$2:$BCV$2,0)-1,47,1)/DATA!$H$15:$H$61*1000000),"0.0") &" （"& N20 & "）","NA") -> 9.7 （京都府） | N20: =INDEX(DATA!$C$15:$C$61,MATCH(MAX(OFFSET(DATA!$A$1,14,MATCH(VLOOKUP($H20,INDEXTBL!$C$1:$N$1344,5,FALSE),DATA!$A$2:$BCV$2,0)-1,47,1)/DATA!$H$15:$H$61*1000000),OFFSET(DATA!$A$1,14,MATCH(VLOOKUP($H20,INDEXTBL!$C$1:$N$1344,5,FALSE),DATA!$A$2:$BCV$2,0)-1,47,1)/DATA!$H$15:$H$61*1000000,0)) -> 京都府 | O20: ＊＊
F21: グラフ | H21: 緩D-010305 | I21: =VLOOKUP(H21,INDEXTBL!$C$1:$N$1344,3,FALSE) -> 緩和医療学会認定医（人） | J21: =VLOOKUP($H21,INDEXTBL!$C$1:$O$1344,5,FALSE) -> EX079 | K21: =IFERROR(TEXT(HLOOKUP(VLOOKUP($H21,INDEXTBL!$C$1:$N$1344,5,FALSE),DATA!$C$2:$BCV$14,8,FALSE)/DATA!$H$9*1000000,"0.0"),"NA") -> 10.2 | L21: =IFERROR(TEXT(HLOOKUP(VLOOKUP($H21,INDEXTBL!$C$1:$N$1344,5,FALSE),DATA!$C$2:$BCV$14,7,FALSE)/DATA!$H$8*1000000,"0.0"),"NA") -> 8.6 | M21: =IFERROR(TEXT(MAX(OFFSET(DATA!$A$1,14,MATCH(VLOOKUP($H21,INDEXTBL!$C$1:$N$1344,5,FALSE),DATA!$A$2:$BCV$2,0)-1,47,1)/DATA!$H$15:$H$61*1000000),"0.0") &" （"& N21 & "）","NA") -> 18.1 （鳥取県） | N21: =INDEX(DATA!$C$15:$C$61,MATCH(MAX(OFFSET(DATA!$A$1,14,MATCH(VLOOKUP($H21,INDEXTBL!$C$1:$N$1344,5,FALSE),DATA!$A$2:$BCV$2,0)-1,47,1)/DATA!$H$15:$H$61*1000000),OFFSET(DATA!$A$1,14,MATCH(VLOOKUP($H21,INDEXTBL!$C$1:$N$1344,5,FALSE),DATA!$A$2:$BCV$2,0)-1,47,1)/DATA!$H$15:$H$61*1000000,0)) -> 鳥取県 | O21: ＊＊
H22: 緩D-010306 | I22: =VLOOKUP(H22,INDEXTBL!$C$1:$N$1344,3,FALSE) -> 登録精神腫瘍医および精神腫瘍専門医（人） | J22: =VLOOKUP($H22,INDEXTBL!$C$1:$O$1344,5,FALSE) -> EX080 | K22: =IFERROR(TEXT(HLOOKUP(VLOOKUP($H22,INDEXTBL!$C$1:$N$1344,5,FALSE),DATA!$C$2:$BCV$14,8,FALSE)/DATA!$H$9*1000000,"0.0"),"NA") -> 2.0 | L22: =IFERROR(TEXT(HLOOKUP(VLOOKUP($H22,INDEXTBL!$C$1:$N$1344,5,FALSE),DATA!$C$2:$BCV$14,7,FALSE)/DATA!$H$8*1000000,"0.0"),"NA") -> 1.5 | M22: =IFERROR(TEXT(MAX(OFFSET(DATA!$A$1,14,MATCH(VLOOKUP($H22,INDEXTBL!$C$1:$N$1344,5,FALSE),DATA!$A$2:$BCV$2,0)-1,47,1)/DATA!$H$15:$H$61*1000000),"0.0") &" （"& N22 & "）","NA") -> 3.5 （京都府） | N22: =INDEX(DATA!$C$15:$C$61,MATCH(MAX(OFFSET(DATA!$A$1,14,MATCH(VLOOKUP($H22,INDEXTBL!$C$1:$N$1344,5,FALSE),DATA!$A$2:$BCV$2,0)-1,47,1)/DATA!$H$15:$H$61*1000000),OFFSET(DATA!$A$1,14,MATCH(VLOOKUP($H22,INDEXTBL!$C$1:$N$1344,5,FALSE),DATA!$A$2:$BCV$2,0)-1,47,1)/DATA!$H$15:$H$61*1000000,0)) -> 京都府 | O22: ＊＊
F23: グラフ | H23: 緩D-010308 | I23: =VLOOKUP(H23,INDEXTBL!$C$1:$N$1344,3,FALSE) -> ペインクリニック専門医（人） | J23: =VLOOKUP($H23,INDEXTBL!$C$1:$O$1344,5,FALSE) -> EX081 | K23: =IFERROR(TEXT(HLOOKUP(VLOOKUP($H23,INDEXTBL!$C$1:$N$1344,5,FALSE),DATA!$C$2:$BCV$14,8,FALSE)/DATA!$H$9*1000000,"0.0"),"NA") -> 10.2 | L23: =IFERROR(TEXT(HLOOKUP(VLOOKUP($H23,INDEXTBL!$C$1:$N$1344,5,FALSE),DATA!$C$2:$BCV$14,7,FALSE)/DATA!$H$8*1000000,"0.0"),"NA") -> 13.0 | M23: =IFERROR(TEXT(MAX(OFFSET(DATA!$A$1,14,MATCH(VLOOKUP($H23,INDEXTBL!$C$1:$N$1344,5,FALSE),DATA!$A$2:$BCV$2,0)-1,47,1)/DATA!$H$15:$H$61*1000000),"0.0") &" （"& N23 & "）","NA") -> 27.9 （栃木県） | N23: =INDEX(DATA!$C$15:$C$61,MATCH(MAX(OFFSET(DATA!$A$1,14,MATCH(VLOOKUP($H23,INDEXTBL!$C$1:$N$1344,5,FALSE),DATA!$A$2:$BCV$2,0)-1,47,1)/DATA!$H$15:$H$61*1000000),OFFSET(DATA!$A$1,14,MATCH(VLOOKUP($H23,INDEXTBL!$C$1:$N$1344,5,FALSE),DATA!$A$2:$BCV$2,0)-1,47,1)/DATA!$H$15:$H$61*1000000,0)) -> 栃木県 | O23: ＊＊
H24: 緩D-010309 | I24: =VLOOKUP(H24,INDEXTBL!$C$1:$N$1344,3,FALSE) -> 放射線治療専門医（人） | J24: =VLOOKUP($H24,INDEXTBL!$C$1:$O$1344,5,FALSE) -> EX082 | K24: =IFERROR(TEXT(HLOOKUP(VLOOKUP($H24,INDEXTBL!$C$1:$N$1344,5,FALSE),DATA!$C$2:$BCV$14,8,FALSE)/DATA!$H$9*1000000,"0.0"),"NA") -> 10.2 | L24: =IFERROR(TEXT(HLOOKUP(VLOOKUP($H24,INDEXTBL!$C$1:$N$1344,5,FALSE),DATA!$C$2:$BCV$14,7,FALSE)/DATA!$H$8*1000000,"0.0"),"NA") -> 11.4 | M24: =IFERROR(TEXT(MAX(OFFSET(DATA!$A$1,14,MATCH(VLOOKUP($H24,INDEXTBL!$C$1:$N$1344,5,FALSE),DATA!$A$2:$BCV$2,0)-1,47,1)/DATA!$H$15:$H$61*1000000),"0.0") &" （"& N24 & "）","NA") -> 22.1 （京都府） | N24: =INDEX(DATA!$C$15:$C$61,MATCH(MAX(OFFSET(DATA!$A$1,14,MATCH(VLOOKUP($H24,INDEXTBL!$C$1:$N$1344,5,FALSE),DATA!$A$2:$BCV$2,0)-1,47,1)/DATA!$H$15:$H$61*1000000),OFFSET(DATA!$A$1,14,MATCH(VLOOKUP($H24,INDEXTBL!$C$1:$N$1344,5,FALSE),DATA!$A$2:$BCV$2,0)-1,47,1)/DATA!$H$15:$H$61*1000000,0)) -> 京都府 | O24: ＊＊
F25: グラフ | H25: 緩D-010310 | I25: =VLOOKUP(H25,INDEXTBL!$C$1:$N$1344,3,FALSE) -> IVR専門医（放射線カテーテル治療専門医）（人） | J25: =VLOOKUP($H25,INDEXTBL!$C$1:$O$1344,5,FALSE) -> EX083 | K25: =IFERROR(TEXT(HLOOKUP(VLOOKUP($H25,INDEXTBL!$C$1:$N$1344,5,FALSE),DATA!$C$2:$BCV$14,8,FALSE)/DATA!$H$9*1000000,"0.0"),"NA") -> 8.9 | L25: =IFERROR(TEXT(HLOOKUP(VLOOKUP($H25,INDEXTBL!$C$1:$N$1344,5,FALSE),DATA!$C$2:$BCV$14,7,FALSE)/DATA!$H$8*1000000,"0.0"),"NA") -> 10.0 | M25: =IFERROR(TEXT(MAX(OFFSET(DATA!$A$1,14,MATCH(VLOOKUP($H25,INDEXTBL!$C$1:$N$1344,5,FALSE),DATA!$A$2:$BCV$2,0)-1,47,1)/DATA!$H$15:$H$61*1000000),"0.0") &" （"& N25 & "）","NA") -> 23.1 （高知県） | N25: =INDEX(DATA!$C$15:$C$61,MATCH(MAX(OFFSET(DATA!$A$1,14,MATCH(VLOOKUP($H25,INDEXTBL!$C$1:$N$1344,5,FALSE),DATA!$A$2:$BCV$2,0)-1,47,1)/DATA!$H$15:$H$61*1000000),OFFSET(DATA!$A$1,14,MATCH(VLOOKUP($H25,INDEXTBL!$C$1:$N$1344,5,FALSE),DATA!$A$2:$BCV$2,0)-1,47,1)/DATA!$H$15:$H$61*1000000,0)) -> 高知県 | O25: ＊＊
F26: グラフ | H26: 緩D-010311 | I26: =VLOOKUP(H26,INDEXTBL!$C$1:$N$1344,3,FALSE) -> 緩和薬物療法認定薬剤師（人） | J26: =VLOOKUP($H26,INDEXTBL!$C$1:$O$1344,5,FALSE) -> EX084 | K26: =IFERROR(TEXT(HLOOKUP(VLOOKUP($H26,INDEXTBL!$C$1:$N$1344,5,FALSE),DATA!$C$2:$BCV$14,8,FALSE)/DATA!$H$9*1000000,"0.0"),"NA") -> 2.7 | L26: =IFERROR(TEXT(HLOOKUP(VLOOKUP($H26,INDEXTBL!$C$1:$N$1344,5,FALSE),DATA!$C$2:$BCV$14,7,FALSE)/DATA!$H$8*1000000,"0.0"),"NA") -> 6.9 | M26: =IFERROR(TEXT(MAX(OFFSET(DATA!$A$1,14,MATCH(VLOOKUP($H26,INDEXTBL!$C$1:$N$1344,5,FALSE),DATA!$A$2:$BCV$2,0)-1,47,1)/DATA!$H$15:$H$61*1000000),"0.0") &" （"& N26 & "）","NA") -> 15.9 （石川県） | N26: =INDEX(DATA!$C$15:$C$61,MATCH(MAX(OFFSET(DATA!$A$1,14,MATCH(VLOOKUP($H26,INDEXTBL!$C$1:$N$1344,5,FALSE),DATA!$A$2:$BCV$2,0)-1,47,1)/DATA!$H$15:$H$61*1000000),OFFSET(DATA!$A$1,14,MATCH(VLOOKUP($H26,INDEXTBL!$C$1:$N$1344,5,FALSE),DATA!$A$2:$BCV$2,0)-1,47,1)/DATA!$H$15:$H$61*1000000,0)) -> 石川県 | O26: ＊＊
F27: グラフ | H27: 緩D-010312 | I27: =VLOOKUP(H27,INDEXTBL!$C$1:$N$1344,3,FALSE) -> 緩和ケア認定看護師（人） | J27: =VLOOKUP($H27,INDEXTBL!$C$1:$O$1344,5,FALSE) -> EX085 | K27: =IFERROR(TEXT(HLOOKUP(VLOOKUP($H27,INDEXTBL!$C$1:$N$1344,5,FALSE),DATA!$C$2:$BCV$14,8,FALSE)/DATA!$H$9*1000000,"0.0"),"NA") -> 36.8 | L27: =IFERROR(TEXT(HLOOKUP(VLOOKUP($H27,INDEXTBL!$C$1:$N$1344,5,FALSE),DATA!$C$2:$BCV$14,7,FALSE)/DATA!$H$8*1000000,"0.0"),"NA") -> 21.3 | M27: =IFERROR(TEXT(MAX(OFFSET(DATA!$A$1,14,MATCH(VLOOKUP($H27,INDEXTBL!$C$1:$N$1344,5,FALSE),DATA!$A$2:$BCV$2,0)-1,47,1)/DATA!$H$15:$H$61*1000000),"0.0") &" （"& N27 & "）","NA") -> 74.1 （山梨県） | N27: =INDEX(DATA!$C$15:$C$61,MATCH(MAX(OFFSET(DATA!$A$1,14,MATCH(VLOOKUP($H27,INDEXTBL!$C$1:$N$1344,5,FALSE),DATA!$A$2:$BCV$2,0)-1,47,1)/DATA!$H$15:$H$61*1000000),OFFSET(DATA!$A$1,14,MATCH(VLOOKUP($H27,INDEXTBL!$C$1:$N$1344,5,FALSE),DATA!$A$2:$BCV$2,0)-1,47,1)/DATA!$H$15:$H$61*1000000,0)) -> 山梨県 | O27: ＊＊
F28: グラフ | H28: 緩D-010313 | I28: =VLOOKUP(H28,INDEXTBL!$C$1:$N$1344,3,FALSE) -> 公認心理師（人） | J28: =VLOOKUP($H28,INDEXTBL!$C$1:$O$1344,5,FALSE) -> EX086 | K28: =IFERROR(TEXT(HLOOKUP(VLOOKUP($H28,INDEXTBL!$C$1:$N$1344,5,FALSE),DATA!$C$2:$BCV$14,8,FALSE)/DATA!$H$9*1000000,"0.0"),"NA") -> 706.7 | L28: =IFERROR(TEXT(HLOOKUP(VLOOKUP($H28,INDEXTBL!$C$1:$N$1344,5,FALSE),DATA!$C$2:$BCV$14,7,FALSE)/DATA!$H$8*1000000,"0.0"),"NA") -> 584.6 | M28: =IFERROR(TEXT(MAX(OFFSET(DATA!$A$1,14,MATCH(VLOOKUP($H28,INDEXTBL!$C$1:$N$1344,5,FALSE),DATA!$A$2:$BCV$2,0)-1,47,1)/DATA!$H$15:$H$61*1000000),"0.0") &" （"& N28 & "）","NA") -> 921.6 （京都府） | N28: =INDEX(DATA!$C$15:$C$61,MATCH(MAX(OFFSET(DATA!$A$1,14,MATCH(VLOOKUP($H28,INDEXTBL!$C$1:$N$1344,5,FALSE),DATA!$A$2:$BCV$2,0)-1,47,1)/DATA!$H$15:$H$61*1000000),OFFSET(DATA!$A$1,14,MATCH(VLOOKUP($H28,INDEXTBL!$C$1:$N$1344,5,FALSE),DATA!$A$2:$BCV$2,0)-1,47,1)/DATA!$H$15:$H$61*1000000,0)) -> 京都府 | O28: ＊＊
F29: グラフ | H29: 緩D-010314 | I29: =VLOOKUP(H29,INDEXTBL!$C$1:$N$1344,3,FALSE) -> 臨床心理士（人） | J29: =VLOOKUP($H29,INDEXTBL!$C$1:$O$1344,5,FALSE) -> EX087 | K29: =IFERROR(TEXT(HLOOKUP(VLOOKUP($H29,INDEXTBL!$C$1:$N$1344,5,FALSE),DATA!$C$2:$BCV$14,8,FALSE)/DATA!$H$9*1000000,"0.0"),"NA") -> 229.0 | L29: =IFERROR(TEXT(HLOOKUP(VLOOKUP($H29,INDEXTBL!$C$1:$N$1344,5,FALSE),DATA!$C$2:$BCV$14,7,FALSE)/DATA!$H$8*1000000,"0.0"),"NA") -> 323.0 | M29: =IFERROR(TEXT(MAX(OFFSET(DATA!$A$1,14,MATCH(VLOOKUP($H29,INDEXTBL!$C$1:$N$1344,5,FALSE),DATA!$A$2:$BCV$2,0)-1,47,1)/DATA!$H$15:$H$61*1000000),"0.0") &" （"& N29 & "）","NA") -> 561.7 （京都府） | N29: =INDEX(DATA!$C$15:$C$61,MATCH(MAX(OFFSET(DATA!$A$1,14,MATCH(VLOOKUP($H29,INDEXTBL!$C$1:$N$1344,5,FALSE),DATA!$A$2:$BCV$2,0)-1,47,1)/DATA!$H$15:$H$61*1000000),OFFSET(DATA!$A$1,14,MATCH(VLOOKUP($H29,INDEXTBL!$C$1:$N$1344,5,FALSE),DATA!$A$2:$BCV$2,0)-1,47,1)/DATA!$H$15:$H$61*1000000,0)) -> 京都府 | O29: ＊＊
H30: 緩D-010315 | I30: =VLOOKUP(H30,INDEXTBL!$C$1:$O$1344,3,FALSE) -> 緩和医療学会専門医が常勤で配置されている「施設」の割合（％） | J30: =VLOOKUP($H30,INDEXTBL!$C$1:$O$1344,5,FALSE) -> EX251 | K30: =IFERROR(TEXT(HLOOKUP(J30,DATA!$C$2:$CCV$14,8,FALSE),"0.0")&"%","NA") -> 4.0% | L30: =IFERROR(HLOOKUP(VLOOKUP($H30,INDEXTBL!$C$1:$O$1344,5,FALSE),DATA!$C$2:$CCV$14,7,FALSE),"NA") -> NA | M30: =IFERROR(TEXT(_xlfn.AGGREGATE(5,7,OFFSET(DATA!$A$1,14,MATCH(J30,DATA!$A$2:$CCV$2,0)-1,47,1))*100,"0.0")&"%" &" （"& $N30 & "）","NA") -> NA | N30: =INDEX(DATA!$C$15:$C$61,MATCH(_xlfn.AGGREGATE(5,7,OFFSET(DATA!$A$1,14,MATCH(J30,DATA!$A$2:$CCV$2,0)-1,47,1)),OFFSET(DATA!$A$1,14,MATCH(J30,DATA!$A$2:$CCV$2,0)-1,47,1),0)) -> 
H31: 緩D-010316 | I31: =VLOOKUP(H31,INDEXTBL!$C$1:$O$1344,3,FALSE) -> 緩和医療学会認定医が常勤で配置されている「施設」の割合（％） | J31: =VLOOKUP($H31,INDEXTBL!$C$1:$O$1344,5,FALSE) -> EX252 | K31: =IFERROR(TEXT(HLOOKUP(J31,DATA!$C$2:$CCV$14,8,FALSE),"0.0")&"%","NA") -> 28.0% | L31: =IFERROR(HLOOKUP(VLOOKUP($H31,INDEXTBL!$C$1:$O$1344,5,FALSE),DATA!$C$2:$CCV$14,7,FALSE),"NA") -> NA | M31: =IFERROR(TEXT(_xlfn.AGGREGATE(5,7,OFFSET(DATA!$A$1,14,MATCH(J31,DATA!$A$2:$CCV$2,0)-1,47,1))*100,"0.0")&"%" &" （"& $N31 & "）","NA") -> NA | N31: =INDEX(DATA!$C$15:$C$61,MATCH(_xlfn.AGGREGATE(5,7,OFFSET(DATA!$A$1,14,MATCH(J31,DATA!$A$2:$CCV$2,0)-1,47,1)),OFFSET(DATA!$A$1,14,MATCH(J31,DATA!$A$2:$CCV$2,0)-1,47,1),0)) -> 
H32: 緩D-010317 | I32: =VLOOKUP(H32,INDEXTBL!$C$1:$O$1344,3,FALSE) -> 登録精神腫瘍医および精神腫瘍専門医が常勤で配置されている「施設」の割合（％） | J32: =VLOOKUP($H32,INDEXTBL!$C$1:$O$1344,5,FALSE) -> EX253 | K32: =IFERROR(TEXT(HLOOKUP(J32,DATA!$C$2:$CCV$14,8,FALSE),"0.0")&"%","NA") -> 4.0% | L32: =IFERROR(HLOOKUP(VLOOKUP($H32,INDEXTBL!$C$1:$O$1344,5,FALSE),DATA!$C$2:$CCV$14,7,FALSE),"NA") -> NA | M32: =IFERROR(TEXT(_xlfn.AGGREGATE(5,7,OFFSET(DATA!$A$1,14,MATCH(J32,DATA!$A$2:$CCV$2,0)-1,47,1))*100,"0.0")&"%" &" （"& $N32 & "）","NA") -> NA | N32: =INDEX(DATA!$C$15:$C$61,MATCH(_xlfn.AGGREGATE(5,7,OFFSET(DATA!$A$1,14,MATCH(J32,DATA!$A$2:$CCV$2,0)-1,47,1)),OFFSET(DATA!$A$1,14,MATCH(J32,DATA!$A$2:$CCV$2,0)-1,47,1),0)) -> 
H33: 緩D-010318 | I33: =VLOOKUP(H33,INDEXTBL!$C$1:$O$1344,3,FALSE) -> ペインクリニック専門医が常勤で配置されている「施設」の割合（％） | J33: =VLOOKUP($H33,INDEXTBL!$C$1:$O$1344,5,FALSE) -> EX254 | K33: =IFERROR(TEXT(HLOOKUP(J33,DATA!$C$2:$CCV$14,8,FALSE),"0.0")&"%","NA") -> 28.0% | L33: =IFERROR(HLOOKUP(VLOOKUP($H33,INDEXTBL!$C$1:$O$1344,5,FALSE),DATA!$C$2:$CCV$14,7,FALSE),"NA") -> NA | M33: =IFERROR(TEXT(_xlfn.AGGREGATE(5,7,OFFSET(DATA!$A$1,14,MATCH(J33,DATA!$A$2:$CCV$2,0)-1,47,1))*100,"0.0")&"%" &" （"& $N33 & "）","NA") -> NA | N33: =INDEX(DATA!$C$15:$C$61,MATCH(_xlfn.AGGREGATE(5,7,OFFSET(DATA!$A$1,14,MATCH(J33,DATA!$A$2:$CCV$2,0)-1,47,1)),OFFSET(DATA!$A$1,14,MATCH(J33,DATA!$A$2:$CCV$2,0)-1,47,1),0)) -> 
H34: 緩D-010319 | I34: =VLOOKUP(H34,INDEXTBL!$C$1:$O$1344,3,FALSE) -> 放射線治療専門医が常勤で配置されている「施設」の割合（％） | J34: =VLOOKUP($H34,INDEXTBL!$C$1:$O$1344,5,FALSE) -> EX255 | K34: =IFERROR(TEXT(HLOOKUP(J34,DATA!$C$2:$CCV$14,8,FALSE),"0.0")&"%","NA") -> 32.0% | L34: =IFERROR(HLOOKUP(VLOOKUP($H34,INDEXTBL!$C$1:$O$1344,5,FALSE),DATA!$C$2:$CCV$14,7,FALSE),"NA") -> NA | M34: =IFERROR(TEXT(_xlfn.AGGREGATE(5,7,OFFSET(DATA!$A$1,14,MATCH(J34,DATA!$A$2:$CCV$2,0)-1,47,1))*100,"0.0")&"%" &" （"& $N34 & "）","NA") -> NA | N34: =INDEX(DATA!$C$15:$C$61,MATCH(_xlfn.AGGREGATE(5,7,OFFSET(DATA!$A$1,14,MATCH(J34,DATA!$A$2:$CCV$2,0)-1,47,1)),OFFSET(DATA!$A$1,14,MATCH(J34,DATA!$A$2:$CCV$2,0)-1,47,1),0)) -> 
H35: 緩D-010320 | I35: =VLOOKUP(H35,INDEXTBL!$C$1:$O$1344,3,FALSE) -> IVR専門医（放射線カテーテル治療専門医）が常勤で配置されている「施設」の割合（％） | J35: =VLOOKUP($H35,INDEXTBL!$C$1:$O$1344,5,FALSE) -> EX256 | K35: =IFERROR(TEXT(HLOOKUP(J35,DATA!$C$2:$CCV$14,8,FALSE),"0.0")&"%","NA") -> 16.0% | L35: =IFERROR(HLOOKUP(VLOOKUP($H35,INDEXTBL!$C$1:$O$1344,5,FALSE),DATA!$C$2:$CCV$14,7,FALSE),"NA") -> NA | M35: =IFERROR(TEXT(_xlfn.AGGREGATE(5,7,OFFSET(DATA!$A$1,14,MATCH(J35,DATA!$A$2:$CCV$2,0)-1,47,1))*100,"0.0")&"%" &" （"& $N35 & "）","NA") -> NA | N35: =INDEX(DATA!$C$15:$C$61,MATCH(_xlfn.AGGREGATE(5,7,OFFSET(DATA!$A$1,14,MATCH(J35,DATA!$A$2:$CCV$2,0)-1,47,1)),OFFSET(DATA!$A$1,14,MATCH(J35,DATA!$A$2:$CCV$2,0)-1,47,1),0)) -> 
H36: 緩D-010321 | I36: =VLOOKUP(H36,INDEXTBL!$C$1:$O$1344,3,FALSE) -> 緩和薬物療法認定薬剤師が常勤で配置されている「施設」の割合（％） | J36: =VLOOKUP($H36,INDEXTBL!$C$1:$O$1344,5,FALSE) -> EX257 | K36: =IFERROR(TEXT(HLOOKUP(J36,DATA!$C$2:$CCV$14,8,FALSE),"0.0")&"%","NA") -> 16.0% | L36: =IFERROR(HLOOKUP(VLOOKUP($H36,INDEXTBL!$C$1:$O$1344,5,FALSE),DATA!$C$2:$CCV$14,7,FALSE),"NA") -> NA | M36: =IFERROR(TEXT(_xlfn.AGGREGATE(5,7,OFFSET(DATA!$A$1,14,MATCH(J36,DATA!$A$2:$CCV$2,0)-1,47,1))*100,"0.0")&"%" &" （"& $N36 & "）","NA") -> NA | N36: =INDEX(DATA!$C$15:$C$61,MATCH(_xlfn.AGGREGATE(5,7,OFFSET(DATA!$A$1,14,MATCH(J36,DATA!$A$2:$CCV$2,0)-1,47,1)),OFFSET(DATA!$A$1,14,MATCH(J36,DATA!$A$2:$CCV$2,0)-1,47,1),0)) -> 
H37: 緩D-010322 | I37: =VLOOKUP(H37,INDEXTBL!$C$1:$O$1344,3,FALSE) -> 緩和ケア認定看護師が常勤で配置されている「施設」の割合（％） | J37: =VLOOKUP($H37,INDEXTBL!$C$1:$O$1344,5,FALSE) -> EX258 | K37: =IFERROR(TEXT(HLOOKUP(J37,DATA!$C$2:$CCV$14,8,FALSE),"0.0")&"%","NA") -> 72.0% | L37: =IFERROR(HLOOKUP(VLOOKUP($H37,INDEXTBL!$C$1:$O$1344,5,FALSE),DATA!$C$2:$CCV$14,7,FALSE),"NA") -> NA | M37: =IFERROR(TEXT(_xlfn.AGGREGATE(5,7,OFFSET(DATA!$A$1,14,MATCH(J37,DATA!$A$2:$CCV$2,0)-1,47,1))*100,"0.0")&"%" &" （"& $N37 & "）","NA") -> NA | N37: =INDEX(DATA!$C$15:$C$61,MATCH(_xlfn.AGGREGATE(5,7,OFFSET(DATA!$A$1,14,MATCH(J37,DATA!$A$2:$CCV$2,0)-1,47,1)),OFFSET(DATA!$A$1,14,MATCH(J37,DATA!$A$2:$CCV$2,0)-1,47,1),0)) -> 
H38: 緩D-010323 | I38: =VLOOKUP(H38,INDEXTBL!$C$1:$O$1344,3,FALSE) -> 公認心理師が常勤で配置されている「施設」の割合（％） | J38: =VLOOKUP($H38,INDEXTBL!$C$1:$O$1344,5,FALSE) -> EX259 | K38: =IFERROR(TEXT(HLOOKUP(J38,DATA!$C$2:$CCV$14,8,FALSE),"0.0")&"%","NA") -> 44.0% | L38: =IFERROR(HLOOKUP(VLOOKUP($H38,INDEXTBL!$C$1:$O$1344,5,FALSE),DATA!$C$2:$CCV$14,7,FALSE),"NA") -> NA | M38: =IFERROR(TEXT(_xlfn.AGGREGATE(5,7,OFFSET(DATA!$A$1,14,MATCH(J38,DATA!$A$2:$CCV$2,0)-1,47,1))*100,"0.0")&"%" &" （"& $N38 & "）","NA") -> NA | N38: =INDEX(DATA!$C$15:$C$61,MATCH(_xlfn.AGGREGATE(5,7,OFFSET(DATA!$A$1,14,MATCH(J38,DATA!$A$2:$CCV$2,0)-1,47,1)),OFFSET(DATA!$A$1,14,MATCH(J38,DATA!$A$2:$CCV$2,0)-1,47,1),0)) -> 
H39: 緩D-010324 | I39: =VLOOKUP(H39,INDEXTBL!$C$1:$O$1344,3,FALSE) -> 臨床心理士が常勤で配置されている「施設」の割合（％） | J39: =VLOOKUP($H39,INDEXTBL!$C$1:$O$1344,5,FALSE) -> EX260 | K39: =IFERROR(TEXT(HLOOKUP(J39,DATA!$C$2:$CCV$14,8,FALSE),"0.0")&"%","NA") -> 44.0% | L39: =IFERROR(HLOOKUP(VLOOKUP($H39,INDEXTBL!$C$1:$O$1344,5,FALSE),DATA!$C$2:$CCV$14,7,FALSE),"NA") -> NA | M39: =IFERROR(TEXT(_xlfn.AGGREGATE(5,7,OFFSET(DATA!$A$1,14,MATCH(J39,DATA!$A$2:$CCV$2,0)-1,47,1))*100,"0.0")&"%" &" （"& $N39 & "）","NA") -> NA | N39: =INDEX(DATA!$C$15:$C$61,MATCH(_xlfn.AGGREGATE(5,7,OFFSET(DATA!$A$1,14,MATCH(J39,DATA!$A$2:$CCV$2,0)-1,47,1)),OFFSET(DATA!$A$1,14,MATCH(J39,DATA!$A$2:$CCV$2,0)-1,47,1),0)) -> 
M40: ＊＊：人口100万人あたり
E41: ②在宅医療
E42: 緩D-0201 | I42: =VLOOKUP(E42,INDEXTBL!$A$1:$N$1344,2,FALSE) -> 望んだ場所で過ごせたがん患者の割合を増加させる | K42: 沖縄県 | L42: 全国 | M42: 最良値 （都道府県） | Q42: 緩B-0201 | U42: =VLOOKUP(Q42,INDEXTBL!$A$1:$N$1344,2,FALSE) -> 希望する患者の在宅医療への移行が充分にできている | W42: 沖縄県 | X42: 全国 | Y42: 最良値 （都道府県）
H43: 緩D-020101 | I43: =VLOOKUP(H43,INDEXTBL!$C$1:$N$1344,3,FALSE) -> 担当した患者さんは最終的に希望した場所で亡くなったと思う割合（％）拠点病院等（医師、看護師、MSW） | K43: =IFERROR(HLOOKUP(VLOOKUP($H43,INDEXTBL!$C$1:$N$1344,$C$3,FALSE),DATA!$C$2:$ASR$14,8,FALSE),"NA") -> NA | L43: =IFERROR(HLOOKUP(VLOOKUP($H43,INDEXTBL!$C$1:$N$1344,$C$3,FALSE),DATA!$C$2:$ASR$14,7,FALSE),"NA") -> NA | M43: =IFERROR(HLOOKUP(VLOOKUP($H43,INDEXTBL!$C$1:$N$1344,$C$3,FALSE),DATA!$C$2:$ASR$14,10,FALSE),"NA") -> NA | T43: 緩B-020101 | U43: =VLOOKUP(T43,INDEXTBL!$C$1:$N$1344,3,FALSE) -> （遺族調査）在宅で亡くなったがん患者の医療に対する満足度（％） | V43: =VLOOKUP(T43,INDEXTBL!$C$1:$O$1344,12,FALSE) -> 遺47 | W43: =IFERROR(TEXT(HLOOKUP(VLOOKUP($T43,INDEXTBL!$C$1:$O$1344,12,FALSE),DATA!$C$2:$AZH$14,8,FALSE),"0.0"),"NA") -> NA | X43: =IFERROR(TEXT(HLOOKUP(VLOOKUP($T43,INDEXTBL!$C$1:$O$1344,12,FALSE),DATA!$C$2:$AZH$14,7,FALSE),"0.0")&"%","NA") -> NA% | Y43: =IFERROR(TEXT(_xlfn.AGGREGATE(4,7,OFFSET(DATA!$A$1,14,MATCH(VLOOKUP($T43,INDEXTBL!$C$1:$O$1344,12,FALSE),DATA!$A$2:$AZH$2,0)-1,47,1)),"0.0")&"%" &" （"& Z43 & "）","NA") -> NA | Z43: =INDEX(DATA!$C$15:$C$61,MATCH(_xlfn.AGGREGATE(4,7,OFFSET(DATA!$A$1,14,MATCH(VLOOKUP($T43,INDEXTBL!$C$1:$O$1344,12,FALSE),DATA!$A$2:$AZH$2,0)-1,47,1)),OFFSET(DATA!$A$1,14,MATCH(VLOOKUP($T43,INDEXTBL!$C$1:$O$1344,12,FALSE),DATA!$A$2:$AZH$2,0)-1,47,1),0)) -> 
H44: 緩D-020102 | I44: =VLOOKUP(H44,INDEXTBL!$C$1:$N$1344,3,FALSE) -> 担当した患者さんは最終的に希望した場所で亡くなったと思う割合（％）在宅療養支援診療所、在宅療養支援病院、訪問看護ステーション（医師、看護師） | K44: =IFERROR(HLOOKUP(VLOOKUP($H44,INDEXTBL!$C$1:$N$1344,$C$3,FALSE),DATA!$C$2:$ASR$14,8,FALSE),"NA") -> NA | L44: =IFERROR(HLOOKUP(VLOOKUP($H44,INDEXTBL!$C$1:$N$1344,$C$3,FALSE),DATA!$C$2:$ASR$14,7,FALSE),"NA") -> NA | M44: =IFERROR(HLOOKUP(VLOOKUP($H44,INDEXTBL!$C$1:$N$1344,$C$3,FALSE),DATA!$C$2:$ASR$14,10,FALSE),"NA") -> NA | T44: 緩B-020102 | U44: =VLOOKUP(T44,INDEXTBL!$C$1:$N$1344,3,FALSE) -> （遺族調査）介護をしたことで、全体的に負担感が大きかった割合（％） | V44: =VLOOKUP(T44,INDEXTBL!$C$1:$O$1344,12,FALSE) -> 遺48 | W44: =IFERROR(TEXT(HLOOKUP(VLOOKUP($T44,INDEXTBL!$C$1:$O$1344,12,FALSE),DATA!$C$2:$AZH$14,8,FALSE),"0.0")&"%","NA") -> NA% | X44: =IFERROR(TEXT(HLOOKUP(VLOOKUP($T44,INDEXTBL!$C$1:$O$1344,12,FALSE),DATA!$C$2:$AZH$14,7,FALSE),"0.0")&"%","NA") -> NA% | Y44: =IFERROR(TEXT(_xlfn.AGGREGATE(4,7,OFFSET(DATA!$A$1,14,MATCH(VLOOKUP($T44,INDEXTBL!$C$1:$O$1344,12,FALSE),DATA!$A$2:$AZH$2,0)-1,47,1)),"0.0")&"%" &" （"& Z44 & "）","NA") -> NA | Z44: =INDEX(DATA!$C$15:$C$61,MATCH(_xlfn.AGGREGATE(4,7,OFFSET(DATA!$A$1,14,MATCH(VLOOKUP($T44,INDEXTBL!$C$1:$O$1344,12,FALSE),DATA!$A$2:$AZH$2,0)-1,47,1)),OFFSET(DATA!$A$1,14,MATCH(VLOOKUP($T44,INDEXTBL!$C$1:$O$1344,12,FALSE),DATA!$A$2:$AZH$2,0)-1,47,1),0)) -> 
E45: 緩D-0202 | I45: =VLOOKUP(E45,INDEXTBL!$A$1:$N$1344,2,FALSE) -> 在宅で亡くなったがん患者の医療に対する満足度を向上させる | K45: 沖縄県 | L45: 全国 | M45: 最良値 （都道府県） | R45: グラフ | T45: 緩B-020103 | U45: =VLOOKUP(T45,INDEXTBL!$C$1:$N$1344,3,FALSE) -> （NDB-SCR）在宅ターミナルケア加算 | V45: =VLOOKUP(T45,INDEXTBL!$C$1:$O$1344,10,FALSE) -> NA16 | W45: =IFERROR(TEXT(HLOOKUP(VLOOKUP($T45,INDEXTBL!$C$1:$N$1344,10,FALSE),DATA!$C$2:$AZH$14,8,FALSE),"0.0"),"NA") -> 103.9 | X45: =IFERROR(TEXT(HLOOKUP(VLOOKUP($T45,INDEXTBL!$C$1:$N$1344,10,FALSE),DATA!$C$2:$AZH$14,7,FALSE),"0.0"),"NA") -> 100.0 | Y45: =IFERROR(TEXT(_xlfn.AGGREGATE(4,7,OFFSET(DATA!$A$1,14,MATCH(VLOOKUP($T45,INDEXTBL!$C$1:$N$1344,10,FALSE),DATA!$A$2:$AZH$2,0)-1,47,1)),"0.0") &" （"& Z45 & "）","NA") -> 188.5 （神奈川県） | Z45: =INDEX(DATA!$C$15:$C$61,MATCH(_xlfn.AGGREGATE(4,7,OFFSET(DATA!$A$1,14,MATCH(VLOOKUP($T45,INDEXTBL!$C$1:$N$1344,10,FALSE),DATA!$A$2:$AZH$2,0)-1,47,1)),OFFSET(DATA!$A$1,14,MATCH(VLOOKUP($T45,INDEXTBL!$C$1:$N$1344,10,FALSE),DATA!$A$2:$AZH$2,0)-1,47,1),0)) -> 神奈川県
H46: 緩D-020201 | I46: =VLOOKUP(H46,INDEXTBL!$C$1:$N$1344,3,FALSE) -> ※（検討中） | K46: =IFERROR(HLOOKUP(VLOOKUP($H46,INDEXTBL!$C$1:$N$1344,$C$3,FALSE),DATA!$C$2:$ASR$14,8,FALSE),"NA") -> NA | L46: =IFERROR(HLOOKUP(VLOOKUP($H46,INDEXTBL!$C$1:$N$1344,$C$3,FALSE),DATA!$C$2:$ASR$14,7,FALSE),"NA") -> NA | M46: =IFERROR(HLOOKUP(VLOOKUP($H46,INDEXTBL!$C$1:$N$1344,$C$3,FALSE),DATA!$C$2:$ASR$14,10,FALSE),"NA") -> NA | R46: グラフ | T46: 緩B-020104 | U46: =VLOOKUP(T46,INDEXTBL!$C$1:$N$1344,3,FALSE) -> （NDB-SCR）看取り加算（在宅患者訪問診療料（１）１・（２）イ・往診料） 外来 | V46: =VLOOKUP(T46,INDEXTBL!$C$1:$O$1344,10,FALSE) -> N241 | W46: =IFERROR(TEXT(HLOOKUP(VLOOKUP($T46,INDEXTBL!$C$1:$N$1344,10,FALSE),DATA!$C$2:$AZH$14,8,FALSE),"0.0"),"NA") -> 107.6 | X46: =IFERROR(TEXT(HLOOKUP(VLOOKUP($T46,INDEXTBL!$C$1:$N$1344,10,FALSE),DATA!$C$2:$AZH$14,7,FALSE),"0.0"),"NA") -> 100.0 | Y46: =IFERROR(TEXT(_xlfn.AGGREGATE(4,7,OFFSET(DATA!$A$1,14,MATCH(VLOOKUP($T46,INDEXTBL!$C$1:$N$1344,10,FALSE),DATA!$A$2:$AZH$2,0)-1,47,1)),"0.0") &" （"& Z46 & "）","NA") -> 188.1 （神奈川県） | Z46: =INDEX(DATA!$C$15:$C$61,MATCH(_xlfn.AGGREGATE(4,7,OFFSET(DATA!$A$1,14,MATCH(VLOOKUP($T46,INDEXTBL!$C$1:$N$1344,10,FALSE),DATA!$A$2:$AZH$2,0)-1,47,1)),OFFSET(DATA!$A$1,14,MATCH(VLOOKUP($T46,INDEXTBL!$C$1:$N$1344,10,FALSE),DATA!$A$2:$AZH$2,0)-1,47,1),0)) -> 神奈川県
E47: 緩D-0203 | I47: =VLOOKUP(E47,INDEXTBL!$A$1:$N$1344,2,FALSE) -> 在宅医療を提供できる必要な資格を持った専門家を計画的に養成し、必要に応じて配置する | K47: 沖縄県 | L47: 全国 | M47: 最良値 （都道府県） | T47: 緩B-020105 | U47: =VLOOKUP(T47,INDEXTBL!$C$1:$N$1344,3,FALSE) -> （NDB-SCR）介護支援等連携指導料（がん患者に限定） | V47: =VLOOKUP(T47,INDEXTBL!$C$1:$O$1344,10,FALSE) -> 0 | W47: =IFERROR(TEXT(HLOOKUP(VLOOKUP($T47,INDEXTBL!$C$1:$N$1344,10,FALSE),DATA!$C$2:$AZH$14,8,FALSE),"0.0"),"NA") -> NA | X47: =IFERROR(TEXT(HLOOKUP(VLOOKUP($T47,INDEXTBL!$C$1:$N$1344,10,FALSE),DATA!$C$2:$AZH$14,7,FALSE),"0.0"),"NA") -> NA | Y47: =IFERROR(TEXT(_xlfn.AGGREGATE(4,7,OFFSET(DATA!$A$1,14,MATCH(VLOOKUP($T47,INDEXTBL!$C$1:$N$1344,10,FALSE),DATA!$A$2:$AZH$2,0)-1,47,1)),"0.0") &" （"& Z47 & "）","NA") -> NA | Z47: =INDEX(DATA!$C$15:$C$61,MATCH(_xlfn.AGGREGATE(4,7,OFFSET(DATA!$A$1,14,MATCH(VLOOKUP($T47,INDEXTBL!$C$1:$N$1344,10,FALSE),DATA!$A$2:$AZH$2,0)-1,47,1)),OFFSET(DATA!$A$1,14,MATCH(VLOOKUP($T47,INDEXTBL!$C$1:$N$1344,10,FALSE),DATA!$A$2:$AZH$2,0)-1,47,1),0)) -> 
H48: 緩D-020301 | I48: =VLOOKUP(H48,INDEXTBL!$C$1:$N$1344,3,FALSE) -> 地域緩和ケア連携調整員研修受講者数（人） | J48: =VLOOKUP($H48,INDEXTBL!$C$1:$O$1344,5,FALSE) -> EX088 | K48: =IFERROR(TEXT(HLOOKUP(VLOOKUP($H48,INDEXTBL!$C$1:$N$1344,5,FALSE),DATA!$C$2:$BCV$14,8,FALSE),"0"),"NA") -> 3 | L48: =IFERROR(TEXT(HLOOKUP(VLOOKUP($H48,INDEXTBL!$C$1:$N$1344,5,FALSE),DATA!$C$2:$BCV$14,7,FALSE),"0"),"NA") -> NA | M48: =IFERROR(HLOOKUP(VLOOKUP($H48,INDEXTBL!$C$1:$N$1344,$C$3,FALSE),DATA!$C$2:$ASR$14,10,FALSE),"NA") -> NA | T48: 緩B-020106 | U48: =VLOOKUP(T48,INDEXTBL!$C$1:$N$1344,3,FALSE) -> （NDB-SCR）退院時共同指導料１（がん患者に限定） | V48: =VLOOKUP(T48,INDEXTBL!$C$1:$O$1344,10,FALSE) -> 0 | W48: =IFERROR(TEXT(HLOOKUP(VLOOKUP($T48,INDEXTBL!$C$1:$N$1344,10,FALSE),DATA!$C$2:$AZH$14,8,FALSE),"0.0"),"NA") -> NA | X48: =IFERROR(TEXT(HLOOKUP(VLOOKUP($T48,INDEXTBL!$C$1:$N$1344,10,FALSE),DATA!$C$2:$AZH$14,7,FALSE),"0.0"),"NA") -> NA | Y48: =IFERROR(TEXT(_xlfn.AGGREGATE(4,7,OFFSET(DATA!$A$1,14,MATCH(VLOOKUP($T48,INDEXTBL!$C$1:$N$1344,10,FALSE),DATA!$A$2:$AZH$2,0)-1,47,1)),"0.0") &" （"& Z48 & "）","NA") -> NA | Z48: =INDEX(DATA!$C$15:$C$61,MATCH(_xlfn.AGGREGATE(4,7,OFFSET(DATA!$A$1,14,MATCH(VLOOKUP($T48,INDEXTBL!$C$1:$N$1344,10,FALSE),DATA!$A$2:$AZH$2,0)-1,47,1)),OFFSET(DATA!$A$1,14,MATCH(VLOOKUP($T48,INDEXTBL!$C$1:$N$1344,10,FALSE),DATA!$A$2:$AZH$2,0)-1,47,1),0)) -> 
H49: 緩D-020302 | I49: =VLOOKUP(H49,INDEXTBL!$C$1:$N$1344,3,FALSE) -> 在宅専門医（人） | J49: =VLOOKUP($H49,INDEXTBL!$C$1:$O$1344,5,FALSE) -> EX089 | K49: =IFERROR(TEXT(HLOOKUP(VLOOKUP($H49,INDEXTBL!$C$1:$N$1344,5,FALSE),DATA!$C$2:$BCV$14,8,FALSE)/DATA!$H$9*1000000,"0.0"),"NA") -> 6.8 | L49: =IFERROR(TEXT(HLOOKUP(VLOOKUP($H49,INDEXTBL!$C$1:$N$1344,5,FALSE),DATA!$C$2:$BCV$14,7,FALSE)/DATA!$H$8*1000000,"0.0"),"NA") -> 3.7 | M49: =IFERROR(TEXT(MAX(OFFSET(DATA!$A$1,14,MATCH(VLOOKUP($H49,INDEXTBL!$C$1:$N$1344,5,FALSE),DATA!$A$2:$BCV$2,0)-1,47,1)/DATA!$H$15:$H$61*1000000),"0.0") &" （"& N49 & "）","NA") -> 9.1 （奈良県） | N49: =INDEX(DATA!$C$15:$C$61,MATCH(MAX(OFFSET(DATA!$A$1,14,MATCH(VLOOKUP($H49,INDEXTBL!$C$1:$N$1344,5,FALSE),DATA!$A$2:$BCV$2,0)-1,47,1)/DATA!$H$15:$H$61*1000000),OFFSET(DATA!$A$1,14,MATCH(VLOOKUP($H49,INDEXTBL!$C$1:$N$1344,5,FALSE),DATA!$A$2:$BCV$2,0)-1,47,1)/DATA!$H$15:$H$61*1000000,0)) -> 奈良県 | O49: ＊＊ | T49: 緩B-020107 | U49: =VLOOKUP(T49,INDEXTBL!$C$1:$N$1344,3,FALSE) -> （医療者調査）在宅医療を希望された患者のうち、実際に在宅医療に移行した患者の割合が75%以上であると回答した人の割合（％） | V49: =VLOOKUP(T49,INDEXTBL!$C$1:$O$1344,13,FALSE) -> 医26 | W49: =IFERROR(TEXT(HLOOKUP(VLOOKUP($T49,INDEXTBL!$C$1:$O$1344,13,FALSE),DATA!$C$2:$BCV$14,8,FALSE)*100,"0.0")&"%","NA") -> 62.7% | X49: =IFERROR(TEXT(HLOOKUP(VLOOKUP($T49,INDEXTBL!$C$1:$O$1344,13,FALSE),DATA!$C$2:$BCV$14,7,FALSE)*100,"0.0")&"%","NA") -> NA | Y49: =IFERROR(TEXT(_xlfn.AGGREGATE(4,7,OFFSET(DATA!$A$1,14,MATCH(VLOOKUP($T49,INDEXTBL!$C$1:$O$1344,13,FALSE),DATA!$A$2:$BCV$2,0)-1,47,1)),"0.0") &" （"& Z49 & "）","NA") -> NA | Z49: =INDEX(DATA!$C$15:$C$61,MATCH(_xlfn.AGGREGATE(4,7,OFFSET(DATA!$A$1,14,MATCH(VLOOKUP($T49,INDEXTBL!$C$1:$O$1344,13,FALSE),DATA!$A$2:$BCV$2,0)-1,47,1)),OFFSET(DATA!$A$1,14,MATCH(VLOOKUP($T49,INDEXTBL!$C$1:$O$1344,13,FALSE),DATA!$A$2:$BCV$2,0)-1,47,1),0)) -> 
H50: 緩D-020314 | I50: =VLOOKUP(H50,INDEXTBL!$C$1:$N$1344,3,FALSE) -> 日本在宅医療連合学会 所属県別会員数（人） | J50: =VLOOKUP($H50,INDEXTBL!$C$1:$O$1344,5,FALSE) -> EX261 | K50: =IFERROR(TEXT(HLOOKUP(VLOOKUP($H50,INDEXTBL!$C$1:$N$1344,5,FALSE),DATA!$C$2:$DAC$14,8,FALSE)/DATA!$H$9*1000000,"0.0"),"NA") -> 32.0 | L50: =IFERROR(TEXT(HLOOKUP(VLOOKUP($H50,INDEXTBL!$C$1:$N$1344,5,FALSE),DATA!$C$2:$DAC$14,7,FALSE)/DATA!$H$8*1000000,"0.0"),"NA") -> 26.5 | M50: =IFERROR(TEXT(MAX(OFFSET(DATA!$A$1,14,MATCH(VLOOKUP($H50,INDEXTBL!$C$1:$N$1344,5,FALSE),DATA!$A$2:$DAC$2,0)-1,47,1)/DATA!$H$15:$H$61*1000000),"0.0") &" （"& N50 & "）","NA") -> 48.3 （東京都） | N50: =INDEX(DATA!$C$15:$C$61,MATCH(MAX(OFFSET(DATA!$A$1,14,MATCH(VLOOKUP($H50,INDEXTBL!$C$1:$N$1344,5,FALSE),DATA!$A$2:$DAC$2,0)-1,47,1)/DATA!$H$15:$H$61*1000000),OFFSET(DATA!$A$1,14,MATCH(VLOOKUP($H50,INDEXTBL!$C$1:$N$1344,5,FALSE),DATA!$A$2:$DAC$2,0)-1,47,1)/DATA!$H$15:$H$61*1000000,0)) -> 東京都 | O50: ＊＊
F51: グラフ | H51: 緩D-020313 | I51: =VLOOKUP(H51,INDEXTBL!$C$1:$N$1344,3,FALSE) -> 訪問看護認定看護師（人） | J51: =VLOOKUP($H51,INDEXTBL!$C$1:$O$1344,5,FALSE) -> EX197 | K51: =IFERROR(TEXT(HLOOKUP(VLOOKUP($H51,INDEXTBL!$C$1:$N$1344,5,FALSE),DATA!$C$2:$BGW$14,8,FALSE)/DATA!$H$9*1000000,"0.0"),"NA") -> 2.0 | L51: =IFERROR(TEXT(HLOOKUP(VLOOKUP($H51,INDEXTBL!$C$1:$N$1344,5,FALSE),DATA!$C$2:$BGW$14,7,FALSE)/DATA!$H$8*1000000,"0.0"),"NA") -> 5.3 | M51: =IFERROR(TEXT(MAX(OFFSET(DATA!$A$1,14,MATCH(VLOOKUP($H51,INDEXTBL!$C$1:$N$1344,5,FALSE),DATA!$A$2:$BGW$2,0)-1,47,1)/DATA!$H$15:$H$61*1000000),"0.0") &" （"& N51 & "）","NA") -> 13.0 （愛知県） | N51: =INDEX(DATA!$C$15:$C$61,MATCH(MAX(OFFSET(DATA!$A$1,14,MATCH(VLOOKUP($H51,INDEXTBL!$C$1:$N$1344,5,FALSE),DATA!$A$2:$BGW$2,0)-1,47,1)/DATA!$H$15:$H$61*1000000),OFFSET(DATA!$A$1,14,MATCH(VLOOKUP($H51,INDEXTBL!$C$1:$N$1344,5,FALSE),DATA!$A$2:$BGW$2,0)-1,47,1)/DATA!$H$15:$H$61*1000000,0)) -> 愛知県 | O51: ＊＊
F52: グラフ | H52: 緩D-020303 | I52: =VLOOKUP(H52,INDEXTBL!$C$1:$N$1344,3,FALSE) -> （訪問看護ステーション）訪問看護師（人：常勤換算） | J52: =VLOOKUP($H52,INDEXTBL!$C$1:$O$1344,5,FALSE) -> EX090 | K52: =IFERROR(TEXT(HLOOKUP(VLOOKUP($H52,INDEXTBL!$C$1:$N$1344,5,FALSE),DATA!$C$2:$BCV$14,8,FALSE)/DATA!$H$9*1000000,"0.0"),"NA") -> 837.5 | L52: =IFERROR(TEXT(HLOOKUP(VLOOKUP($H52,INDEXTBL!$C$1:$N$1344,5,FALSE),DATA!$C$2:$BCV$14,7,FALSE)/DATA!$H$8*1000000,"0.0"),"NA") -> 725.1 | M52: =IFERROR(TEXT(MAX(OFFSET(DATA!$A$1,14,MATCH(VLOOKUP($H52,INDEXTBL!$C$1:$N$1344,5,FALSE),DATA!$A$2:$BCV$2,0)-1,47,1)/DATA!$H$15:$H$61*1000000),"0.0") &" （"& N52 & "）","NA") -> 1309.1 （大阪府） | N52: =INDEX(DATA!$C$15:$C$61,MATCH(MAX(OFFSET(DATA!$A$1,14,MATCH(VLOOKUP($H52,INDEXTBL!$C$1:$N$1344,5,FALSE),DATA!$A$2:$BCV$2,0)-1,47,1)/DATA!$H$15:$H$61*1000000),OFFSET(DATA!$A$1,14,MATCH(VLOOKUP($H52,INDEXTBL!$C$1:$N$1344,5,FALSE),DATA!$A$2:$BCV$2,0)-1,47,1)/DATA!$H$15:$H$61*1000000,0)) -> 大阪府 | O52: ＊＊
F53: グラフ | H53: 緩D-020304 | I53: =VLOOKUP(H53,INDEXTBL!$C$1:$N$1344,3,FALSE) -> 介護支援専門員（人：常勤換算） | J53: =VLOOKUP($H53,INDEXTBL!$C$1:$O$1344,5,FALSE) -> EX091 | K53: =IFERROR(TEXT(HLOOKUP(VLOOKUP($H53,INDEXTBL!$C$1:$N$1344,5,FALSE),DATA!$C$2:$BCV$14,8,FALSE)/DATA!$H$9*1000000,"0.0"),"NA") -> 800.0 | L53: =IFERROR(TEXT(HLOOKUP(VLOOKUP($H53,INDEXTBL!$C$1:$N$1344,5,FALSE),DATA!$C$2:$BCV$14,7,FALSE)/DATA!$H$8*1000000,"0.0"),"NA") -> 802.9 | M53: =IFERROR(TEXT(MAX(OFFSET(DATA!$A$1,14,MATCH(VLOOKUP($H53,INDEXTBL!$C$1:$N$1344,5,FALSE),DATA!$A$2:$BCV$2,0)-1,47,1)/DATA!$H$15:$H$61*1000000),"0.0") &" （"& N53 & "）","NA") -> 1197.1 （青森県） | N53: =INDEX(DATA!$C$15:$C$61,MATCH(MAX(OFFSET(DATA!$A$1,14,MATCH(VLOOKUP($H53,INDEXTBL!$C$1:$N$1344,5,FALSE),DATA!$A$2:$BCV$2,0)-1,47,1)/DATA!$H$15:$H$61*1000000),OFFSET(DATA!$A$1,14,MATCH(VLOOKUP($H53,INDEXTBL!$C$1:$N$1344,5,FALSE),DATA!$A$2:$BCV$2,0)-1,47,1)/DATA!$H$15:$H$61*1000000,0)) -> 青森県 | O53: ＊＊
H54: 緩D-020305 | I54: =VLOOKUP(H54,INDEXTBL!$C$1:$N$1344,3,FALSE) -> 在宅医療インテグレーター（養成講座修了者数）（人） | J54: =VLOOKUP($H54,INDEXTBL!$C$1:$O$1344,5,FALSE) -> EX092 | K54: =IFERROR(TEXT(HLOOKUP(VLOOKUP($H54,INDEXTBL!$C$1:$N$1344,5,FALSE),DATA!$C$2:$BCV$14,8,FALSE)/DATA!$H$9*1000000,"0.0"),"NA") -> 8.9 | L54: =IFERROR(TEXT(HLOOKUP(VLOOKUP($H54,INDEXTBL!$C$1:$N$1344,5,FALSE),DATA!$C$2:$BCV$14,7,FALSE)/DATA!$H$8*1000000,"0.0"),"NA") -> 3.4 | M54: =IFERROR(TEXT(MAX(OFFSET(DATA!$A$1,14,MATCH(VLOOKUP($H54,INDEXTBL!$C$1:$N$1344,5,FALSE),DATA!$A$2:$BCV$2,0)-1,47,1)/DATA!$H$15:$H$61*1000000),"0.0") &" （"& N54 & "）","NA") -> 8.9 （沖縄県） | N54: =INDEX(DATA!$C$15:$C$61,MATCH(MAX(OFFSET(DATA!$A$1,14,MATCH(VLOOKUP($H54,INDEXTBL!$C$1:$N$1344,5,FALSE),DATA!$A$2:$BCV$2,0)-1,47,1)/DATA!$H$15:$H$61*1000000),OFFSET(DATA!$A$1,14,MATCH(VLOOKUP($H54,INDEXTBL!$C$1:$N$1344,5,FALSE),DATA!$A$2:$BCV$2,0)-1,47,1)/DATA!$H$15:$H$61*1000000,0)) -> 沖縄県 | O54: ＊＊
F55: グラフ | H55: 緩D-020306 | I55: =VLOOKUP(H55,INDEXTBL!$C$1:$N$1344,3,FALSE) -> 在宅療養支援診療所数 | J55: =VLOOKUP($H55,INDEXTBL!$C$1:$O$1344,5,FALSE) -> EX093 | K55: =IFERROR(TEXT(HLOOKUP(VLOOKUP($H55,INDEXTBL!$C$1:$N$1344,5,FALSE),DATA!$C$2:$CCV$14,8,FALSE)/DATA!$H$9*1000000,"0.0"),"NA") -> 65.4 | L55: =IFERROR(TEXT(HLOOKUP(VLOOKUP($H55,INDEXTBL!$C$1:$N$1344,5,FALSE),DATA!$C$2:$CCV$14,7,FALSE)/DATA!$H$8*1000000,"0.0"),"NA") -> 115.1 | M55: =IFERROR(TEXT(MAX(OFFSET(DATA!$A$1,14,MATCH(VLOOKUP($H55,INDEXTBL!$C$1:$N$1344,5,FALSE),DATA!$A$2:$CCV$2,0)-1,47,1)/DATA!$H$15:$H$61*1000000),"0.0") &" （"& N55 & "）","NA") -> 196.8 （大阪府） | N55: =INDEX(DATA!$C$15:$C$61,MATCH(MAX(OFFSET(DATA!$A$1,14,MATCH(VLOOKUP($H55,INDEXTBL!$C$1:$N$1344,5,FALSE),DATA!$A$2:$CCV$2,0)-1,47,1)/DATA!$H$15:$H$61*1000000),OFFSET(DATA!$A$1,14,MATCH(VLOOKUP($H55,INDEXTBL!$C$1:$N$1344,5,FALSE),DATA!$A$2:$CCV$2,0)-1,47,1)/DATA!$H$15:$H$61*1000000,0)) -> 大阪府 | O55: ＊＊
F56: グラフ | H56: 緩D-020307 | I56: =VLOOKUP(H56,INDEXTBL!$C$1:$N$1344,3,FALSE) -> 強化機能型在宅療養支援診療所数 | J56: =VLOOKUP($H56,INDEXTBL!$C$1:$O$1344,5,FALSE) -> EX094 | K56: =IFERROR(TEXT(HLOOKUP(VLOOKUP($H56,INDEXTBL!$C$1:$N$1344,5,FALSE),DATA!$C$2:$CCV$14,8,FALSE)/DATA!$H$9*1000000,"0.0"),"NA") -> 24.5 | L56: =IFERROR(TEXT(HLOOKUP(VLOOKUP($H56,INDEXTBL!$C$1:$N$1344,5,FALSE),DATA!$C$2:$CCV$14,7,FALSE)/DATA!$H$8*1000000,"0.0"),"NA") -> 31.7 | M56: =IFERROR(TEXT(MAX(OFFSET(DATA!$A$1,14,MATCH(VLOOKUP($H56,INDEXTBL!$C$1:$N$1344,5,FALSE),DATA!$A$2:$CCV$2,0)-1,47,1)/DATA!$H$15:$H$61*1000000),"0.0") &" （"& N56 & "）","NA") -> 51.4 （大阪府） | N56: =INDEX(DATA!$C$15:$C$61,MATCH(MAX(OFFSET(DATA!$A$1,14,MATCH(VLOOKUP($H56,INDEXTBL!$C$1:$N$1344,5,FALSE),DATA!$A$2:$CCV$2,0)-1,47,1)/DATA!$H$15:$H$61*1000000),OFFSET(DATA!$A$1,14,MATCH(VLOOKUP($H56,INDEXTBL!$C$1:$N$1344,5,FALSE),DATA!$A$2:$CCV$2,0)-1,47,1)/DATA!$H$15:$H$61*1000000,0)) -> 大阪府 | O56: ＊＊
F57: グラフ | H57: 緩D-020308 | I57: =VLOOKUP(H57,INDEXTBL!$C$1:$N$1344,3,FALSE) -> 在宅療養支援病院数 | J57: =VLOOKUP($H57,INDEXTBL!$C$1:$O$1344,5,FALSE) -> EX095 | K57: =IFERROR(TEXT(HLOOKUP(VLOOKUP($H57,INDEXTBL!$C$1:$N$1344,5,FALSE),DATA!$C$2:$CCV$14,8,FALSE)/DATA!$H$9*1000000,"0.0"),"NA") -> 13.6 | L57: =IFERROR(TEXT(HLOOKUP(VLOOKUP($H57,INDEXTBL!$C$1:$N$1344,5,FALSE),DATA!$C$2:$CCV$14,7,FALSE)/DATA!$H$8*1000000,"0.0"),"NA") -> 14.4 | M57: =IFERROR(TEXT(MAX(OFFSET(DATA!$A$1,14,MATCH(VLOOKUP($H57,INDEXTBL!$C$1:$N$1344,5,FALSE),DATA!$A$2:$CCV$2,0)-1,47,1)/DATA!$H$15:$H$61*1000000),"0.0") &" （"& N57 & "）","NA") -> 63.9 （徳島県） | N57: =INDEX(DATA!$C$15:$C$61,MATCH(MAX(OFFSET(DATA!$A$1,14,MATCH(VLOOKUP($H57,INDEXTBL!$C$1:$N$1344,5,FALSE),DATA!$A$2:$CCV$2,0)-1,47,1)/DATA!$H$15:$H$61*1000000),OFFSET(DATA!$A$1,14,MATCH(VLOOKUP($H57,INDEXTBL!$C$1:$N$1344,5,FALSE),DATA!$A$2:$CCV$2,0)-1,47,1)/DATA!$H$15:$H$61*1000000,0)) -> 徳島県 | O57: ＊＊
F58: グラフ | H58: 緩D-020309 | I58: =VLOOKUP(H58,INDEXTBL!$C$1:$N$1344,3,FALSE) -> 訪問看護ステーション数 | J58: =VLOOKUP($H58,INDEXTBL!$C$1:$O$1344,5,FALSE) -> EX096 | K58: =IFERROR(TEXT(HLOOKUP(VLOOKUP($H58,INDEXTBL!$C$1:$N$1344,5,FALSE),DATA!$C$2:$CCV$14,8,FALSE)/DATA!$H$9*1000000,"0.0"),"NA") -> 159.5 | L58: =IFERROR(TEXT(HLOOKUP(VLOOKUP($H58,INDEXTBL!$C$1:$N$1344,5,FALSE),DATA!$C$2:$CCV$14,7,FALSE)/DATA!$H$8*1000000,"0.0"),"NA") -> 130.2 | M58: =IFERROR(TEXT(MAX(OFFSET(DATA!$A$1,14,MATCH(VLOOKUP($H58,INDEXTBL!$C$1:$N$1344,5,FALSE),DATA!$A$2:$CCV$2,0)-1,47,1)/DATA!$H$15:$H$61*1000000),"0.0") &" （"& N58 & "）","NA") -> 211.7 （大阪府） | N58: =INDEX(DATA!$C$15:$C$61,MATCH(MAX(OFFSET(DATA!$A$1,14,MATCH(VLOOKUP($H58,INDEXTBL!$C$1:$N$1344,5,FALSE),DATA!$A$2:$CCV$2,0)-1,47,1)/DATA!$H$15:$H$61*1000000),OFFSET(DATA!$A$1,14,MATCH(VLOOKUP($H58,INDEXTBL!$C$1:$N$1344,5,FALSE),DATA!$A$2:$CCV$2,0)-1,47,1)/DATA!$H$15:$H$61*1000000,0)) -> 大阪府 | O58: ＊＊
F59: グラフ | H59: 緩D-020310 | I59: =VLOOKUP(H59,INDEXTBL!$C$1:$N$1344,3,FALSE) -> 専門医療機関連携薬局の認定数 | J59: =VLOOKUP($H59,INDEXTBL!$C$1:$O$1344,5,FALSE) -> EX097 | K59: =IFERROR(TEXT(HLOOKUP(VLOOKUP($H59,INDEXTBL!$C$1:$N$1344,5,FALSE),DATA!$C$2:$CCV$14,8,FALSE)/DATA!$H$9*1000000,"0.0"),"NA") -> 0.7 | L59: =IFERROR(TEXT(HLOOKUP(VLOOKUP($H59,INDEXTBL!$C$1:$N$1344,5,FALSE),DATA!$C$2:$CCV$14,7,FALSE)/DATA!$H$8*1000000,"0.0"),"NA") -> 1.5 | M59: =IFERROR(TEXT(MAX(OFFSET(DATA!$A$1,14,MATCH(VLOOKUP($H59,INDEXTBL!$C$1:$N$1344,5,FALSE),DATA!$A$2:$CCV$2,0)-1,47,1)/DATA!$H$15:$H$61*1000000),"0.0") &" （"& N59 & "）","NA") -> 3.8 （長崎県） | N59: =INDEX(DATA!$C$15:$C$61,MATCH(MAX(OFFSET(DATA!$A$1,14,MATCH(VLOOKUP($H59,INDEXTBL!$C$1:$N$1344,5,FALSE),DATA!$A$2:$CCV$2,0)-1,47,1)/DATA!$H$15:$H$61*1000000),OFFSET(DATA!$A$1,14,MATCH(VLOOKUP($H59,INDEXTBL!$C$1:$N$1344,5,FALSE),DATA!$A$2:$CCV$2,0)-1,47,1)/DATA!$H$15:$H$61*1000000,0)) -> 長崎県 | O59: ＊＊
H60: 緩D-020315 | I60: =VLOOKUP(H60,INDEXTBL!$C$1:$N$1344,3,FALSE) -> 麻薬を取り扱っている夜間休日対応薬局 | J60: =VLOOKUP($H60,INDEXTBL!$C$1:$O$1344,5,FALSE) -> EX262 | K60: =IFERROR(TEXT(HLOOKUP(VLOOKUP($H60,INDEXTBL!$C$1:$N$1344,5,FALSE),DATA!$C$2:$CCV$14,8,FALSE)/DATA!$H$9*1000000,"0.0"),"NA") -> 68.8 | L60: =IFERROR(TEXT(HLOOKUP(VLOOKUP($H60,INDEXTBL!$C$1:$N$1344,5,FALSE),DATA!$C$2:$CCV$14,7,FALSE)/DATA!$H$8*1000000,"0.0"),"NA") -> NA | M60: =IFERROR(HLOOKUP(VLOOKUP(#REF!,INDEXTBL!$C$1:$O$1344,4,FALSE),DATA!$C$2:$BCV$14,10,FALSE)/DATA!$H$11*100000,"NA") -> NA | N60: =INDEX(DATA!$C$15:$C$61,MATCH(MAX(OFFSET(DATA!$A$1,14,MATCH(VLOOKUP($H60,INDEXTBL!$C$1:$N$1344,5,FALSE),DATA!$A$2:$CCV$2,0)-1,47,1)/DATA!$H$15:$H$61*1000000),OFFSET(DATA!$A$1,14,MATCH(VLOOKUP($H60,INDEXTBL!$C$1:$N$1344,5,FALSE),DATA!$A$2:$CCV$2,0)-1,47,1)/DATA!$H$15:$H$61*1000000,0)) -> 北海道 | O60: ＊＊
H61: 緩D-020316 | I61: =VLOOKUP(H61,INDEXTBL!$C$1:$N$1344,3,FALSE) -> 無菌製剤処理（共同利用含む） | J61: =VLOOKUP($H61,INDEXTBL!$C$1:$O$1344,5,FALSE) -> EX263 | K61: =IFERROR(TEXT(HLOOKUP(VLOOKUP($H61,INDEXTBL!$C$1:$N$1344,5,FALSE),DATA!$C$2:$CCV$14,8,FALSE)/DATA!$H$9*1000000,"0.0"),"NA") -> 77.7 | L61: =IFERROR(TEXT(HLOOKUP(VLOOKUP($H61,INDEXTBL!$C$1:$N$1344,5,FALSE),DATA!$C$2:$CCV$14,7,FALSE)/DATA!$H$8*1000000,"0.0"),"NA") -> NA | M61: =IFERROR(HLOOKUP(VLOOKUP(#REF!,INDEXTBL!$C$1:$O$1344,4,FALSE),DATA!$C$2:$BCV$14,10,FALSE)/DATA!$H$11*100000,"NA") -> NA | N61: =INDEX(DATA!$C$15:$C$61,MATCH(MAX(OFFSET(DATA!$A$1,14,MATCH(VLOOKUP($H61,INDEXTBL!$C$1:$N$1344,5,FALSE),DATA!$A$2:$CCV$2,0)-1,47,1)/DATA!$H$15:$H$61*1000000),OFFSET(DATA!$A$1,14,MATCH(VLOOKUP($H61,INDEXTBL!$C$1:$N$1344,5,FALSE),DATA!$A$2:$CCV$2,0)-1,47,1)/DATA!$H$15:$H$61*1000000,0)) -> 北海道 | O61: ＊＊
H62: 緩D-020311 | I62: =VLOOKUP(H62,INDEXTBL!$C$1:$N$1344,3,FALSE) -> 介護サービス事業所数 | J62: =VLOOKUP($H62,INDEXTBL!$C$1:$O$1344,5,FALSE) -> EX098 | K62: =IFERROR(TEXT(HLOOKUP(VLOOKUP($H62,INDEXTBL!$C$1:$N$1344,5,FALSE),DATA!$C$2:$CCV$14,8,FALSE)/DATA!$H$9*1000000,"0.0"),"NA") -> 1797.6 | L62: =IFERROR(TEXT(HLOOKUP(VLOOKUP($H62,INDEXTBL!$C$1:$N$1344,5,FALSE),DATA!$C$2:$CCV$14,7,FALSE)/DATA!$H$8*1000000,"0.0"),"NA") -> NA | M62: =IFERROR(HLOOKUP(VLOOKUP(#REF!,INDEXTBL!$C$1:$O$1344,4,FALSE),DATA!$C$2:$BCV$14,10,FALSE)/DATA!$H$11*100000,"NA") -> NA | N62: =INDEX(DATA!$C$15:$C$61,MATCH(MAX(OFFSET(DATA!$A$1,14,MATCH(VLOOKUP($H62,INDEXTBL!$C$1:$N$1344,5,FALSE),DATA!$A$2:$CCV$2,0)-1,47,1)/DATA!$H$15:$H$61*1000000),OFFSET(DATA!$A$1,14,MATCH(VLOOKUP($H62,INDEXTBL!$C$1:$N$1344,5,FALSE),DATA!$A$2:$CCV$2,0)-1,47,1)/DATA!$H$15:$H$61*1000000,0)) -> 北海道 | O62: ＊＊
H63: 緩D-020312 | I63: =VLOOKUP(H63,INDEXTBL!$C$1:$N$1344,3,FALSE) -> 訪問リハビリテーション事業所数 | J63: =VLOOKUP($H63,INDEXTBL!$C$1:$O$1344,5,FALSE) -> EX099 | K63: =IFERROR(TEXT(HLOOKUP(VLOOKUP($H63,INDEXTBL!$C$1:$N$1344,5,FALSE),DATA!$C$2:$CCV$14,8,FALSE)/DATA!$H$9*1000000,"0.0"),"NA") -> 30.7 | L63: =IFERROR(TEXT(HLOOKUP(VLOOKUP($H63,INDEXTBL!$C$1:$N$1344,5,FALSE),DATA!$C$2:$CCV$14,7,FALSE)/DATA!$H$8*1000000,"0.0"),"NA") -> 39.2 | M63: =IFERROR(TEXT(MAX(OFFSET(DATA!$A$1,14,MATCH(VLOOKUP($H63,INDEXTBL!$C$1:$N$1344,5,FALSE),DATA!$A$2:$CCV$2,0)-1,47,1)/DATA!$H$15:$H$61*1000000),"0.0") &" （"& N63 & "）","NA") -> 133.4 （徳島県） | N63: =INDEX(DATA!$C$15:$C$61,MATCH(MAX(OFFSET(DATA!$A$1,14,MATCH(VLOOKUP($H63,INDEXTBL!$C$1:$N$1344,5,FALSE),DATA!$A$2:$CCV$2,0)-1,47,1)/DATA!$H$15:$H$61*1000000),OFFSET(DATA!$A$1,14,MATCH(VLOOKUP($H63,INDEXTBL!$C$1:$N$1344,5,FALSE),DATA!$A$2:$CCV$2,0)-1,47,1)/DATA!$H$15:$H$61*1000000,0)) -> 徳島県 | O63: ＊＊
E64: 緩D-0204 | I64: =VLOOKUP(E64,INDEXTBL!$A$1:$N$1344,2,FALSE) -> 看取りができる介護施設の拡大を図る | K64: 沖縄県 | L64: 全国 | M64: 最良値 （都道府県）
H65: 緩D-020401 | I65: =VLOOKUP(H65,INDEXTBL!$C$1:$N$1344,3,FALSE) -> 看取りができる介護施設の数 | K65: =IFERROR(HLOOKUP(VLOOKUP($H65,INDEXTBL!$C$1:$N$1344,$C$3,FALSE),DATA!$C$2:$ASR$14,8,FALSE),"NA") -> NA | L65: =IFERROR(HLOOKUP(VLOOKUP($H65,INDEXTBL!$C$1:$N$1344,$C$3,FALSE),DATA!$C$2:$ASR$14,7,FALSE),"NA") -> NA | M65: =IFERROR(HLOOKUP(VLOOKUP($H65,INDEXTBL!$C$1:$N$1344,$C$3,FALSE),DATA!$C$2:$ASR$14,10,FALSE),"NA") -> NA
M66: ＊＊：人口100万人あたり
E67: ③リハビリテーション
E68: 緩D-0301 | I68: =VLOOKUP(E68,INDEXTBL!$A$1:$N$1344,2,FALSE) -> すべてのがん患者に対して、リハビリが必要かどうかの評価をする体制が整え、その結果を踏まえたリハビリを施行する | K68: 沖縄県 | L68: 全国 | M68: 最良値 （都道府県） | Q68: 緩B-0301 | U68: =VLOOKUP(Q68,INDEXTBL!$A$1:$N$1344,2,FALSE) -> [施設」では、必要な全ての患者に、適切なリハビリテーションができている | W68: 沖縄県 | X68: 全国 | Y68: 最良値 （都道府県）
H69: 緩D-030101 | I69: =VLOOKUP(H69,INDEXTBL!$C$1:$O$1344,3,FALSE) -> がん患者リハビリテーション料に関する施設基準を満たした「施設」の割合（％） | J69: =VLOOKUP($H69,INDEXTBL!$C$1:$O$1344,5,FALSE) -> EX264 | K69: =IFERROR(TEXT(HLOOKUP(J69,DATA!$C$2:$CCV$14,8,FALSE),"0.0")&"%","NA") -> 65.4% | L69: =IFERROR(HLOOKUP(VLOOKUP($H69,INDEXTBL!$C$1:$O$1344,5,FALSE),DATA!$C$2:$CCV$14,7,FALSE),"NA") -> NA | M69: =IFERROR(TEXT(_xlfn.AGGREGATE(5,7,OFFSET(DATA!$A$1,14,MATCH(J69,DATA!$A$2:$CCV$2,0)-1,47,1))*100,"0.0")&"%" &" （"& $N69 & "）","NA") -> NA | N69: =INDEX(DATA!$C$15:$C$61,MATCH(_xlfn.AGGREGATE(5,7,OFFSET(DATA!$A$1,14,MATCH(J69,DATA!$A$2:$CCV$2,0)-1,47,1)),OFFSET(DATA!$A$1,14,MATCH(J69,DATA!$A$2:$CCV$2,0)-1,47,1),0)) ->  | T69: 緩B-030101 | U69: =VLOOKUP(T69,INDEXTBL!$C$1:$N$1344,3,FALSE) -> 拠点病院等に通院・入院中のがん患者でリハビリテーションを受けた患者の割合（％） | W69: =IFERROR(HLOOKUP(VLOOKUP($T69,INDEXTBL!$C$1:$N$1344,$C$3,FALSE),DATA!$C$2:$ASR$14,8,FALSE),"NA") -> NA | X69: =IFERROR(HLOOKUP(VLOOKUP($T69,INDEXTBL!$C$1:$N$1344,$C$3,FALSE),DATA!$C$2:$ASR$14,7,FALSE),"NA") -> NA | Y69: =IFERROR(HLOOKUP(VLOOKUP($T69,INDEXTBL!$C$1:$N$1344,$C$3,FALSE),DATA!$C$2:$ASR$14,10,FALSE),"NA") -> NA
R70: グラフ | T70: 緩B-030102 | U70: =VLOOKUP(T70,INDEXTBL!$C$1:$N$1344,3,FALSE) -> （NDB-SCR）がん患者リハビリテーション料 | V70: =VLOOKUP(T70,INDEXTBL!$C$1:$O$1344,10,FALSE) -> NA17 | W70: =IFERROR(TEXT(HLOOKUP(VLOOKUP($T70,INDEXTBL!$C$1:$N$1344,10,FALSE),DATA!$C$2:$AZH$14,8,FALSE),"0.0"),"NA") -> 116.1 | X70: =IFERROR(TEXT(HLOOKUP(VLOOKUP($T70,INDEXTBL!$C$1:$N$1344,10,FALSE),DATA!$C$2:$AZH$14,7,FALSE),"0.0"),"NA") -> 100.0 | Y70: =IFERROR(TEXT(_xlfn.AGGREGATE(4,7,OFFSET(DATA!$A$1,14,MATCH(VLOOKUP($T70,INDEXTBL!$C$1:$N$1344,10,FALSE),DATA!$A$2:$AZH$2,0)-1,47,1)),"0.0") &" （"& Z70 & "）","NA") -> 190.5 （福井県） | Z70: =INDEX(DATA!$C$15:$C$61,MATCH(_xlfn.AGGREGATE(4,7,OFFSET(DATA!$A$1,14,MATCH(VLOOKUP($T70,INDEXTBL!$C$1:$N$1344,10,FALSE),DATA!$A$2:$AZH$2,0)-1,47,1)),OFFSET(DATA!$A$1,14,MATCH(VLOOKUP($T70,INDEXTBL!$C$1:$N$1344,10,FALSE),DATA!$A$2:$AZH$2,0)-1,47,1),0)) -> 福井県
T71: 緩B-030103 | U71: =VLOOKUP(T71,INDEXTBL!$C$1:$N$1344,3,FALSE) -> （医療者調査）リハビリテーションを行った患者の割合が75%以上であると回答した人の割合（％） | V71: =VLOOKUP(T71,INDEXTBL!$C$1:$O$1344,13,FALSE) -> 医27 | W71: =IFERROR(TEXT(HLOOKUP(VLOOKUP($T71,INDEXTBL!$C$1:$O$1344,13,FALSE),DATA!$C$2:$BCV$14,8,FALSE)*100,"0.0")&"%","NA") -> 57.6% | X71: =IFERROR(TEXT(HLOOKUP(VLOOKUP($T71,INDEXTBL!$C$1:$O$1344,13,FALSE),DATA!$C$2:$BCV$14,7,FALSE)*100,"0.0")&"%","NA") -> NA | Y71: =IFERROR(TEXT(_xlfn.AGGREGATE(4,7,OFFSET(DATA!$A$1,14,MATCH(VLOOKUP($T71,INDEXTBL!$C$1:$O$1344,13,FALSE),DATA!$A$2:$BCV$2,0)-1,47,1)),"0.0") &" （"& Z71 & "）","NA") -> NA | Z71: =INDEX(DATA!$C$15:$C$61,MATCH(_xlfn.AGGREGATE(4,7,OFFSET(DATA!$A$1,14,MATCH(VLOOKUP($T71,INDEXTBL!$C$1:$O$1344,13,FALSE),DATA!$A$2:$BCV$2,0)-1,47,1)),OFFSET(DATA!$A$1,14,MATCH(VLOOKUP($T71,INDEXTBL!$C$1:$O$1344,13,FALSE),DATA!$A$2:$BCV$2,0)-1,47,1),0)) -> 
E72: ④支持療法
E73: 緩D-0401 | I73: =VLOOKUP(E73,INDEXTBL!$A$1:$N$1344,2,FALSE) -> 患者が、治療に伴う副作用・合併症・後遺症への見通しを持ち、身体的苦痛や外見の変化等があった際に容易に相談できる環境を整備する | K73: 沖縄県 | L73: 全国 | M73: 最良値 （都道府県） | Q73: 緩B-0401 | U73: =VLOOKUP(Q73,INDEXTBL!$A$1:$N$1344,2,FALSE) -> [施設」では、各種ガイドラインに基づく十分な支持療法が行われている | W73: 沖縄県 | X73: 全国 | Y73: 最良値 （都道府県）
H74: 緩D-040101 | I74: =VLOOKUP(H74,INDEXTBL!$C$1:$N$1344,3,FALSE) -> リンパ浮腫研修の受講者数（人） | J74: =VLOOKUP($H74,INDEXTBL!$C$1:$O$1344,5,FALSE) -> EX265 | K74: =IFERROR(TEXT(HLOOKUP(VLOOKUP($H74,INDEXTBL!$C$1:$N$1344,5,FALSE),DATA!$C$2:$CCV$14,8,FALSE)/DATA!$H$9*1000000,"0.0"),"NA") -> 2.0 | L74: =IFERROR(TEXT(HLOOKUP(VLOOKUP($H74,INDEXTBL!$C$1:$N$1344,5,FALSE),DATA!$C$2:$CCV$14,7,FALSE)/DATA!$H$8*1000000,"0.0"),"NA") -> 2.8 | M74: =IFERROR(TEXT(MAX(OFFSET(DATA!$A$1,14,MATCH(VLOOKUP($H74,INDEXTBL!$C$1:$N$1344,5,FALSE),DATA!$A$2:$CCV$2,0)-1,47,1)/DATA!$H$15:$H$61*1000000),"0.0") &" （"& N74 & "）","NA") -> 7.6 （奈良県） | N74: =INDEX(DATA!$C$15:$C$61,MATCH(MAX(OFFSET(DATA!$A$1,14,MATCH(VLOOKUP($H74,INDEXTBL!$C$1:$N$1344,5,FALSE),DATA!$A$2:$CCV$2,0)-1,47,1)/DATA!$H$15:$H$61*1000000),OFFSET(DATA!$A$1,14,MATCH(VLOOKUP($H74,INDEXTBL!$C$1:$N$1344,5,FALSE),DATA!$A$2:$CCV$2,0)-1,47,1)/DATA!$H$15:$H$61*1000000,0)) -> 奈良県 | O74: ＊＊ | T74: 緩B-040101 | U74: =VLOOKUP(T74,INDEXTBL!$C$1:$N$1344,3,FALSE) -> （患者体験調査）治療による副作用の予測などに関し見通しを持てた患者の割合（％） | V74: =VLOOKUP(T74,INDEXTBL!$C$1:$O$1344,11,FALSE) -> 患10 | W74: =IFERROR(TEXT(HLOOKUP(VLOOKUP($T74,INDEXTBL!$C$1:$N$1344,11,FALSE),DATA!$C$2:$AZH$14,8,FALSE),"0.0")&"%","NA") -> 琉大病院83.3%% | X74: =IFERROR(TEXT(HLOOKUP(VLOOKUP($T74,INDEXTBL!$C$1:$N$1344,11,FALSE),DATA!$C$2:$AZH$14,7,FALSE),"0.0")&"%","NA") -> 75.6% | Y74: =IFERROR(TEXT(_xlfn.AGGREGATE(4,7,OFFSET(DATA!$A$1,14,MATCH(VLOOKUP($T74,INDEXTBL!$C$1:$N$1344,11,FALSE),DATA!$A$2:$AZH$2,0)-1,47,1)),"0.0")&"%" &" （"& Z74 & "）","NA") -> NA | Z74: =INDEX(DATA!$C$15:$C$61,MATCH(_xlfn.AGGREGATE(4,7,OFFSET(DATA!$A$1,14,MATCH(VLOOKUP($T74,INDEXTBL!$C$1:$N$1344,11,FALSE),DATA!$A$2:$AZH$2,0)-1,47,1)),OFFSET(DATA!$A$1,14,MATCH(VLOOKUP($T74,INDEXTBL!$C$1:$N$1344,11,FALSE),DATA!$A$2:$AZH$2,0)-1,47,1),0)) -> 
H75: 緩D-040102 | I75: =VLOOKUP(H75,INDEXTBL!$C$1:$O$1344,3,FALSE) -> リンパ浮腫外来が設置されている「施設」の割合（％） | J75: =VLOOKUP($H75,INDEXTBL!$C$1:$O$1344,5,FALSE) -> EX266 | K75: =IFERROR(TEXT(HLOOKUP(J75,DATA!$C$2:$CCV$14,8,FALSE),"0.0")&"%","NA") -> 32.0% | L75: =IFERROR(HLOOKUP(VLOOKUP($H75,INDEXTBL!$C$1:$O$1344,5,FALSE),DATA!$C$2:$CCV$14,7,FALSE),"NA") -> NA | M75: =IFERROR(TEXT(_xlfn.AGGREGATE(5,7,OFFSET(DATA!$A$1,14,MATCH(J75,DATA!$A$2:$CCV$2,0)-1,47,1))*100,"0.0")&"%" &" （"& $N75 & "）","NA") -> NA | N75: =INDEX(DATA!$C$15:$C$61,MATCH(_xlfn.AGGREGATE(5,7,OFFSET(DATA!$A$1,14,MATCH(J75,DATA!$A$2:$CCV$2,0)-1,47,1)),OFFSET(DATA!$A$1,14,MATCH(J75,DATA!$A$2:$CCV$2,0)-1,47,1),0)) ->  | T75: 緩B-040102 | U75: =VLOOKUP(T75,INDEXTBL!$C$1:$N$1344,3,FALSE) -> 拠点病院において支持療法に関する標準診療を実施された患者の割合（％） | W75: =IFERROR(HLOOKUP(VLOOKUP($T75,INDEXTBL!$C$1:$N$1344,$C$3,FALSE),DATA!$C$2:$ASR$14,8,FALSE),"NA") -> NA | X75: =IFERROR(HLOOKUP(VLOOKUP($T75,INDEXTBL!$C$1:$N$1344,$C$3,FALSE),DATA!$C$2:$ASR$14,7,FALSE),"NA") -> NA | Y75: =IFERROR(HLOOKUP(VLOOKUP($T75,INDEXTBL!$C$1:$N$1344,$C$3,FALSE),DATA!$C$2:$ASR$14,10,FALSE),"NA") -> NA
H76: 緩D-040103 | I76: =VLOOKUP(H76,INDEXTBL!$C$1:$O$1344,3,FALSE) -> ストーマ外来が設置されている「施設」の割合（％） | J76: =VLOOKUP($H76,INDEXTBL!$C$1:$O$1344,5,FALSE) -> EX267 | K76: =IFERROR(TEXT(HLOOKUP(J76,DATA!$C$2:$CCV$14,8,FALSE),"0.0")&"%","NA") -> 48.0% | L76: =IFERROR(HLOOKUP(VLOOKUP($H76,INDEXTBL!$C$1:$O$1344,5,FALSE),DATA!$C$2:$CCV$14,7,FALSE),"NA") -> NA | M76: =IFERROR(TEXT(_xlfn.AGGREGATE(5,7,OFFSET(DATA!$A$1,14,MATCH(J76,DATA!$A$2:$CCV$2,0)-1,47,1))*100,"0.0")&"%" &" （"& $N76 & "）","NA") -> NA | N76: =INDEX(DATA!$C$15:$C$61,MATCH(_xlfn.AGGREGATE(5,7,OFFSET(DATA!$A$1,14,MATCH(J76,DATA!$A$2:$CCV$2,0)-1,47,1)),OFFSET(DATA!$A$1,14,MATCH(J76,DATA!$A$2:$CCV$2,0)-1,47,1),0)) ->  | R76: グラフ | T76: 緩B-040103 | U76: =VLOOKUP(T76,INDEXTBL!$C$1:$N$1344,3,FALSE) -> （NDB-SCR）リンパ浮腫複合的治療料（重症） | V76: =VLOOKUP(T76,INDEXTBL!$C$1:$O$1344,10,FALSE) -> NA07 | W76: =IFERROR(TEXT(HLOOKUP(VLOOKUP($T76,INDEXTBL!$C$1:$N$1344,10,FALSE),DATA!$C$2:$AZH$14,8,FALSE),"0.0"),"NA") -> NA | X76: =IFERROR(TEXT(HLOOKUP(VLOOKUP($T76,INDEXTBL!$C$1:$N$1344,10,FALSE),DATA!$C$2:$AZH$14,7,FALSE),"0.0"),"NA") -> 100.0 | Y76: =IFERROR(TEXT(_xlfn.AGGREGATE(4,7,OFFSET(DATA!$A$1,14,MATCH(VLOOKUP($T76,INDEXTBL!$C$1:$N$1344,10,FALSE),DATA!$A$2:$AZH$2,0)-1,47,1)),"0.0") &" （"& Z76 & "）","NA") -> 693.7 （鳥取県） | Z76: =INDEX(DATA!$C$15:$C$61,MATCH(_xlfn.AGGREGATE(4,7,OFFSET(DATA!$A$1,14,MATCH(VLOOKUP($T76,INDEXTBL!$C$1:$N$1344,10,FALSE),DATA!$A$2:$AZH$2,0)-1,47,1)),OFFSET(DATA!$A$1,14,MATCH(VLOOKUP($T76,INDEXTBL!$C$1:$N$1344,10,FALSE),DATA!$A$2:$AZH$2,0)-1,47,1),0)) -> 鳥取県
E77: 緩D-0402 | I77: =VLOOKUP(E77,INDEXTBL!$A$1:$N$1344,2,FALSE) -> [施設」では、各種ガイドラインに基づく支持療法を、組織的に行う体制を整備する | K77: 沖縄県 | L77: 全国 | M77: 最良値 （都道府県） | R77: グラフ | T77: 緩B-040104 | U77: =VLOOKUP(T77,INDEXTBL!$C$1:$N$1344,3,FALSE) -> （NDB-SCR）リンパ浮腫複合的治療料（１以外） | V77: =VLOOKUP(T77,INDEXTBL!$C$1:$O$1344,10,FALSE) -> NA19 | W77: =IFERROR(TEXT(HLOOKUP(VLOOKUP($T77,INDEXTBL!$C$1:$N$1344,10,FALSE),DATA!$C$2:$AZH$14,8,FALSE),"0.0"),"NA") -> NA | X77: =IFERROR(TEXT(HLOOKUP(VLOOKUP($T77,INDEXTBL!$C$1:$N$1344,10,FALSE),DATA!$C$2:$AZH$14,7,FALSE),"0.0"),"NA") -> 100.0 | Y77: =IFERROR(TEXT(_xlfn.AGGREGATE(4,7,OFFSET(DATA!$A$1,14,MATCH(VLOOKUP($T77,INDEXTBL!$C$1:$N$1344,10,FALSE),DATA!$A$2:$AZH$2,0)-1,47,1)),"0.0") &" （"& Z77 & "）","NA") -> 330.6 （高知県） | Z77: =INDEX(DATA!$C$15:$C$61,MATCH(_xlfn.AGGREGATE(4,7,OFFSET(DATA!$A$1,14,MATCH(VLOOKUP($T77,INDEXTBL!$C$1:$N$1344,10,FALSE),DATA!$A$2:$AZH$2,0)-1,47,1)),OFFSET(DATA!$A$1,14,MATCH(VLOOKUP($T77,INDEXTBL!$C$1:$N$1344,10,FALSE),DATA!$A$2:$AZH$2,0)-1,47,1),0)) -> 高知県
H78: 緩D-040201 | I78: =VLOOKUP(H78,INDEXTBL!$C$1:$O$1344,3,FALSE) -> 制吐薬適正使用ガイドラインに基づく院内マニュアルを作成し、レジメンの登録が行われている「施設」の割合（％） | J78: =VLOOKUP($H78,INDEXTBL!$C$1:$O$1344,5,FALSE) -> EX268 | K78: =IFERROR(TEXT(HLOOKUP(J78,DATA!$C$2:$CCV$14,8,FALSE),"0.0")&"%","NA") -> 60.0% | L78: =IFERROR(HLOOKUP(VLOOKUP($H78,INDEXTBL!$C$1:$O$1344,5,FALSE),DATA!$C$2:$CCV$14,7,FALSE),"NA") -> NA | M78: =IFERROR(TEXT(_xlfn.AGGREGATE(5,7,OFFSET(DATA!$A$1,14,MATCH(J78,DATA!$A$2:$CCV$2,0)-1,47,1))*100,"0.0")&"%" &" （"& $N78 & "）","NA") -> NA | N78: =INDEX(DATA!$C$15:$C$61,MATCH(_xlfn.AGGREGATE(5,7,OFFSET(DATA!$A$1,14,MATCH(J78,DATA!$A$2:$CCV$2,0)-1,47,1)),OFFSET(DATA!$A$1,14,MATCH(J78,DATA!$A$2:$CCV$2,0)-1,47,1),0)) ->  | R78: グラフ | T78: 緩B-040105 | U78: =VLOOKUP(T78,INDEXTBL!$C$1:$N$1344,3,FALSE) -> （NDB-SCR）リンパ浮腫指導管理料 入院+外来 | V78: =VLOOKUP(T78,INDEXTBL!$C$1:$O$1344,10,FALSE) -> NA08 | W78: =IFERROR(TEXT(HLOOKUP(VLOOKUP($T78,INDEXTBL!$C$1:$N$1344,10,FALSE),DATA!$C$2:$AZH$14,8,FALSE),"0.0"),"NA") -> 70.7 | X78: =IFERROR(TEXT(HLOOKUP(VLOOKUP($T78,INDEXTBL!$C$1:$N$1344,10,FALSE),DATA!$C$2:$AZH$14,7,FALSE),"0.0"),"NA") -> 100.0 | Y78: =IFERROR(TEXT(_xlfn.AGGREGATE(4,7,OFFSET(DATA!$A$1,14,MATCH(VLOOKUP($T78,INDEXTBL!$C$1:$N$1344,10,FALSE),DATA!$A$2:$AZH$2,0)-1,47,1)),"0.0") &" （"& Z78 & "）","NA") -> 144.6 （佐賀県） | Z78: =INDEX(DATA!$C$15:$C$61,MATCH(_xlfn.AGGREGATE(4,7,OFFSET(DATA!$A$1,14,MATCH(VLOOKUP($T78,INDEXTBL!$C$1:$N$1344,10,FALSE),DATA!$A$2:$AZH$2,0)-1,47,1)),OFFSET(DATA!$A$1,14,MATCH(VLOOKUP($T78,INDEXTBL!$C$1:$N$1344,10,FALSE),DATA!$A$2:$AZH$2,0)-1,47,1),0)) -> 佐賀県
M79: ＊＊：人口100万人あたり | T79: 緩B-040106 | U79: =VLOOKUP(T79,INDEXTBL!$C$1:$N$1344,3,FALSE) -> （医療者調査）薬物療法の開始前に、副作用の出る時期の説明も含めて、十分な説明を行った患者の割合が75%以上であると回答した人の割合（％） | V79: =VLOOKUP(T79,INDEXTBL!$C$1:$O$1344,13,FALSE) -> 医20 | W79: =IFERROR(TEXT(HLOOKUP(VLOOKUP($T79,INDEXTBL!$C$1:$O$1344,13,FALSE),DATA!$C$2:$BCV$14,8,FALSE)*100,"0.0")&"%","NA") -> 79.9% | X79: =IFERROR(TEXT(HLOOKUP(VLOOKUP($T79,INDEXTBL!$C$1:$O$1344,13,FALSE),DATA!$C$2:$BCV$14,7,FALSE)*100,"0.0")&"%","NA") -> NA | Y79: =IFERROR(TEXT(_xlfn.AGGREGATE(4,7,OFFSET(DATA!$A$1,14,MATCH(VLOOKUP($T79,INDEXTBL!$C$1:$O$1344,13,FALSE),DATA!$A$2:$BCV$2,0)-1,47,1)),"0.0") &" （"& Z79 & "）","NA") -> NA | Z79: =INDEX(DATA!$C$15:$C$61,MATCH(_xlfn.AGGREGATE(4,7,OFFSET(DATA!$A$1,14,MATCH(VLOOKUP($T79,INDEXTBL!$C$1:$O$1344,13,FALSE),DATA!$A$2:$BCV$2,0)-1,47,1)),OFFSET(DATA!$A$1,14,MATCH(VLOOKUP($T79,INDEXTBL!$C$1:$O$1344,13,FALSE),DATA!$A$2:$BCV$2,0)-1,47,1),0)) -> 
E81: ⑤妊孕性温存療法
E82: 緩D-0501 | I82: =VLOOKUP(E82,INDEXTBL!$A$1:$N$1344,2,FALSE) -> がん患者・家族が、生殖機能への影響についての情報提供を十分に行う | K82: 沖縄県 | L82: 全国 | M82: 最良値 （都道府県） | Q82: 緩B-0501 | U82: =VLOOKUP(Q82,INDEXTBL!$A$1:$N$1344,2,FALSE) -> 妊孕性温存療法及びがん治療後の生殖補助医療が十分に行われている | W82: 沖縄県 | X82: 全国 | Y82: 最良値 （都道府県）
H83: 緩D-050101 | I83: =VLOOKUP(H83,INDEXTBL!$C$1:$N$1344,3,FALSE) -> 相談支援センターにおける「妊孕性・生殖機能」に関する相談件数 | J83: =VLOOKUP($H83,INDEXTBL!$C$1:$O$1344,5,FALSE) -> EX101 | K83: =IFERROR(HLOOKUP(VLOOKUP($H83,INDEXTBL!$C$1:$N$1344,5,FALSE),DATA!$C$2:$CCV$14,8,FALSE),"NA") -> 6 | L83: =IFERROR(HLOOKUP(VLOOKUP($H83,INDEXTBL!$C$1:$N$1344,5,FALSE),DATA!$C$2:$CCV$14,7,FALSE),"NA") -> NA | M83: =IFERROR(HLOOKUP(VLOOKUP($H83,INDEXTBL!$C$1:$N$1344,$C$3,FALSE),DATA!$C$2:$ASR$14,10,FALSE),"NA") -> NA | T83: 緩B-050101 | U83: =VLOOKUP(T83,INDEXTBL!$C$1:$N$1344,3,FALSE) -> がん・生殖医療にて出産した子供の数（人） | V83: =VLOOKUP($T83,INDEXTBL!$C$1:$O$1344,5,FALSE) -> EX269 | W83: =IFERROR(HLOOKUP(VLOOKUP($T83,INDEXTBL!$C$1:$N$1344,5,FALSE),DATA!$C$2:$CCV$14,8,FALSE),"NA") -> 1 | X83: =IFERROR(HLOOKUP(VLOOKUP($T83,INDEXTBL!$C$1:$N$1344,5,FALSE),DATA!$C$2:$CCV$14,7,FALSE),"NA") -> NA | Y83: =IFERROR(HLOOKUP(VLOOKUP($T83,INDEXTBL!$C$1:$N$1344,$C$3,FALSE),DATA!$C$2:$ASR$14,10,FALSE),"NA") -> NA
E84: 緩D-0502 | I84: =VLOOKUP(E84,INDEXTBL!$A$1:$N$1344,2,FALSE) -> 妊孕性温存療法に関する体制を整備する | K84: 沖縄県 | L84: 全国 | M84: 最良値 （都道府県） | R84: グラフ | T84: 緩B-050102 | U84: =VLOOKUP(T84,INDEXTBL!$C$1:$N$1344,3,FALSE) -> （患者体験調査）治療開始前に、生殖機能への影響に関する説明を受けたがん患者・家族の割合（％） | V84: =VLOOKUP(T84,INDEXTBL!$C$1:$O$1344,11,FALSE) -> 患A11 | W84: =IFERROR(TEXT(HLOOKUP(VLOOKUP($T84,INDEXTBL!$C$1:$N$1344,11,FALSE),DATA!$C$2:$AZH$14,8,FALSE),"0.0")&"%","NA") -> 琉大病院21.4%% | X84: =IFERROR(TEXT(HLOOKUP(VLOOKUP($T84,INDEXTBL!$C$1:$N$1344,11,FALSE),DATA!$C$2:$AZH$14,7,FALSE),"0.0")&"%","NA") -> 63.9% | Y84: =IFERROR(TEXT(_xlfn.AGGREGATE(4,7,OFFSET(DATA!$A$1,14,MATCH(VLOOKUP($T84,INDEXTBL!$C$1:$N$1344,11,FALSE),DATA!$A$2:$AZH$2,0)-1,47,1)),"0.0")&"%" &" （"& Z84 & "）","NA") -> NA | Z84: =INDEX(DATA!$C$15:$C$61,MATCH(_xlfn.AGGREGATE(4,7,OFFSET(DATA!$A$1,14,MATCH(VLOOKUP($T84,INDEXTBL!$C$1:$N$1344,11,FALSE),DATA!$A$2:$AZH$2,0)-1,47,1)),OFFSET(DATA!$A$1,14,MATCH(VLOOKUP($T84,INDEXTBL!$C$1:$N$1344,11,FALSE),DATA!$A$2:$AZH$2,0)-1,47,1),0)) -> 
H85: 緩D-050201 | I85: =VLOOKUP(H85,INDEXTBL!$C$1:$N$1344,3,FALSE) -> 日本がん・生殖医療登録システム JOFRへの登録症例数 | J85: =VLOOKUP($H85,INDEXTBL!$C$1:$O$1344,5,FALSE) -> EX154 | K85: =IFERROR(HLOOKUP(VLOOKUP($H85,INDEXTBL!$C$1:$N$1344,5,FALSE),DATA!$C$2:$CCV$14,8,FALSE),"NA") -> 54 | L85: =IFERROR(HLOOKUP(VLOOKUP($H85,INDEXTBL!$C$1:$N$1344,5,FALSE),DATA!$C$2:$CCV$14,7,FALSE),"NA") -> 1089 | M85: =IFERROR(HLOOKUP(VLOOKUP($H85,INDEXTBL!$C$1:$N$1344,$C$3,FALSE),DATA!$C$2:$ASR$14,10,FALSE),"NA") -> NA | T85: 緩B-050103 | U85: =VLOOKUP(T85,INDEXTBL!$C$1:$N$1344,3,FALSE) -> （医療者調査）妊孕性温存療法が必要な患者のうち、実際に妊孕性温存療法の説明を行った患者の割合が75%以上であると回答した人の割合（％）（医師と看護師のみ） | V85: =VLOOKUP(T85,INDEXTBL!$C$1:$O$1344,13,FALSE) -> 医22 | W85: =IFERROR(TEXT(HLOOKUP(VLOOKUP($T85,INDEXTBL!$C$1:$O$1344,13,FALSE),DATA!$C$2:$BCV$14,8,FALSE)*100,"0.0")&"%","NA") -> 49.2% | X85: =IFERROR(TEXT(HLOOKUP(VLOOKUP($T85,INDEXTBL!$C$1:$O$1344,13,FALSE),DATA!$C$2:$BCV$14,7,FALSE)*100,"0.0")&"%","NA") -> NA | Y85: =IFERROR(TEXT(_xlfn.AGGREGATE(4,7,OFFSET(DATA!$A$1,14,MATCH(VLOOKUP($T85,INDEXTBL!$C$1:$O$1344,13,FALSE),DATA!$A$2:$BCV$2,0)-1,47,1)),"0.0") &" （"& Z85 & "）","NA") -> NA | Z85: =INDEX(DATA!$C$15:$C$61,MATCH(_xlfn.AGGREGATE(4,7,OFFSET(DATA!$A$1,14,MATCH(VLOOKUP($T85,INDEXTBL!$C$1:$O$1344,13,FALSE),DATA!$A$2:$BCV$2,0)-1,47,1)),OFFSET(DATA!$A$1,14,MATCH(VLOOKUP($T85,INDEXTBL!$C$1:$O$1344,13,FALSE),DATA!$A$2:$BCV$2,0)-1,47,1),0)) -> 
E86: 緩D-0503 | I86: =VLOOKUP(E86,INDEXTBL!$A$1:$N$1344,2,FALSE) -> がん治療後の生殖医療に関する体制を整備する | K86: 沖縄県 | L86: 全国 | M86: 最良値 （都道府県）
H87: 緩D-050301 | I87: =VLOOKUP(H87,INDEXTBL!$C$1:$N$1344,3,FALSE) -> がん治療後の生殖医療のために琉球大学病院に紹介されたがん患者数（人） | J87: =VLOOKUP($H87,INDEXTBL!$C$1:$O$1344,5,FALSE) -> EX155 | K87: =IFERROR(HLOOKUP(VLOOKUP($H87,INDEXTBL!$C$1:$N$1344,5,FALSE),DATA!$C$2:$CCV$14,8,FALSE),"NA") -> 40 | L87: =IFERROR(HLOOKUP(VLOOKUP($H87,INDEXTBL!$C$1:$N$1344,5,FALSE),DATA!$C$2:$CCV$14,7,FALSE),"NA") -> NA | M87: =IFERROR(HLOOKUP(VLOOKUP($H87,INDEXTBL!$C$1:$N$1344,$C$3,FALSE),DATA!$C$2:$ASR$14,10,FALSE),"NA") -> NA

Sheet 個別のがん対策
B2: 肺がん | C2: =IF(ISBLANK($B$2),"",SUBSTITUTE($B$2,"がん","")) -> 肺 | E2: 番号 | H2: 個別施策 | Q2: 番号 | T2: 中間アウトカム | AC2: 番号 | AF2: 分野アウトカム
C3: =IF($C$2="大腸",6,IF($C$2="肺",7,IF($C$2="胃",8,IF($C$2="乳",9,"")))) -> 7
E4: ①希少がん
E5: 個D-0101 | I5: =VLOOKUP(E5,INDEXTBL!$A$1:$O$1344,2,FALSE) -> 希少がん患者及びその家族に対して、十分な情報を提供する | K5: 沖縄県 | L5: 全国 | M5: 最良値 （都道府県） | Q5: 個B-0101 | U5: =VLOOKUP(Q5,INDEXTBL!$A$1:$O$1344,2,FALSE) -> 希少がん患者の生存率の改善ができている | W5: 沖縄県 | X5: 全国 | Y5: 最良値 （都道府県） | AC5: 個A-0101 | AG5: =VLOOKUP(AC5,INDEXTBL!$A$1:$O$1344,2,FALSE) -> がんの種類、年代、住んでいる地域に拘わらず、がん診療の質の向上ができている | AI5: 沖縄県 | AJ5: 全国 | AK5: 最良値 （都道府県）
H6: 個D-010101 | I6: =VLOOKUP(H6,INDEXTBL!$C$1:$O$1344,3,FALSE) -> 希少がんに関するHP等の整備を行っている「施設」の割合（％） | K6: =IFERROR(HLOOKUP(VLOOKUP($H6,INDEXTBL!$C$1:$O$1344,$C$3,FALSE),DATA!$C$2:$CCV$14,8,FALSE),"NA") -> NA | L6: =IFERROR(HLOOKUP(VLOOKUP($H6,INDEXTBL!$C$1:$O$1344,$C$3,FALSE),DATA!$C$2:$CCV$14,7,FALSE),"NA") -> NA | M6: =IFERROR(HLOOKUP(VLOOKUP($H6,INDEXTBL!$C$1:$O$1344,$C$3,FALSE),DATA!$C$2:$CCV$14,10,FALSE),"NA") -> NA | T6: 個B-010101 | U6: =VLOOKUP(T6,INDEXTBL!$C$1:$O$1344,3,FALSE) -> （患者体験調査）初診から診断までの時間が１か月未満の希少がん患者の割合（%） | V6: =VLOOKUP(T6,INDEXTBL!$C$1:$O$1344,11,FALSE) -> EX109 | W6: =IFERROR(TEXT(HLOOKUP(VLOOKUP($T6,INDEXTBL!$C$1:$O$1344,11,FALSE),DATA!$C$2:$CCV$14,8,FALSE),"0"),"NA") -> 琉大病院64.3% | X6: =IFERROR(TEXT(HLOOKUP(VLOOKUP($T6,INDEXTBL!$C$1:$O$1344,11,FALSE),DATA!$C$2:$CCV$14,7,FALSE)*100,"0.0")&"%","NA") -> 61.4% | Y6: =IFERROR(TEXT(_xlfn.AGGREGATE(4,7,OFFSET(DATA!$A$1,14,MATCH(VLOOKUP($T6,INDEXTBL!$C$1:$O$1344,11,FALSE),DATA!$A$2:$CCV$2,0)-1,47,1)),"0.0")&"%" &" （"& Z6 & "）","NA") -> NA | Z6: =INDEX(DATA!$C$15:$C$61,MATCH(_xlfn.AGGREGATE(4,7,OFFSET(DATA!$A$1,14,MATCH(VLOOKUP($T6,INDEXTBL!$C$1:$O$1344,11,FALSE),DATA!$A$2:$CCV$2,0)-1,47,1)),OFFSET(DATA!$A$1,14,MATCH(VLOOKUP($T6,INDEXTBL!$C$1:$O$1344,11,FALSE),DATA!$A$2:$CCV$2,0)-1,47,1),0)) ->  | AF6: 個A-010101 | AG6: =VLOOKUP(AF6,INDEXTBL!$C$1:$O$1344,3,FALSE) -> 希少がんの5年生存率（％） | AH6: =VLOOKUP(AF6,INDEXTBL!$C$1:$O$1344,5,FALSE) -> EX102 | AI6: =IFERROR(TEXT(HLOOKUP(VLOOKUP($AF6,INDEXTBL!$C$1:$O$1344,5,FALSE),DATA!$C$2:$CCV$14,8,FALSE),"0.0"),"NA") -> NA | AJ6: =IFERROR(TEXT(HLOOKUP(VLOOKUP($AF6,INDEXTBL!$C$1:$O$1344,11,FALSE),DATA!$C$2:$CCV$14,7,FALSE)*100,"0.0")&"%","NA") -> NA | AK6: =IFERROR(TEXT(_xlfn.AGGREGATE(4,7,OFFSET(DATA!$A$1,14,MATCH(VLOOKUP($AF6,INDEXTBL!$C$1:$O$1344,11,FALSE),DATA!$A$2:$CCV$2,0)-1,47,1)),"0.0")&"%" &" （"& AL6 & "）","NA") -> NA | AL6: =INDEX(DATA!$C$15:$C$61,MATCH(_xlfn.AGGREGATE(4,7,OFFSET(DATA!$A$1,14,MATCH(VLOOKUP($AF6,INDEXTBL!$C$1:$O$1344,11,FALSE),DATA!$A$2:$CCV$2,0)-1,47,1)),OFFSET(DATA!$A$1,14,MATCH(VLOOKUP($AF6,INDEXTBL!$C$1:$O$1344,11,FALSE),DATA!$A$2:$CCV$2,0)-1,47,1),0)) -> 
E7: 個D-0102 | I7: =VLOOKUP(E7,INDEXTBL!$A$1:$O$1344,2,FALSE) -> 希少がん患者及びその家族に対して、十分な相談支援を提供する | K7: 沖縄県 | L7: 全国 | M7: 最良値 （都道府県） | T7: 個B-010102 | U7: =VLOOKUP(T7,INDEXTBL!$C$1:$O$1344,3,FALSE) -> （患者体験調査）確定診断から治療開始までの時間が1か月未満の希少がん患者の割合（%） | V7: =VLOOKUP(T7,INDEXTBL!$C$1:$O$1344,11,FALSE) -> EX110 | W7: =IFERROR(TEXT(HLOOKUP(VLOOKUP($T7,INDEXTBL!$C$1:$O$1344,11,FALSE),DATA!$C$2:$CCV$14,8,FALSE),"0.0"),"NA") -> 琉大病院50.0% | X7: =IFERROR(TEXT(HLOOKUP(VLOOKUP($T7,INDEXTBL!$C$1:$O$1344,11,FALSE),DATA!$C$2:$CCV$14,7,FALSE)*100,"0.0")&"%","NA") -> 62.4% | Y7: =IFERROR(TEXT(_xlfn.AGGREGATE(4,7,OFFSET(DATA!$A$1,14,MATCH(VLOOKUP($T7,INDEXTBL!$C$1:$O$1344,11,FALSE),DATA!$A$2:$CCV$2,0)-1,47,1)),"0.0")&"%" &" （"& Z7 & "）","NA") -> NA | Z7: =INDEX(DATA!$C$15:$C$61,MATCH(_xlfn.AGGREGATE(4,7,OFFSET(DATA!$A$1,14,MATCH(VLOOKUP($T7,INDEXTBL!$C$1:$O$1344,11,FALSE),DATA!$A$2:$CCV$2,0)-1,47,1)),OFFSET(DATA!$A$1,14,MATCH(VLOOKUP($T7,INDEXTBL!$C$1:$O$1344,11,FALSE),DATA!$A$2:$CCV$2,0)-1,47,1),0)) ->  | AC7: （参考値）
H8: 個D-010201 | I8: =VLOOKUP(H8,INDEXTBL!$C$1:$O$1344,3,FALSE) -> がん相談支援センターに相談した希少がん患者数（人） | J8: =VLOOKUP($H8,INDEXTBL!$C$1:$O$1344,5,FALSE) -> EX156 | K8: =IFERROR(HLOOKUP(VLOOKUP($H8,INDEXTBL!$C$1:$N$1344,5,FALSE),DATA!$C$2:$CCV$14,8,FALSE),"NA") -> 65 | L8: =IFERROR(HLOOKUP(VLOOKUP($H8,INDEXTBL!$C$1:$N$1344,5,FALSE),DATA!$C$2:$CCV$14,7,FALSE),"NA") -> NA | M8: =IFERROR(HLOOKUP(VLOOKUP($H8,INDEXTBL!$C$1:$N$1344,$C$3,FALSE),DATA!$C$2:$ASR$14,10,FALSE),"NA") -> NA | Q8: 個B-0102 | U8: =VLOOKUP(Q8,INDEXTBL!$A$1:$O$1344,2,FALSE) -> 希少がん患者及びその家族の苦痛の軽減並びに療養生活の質の維持向上ができている | W8: 沖縄県 | X8: 全国 | Y8: 最良値 （都道府県） | AI8: 沖縄県 | AJ8: 全国 | AK8: 最良値 （都道府県）
